Workbook

Sheet Home

Sheet Results menu

Sheet Flow diagram ALL
B1: ='User interface_RES'!AJ11 -> Just a city in a victious place, Southeast Asia
B2: FLOW DIAGRAM | TOTAL FAECAL WASTE FLOWS | M2: MENU
B5: To copy this diagram into a PowerPoint slide, click on an element of the diagram, then select all (Ctrl + A) then Copy and Paste Special [Picture (GIF)]

Sheet Flow diagram SLUDGE
B1: ='User interface_RES'!AJ11 -> Just a city in a victious place, Southeast Asia
B2: FLOW DIAGRAM | FAECAL SLUDGE FLOWS | M2: MENU
B5: To copy this diagram into a PowerPoint slide, click on an element of the diagram, then select all (Ctrl + A) then Copy and Paste Special [Picture (GIF)]

Sheet Arrow Templates (hidden)

Sheet FWF Diagram ALL
A1: ='User interface_RES'!AJ11 -> Just a city in a victious place, Southeast Asia
A2: FLOW DIAGRAM | DETAILED TOTAL FAECAL WASTE FLOWS | M2: MENU

Sheet FWF Diagram SLUDGE
A1: ='User interface_RES'!AJ11 -> Just a city in a victious place, Southeast Asia
A2: FLOW DIAGRAM | DETAILED FAECAL SLUDGE FLOWS | M2: MENU

Sheet Overview_ALL
A1: ='User interface_RES'!AJ11 -> Just a city in a victious place, Southeast Asia | B1: ='User interface_RES'!AJ11 -> Just a city in a victious place, Southeast Asia
B2: SUMMARY OVERVIEW | TOTAL FAECAL WASTE FLOWS (Faecal sludge and septage or black water)
C5: NOW | D5: SAFE | E5: UNSAFE | F5: TOTALS | I5: SAFE | J5: UNSAFE | N5: SAFE | O5: UNSAFE | Q5: TOTALS | S5: SAFE | T5: UNSAFE | U5: TOTALS
B6: Produced | C6: ='FW Flows_ALL'!C7 -> 7551350 | D6: ='FW Flows_ALL'!C7 -> 7551350 | F6: =SUM(D6:E6) -> 7551350 | H6: =B6 -> Produced | I6: =D6 -> 7551350 | J6: =E6 -> 0 | M6: Produced | N6: =IF(C6=0,0,D6/C6) -> 1 | O6: =IF(C6=0,0,E6/C6) -> 0 | Q6: =IF(C6=0,0,C6/C6) -> 1 | R6: Produced | S6: =N6 -> 1 | T6: =O6 -> 0
B7: Capture | C7: ='FW Flows_ALL'!C7 -> 7551350 | D7: ='FW Flows_ALL'!C9 -> 7551225 | E7: ='FW Flows_ALL'!C10 -> 125 | F7: =SUM(D7:E7) -> 7551350 | H7: =B7 -> Capture | I7: =D7 -> 7551225 | J7: 125 | M7: Captured | N7: 0.9999834467 | O7: 1.655333152e-05 | Q7: =IF($C$6=0,0,C7/C$6) -> 1 | R7: Capture | S7: =IF(C7=0,0,D7/C7) -> 0.9999834467 | T7: =IF(C7=0,0,E7/C7) -> 1.655333152e-05 | U7: =SUM(S7:T7) -> 1
B8: Containment | C8: ='FW Flows_ALL'!G7 -> 7551225 | D8: ='FW Flows_ALL'!G9 -> 4484725 | E8: ='FW Flows_ALL'!G10 -> 3066500 | F8: 7551225 | H8: Containment | I8: 4484725 | J8: 3066500 | M8: Contained | N8: 0.5939069489 | O8: 0.4060930511 | Q8: 0.9999834467 | R8: Containment | S8: =IF($C$6=0,0,C8/$C$6*N8) -> 0.5938971177 | T8: =IF($C$6=0,0,C8/$C$6*O8) -> 0.4060863289 | U8: =SUM(S8:T8) -> 0.9999834467
B9: Emptying | C9: ='FW Flows_ALL'!K7 -> 4484725 | D9: ='FW Flows_ALL'!K9 -> 2784950 | E9: ='FW Flows_ALL'!K10 -> 1699775 | F9: 4484725 | H9: Emptying | I9: 2784950 | J9: 1699775 | M9: Emptying | N9: 0.6209856792 | O9: 0.3790143208 | Q9: 0.5938971177 | R9: Emptying | S9: 0.368801605 | T9: 0.2250955127 | U9: 0.5938971177
B10: Transport | C10: ='FW Flows_ALL'!O7 -> 2784950 | D10: ='FW Flows_ALL'!O9 -> 1374350 | E10: ='FW Flows_ALL'!O10 -> 1410600 | F10: 2784950 | H10: Transport | I10: 1374350 | J10: 1410600 | M10: Transport | N10: 0.4934918042 | O10: 0.5065081958 | Q10: 0.368801605 | R10: Transport | S10: 0.1820005694 | T10: 0.1868010356 | U10: 0.368801605
B11: Treatment | C11: ='FW Flows_ALL'!S7 -> 1374350 | D11: ='FW Flows_ALL'!S9 -> 690025 | E11: ='FW Flows_ALL'!S10 -> 684325 | F11: 1374350 | H11: Treatment | I11: 690025 | J11: 684325 | M11: Treatment | N11: 0.5020737076 | O11: 0.4979262924 | Q11: 0.1820005694 | R11: Treatment | S11: 0.09137770068 | T11: 0.09062286876 | U11: 0.1820005694
B12: Disposal | C12: ='FW Flows_ALL'!W12+'FW Flows_ALL'!W23 -> 1374350 | D12: ='FW Flows_ALL'!W12 -> 690025 | E12: ='FW Flows_ALL'!W23 -> 684325 | F12: 1374350 | H12: Disposal | I12: 690025 | J12: 684325 | M12: Disposal | N12: 0.5020737076 | O12: 0.4979262924 | Q12: 0.1820005694 | R12: Disposal | S12: 0.09137770068 | T12: 0.09062286876 | U12: 0.1820005694
B13: Reuse | C13: ='FW Flows_ALL'!W14+'FW Flows_ALL'!W25 -> 0 | D13: ='FW Flows_ALL'!W14 -> 0 | E13: ='FW Flows_ALL'!W25 -> 0 | F13: 0 | H13: Reuse | I13: 0 | J13: 0 | M13: Reuse | N13: 0 | O13: 0 | Q13: 0 | R13: Reuse | S13: 0 | T13: 0 | U13: 0
D14: =SUM(D12:D13) -> 690025 | E14: =SUM(E7:E11)+D14 -> 7551350 | I14: =SUM(I12:I13) -> 690025 | J14: =SUM(J7:J11)+I14 -> 7551350 | S14: =SUM(S12:S13) -> 0.09137770068 | T14: =SUM(T7:T11)+S14 -> 1 | U14: 1.091377701
E15: =C6-E14 -> 0 | J15: =I6-J14 -> 0 | T15: =S6-T14 -> 0
E16: =IF(E15=0,"OK","Not OK") -> OK | J16: =IF(J15=0,"OK","Not OK") -> OK | T16: =IF(T15=0,"OK","Not OK") -> OK
B18: Rapid assessment of faecal sludge / wastewater flows and related issues
B19: ='User interface_RES'!AJ11 -> Just a city in a victious place, Southeast Asia
B21: Volumes of FAECAL WASTE FLOWS conserved per year through the sanitation service chain
B45: Summary of FAECAL WASTE FLOWS
C47: Produced | D47: Capture | E47: Containment | F47: Emptying | G47: Transport | H47: Treatment | I47: Disposal | J47: Reuse
B48: Totals in m3 | C48: =C6 -> 7551350 | D48: =C7 -> 7551350 | E48: =C8 -> 7551225 | F48: =C9 -> 4484725 | G48: =C10 -> 2784950 | H48: =C11 -> 1374350 | I48: =C12 -> 1374350 | J48: =C13 -> 0
B49: Totals in % | C49: =Q7 -> 1 | D49: =Q7 -> 1 | E49: =Q8 -> 0.9999834467 | F49: =Q9 -> 0.5938971177 | G49: =Q10 -> 0.368801605 | H49: =Q11 -> 0.1820005694 | I49: =Q12 -> 0.1820005694 | J49: =Q13 -> 0
B50: Safe | D50: =S7 -> 0.9999834467 | E50: =S8 -> 0.5938971177 | F50: =S9 -> 0.368801605 | G50: =S10 -> 0.1820005694 | H50: =S11 -> 0.09137770068 | I50: =S12 -> 0.09137770068 | J50: =S13 -> 0
B51: Unsafe | D51: =T7 -> 1.655333152e-05 | E51: =T8 -> 0.4060863289 | F51: =T9 -> 0.2250955127 | G51: =T10 -> 0.1868010356 | H51: =T11 -> 0.09062286876 | I51: =T12 -> 0.09062286876 | J51: =T13 -> 0
B53: Overview of faecal waste management related score cards
C55: Overall | D55: Capture | E55: Containment | F55: Emptying | G55: Transport | H55: Treatment | I55: Disposal | J55: Reuse
B56: Planning | C56: ='Scorecard Overview'!D10 -> 0
B57: Budgets | C57: ='Scorecard Overview'!D14 -> 0.07142857143 | D57: ='Scorecard Overview'!F14 -> NA | F57: ='Scorecard Overview'!J14 -> NA | G57: ='Scorecard Overview'!L14 -> NA | H57: ='Scorecard Overview'!N14 -> NA | I57: ='Scorecard Overview'!P14 -> NA | J57: ='Scorecard Overview'!R14 -> NA
B58: Standards | D58: ='Scorecard Overview'!F20 -> 0.4444444444 | F58: ='Scorecard Overview'!J20 -> 0 | G58: ='Scorecard Overview'!L20 -> 0 | H58: ='Scorecard Overview'!N20 -> 0.4 | I58: ='Scorecard Overview'!P20 -> 0 | J58: ='Scorecard Overview'!R20 -> 0
B59: Permits | D59: ='Scorecard Overview'!F28 -> 0.6666666667 | F59: ='Scorecard Overview'!J28 -> 0 | G59: ='Scorecard Overview'!L28 -> 0.6666666667 | H59: ='Scorecard Overview'!N28 -> 0 | I59: ='Scorecard Overview'!P28 -> 0 | J59: ='Scorecard Overview'!R28 -> 0
B60: Safety | D60: N/A | F60: ='Scorecard Overview'!J32 -> 0.1428571429 | G60: ='Scorecard Overview'!L32 -> 0.2857142857 | H60: N/A | I60: N/A | J60: N/A
B62: Notes: NA = Not Available; N/A = Not Applicable

Sheet FW Flows_ALL
B1: ='User interface_RES'!AJ11 -> Just a city in a victious place, Southeast Asia
B2: SUMMARY OF TOTAL FAECAL WASTE FLOWS (Faecal sludge and septage or black water)
B5: CAPTURE | F5: CONTAINMENT | J5: EMPTYING | N5: TRANSPORT | R5: TREATMENT | V5: DISPOSAL OR REUSE
B7: Volume produced | C7: =C9+C10 -> 7551350 | D7: =IF($C$7=0,0,C7/C$7) -> 1 | F7: Volume contained | G7: =G9+G10 -> 7551225 | H7: =IF($G$7=0,0,G7/G$7) -> 1 | J7: Volume emptied | K7: =K9+K10 -> 4484725 | L7: =IF($K$7=0,0,K7/K$7) -> 1 | N7: Volume transported | O7: =O12+O18+O23+O31 -> 2784950 | P7: =IF(O$7=0,0,O7/O$7) -> 1 | R7: Volume treated | S7: =S12+S18+S23+S27 -> 1374350 | T7: =IF(S$7=0,0,S7/S$7) -> 1 | V7: Volume disposed or reused | W7: =W12+W14+W23+W25 -> 1374350 | X7: =IF(W$7=0,0,W7/W$7) -> 1
B9: SAFE | C9: =C12 -> 7551225 | D9: =IF($C$7=0,0,C9/C$7) -> 0.9999834467 | F9: SAFE | G9: =G12+G18 -> 4484725 | H9: =IF($G$7=0,0,G9/G$7) -> 0.5939069489 | J9: SAFE | K9: =K12+K18 -> 2784950 | L9: =IF($K$7=0,0,K9/K$7) -> 0.6209856792 | N9: SAFE | O9: =O12+O18 -> 1374350 | P9: =IF(O$7=0,0,O9/O$7) -> 0.4934918042 | R9: SAFE | S9: =S12+S18 -> 690025 | T9: =IF(S$7=0,0,S9/S$7) -> 0.5020737076 | V9: SAFE | W9: =W12+W14 -> 690025 | X9: =IF(W$7=0,0,W9/W$7) -> 0.5020737076
B10: UNSAFE | C10: =C23 -> 125 | D10: =IF($C$7=0,0,C10/C$7) -> 1.655333152e-05 | F10: UNSAFE | G10: =G23 -> 3066500 | H10: =IF($G$7=0,0,G10/G$7) -> 0.4060930511 | J10: UNSAFE | K10: =K23+K28+K31 -> 1699775 | L10: =IF($K$7=0,0,K10/K$7) -> 0.3790143208 | N10: UNSAFE | O10: =O23+O31 -> 1410600 | P10: =IF(O$7=0,0,O10/O$7) -> 0.5065081958 | R10: UNSAFE | S10: =S23 -> 684325 | T10: =IF(S$7=0,0,S10/S$7) -> 0.4979262924 | V10: UNSAFE | W10: =W23+W25 -> 684325 | X10: =IF(W$7=0,0,W10/W$7) -> 0.4979262924
B11: = | F11: = | J11: = | N11: = | R11: = | V11: =
B12: Volumes safely captured | C12: =SUM(C13:C16) -> 7551225 | D12: =IF($C$7=0,0,C12/C$7) -> 0.9999834467 | F12: Volumes safely contained | G12: =SUM(G13:G16) -> 3074575 | H12: =IF($G$7=0,0,G12/G$7) -> 0.407162414 | J12: Volumes safely emptied | K12: =SUM(K13:K14) -> 6150 | L12: =IF($K$7=0,0,K12/K$7) -> 0.001371321541 | N12: Volumes safely transported | O12: =O13 -> 5700 | P12: =IF(O$7=0,0,O12/O$7) -> 0.002046715381 | R12: Volumes safely treated | S12: =SUM(S13:S14) -> 690025 | T12: =IF(S$7=0,0,S12/S$7) -> 0.5020737076 | V12: Volumes safely disposed | W12: ='Disposal volumes'!B11 -> 690025 | X12: =IF(W$7=0,0,W12/W$7) -> 0.5020737076
B13:  Captured in WC to sewer | C13: ='Capture volumes'!B11 -> 1413725 | D13: =IF($C$7=0,0,C13/C$7) -> 0.1872148689 | F13:  Contained in WC to sewer | G13: ='Containment volumes'!B11 -> 3575 | H13: =IF($G$7=0,0,G13/G$7) -> 0.0004734331185 | J13:  Safely emptied manually | K13: ='Emptying volumes'!B11 -> 0 | L13: =IF($K$7=0,0,K13/K$7) -> 0 | N13:  Safely transported | O13: ='Transport volumes'!B11 -> 5700 | P13: =IF(O$7=0,0,O13/O$7) -> 0.002046715381 | R13:  Safely treated for disposal | S13: ='Treatment volumes'!B11 -> 690025 | T13: =IF(S$7=0,0,S13/S$7) -> 0.5020737076 | V13: +
B14:  Captured in WC to DEWATS* | C14: ='Capture volumes'!B12 -> 0 | D14: =IF($C$7=0,0,C14/C$7) -> 0 | F14:  Contained in WC to DEWATS | G14: ='Containment volumes'!B12 -> 0 | H14: =IF($G$7=0,0,G14/G$7) -> 0 | J14:  Safely emptied mechanically | K14: ='Emptying volumes'!B12 -> 6150 | L14: =IF($K$7=0,0,K14/K$7) -> 0.001371321541 | R14:  Safely treated for reuse | S14: ='Treatment volumes'!B12 -> 0 | T14: =IF(S$7=0,0,S14/S$7) -> 0 | V14: Volumes safely reused | W14: ='Disposal volumes'!B12 -> 0 | X14: =IF(W$7=0,0,W14/W$7) -> 0
B15:  Captured onsite in septic tanks | C15: ='Capture volumes'!B13 -> 1834425 | D15: =IF($C$7=0,0,C15/C$7) -> 0.2429267614 | F15:  Contained onsite in septic tanks | G15: ='Containment volumes'!B13 -> 1375825 | H15: =IF($G$7=0,0,G15/G$7) -> 0.1821989147
B16:  Captured onsite in pit latrines | C16: ='Capture volumes'!B14 -> 4303075 | D16: =IF($C$7=0,0,C16/C$7) -> 0.5698418164 | F16:  Contained onsite in pit latrines | G16: ='Containment volumes'!B14 -> 1695175 | H16: =IF($G$7=0,0,G16/G$7) -> 0.2244900662
B17: * = DEWATS or communal septic tanks | F17: + | J17: + | N17: +
F18: Volumes safely passed on | G18: =SUM(G19:G20) -> 1410150 | H18: =IF($G$7=0,0,G18/G$7) -> 0.1867445348 | J18: Volumes (safely) passed on | K18: =SUM(K19:K21) -> 2778800 | L18: =IF($K$7=0,0,K18/K$7) -> 0.6196143576 | N18: Volumes safely passed on | O18: =SUM(O19:O21) -> 1368650 | P18: =IF(O$7=0,0,O18/O$7) -> 0.4914450888
F19:  Captured in WC to sewer | G19: ='Containment volumes'!B17 -> 1410150 | H19: =IF($G$7=0,0,G19/G$7) -> 0.1867445348 | J19:  Captured in WC to sewer | K19: ='Emptying volumes'!B15 -> 1410150 | L19: =IF($K$7=0,0,K19/K$7) -> 0.3144339954 | N19:  Captured in WC to sewer | O19: ='Transport volumes'!B14 -> 0 | P19: =IF(O$7=0,0,O19/O$7) -> 0
J20:  Septage from DEWATS | K20: ='Emptying volumes'!B16 -> 0 | L20: =IF($K$7=0,0,K20/K$7) -> 0 | N20:  Septage from DEWATS | O20: ='Transport volumes'!B15 -> 0 | P20: =IF(O$7=0,0,O20/O$7) -> 0
J21:  Septage from onsite septic tanks | K21: ='Emptying volumes'!B17 -> 1368650 | L21: =IF($K$7=0,0,K21/K$7) -> 0.3051803622 | N21:  Septage from onsite septic tanks | O21: ='Transport volumes'!B16 -> 1368650 | P21: =IF(O$7=0,0,O21/O$7) -> 0.4914450888
B22: + | F22: + | J22: + | N22: + | R22: + | V22: +
B23: Volumes not safely captured | C23: =SUM(C24:C24) -> 125 | D23: =IF($C$7=0,0,C23/C$7) -> 1.655333152e-05 | F23: Volumes not safely contained | G23: =SUM(G24:G26) -> 3066500 | H23: =IF($G$7=0,0,G23/G$7) -> 0.4060930511 | J23: Volumes not safely emptied | K23: =SUM(K24:K25) -> 0 | L23: =IF($K$7=0,0,K23/K$7) -> 0 | N23: Volumes not safely transported | O23: =SUM(O24:O25) -> 450 | P23: =IF(O$7=0,0,O23/O$7) -> 0.0001615827932 | R23: Volumes not safely treated | S23: =SUM(S24:S25) -> 684325 | T23: =IF(S$7=0,0,S23/S$7) -> 0.4979262924 | V23: Volumes unsafely disposed | W23: ='Disposal volumes'!B15 -> 684325 | X23: =IF(W$7=0,0,W23/W$7) -> 0.4979262924
B24:  Open defecation (OD) | C24: ='Capture volumes'!B17 -> 125 | D24: =IF($C$7=0,0,C24/C$7) -> 1.655333152e-05 | F24:  Contained in WC to DEWATS | G24: ='Containment volumes'!B20 -> 0 | H24: =IF($G$7=0,0,G24/G$7) -> 0 | J24:  Unsafely emptied manually | K24: ='Emptying volumes'!B20 -> 0 | L24: =IF($K$7=0,0,K24/K$7) -> 0 | N24:  Spillage during transport | O24: ='Transport volumes'!B19 -> 0 | P24: =IF(O$7=0,0,O24/O$7) -> 0 | R24:  Unsafely treated for disposal | S24: ='Treatment volumes'!B15 -> 684325 | T24: =IF(S$7=0,0,S24/S$7) -> 0.4979262924 | V24: +
F25:  Contained onsite in septic tanks | G25: ='Containment volumes'!B21 -> 458600 | H25: =IF($G$7=0,0,G25/G$7) -> 0.06073186801 | J25:  Unsafely emptied mechanically | K25: ='Emptying volumes'!B21 -> 0 | L25: =IF($K$7=0,0,K25/K$7) -> 0 | N25:  Illegally disposed | O25: ='Transport volumes'!B20 -> 450 | P25: =IF(O$7=0,0,O25/O$7) -> 0.0001615827932 | R25:  Unsafely treated for reuse | S25: ='Treatment volumes'!B16 -> 0 | T25: =IF(S$7=0,0,S25/S$7) -> 0 | V25: Volumes unsafely reused | W25: ='Disposal volumes'!B16 -> 0 | X25: =IF(W$7=0,0,W25/W$7) -> 0
F26:  Contained onsite in pit latrines | G26: ='Containment volumes'!B22 -> 2607900 | H26: =IF($G$7=0,0,G26/G$7) -> 0.3453611831
J27: +
J28: Volumes not emptied | K28: =SUM(K29:K30) -> 23050 | L28: =IF($K$7=0,0,K28/K$7) -> 0.005139668542
J29:  Not emptied onsite facilities | K29: ='Emptying volumes'!B24 -> 23050 | L29: =IF($K$7=0,0,K29/K$7) -> 0.005139668542
J30: + | N30: +
J31: Volumes not safely passed on | K31: =SUM(K32:K33) -> 1676725 | L31: =IF($K$7=0,0,K31/K$7) -> 0.3738746523 | N31: Volumes not safely passed on | O31: =SUM(O32:O33) -> 1410150 | P31: =IF(O$7=0,0,O31/O$7) -> 0.506346613
J32:  Septage from onsite pit latrines | K32: ='Emptying volumes'!B27 -> 1676725 | L32: =IF($K$7=0,0,K32/K$7) -> 0.3738746523 | N32:  Leakage in sewers | O32: ='Transport volumes'!B23 -> 1410150 | P32: =IF(O$7=0,0,O32/O$7) -> 0.506346613
N33:  Leakage in DEWATS | O33: ='Transport volumes'!B24 -> 0 | P33: =IF(O$7=0,0,O33/O$7) -> 0
F39: Volumes not safely contained | G39: =G23 -> 3066500
F40: Volumes not emptied | G40: =K28 -> 23050
F41: Volumes not safely passed on | G41: =K31 -> 1676725
G42: =SUM(G39:G41) -> 4766275 | H42: =G42/C7 -> 0.6311818417

Sheet Overview_SLUDGE
B1: ='User interface_RES'!AJ11 -> Just a city in a victious place, Southeast Asia
B2: SUMMARY OVERVIEW | FAECAL SLUDGE FLOWS
C5: NOW | D5: SAFE | E5: UNSAFE | F5: TOTALS | I5: SAFE | J5: UNSAFE | N5: SAFE | O5: UNSAFE | Q5: TOTALS | S5: SAFE | T5: UNSAFE | U5: TOTALS
B6: Produced | C6: ='FW Flows_SLUDGE'!C7 -> 36825 | D6: ='FW Flows_SLUDGE'!C7 -> 36825 | E6: 0 | F6: =SUM(D6:E6) -> 36825 | H6: =B6 -> Produced | I6: =D6 -> 36825 | J6: =E6 -> 0 | M6: All produced | N6: =IF(C6=0,0,D6/C6) -> 1 | O6: =IF(C6=0,0,E6/C6) -> 0 | Q6: =IF(C6=0,0,C6/C6) -> 1 | R6: Produced | S6: =N6 -> 1 | T6: =O6 -> 0
B7: Capture | C7: ='FW Flows_SLUDGE'!C7 -> 36825 | D7: ='FW Flows_SLUDGE'!C9 -> 36700 | E7: ='FW Flows_SLUDGE'!C10 -> 125 | F7: =SUM(D7:E7) -> 36825 | H7: =B7 -> Capture | I7: =D7 -> 36700 | J7: =E7 -> 125 | M7: Captured | N7: 0.9966055669 | O7: 0.00339443313 | Q7: =IF($C$6=0,0,C7/C$6) -> 1 | R7: Capture | S7: =IF(C7=0,0,D7/C7) -> 0.9966055669 | T7: =IF(C7=0,0,E7/C7) -> 0.00339443313 | U7: =SUM(S7:T7) -> 1
B8: Containment | C8: ='FW Flows_SLUDGE'!G7 -> 36700 | D8: ='FW Flows_SLUDGE'!G9 -> 29775 | E8: ='FW Flows_SLUDGE'!G10 -> 6925 | F8: 36700 | H8: Containment | I8: 29775 | J8: 6925 | M8: Contained | N8: 0.8113079019 | O8: 0.1886920981 | Q8: 0.9966055669 | R8: Containment | S8: =IF($C$6=0,0,C8/$C$6*N8) -> 0.8085539715 | T8: =IF($C$6=0,0,C8/$C$6*O8) -> 0.1880515954 | U8: =SUM(S8:T8) -> 0.9966055669
B9: Emptying | C9: ='FW Flows_SLUDGE'!K7 -> 29775 | D9: ='FW Flows_SLUDGE'!K9 -> 7050 | E9: ='FW Flows_SLUDGE'!K10 -> 22725 | F9: 29775 | H9: Emptying | I9: 7050 | J9: 22725 | M9: Emptying | N9: 0.2367758186 | O9: 0.7632241814 | Q9: 0.8085539715 | R9: Emptying | S9: 0.1914460285 | T9: 0.617107943 | U9: 0.8085539715
B10: Transport | C10: ='FW Flows_SLUDGE'!O7 -> 7050 | D10: ='FW Flows_SLUDGE'!O9 -> 5700 | E10: ='FW Flows_SLUDGE'!O10 -> 1350 | F10: 7050 | H10: Transport | I10: 5700 | J10: 1350 | M10: Transport | N10: 0.8085106383 | O10: 0.1914893617 | Q10: 0.1914460285 | R10: Transport | S10: 0.1547861507 | T10: 0.0366598778 | U10: 0.1914460285
B11: Treatment | C11: ='FW Flows_SLUDGE'!S7 -> 5700 | D11: ='FW Flows_SLUDGE'!S9 -> 5700 | E11: ='FW Flows_SLUDGE'!S10 -> 0 | F11: 5700 | H11: Treatment | I11: 5700 | J11: 0 | M11: Treatment | N11: 1 | O11: 0 | Q11: 0.1547861507 | R11: Treatment | S11: 0.1547861507 | T11: 0 | U11: 0.1547861507
B12: Disposal | C12: ='FW Flows_SLUDGE'!W12+'FW Flows_SLUDGE'!W23 -> 5700 | D12: ='FW Flows_SLUDGE'!W12 -> 5700 | E12: ='FW Flows_SLUDGE'!W23 -> 0 | F12: 5700 | H12: Disposal | I12: 5700 | J12: 0 | M12: Disposal | N12: 1 | O12: 0 | Q12: 0.1547861507 | R12: Disposal | S12: 0.1547861507 | T12: 0 | U12: 0.1547861507
B13: Reuse | C13: ='FW Flows_SLUDGE'!W14+'FW Flows_SLUDGE'!W25 -> 0 | D13: ='FW Flows_SLUDGE'!W14 -> 0 | E13: ='FW Flows_SLUDGE'!W25 -> 0 | F13: 0 | H13: Reuse | I13: 0 | J13: 0 | M13: Reuse | N13: 0 | O13: 0 | Q13: 0 | R13: Reuse | S13: 0 | T13: 0 | U13: 0
D14: =SUM(D12:D13) -> 5700 | E14: =SUM(E7:E11)+D14 -> 36825 | I14: =SUM(I12:I13) -> 5700 | J14: =SUM(J7:J11)+I14 -> 36825 | S14: =SUM(S12:S13) -> 0.1547861507 | T14: =SUM(T7:T11)+S14 -> 1
E15: =C6-E14 -> 0 | J15: =I6-J14 -> 0 | T15: =S6-T14 -> 0
E16: =IF(E15=0,"OK","Not OK") -> OK | J16: =IF(J15=0,"OK","Not OK") -> OK | T16: =IF(T15=0,"OK","Not OK") -> OK
B18: Rapid assessment of faecal sludge / wastewater flows and related issues
B19: ='User interface_RES'!AJ11 -> Just a city in a victious place, Southeast Asia
B21: Volumes of FAECAL SLUDGE conserved per year through the sanitation service chain
B45: Summary of FAECAL SLUDGE flows
C47: Produced | D47: Capture | E47: Containment | F47: Emptying | G47: Transport | H47: Treatment | I47: Disposal | J47: Reuse
B48: Totals in m3 | C48: =C6 -> 36825 | D48: =C7 -> 36825 | E48: =C8 -> 36700 | F48: =C9 -> 29775 | G48: =C10 -> 7050 | H48: =C11 -> 5700 | I48: =C12 -> 5700 | J48: =C13 -> 0
B49: Totals in % | C49: =Q7 -> 1 | D49: =Q7 -> 1 | E49: =Q8 -> 0.9966055669 | F49: =Q9 -> 0.8085539715 | G49: =Q10 -> 0.1914460285 | H49: =Q11 -> 0.1547861507 | I49: =Q12 -> 0.1547861507 | J49: =Q13 -> 0
B50: Safe | D50: =S7 -> 0.9966055669 | E50: =S8 -> 0.8085539715 | F50: =S9 -> 0.1914460285 | G50: =S10 -> 0.1547861507 | H50: =S11 -> 0.1547861507 | I50: =S12 -> 0.1547861507 | J50: =S13 -> 0
B51: Unsafe | D51: =T7 -> 0.00339443313 | E51: =T8 -> 0.1880515954 | F51: =T9 -> 0.617107943 | G51: =T10 -> 0.0366598778 | H51: =T11 -> 0 | I51: =T12 -> 0 | J51: =T13 -> 0
B53: Overview of faecal waste management related score cards
C55: Overall | D55: Capture | E55: Containment | F55: Emptying | G55: Transport | H55: Treatment | I55: Disposal | J55: Reuse
B56: Planning | C56: ='Scorecard Overview'!D10 -> 0
B57: Budgets | C57: ='Scorecard Overview'!D14 -> 0.07142857143 | D57: ='Scorecard Overview'!F14 -> NA | F57: ='Scorecard Overview'!J14 -> NA | G57: ='Scorecard Overview'!L14 -> NA | H57: ='Scorecard Overview'!N14 -> NA | I57: ='Scorecard Overview'!P14 -> NA | J57: ='Scorecard Overview'!R14 -> NA
B58: Standards | D58: ='Scorecard Overview'!F20 -> 0.4444444444 | F58: ='Scorecard Overview'!J20 -> 0 | G58: ='Scorecard Overview'!L20 -> 0 | H58: ='Scorecard Overview'!N20 -> 0.4 | I58: ='Scorecard Overview'!P20 -> 0 | J58: ='Scorecard Overview'!R20 -> 0
B59: Permits | D59: ='Scorecard Overview'!F28 -> 0.6666666667 | F59: ='Scorecard Overview'!J28 -> 0 | G59: ='Scorecard Overview'!L28 -> 0.6666666667 | H59: ='Scorecard Overview'!N28 -> 0 | I59: ='Scorecard Overview'!P28 -> 0 | J59: ='Scorecard Overview'!R28 -> 0
B60: Safety | D60: N/A | F60: ='Scorecard Overview'!J32 -> 0.1428571429 | G60: ='Scorecard Overview'!L32 -> 0.2857142857 | H60: N/A | I60: N/A | J60: N/A
B62: Notes: NA = Not Available; N/A = Not Applicable

Sheet FW Flows_SLUDGE
B1: ='User interface_RES'!AJ11 -> Just a city in a victious place, Southeast Asia
B2: SUMMARY OF FAECAL SLUDGE FLOWS
B5: CAPTURE | F5: CONTAINMENT | J5: EMPTYING | N5: TRANSPORT | R5: TREATMENT | V5: DISPOSAL OR REUSE
B7: Volume produced | C7: =C9+C10 -> 36825 | D7: =IF($C$7=0,0,C7/C$7) -> 1 | F7: Volume contained | G7: =G9+G10 -> 36700 | H7: =IF($G$7=0,0,G7/G$7) -> 1 | J7: Volume emptied | K7: =K9+K10 -> 29775 | L7: =IF($K$7=0,0,K7/K$7) -> 1 | N7: Volume transported | O7: =O12+O18+O23+O31 -> 7050 | P7: =IF(O$7=0,0,O7/O$7) -> 1 | R7: Volume treated | S7: =S12+S18+S23+S27 -> 5700 | T7: =IF(S$7=0,0,S7/S$7) -> 1 | V7: Volume disposed or reused | W7: =W12+W14+W23+W25 -> 5700 | X7: =IF(W$7=0,0,W7/W$7) -> 1
B9: SAFE | C9: =C12 -> 36700 | D9: =IF($C$7=0,0,C9/C$7) -> 0.9966055669 | F9: SAFE | G9: =G12+G18 -> 29775 | H9: =IF($G$7=0,0,G9/G$7) -> 0.8113079019 | J9: SAFE | K9: =K12+K18 -> 7050 | L9: =IF($K$7=0,0,K9/K$7) -> 0.2367758186 | N9: SAFE | O9: =O12+O18 -> 5700 | P9: =IF(O$7=0,0,O9/O$7) -> 0.8085106383 | R9: SAFE | S9: =S12+S18 -> 5700 | T9: =IF(S$7=0,0,S9/S$7) -> 1 | V9: SAFE | W9: =W12+W14 -> 5700 | X9: =IF(W$7=0,0,W9/W$7) -> 1
B10: UNSAFE | C10: =C23 -> 125 | D10: =IF($C$7=0,0,C10/C$7) -> 0.00339443313 | F10: UNSAFE | G10: =G23 -> 6925 | H10: =IF($G$7=0,0,G10/G$7) -> 0.1886920981 | J10: UNSAFE | K10: =K23+K28+K31 -> 22725 | L10: =IF($K$7=0,0,K10/K$7) -> 0.7632241814 | N10: UNSAFE | O10: =O23+O31 -> 1350 | P10: =IF(O$7=0,0,O10/O$7) -> 0.1914893617 | R10: UNSAFE | S10: =S23 -> 0 | T10: =IF(S$7=0,0,S10/S$7) -> 0 | V10: UNSAFE | W10: =W23+W25 -> 0 | X10: =IF(W$7=0,0,W10/W$7) -> 0
B11: = | F11: = | J11: = | N11: = | R11: = | V11: =
B12: Volumes safely captured | C12: =SUM(C13:C16) -> 36700 | D12: =IF($C$7=0,0,C12/C$7) -> 0.9966055669 | F12: Volumes safely contained | G12: =SUM(G13:G16) -> 28875 | H12: =IF($G$7=0,0,G12/G$7) -> 0.7867847411 | J12: Volumes safely emptied | K12: =SUM(K13:K14) -> 6150 | L12: =IF($K$7=0,0,K12/K$7) -> 0.2065491184 | N12: Volumes safely transported | O12: =O13 -> 5700 | P12: =IF(O$7=0,0,O12/O$7) -> 0.8085106383 | R12: Volumes safely treated | S12: =SUM(S13:S14) -> 5700 | T12: =IF(S$7=0,0,S12/S$7) -> 1 | V12: Volumes safely disposed | W12: ='FS_Disposal volumes'!B11 -> 5700 | X12: =IF(W$7=0,0,W12/W$7) -> 1
B13:  Captured in WC to sewer | C13: ='FS_Capture volumes'!B11 -> 3575 | D13: =IF($C$7=0,0,C13/C$7) -> 0.09708078751 | F13:  Contained in WC to sewer | G13: ='FS_Containment volumes'!B11 -> 2675 | H13: =IF($G$7=0,0,G13/G$7) -> 0.07288828338 | J13:  Safely emptied manually | K13: ='FS_Emptying volumes'!B11 -> 0 | L13: =IF($K$7=0,0,K13/K$7) -> 0 | N13:  Safely transported | O13: ='FS_Transport volumes'!B11 -> 5700 | P13: =IF(O$7=0,0,O13/O$7) -> 0.8085106383 | R13:  Safely treated for disposal | S13: ='FS_Treatment volumes'!B11 -> 5700 | T13: =IF(S$7=0,0,S13/S$7) -> 1 | V13: +
B14:  Captured in WC to DEWATS* | C14: ='FS_Capture volumes'!B12 -> 0 | D14: =IF($C$7=0,0,C14/C$7) -> 0 | F14:  Contained in WC to DEWATS | G14: ='FS_Containment volumes'!B12 -> 0 | H14: =IF($G$7=0,0,G14/G$7) -> 0 | J14:  Safely emptied mechanically | K14: ='FS_Emptying volumes'!B12 -> 6150 | L14: =IF($K$7=0,0,K14/K$7) -> 0.2065491184 | R14:  Safely treated for reuse | S14: ='FS_Treatment volumes'!B12 -> 0 | T14: =IF(S$7=0,0,S14/S$7) -> 0 | V14: Volumes safely reused | W14: ='FS_Disposal volumes'!B12 -> 0 | X14: =IF(W$7=0,0,W14/W$7) -> 0
B15:  Captured onsite in septic tanks | C15: ='FS_Capture volumes'!B13 -> 9525 | D15: =IF($C$7=0,0,C15/C$7) -> 0.2586558045 | F15:  Contained onsite in septic tanks | G15: ='FS_Containment volumes'!B13 -> 7850 | H15: =IF($G$7=0,0,G15/G$7) -> 0.2138964578
B16:  Captured onsite in pit latrines | C16: ='FS_Capture volumes'!B14 -> 23600 | D16: =IF($C$7=0,0,C16/C$7) -> 0.6408689749 | F16:  Contained onsite in pit latrines | G16: ='FS_Containment volumes'!B14 -> 18350 | H16: =IF($G$7=0,0,G16/G$7) -> 0.5
B17: * = DEWATS or communal septic tanks | F17: + | J17: + | N17: +
F18: Volumes safely passed on | G18: =SUM(G19:G20) -> 900 | H18: =IF($G$7=0,0,G18/G$7) -> 0.02452316076 | J18: Volumes (safely) passed on | K18: =SUM(K19:K21) -> 900 | L18: =IF($K$7=0,0,K18/K$7) -> 0.03022670025 | N18: Volumes safely passed on | O18: =SUM(O19:O21) -> 0 | P18: =IF(O$7=0,0,O18/O$7) -> 0
F19:  Captured in WC to sewer | G19: ='FS_Containment volumes'!B17 -> 900 | H19: =IF($G$7=0,0,G19/G$7) -> 0.02452316076 | J19:  Captured in WC to sewer | K19: ='FS_Emptying volumes'!B15 -> 900 | L19: =IF($K$7=0,0,K19/K$7) -> 0.03022670025 | N19:  Captured in WC to sewer | O19: ='FS_Transport volumes'!B14 -> 0 | P19: =IF(O$7=0,0,O19/O$7) -> 0
J20:  Septage from DEWATS | K20: ='FS_Emptying volumes'!B16 -> 0 | L20: =IF($K$7=0,0,K20/K$7) -> 0 | N20:  Septage from DEWATS | O20: ='FS_Transport volumes'!B15 -> 0 | P20: =IF(O$7=0,0,O20/O$7) -> 0
J21:  Septage from onsite septic tanks | K21: ='FS_Emptying volumes'!B17 -> 0 | L21: =IF($K$7=0,0,K21/K$7) -> 0 | N21:  Septage from onsite septic tanks | O21: ='FS_Transport volumes'!B16 -> 0 | P21: =IF(O$7=0,0,O21/O$7) -> 0
B22: + | F22: + | J22: + | N22: + | R22: + | V22: +
B23: Volumes not safely captured | C23: =SUM(C24:C24) -> 125 | D23: =IF($C$7=0,0,C23/C$7) -> 0.00339443313 | F23: Volumes not safely contained | G23: =SUM(G24:G26) -> 6925 | H23: =IF($G$7=0,0,G23/G$7) -> 0.1886920981 | J23: Volumes not safely emptied | K23: =SUM(K24:K25) -> 0 | L23: =IF($K$7=0,0,K23/K$7) -> 0 | N23: Volumes not safely transported | O23: =SUM(O24:O25) -> 450 | P23: =IF(O$7=0,0,O23/O$7) -> 0.06382978723 | R23: Volumes not safely treated | S23: =SUM(S24:S25) -> 0 | T23: =IF(S$7=0,0,S23/S$7) -> 0 | V23: Volumes unsafely disposed | W23: ='FS_Disposal volumes'!B15 -> 0 | X23: =IF(W$7=0,0,W23/W$7) -> 0
B24:  Open defecation (OD) | C24: ='FS_Capture volumes'!B17 -> 125 | D24: =IF($C$7=0,0,C24/C$7) -> 0.00339443313 | F24:  Contained in WC to DEWATS | G24: ='FS_Containment volumes'!B20 -> 0 | H24: =IF($G$7=0,0,G24/G$7) -> 0 | J24:  Unsafely emptied manually | K24: ='FS_Emptying volumes'!B20 -> 0 | L24: =IF($K$7=0,0,K24/K$7) -> 0 | N24:  Spillage during transport | O24: ='FS_Transport volumes'!B19 -> 0 | P24: =IF(O$7=0,0,O24/O$7) -> 0 | R24:  Unsafely treated for disposal | S24: ='FS_Treatment volumes'!B15 -> 0 | T24: =IF(S$7=0,0,S24/S$7) -> 0 | V24: +
F25:  Contained onsite in septic tanks | G25: ='FS_Containment volumes'!B21 -> 1675 | H25: =IF($G$7=0,0,G25/G$7) -> 0.04564032698 | J25:  Unsafely emptied mechanically | K25: ='FS_Emptying volumes'!B21 -> 0 | L25: =IF($K$7=0,0,K25/K$7) -> 0 | N25:  Illegally disposed | O25: ='FS_Transport volumes'!B20 -> 450 | P25: =IF(O$7=0,0,O25/O$7) -> 0.06382978723 | R25:  Unsafely treated for reuse | S25: ='FS_Treatment volumes'!B16 -> 0 | T25: =IF(S$7=0,0,S25/S$7) -> 0 | V25: Volumes unsafely reused | W25: ='FS_Disposal volumes'!B16 -> 0 | X25: =IF(W$7=0,0,W25/W$7) -> 0
F26:  Contained onsite in pit latrines | G26: ='FS_Containment volumes'!B22 -> 5250 | H26: =IF($G$7=0,0,G26/G$7) -> 0.1430517711
J27: +
J28: Volumes not emptied | K28: =SUM(K29:K30) -> 22725 | L28: =IF($K$7=0,0,K28/K$7) -> 0.7632241814
J29:  Not emptied onsite facilities | K29: ='FS_Emptying volumes'!B24 -> 22725 | L29: =IF($K$7=0,0,K29/K$7) -> 0.7632241814
J30: + | N30: +
J31: Volumes not safely passed on | K31: =SUM(K32:K33) -> 0 | L31: =IF($K$7=0,0,K31/K$7) -> 0 | N31: Volumes not safely passed on | O31: =SUM(O32:O33) -> 900 | P31: =IF(O$7=0,0,O31/O$7) -> 0.1276595745
J32:  Septage from onsite pit latrines | K32: ='FS_Emptying volumes'!B27 -> 0 | L32: =IF($K$7=0,0,K32/K$7) -> 0 | N32:  Leakage in sewers | O32: ='FS_Transport volumes'!B23 -> 900 | P32: =IF(O$7=0,0,O32/O$7) -> 0.1276595745
N33:  Leakage in DEWATS | O33: ='FS_Transport volumes'!B24 -> 0 | P33: =IF(O$7=0,0,O33/O$7) -> 0

Sheet SUM for FWF Diagram_COMBINED (hidden)
B1: ='User interface_RES'!AJ11 -> Just a city in a victious place, Southeast Asia
B2: SUMMARY OF VOLUMES FOR TOTAL FAECAL WASTE FLOW DIAGRAM
N4: Safely emptied | P4: Safely transported | R4: Safely treated sludge
B5: TYPE OF FACILITY | J5: Same as for faecal sludge >> | N5: ='SUM for FWF Diagram_SLUDGE'!N5 -> 6150 | P5: ='SUM for FWF Diagram_SLUDGE'!P5 -> 5700 | R5: ='SUM for FWF Diagram_SLUDGE'!R5 -> 5700
B6: WC connected to sewer with onsite sludge containment | N6: ='SUM for FWF Diagram_SLUDGE'!N6 -> 570 | P6: ='SUM for FWF Diagram_SLUDGE'!P6 -> 530 | R6: ='SUM for FWF Diagram_SLUDGE'!R6 -> 530
B7: WC connected to communal septic tank | N7: ='SUM for FWF Diagram_SLUDGE'!N7 -> 0 | P7: ='SUM for FWF Diagram_SLUDGE'!P7 -> 0 | R7: ='SUM for FWF Diagram_SLUDGE'!R7 -> 0
B8: Onstie septic tank | N8: ='SUM for FWF Diagram_SLUDGE'!N8 -> 1670 | P8: ='SUM for FWF Diagram_SLUDGE'!P8 -> 1550 | R8: ='SUM for FWF Diagram_SLUDGE'!R8 -> 1550
B9: Onsite pit latrine | N9: ='SUM for FWF Diagram_SLUDGE'!N9 -> 3910 | P9: ='SUM for FWF Diagram_SLUDGE'!P9 -> 3620 | R9: ='SUM for FWF Diagram_SLUDGE'!R9 -> 3620
N11: Not safely emptied | P11: Not safely transported | R11: Unsafely treated sludge
N12: ='SUM for FWF Diagram_SLUDGE'!N12 -> 0 | P12: ='SUM for FWF Diagram_SLUDGE'!P12 -> 450 | R12: ='SUM for FWF Diagram_SLUDGE'!R12 -> 0
N13: ='SUM for FWF Diagram_SLUDGE'!N13 -> 0 | P13: ='SUM for FWF Diagram_SLUDGE'!P13 -> 40 | R13: ='SUM for FWF Diagram_SLUDGE'!R13 -> 0
N14: ='SUM for FWF Diagram_SLUDGE'!N14 -> 0 | P14: ='SUM for FWF Diagram_SLUDGE'!P14 -> 0 | R14: ='SUM for FWF Diagram_SLUDGE'!R14 -> 0
N15: ='SUM for FWF Diagram_SLUDGE'!N15 -> 0 | P15: ='SUM for FWF Diagram_SLUDGE'!P15 -> 120 | R15: ='SUM for FWF Diagram_SLUDGE'!R15 -> 0
N16: ='SUM for FWF Diagram_SLUDGE'!N16 -> 0 | P16: ='SUM for FWF Diagram_SLUDGE'!P16 -> 290 | R16: ='SUM for FWF Diagram_SLUDGE'!R16 -> 0
B20: IN CUBIC METRES | V20: Note: Select options for unsafely managed faecal waste below the presentation of the volumes in percentages
B22: TOTAL VOLUME PRODUCED | D22: TYPE OF FACILITY | H22: VOLUMES PRODUCED | J22: CAPTURE | L22: CONTAINMENT | N22: EMPTYING | P22: TRANSPORT | R22: TREATMENT | T22: DISPOSAL OR REUSE
B24: ='SUM for FWF Diagram_ALL'!B24 -> 7551350 | D24: WC connected to sewer | H24: ='SUM for FWF Diagram_ALL'!H24 -> 1413725 | J24: ='SUM for FWF Diagram_ALL'!J24 -> 1413725 | L24: ='SUM for FWF Diagram_ALL'!L24+'SUM for FWF Diagram_ALL'!L30 -> 1413725 | N24: ='SUM for FWF Diagram_ALL'!N24+'SUM for FWF Diagram_ALL'!N30 -> 1410720 | P24: ='SUM for FWF Diagram_ALL'!P24+'SUM for FWF Diagram_ALL'!P30 -> 530 | R24: ='SUM for FWF Diagram_ALL'!R24+'SUM for FWF Diagram_ALL'!R30 -> 530 | T24: ='SUM for FWF Diagram_ALL'!T24+'SUM for FWF Diagram_ALL'!T30 -> 530 | V24: =X77 -> 690025
R26: ='SUM for FWF Diagram_ALL'!R26+'SUM for FWF Diagram_ALL'!R32 -> 0 | T26: =IF(Z26=R26,0,R26-Z26) -> 0 | Z26: ='SUM for FWF Diagram_ALL'!T26+'SUM for FWF Diagram_ALL'!T32 -> 0
P28: ='SUM for FWF Diagram_ALL'!P28+'SUM for FWF Diagram_ALL'!P34 -> 1410190
N30: ='SUM for FWF Diagram_ALL'!N36 -> 3005
D32: WC connected to communal septic tank | H32: ='SUM for FWF Diagram_ALL'!H38 -> 0 | J32: ='SUM for FWF Diagram_ALL'!J38 -> 0 | L32: ='SUM for FWF Diagram_ALL'!L38 -> 0 | N32: ='SUM for FWF Diagram_ALL'!N38+'SUM for FWF Diagram_ALL'!N44 -> 0 | P32: ='SUM for FWF Diagram_ALL'!P38+'SUM for FWF Diagram_ALL'!P44 -> 0 | R32: ='SUM for FWF Diagram_ALL'!R38+'SUM for FWF Diagram_ALL'!R44 -> 0 | T32: ='SUM for FWF Diagram_ALL'!T38+'SUM for FWF Diagram_ALL'!T44 -> 0
R34: ='SUM for FWF Diagram_ALL'!R40+'SUM for FWF Diagram_ALL'!R46 -> 0 | T34: =IF(Z34=R34,0,R34-Z34) -> 0 | Z34: ='SUM for FWF Diagram_ALL'!T40+'SUM for FWF Diagram_ALL'!T46 -> 0
P36: ='SUM for FWF Diagram_ALL'!P42+'SUM for FWF Diagram_ALL'!P48 -> 0
N38: ='SUM for FWF Diagram_ALL'!N50+'SUM for FWF Diagram_ALL'!N52 -> 0
L40: ='SUM for FWF Diagram_ALL'!L54 -> 0
D42: Onsite facilities | F42: Septic tank | H42: ='SUM for FWF Diagram_ALL'!H56 -> 1834425 | J42: ='SUM for FWF Diagram_ALL'!J56 -> 1834425 | L42: ='SUM for FWF Diagram_ALL'!L56 -> 1375825 | N42: ='SUM for FWF Diagram_ALL'!N56+'SUM for FWF Diagram_ALL'!N60 -> 1370320 | P42: ='SUM for FWF Diagram_ALL'!P56+'SUM for FWF Diagram_ALL'!P60 -> 1370200 | R42: ='SUM for FWF Diagram_ALL'!R56+'SUM for FWF Diagram_ALL'!R60 -> 685875 | T42: ='SUM for FWF Diagram_ALL'!T56+'SUM for FWF Diagram_ALL'!T60 -> 685875
R44: ='SUM for FWF Diagram_ALL'!R58+'SUM for FWF Diagram_ALL'!R62 -> 684325 | T44: =IF(Z44=R44,0,R44-Z44) -> 0 | Z44: ='SUM for FWF Diagram_ALL'!T58+'SUM for FWF Diagram_ALL'!T62 -> 684325
P46: ='SUM for FWF Diagram_ALL'!P64 -> 120
N48: ='SUM for FWF Diagram_ALL'!N66+'SUM for FWF Diagram_ALL'!N68 -> 5505
L50: ='SUM for FWF Diagram_ALL'!L70 -> 458600
F52: Pit latrines | H52: ='SUM for FWF Diagram_ALL'!H72 -> 4303075 | J52: ='SUM for FWF Diagram_ALL'!J72 -> 4303075 | L52: ='SUM for FWF Diagram_ALL'!L72 -> 1695175 | N52: ='SUM for FWF Diagram_ALL'!N72 -> 3910 | P52: ='SUM for FWF Diagram_ALL'!P72 -> 3620 | R52: ='SUM for FWF Diagram_ALL'!R72 -> 3620 | T52: ='SUM for FWF Diagram_ALL'!T72 -> 3620
R54: ='SUM for FWF Diagram_ALL'!R74 -> 0 | T54: =IF(Z54=R54,0,R54-Z54) -> 0 | Z54: ='SUM for FWF Diagram_ALL'!T74 -> 0
P56: ='SUM for FWF Diagram_ALL'!P76 -> 290
N58: ='SUM for FWF Diagram_ALL'!N78+'SUM for FWF Diagram_ALL'!N80 -> 1691265
L60: ='SUM for FWF Diagram_ALL'!L82 -> 2607900
D62: Open defecation | H62: ='SUM for FWF Diagram_ALL'!H84 -> 125 | J62: ='SUM for FWF Diagram_ALL'!J84 -> 125
J64: =X79 -> 6861325
H67: Volumes produced | J67: Capture | L67: Containment | N67: Emptying | P67: Transport | R67: Treatment | T67: Disposal or reuse | X67: TOTALS
F69: SAFE | J69: =J24+J32+J42+J52 -> 7551225 | L69: =L24+L32+L42+L52 -> 4484725 | N69: =N24+N32+N42+N52 -> 2784950 | P69: =P24+P32+P42+P52 -> 1374350 | R69: =R24+R32+R42+R52 -> 690025 | T69: =T24+T32+T42+T52 -> 690025
F70: UNSAFE | J70: =J62 -> 125 | L70: =L50+L60 -> 3066500 | N70: =N30+N38+N48+N58 -> 1699775 | P70: =P28+P36+P46+P56 -> 1410600 | R70: =R26+R34+R44+R54 -> 684325 | T70: =T26+T34+T44+T54 -> 0
B72: =SUM(B24:B62) -> 7551350 | H72: =SUM(H24:H62) -> 7551350 | J72: =SUM(J69:J70) -> 7551350 | L72: =SUM(L69:L70) -> 7551225 | N72: =SUM(N69:N70) -> 4484725 | P72: =SUM(P69:P70) -> 2784950 | R72: =SUM(R69:R70) -> 1374350 | T72: =SUM(T69:T70) -> 690025
H73: =H72-B72 -> 0 | J73: =J72-H72 -> 0 | L73: =L72-J69 -> 0 | N73: =N72-L69 -> 0 | P73: =P72-N69 -> 0 | R73: =R72-P69 -> 0 | T73: =T72-R69 -> 0
B74: Check totals >> | H74: =IF(H73=0,"OK","Not OK") -> OK | J74: =IF(J73=0,"OK","Not OK") -> OK | L74: =IF(L73=0,"OK","Not OK") -> OK | N74: =IF(N73=0,"OK","Not OK") -> OK | P74: =IF(P73=0,"OK","Not OK") -> OK | R74: =IF(R73=0,"OK","Not OK") -> OK | T74: =IF(T73=0,"OK","Not OK") -> OK
B77: Totals per sanitation service chain element | SAFE | H77: =H24+H32+H42+H52+H62 -> 7551350 | J77: =J69 -> 7551225 | L77: =L69 -> 4484725 | N77: =N69 -> 2784950 | P77: =P69 -> 1374350 | R77: =R69 -> 690025 | T77: =T69 -> 690025 | X77: =T77 -> 690025
B79: Totals per sanitation service chain element | UNSAFE | J79: =J70 -> 125 | L79: =L70 -> 3066500 | N79: =N70 -> 1699775 | P79: =P70 -> 1410600 | R79: =R70 -> 684325 | T79: =IF(T70=R70,0,R70-T70) -> 684325 | X79: =SUM(J79:R79) -> 6861325
X81: =SUM(X77:X79) -> 7551350 | Y81: =IF(X81=H77,"OK","Not OK") -> OK
B83: IN PERCENTAGES
B86: TOTAL VOLUME PRODUCED | D86: TYPE OF FACILITY | H86: VOLUMES PRODUCED | J86: CAPTURE | L86: CONTAINMENT | N86: EMPTYING | P86: TRANSPORT | R86: TREATMENT | T86: DISPOSAL OR REUSE
B88: =IF(B24=0,0,B24/B24) -> 1 | D88: WC connected to sewer | H88: =IF(B24=0,0,H24/$B$24) -> 0.1872148689 | J88: =IF($B$24=0,0,J24/$B$24) -> 0.1872148689 | L88: =IF($B$24=0,0,(L24)/$B$24) -> 0.1872148689 | N88: =IF($B$24=0,0,(N24)/$B$24) -> 0.1868169268 | P88: =IF(B24=0,0,(P24)/$B$24) -> 7.018612566e-05 | R88: =IF($B$24=0,0,(R24)/$B$24) -> 7.018612566e-05 | T88: =IF($B$24=0,0,(T24)/$B$24) -> 7.018612566e-05 | V88: =IF(B24=0,0,T69/B24) -> 0.09137770068
R90: =IF(B24=0,0,(R26)/$B$24) -> 0 | T90: =IF(D24=0,0,(T26)/$B$24) -> 0
P92: =IF(B24=0,0,(P28)/$B$24) -> 0.1867467406
N94: =IF(B24=0,0,N30/$B$24) -> 0.0003979420898
D96: WC connected to communal septic tank | H96: =IF(B24=0,0,H32/$B$24) -> 0 | J96: =IF(B24=0,0,J32/$B$24) -> 0 | L96: =IF(B24=0,0,L32/$B$24) -> 0 | N96: =IF($B$24=0,0,(N32)/$B$24) -> 0 | P96: =IF(B24=0,0,(P32)/$B$24) -> 0 | R96: =IF(B24=0,0,(R32)/$B$24) -> 0 | T96: =IF(D24=0,0,(T32)/$B$24) -> 0
R98: =IF(B24=0,0,(R34)/$B$24) -> 0 | T98: =IF(D24=0,0,(T34)/$B$24) -> 0
P100: =IF(B24=0,0,(P36)/$B$24) -> 0
N102: =IF($B$24=0,0,(N38)/$B$24) -> 0
L104: =IF(B24=0,0,L40/$B$24) -> 0
D106: Onsite facilities | F106: Septic tank | H106: =IF(B24=0,0,H42/$B$24) -> 0.2429267614 | J106: =IF(B24=0,0,J42/$B$24) -> 0.2429267614 | L106: =IF(B24=0,0,L42/$B$24) -> 0.1821958987 | N106: =IF(B24=0,0,(N42)/B24) -> 0.18146689 | P106: =IF(B24=0,0,(P42)/$B$24) -> 0.1814509988 | R106: =IF(B24=0,0,(R42)/$B$24) -> 0.09082813007 | T106: =IF(D24=0,0,(T42)/$B$24) -> 0.09082813007
R108: =IF(B24=0,0,(R44)/$B$24) -> 0.09062286876 | T108: =IF(D34=0,0,(T44)/$B$24) -> 0
P110: =IF(B24=0,0,P46/$B$24) -> 1.589119826e-05
N112: =IF(B24=0,0,(N48)/$B$24) -> 0.0007290087203
L114: =IF(B24=0,0,L50/B24) -> 0.06073086269
F116: Pit latrines | H116: =IF(B24=0,0,H52/$B$24) -> 0.5698418164 | J116: =IF(B24=0,0,J52/$B$24) -> 0.5698418164 | L116: =IF(B24=0,0,L52/$B$24) -> 0.2244863501 | N116: =IF(B24=0,0,N52/$B$24) -> 0.0005177882101 | P116: =IF(B24=0,0,P52/$B$24) -> 0.0004793844809 | R116: =IF(B24=0,0,R52/$B$24) -> 0.0004793844809 | T116: =IF(D24=0,0,T52/$B$24) -> 0.0004793844809
R118: =IF(B24=0,0,R54/$B$24) -> 0 | T118: =IF(D24=0,0,T54/$B$24) -> 0
P120: =IF(B24=0,0,P56/$B$24) -> 3.840372913e-05
N122: =IF(B24=0,0,(N58)/$B$24) -> 0.2239685619
L124: =IF(B24=0,0,L60/B24) -> 0.3453554662
D126: Open defecation | H126: =IF(B24=0,0,H62/$B$24) -> 1.655333152e-05 | J126: =IF(B24=0,0,J62/$B$24) -> 1.655333152e-05
J128: =IF(B24=0,0,SUM(J70:R70)/B24) -> 0.9086222993
H131: Volumes produced | J131: Capture | L131: Containment | N131: Emptying | P131: Transport | R131: Treatment | T131: Disposal or reuse | X131: TOTALS
B133: Totals per sanitation service chain element | SAFE | H133: =H88+H96+H106+H116+H126 -> 1 | J133: =ROUND((J88+J96+J106+J116)/0.001,0)*0.001 -> 1 | L133: =ROUND((L88+L96+L106+L116)/0.001,0)*0.001 -> 0.594 | N133: =ROUND((N88+N96+N106+N116)/0.001,0)*0.001 -> 0.369 | P133: =ROUND((P88+P96+P106+P116)/0.001,0)*0.001 -> 0.182 | R133: =ROUND((R88+R96+R106+R116)/0.001,0)*0.001 -> 0.091 | T133: =ROUND((T88+T96+T106+T116)/0.001,0)*0.001 -> 0.091 | X133: =T133 -> 0.091
B135: Totals per sanitation service chain element | UNSAFE | J135: =ROUND((J126)/0.001,0)*0.001 -> 0 | L135: =J133-L133 -> 0.406 | N135: =L133-N133 -> 0.225 | P135: =N133-P133 -> 0.187 | R135: =P133-R133 -> 0.091 | T135: =R133-T133 -> 0 | X135: =SUM(J135:R135) -> 0.909
X137: =X135+X133 -> 1 | Y137: =IF(X137=1,"OK","Not OK") -> OK
J140: Capture | L140: Containment | N140: Emptying | P140: Transport | R140: Treatment | T140: Disposal or reuse
B141: Select reasons why faecal sludge is disappearing along the chain that explains the above red percentages >> | J141: Open defecation | L141: Discharge to environment | N141: Not emptied pits or tanks | P141: Broken sewer | R141: No treatment and or ineffective treatment | T141: No treatment and or ineffective treatment
J154: Capture | L154: Containment | N154: Emptying | P154: Transport | R154: Treatment | T154: Disposal or reuse
H155: Options
J156: Open defecation | L156: Seepage | N156: Spillage during emptying | P156: Spillage during transport | R156: No treatment | T156: No treatment
L157: Discharge to environment | N157: Not emptied pits or tanks | P157: Ilegal dumping | R157: Ineffective treatment | T157: Ineffective treatment
L158: Seepage and discharge to environment | N158: Spillage and not emptied pits or tanks | P158: Spillage during transport and illegal dumping | R158: No treatment and or ineffective treatment | T158: No treatment and or ineffective treatment
P159: Informal dumping on farmland
P160: Leaking sewers
P161: Broken sewer
P162: Leaking sewers and informal dumping
P163: Spillage (transport), leakage (sewers) and illegal dumping

Sheet SUM for FWF Diagram_ALL
B1: ='User interface_RES'!AJ11 -> Just a city in a victious place, Southeast Asia
B2: SUMMARY OF VOLUMES FOR TOTAL FAECAL WASTE FLOW DIAGRAM
N4: Safely emptied | P4: Safely transported | R4: Safely treated sludge
B5: TYPE OF FACILITY | J5: Same as for faecal sludge >> | N5: ='SUM for FWF Diagram_SLUDGE'!N5 -> 6150 | P5: ='SUM for FWF Diagram_SLUDGE'!P5 -> 5700 | R5: ='SUM for FWF Diagram_SLUDGE'!R5 -> 5700
B6: WC connected to sewer with onsite sludge containment | N6: ='SUM for FWF Diagram_SLUDGE'!N6 -> 570 | P6: ='SUM for FWF Diagram_SLUDGE'!P6 -> 530 | R6: ='SUM for FWF Diagram_SLUDGE'!R6 -> 530
B7: WC connected to communal septic tank | N7: ='SUM for FWF Diagram_SLUDGE'!N7 -> 0 | P7: ='SUM for FWF Diagram_SLUDGE'!P7 -> 0 | R7: ='SUM for FWF Diagram_SLUDGE'!R7 -> 0
B8: Onstie septic tank | N8: ='SUM for FWF Diagram_SLUDGE'!N8 -> 1670 | P8: ='SUM for FWF Diagram_SLUDGE'!P8 -> 1550 | R8: ='SUM for FWF Diagram_SLUDGE'!R8 -> 1550
B9: Onsite pit latrine | N9: ='SUM for FWF Diagram_SLUDGE'!N9 -> 3910 | P9: ='SUM for FWF Diagram_SLUDGE'!P9 -> 3620 | R9: ='SUM for FWF Diagram_SLUDGE'!R9 -> 3620
N11: Not safely emptied | P11: Not safely transported | R11: Unsafely treated sludge
N12: ='SUM for FWF Diagram_SLUDGE'!N12 -> 0 | P12: ='SUM for FWF Diagram_SLUDGE'!P12 -> 450 | R12: ='SUM for FWF Diagram_SLUDGE'!R12 -> 0
N13: ='SUM for FWF Diagram_SLUDGE'!N13 -> 0 | P13: ='SUM for FWF Diagram_SLUDGE'!P13 -> 40 | R13: ='SUM for FWF Diagram_SLUDGE'!R13 -> 0
N14: ='SUM for FWF Diagram_SLUDGE'!N14 -> 0 | P14: ='SUM for FWF Diagram_SLUDGE'!P14 -> 0 | R14: ='SUM for FWF Diagram_SLUDGE'!R14 -> 0
N15: ='SUM for FWF Diagram_SLUDGE'!N15 -> 0 | P15: ='SUM for FWF Diagram_SLUDGE'!P15 -> 120 | R15: ='SUM for FWF Diagram_SLUDGE'!R15 -> 0
N16: ='SUM for FWF Diagram_SLUDGE'!N16 -> 0 | P16: ='SUM for FWF Diagram_SLUDGE'!P16 -> 290 | R16: ='SUM for FWF Diagram_SLUDGE'!R16 -> 0
B20: IN CUBIC METRES | V20: Note: Select options for unsafely managed faecal waste below the presentation of the volumes in percentages
B22: TOTAL VOLUME PRODUCED | D22: TYPE OF FACILITY | H22: VOLUMES PRODUCED | J22: CAPTURE | L22: CONTAINMENT | N22: EMPTYING | P22: TRANSPORT | R22: TREATMENT | T22: DISPOSAL OR REUSE
B24: =Overview_ALL!C6 -> 7551350 | D24: WC connected to sewer | H24: ='FW Flows_ALL'!C13 -> 1413725 | J24: ='FW Flows_ALL'!C13 -> 1413725 | L24: ='FW Flows_ALL'!G19 -> 1410150 | N24: ='FW Flows_ALL'!K19 -> 1410150 | P24: ='FW Flows_ALL'!O19 -> 0 | R24: ='Treatment volumes'!G104 -> 0 | T24: ='Disposal volumes'!I188 -> 0 | V24: =X99 -> 690025
R26: ='Treatment volumes'!H104 -> 0 | T26: =R26 -> 0
P28: ='FW Flows_ALL'!O32 -> 1410150
L30: ='FW Flows_ALL'!G13 -> 3575 | N30: =N6 -> 570 | P30: =P6 -> 530 | R30: =R6 -> 530 | T30: =R30 -> 530
R32: =R13 -> 0 | T32: =R32 -> 0
P34: =N30-P30 -> 40
N36: =L30-N30 -> 3005
D38: WC connected to communal septic tank | H38: ='FW Flows_ALL'!C14 -> 0 | J38: ='FW Flows_ALL'!C14 -> 0 | L38: ='FW Flows_ALL'!G14 -> 0 | N38: ='FW Flows_ALL'!K20-N44 -> 0 | P38: ='FW Flows_ALL'!K20 -> 0 | R38: ='Treatment volumes'!B105 -> 0 | T38: ='Disposal volumes'!F160 -> 0
R40: ='Treatment volumes'!C105 -> 0 | T40: 0
P42: ='FW Flows_ALL'!O33 -> 0
N44: =N7 -> 0 | P44: =P7 -> 0 | R44: =R7 -> 0 | T44: =R44 -> 0
R46: =R14 -> 0 | T46: 0
P48: =P14 -> 0
N50: =N14 -> 0
N52: =L38-N38-N44-N50 -> 0
L54: ='FW Flows_ALL'!G24 -> 0
D56: Onsite facilities | F56: Septic tank | H56: ='FW Flows_ALL'!C15 -> 1834425 | J56: ='FW Flows_ALL'!C15 -> 1834425 | L56: ='FW Flows_ALL'!G15 -> 1375825 | N56: ='FW Flows_ALL'!K21 -> 1368650 | P56: ='FW Flows_ALL'!O21 -> 1368650 | R56: ='Treatment volumes'!B106 -> 684325 | T56: ='Disposal volumes'!F161 -> 684325
R58: ='Treatment volumes'!C106 -> 684325 | T58: =R58 -> 684325
N60: =N8 -> 1670 | P60: =P8 -> 1550 | R60: =R8 -> 1550 | T60: =R60 -> 1550
R62: =R15 -> 0 | T62: 0
P64: =N60-P60 -> 120
N66: =N15 -> 0
N68: =L56-N56-N60-N66 -> 5505
L70: ='FW Flows_ALL'!G25 -> 458600
F72: Pit latrines | H72: ='FW Flows_ALL'!C16 -> 4303075 | J72: ='FW Flows_ALL'!C16 -> 4303075 | L72: ='FW Flows_ALL'!G16 -> 1695175 | N72: =N9 -> 3910 | P72: =P9 -> 3620 | R72: =R9 -> 3620 | T72: =R72 -> 3620
R74: =R16 -> 0 | T74: 0
P76: =N72-P72 -> 290
N78: =N16 -> 0
N80: =L72-N72-N78 -> 1691265
L82: ='FW Flows_ALL'!G26 -> 2607900
D84: Open defecation | H84: ='FW Flows_ALL'!C24 -> 125 | J84: ='FW Flows_ALL'!C24 -> 125
J86: =X101 -> 6861325
H89: Volumes produced | J89: Capture | L89: Containment | N89: Emptying | P89: Transport | R89: Treatment | T89: Disposal or reuse | X89: TOTALS
J91: =J24+J38+J56+J72 -> 7551225 | L91: =L24+L30+L38+L56+L72 -> 4484725 | N91: =N24+N30+N38+N44+N56+N60+N72 -> 2784950 | P91: =P24+P30+P38+P44+P56+P60+P72 -> 1374350 | R91: =R24+R30+R38+R56+R60+R72 -> 690025 | T91: =T24+T30+T38+T56+T60+T72 -> 690025
J92: =J84 -> 125 | L92: =L54+L70+L82 -> 3066500 | N92: =N36+N50+N52+N66+N68+N78+N80 -> 1699775 | P92: =P28+P34+P42+P48+P64+P76 -> 1410600 | R92: =R26+R32+R40+R58+R62+R74 -> 684325 | T92: =T26+T32+T40+T58+T62+T74 -> 684325
B94: =SUM(B24:B84) -> 7551350 | H94: =SUM(H24:H84) -> 7551350 | J94: =SUM(J91:J92) -> 7551350 | L94: =SUM(L91:L92) -> 7551225 | N94: =SUM(N91:N92) -> 4484725 | P94: =SUM(P91:P92) -> 2784950 | R94: =SUM(R91:R92) -> 1374350 | T94: =SUM(T91:T92) -> 1374350
H95: =H94-B94 -> 0 | J95: =J94-H94 -> 0 | L95: =L94-J91 -> 0 | N95: =N94-L91 -> 0 | P95: =P94-N91 -> 0 | R95: =R94-P91 -> 0 | T95: =T94-P91 -> 0
B96: Check totals >> | H96: =IF(H95=0,"OK","Not OK") -> OK | J96: =IF(J95=0,"OK","Not OK") -> OK | L96: =IF(L95=0,"OK","Not OK") -> OK | N96: =IF(N95=0,"OK","Not OK") -> OK | P96: =IF(P95=0,"OK","Not OK") -> OK | R96: =IF(R95=0,"OK","Not OK") -> OK | T96: =IF(T95=0,"OK","Not OK") -> OK
B99: Totals per sanitation service chain element | SAFE | H99: =H24+H38+H56+H72+H84 -> 7551350 | J99: =J91 -> 7551225 | L99: =L91 -> 4484725 | N99: =N91 -> 2784950 | P99: =P91 -> 1374350 | R99: =R91 -> 690025 | T99: =T91 -> 690025 | X99: =T99 -> 690025
B101: Totals per sanitation service chain element | UNSAFE | J101: =J92 -> 125 | L101: =L92 -> 3066500 | N101: =N92 -> 1699775 | P101: =P92 -> 1410600 | R101: =R92 -> 684325 | T101: =IF(T92=R92,0,R92-T92) -> 0 | X101: =SUM(J101:R101) -> 6861325
X103: =SUM(X99:X101) -> 7551350 | Y103: =IF(X103=H99,"OK","Not OK") -> OK
B105: IN PERCENTAGES
B108: TOTAL VOLUME PRODUCED | D108: TYPE OF FACILITY | H108: VOLUMES PRODUCED | J108: CAPTURE | L108: CONTAINMENT | N108: EMPTYING | P108: TRANSPORT | R108: TREATMENT | T108: DISPOSAL OR REUSE
B110: =IF(B24=0,0,B24/B24) -> 1 | D110: WC connected to sewer | H110: =IF(B24=0,0,H24/$B$24) -> 0.1872148689 | J110: =IF($B$24=0,0,J24/$B$24) -> 0.1872148689 | L110: =IF($B$24=0,0,(L24)/$B$24) -> 0.1867414436 | N110: =IF($B$24=0,0,(N24)/$B$24) -> 0.1867414436 | P110: =IF(B24=0,0,(P24)/$B$24) -> 0 | R110: =IF($B$24=0,0,(R24)/$B$24) -> 0 | T110: =IF($B$24=0,0,(T24)/$B$24) -> 0 | V110: =IF(B24=0,0,T91/B24) -> 0.09137770068
R112: =IF(B24=0,0,(R26)/$B$24) -> 0 | T112: =IF(B24=0,0,(T32)/$B$24) -> 0
P114: =IF(B24=0,0,(P28)/$B$24) -> 0.1867414436
L116: =IF($B$24=0,0,(L30)/$B$24) -> 0.0004734252816 | N116: =IF($B$24=0,0,(N30)/$B$24) -> 7.548319175e-05 | P116: =IF(B24=0,0,(P30)/$B$24) -> 7.018612566e-05 | R116: =IF($B$24=0,0,(R30)/$B$24) -> 7.018612566e-05 | T116: =IF($B$24=0,0,(T30)/$B$24) -> 7.018612566e-05
R118: =IF(B24=0,0,(R32)/$B$24) -> 0 | T118: =IF(B24=0,0,(T32)/$B$24) -> 0
P120: =IF(B24=0,0,(P34)/$B$24) -> 5.297066088e-06
N122: =IF(B24=0,0,N36/$B$24) -> 0.0003979420898
D124: WC connected to communal septic tank | H124: =IF(B24=0,0,H38/$B$24) -> 0 | J124: =IF(B24=0,0,J38/$B$24) -> 0 | L124: =IF(B24=0,0,L38/$B$24) -> 0 | N124: =IF($B$24=0,0,(N38)/$B$24) -> 0 | P124: =IF(B24=0,0,(P38)/$B$24) -> 0 | R124: =IF(B24=0,0,(R38)/$B$24) -> 0 | T124: =IF(B24=0,0,(T38)/$B$24) -> 0
R126: =IF(B24=0,0,(R40)/$B$24) -> 0 | T126: =IF(B24=0,0,(T40)/$B$24) -> 0
P128: =IF(B24=0,0,(P42)/$B$24) -> 0
N130: =IF($B$24=0,0,(N44)/$B$24) -> 0 | P130: =IF(B24=0,0,(P44)/$B$24) -> 0 | R130: =IF(B24=0,0,(R44)/$B$24) -> 0 | T130: =IF(B24=0,0,(T44)/$B$24) -> 0
R132: =IF(B24=0,0,(R46)/$B$24) -> 0 | T132: =IF(B24=0,0,(T46)/$B$24) -> 0
P134: =IF(B24=0,0,(P48)/$B$24) -> 0
N136: =IF(B24=0,0,(N50)/B24) -> 0
N138: =IF(B24=0,0,(N52)/B24) -> 0
L140: ='FW Flows_ALL'!G93 -> 0
D142: Onsite facilities | F142: Septic tank | H142: =IF(B24=0,0,H56/$B$24) -> 0.2429267614 | J142: =IF(B24=0,0,J56/$B$24) -> 0.2429267614 | L142: =IF(B24=0,0,L56/$B$24) -> 0.1821958987 | N142: =IF(B24=0,0,(N56)/B24) -> 0.1812457375 | P142: =IF(B24=0,0,(P56)/$B$24) -> 0.1812457375 | R142: =IF(B24=0,0,(R56)/$B$24) -> 0.09062286876 | T142: =IF(B24=0,0,(T56)/$B$24) -> 0.09062286876
R144: =IF(B24=0,0,(R58)/$B$24) -> 0.09062286876 | T144: =IF(B24=0,0,(T58)/$B$24) -> 0.09062286876
N146: =IF(B24=0,0,(N60)/B24) -> 0.0002211525092 | P146: =IF(B24=0,0,(P60)/$B$24) -> 0.0002052613109 | R146: =IF(B24=0,0,(R60)/$B$24) -> 0.0002052613109 | T146: =IF(B24=0,0,(T60)/$B$24) -> 0.0002052613109
R148: =IF(B24=0,0,(R62)/$B$24) -> 0 | T148: =IF(B24=0,0,(T62)/$B$24) -> 0
P150: =IF(B24=0,0,P64/$B$24) -> 1.589119826e-05
N152: =IF(B24=0,0,(N66)/$B$24) -> 0
N154: =IF(B24=0,0,(N68)/$B$24) -> 0.0007290087203
L156: =IF(B24=0,0,L70/B24) -> 0.06073086269
F158: Pit latrines | H158: =IF(B24=0,0,H72/$B$24) -> 0.5698418164 | J158: =IF(B24=0,0,J72/$B$24) -> 0.5698418164 | L158: =IF(B24=0,0,L72/$B$24) -> 0.2244863501 | N158: =IF(B24=0,0,N72/$B$24) -> 0.0005177882101 | P158: =IF(B24=0,0,P72/$B$24) -> 0.0004793844809 | R158: =IF(B24=0,0,R72/$B$24) -> 0.0004793844809 | T158: =IF(B24=0,0,T72/$B$24) -> 0.0004793844809
R160: =IF(B24=0,0,R74/$B$24) -> 0 | T160: =IF(B24=0,0,T74/$B$24) -> 0
P162: =IF(B24=0,0,P76/$B$24) -> 3.840372913e-05
N164: =IF(B24=0,0,(N78+N80)/$B$24) -> 0.2239685619
N166: =IF(B24=0,0,(N80)/$B$24) -> 0.2239685619
L168: =IF(B24=0,0,L82/B24) -> 0.3453554662
D170: Open defecation | H170: =IF(B24=0,0,H84/$B$24) -> 1.655333152e-05 | J170: =IF(B24=0,0,J84/$B$24) -> 1.655333152e-05
J172: =IF(B24=0,0,SUM(J92:R92)/B24) -> 0.9086222993
H175: Volumes produced | J175: Capture | L175: Containment | N175: Emptying | P175: Transport | R175: Treatment | T175: Disposal or reuse | X175: TOTALS
B177: Totals per sanitation service chain element | SAFE | H177: =H110+H124+H142+H158+H170 -> 1 | J177: =ROUND((J110+J124+J142+J158)/0.001,0)*0.001 -> 1 | L177: =ROUND((L110+L116+L124+L142+L158)/0.001,0)*0.001 -> 0.594 | N177: =ROUND((N110+N116+N124+N142+N146+N158+N130)/0.001,0)*0.001 -> 0.369 | P177: =ROUND((P110+P116+P124+P142+P158+P130+P146)/0.001,0)*0.001 -> 0.182 | R177: =ROUND((R110+R116+R124+R142+R146+R158+R130)/0.001,0)*0.001 -> 0.091 | T177: =ROUND((T110+T116+T124+T142+T146+T158+T130)/0.001,0)*0.001 -> 0.091 | X177: =T177 -> 0.091
B179: Totals per sanitation service chain element | UNSAFE | J179: =ROUND((J170)/0.001,0)*0.001 -> 0 | L179: =J177-L177 -> 0.406 | N179: =L177-N177 -> 0.225 | P179: =N177-P177 -> 0.187 | R179: =P177-R177 -> 0.091 | T179: =R177-T177 -> 0 | X179: =SUM(J179:R179) -> 0.909
X181: =X179+X177 -> 1 | Y181: =IF(X181=1,"OK","Not OK") -> OK
J184: Capture | L184: Containment | N184: Emptying | P184: Transport | R184: Treatment | T184: Disposal or reuse
B185: Select reasons why faecal sludge is disappearing along the chain that explains the above red percentages >> | J185: Open defecation | L185: Discharge to environment | N185: Not emptied pits or tanks | P185: Broken sewer | R185: No treatment and or ineffective treatment | T185: No treatment and or ineffective treatment
J198: Capture | L198: Containment | N198: Emptying | P198: Transport | R198: Treatment | T198: Disposal or reuse
H199: Options
J200: Open defecation | L200: Seepage | N200: Spillage during emptying | P200: Spillage during transport | R200: No treatment | T200: No treatment
L201: Discharge to environment | N201: Not emptied pits or tanks | P201: Ilegal dumping | R201: Ineffective treatment | T201: Ineffective treatment
L202: Seepage and discharge to environment | N202: Spillage and not emptied pits or tanks | P202: Spillage during transport and illegal dumping | R202: No treatment and or ineffective treatment | T202: No treatment and or ineffective treatment
P203: Informal dumping on farmland
P204: Leaking sewers
P205: Broken sewer
P206: Leaking sewers and informal dumping
P207: Spillage (transport), leakage (sewers) and illegal dumping

Sheet SUM for FWF Diagram_SLUDGE
B1: ='User interface_RES'!AJ11 -> Just a city in a victious place, Southeast Asia
B2: SUMMARY OF VOLUMES FOR FAECAL SLUDGE FLOW DIAGRAM
J4: Capture | L4: Containment | N4: Safely emptied | P4: Safely transported | R4: Safely treated sludge
B5: TYPE OF FACILITY | N5: ='FW Flows_SLUDGE'!K12 -> 6150 | P5: ='FW Flows_SLUDGE'!O13 -> 5700 | R5: ='FW Flows_SLUDGE'!S12-R24 -> 5700
B6: WC connected to sewer with onsite sludge containment | J6: ='FS_Capture volumes'!$G$325 -> 0 | L6: ='FS_Containment volumes'!$E$11 -> 0.09264069264 | N6: =ROUND(($N$5*L13)/10,0)*10 -> 570 | P6: =ROUND(($P$5*L13)/10,0)*10 -> 530 | R6: =ROUND(($R$5*L13)/10,0)*10 -> 530
B7: WC connected to communal septic tank | J7: ='FS_Capture volumes'!$G$326 -> 0 | L7: ='FS_Containment volumes'!$E$12 -> 0 | N7: =ROUND(($N$5*L14)/10,0)*10 -> 0 | P7: =ROUND(($P$5*L14)/10,0)*10 -> 0 | R7: =ROUND(($R$5*L14)/10,0)*10 -> 0
B8: Onstie septic tank | J8: ='FS_Capture volumes'!$G$327 -> 0.2595367847 | L8: ='FS_Containment volumes'!$E$13 -> 0.2718614719 | N8: =ROUND(($N$5*L15)/10,0)*10 -> 1670 | P8: =ROUND(($P$5*L15)/10,0)*10 -> 1550 | R8: =ROUND(($R$5*L15)/10,0)*10 -> 1550
B9: Onsite pit latrine | J9: ='FS_Capture volumes'!$G$328 -> 0.6430517711 | L9: ='FS_Containment volumes'!$E$14 -> 0.6354978355 | N9: =ROUND(($N$5*L16)/10,0)*10 -> 3910 | P9: =ROUND(($P$5*L16)/10,0)*10 -> 3620 | R9: =ROUND(($R$5*L16)/10,0)*10 -> 3620
J10: =SUM(J7:J9) -> 0.9025885559 | L10: =SUM(L6:L9) -> 1 | N10: =SUM(N6:N9) -> 6150 | P10: =SUM(P6:P9) -> 5700 | R10: =SUM(R6:R9) -> 5700
N11: Not safely emptied | P11: Not safely transported | R11: Unsafely treated sludge
N12: ='FW Flows_SLUDGE'!K23 -> 0 | P12: ='FW Flows_SLUDGE'!O23 -> 450 | R12: ='FW Flows_SLUDGE'!S23-R26 -> 0
L13: =L6 -> 0.09264069264 | N13: =ROUND(($N$12*L13)/10,0)*10 -> 0 | P13: =ROUND(($P$12*L13)/10,)*10 -> 40 | R13: =ROUND(($R$12*L13)/10,0)*10 -> 0
L14: =L7 -> 0 | N14: =ROUND(($N$12*L14)/10,0)*10 -> 0 | P14: =ROUND(($P$12*L14)/10,)*10 -> 0 | R14: =ROUND(($R$12*L14)/10,0)*10 -> 0
L15: =L8 -> 0.2718614719 | N15: =ROUND(($N$12*L15)/10,0)*10 -> 0 | P15: =ROUND(($P$12*L15)/10,0)*10 -> 120 | R15: =ROUND(($R$12*L15)/10,0)*10 -> 0
L16: =L9 -> 0.6354978355 | N16: =ROUND(($N$12*L16)/10,0)*10 -> 0 | P16: =ROUND(($P$12*L16)/10,)*10 -> 290 | R16: =ROUND(($R$12*L16)/10,0)*10 -> 0
L17: =SUM(L13:L16) -> 1
B20: IN CUBIC METRES | V20: Note: Select options for unsafely managed faecal waste below the presentation of the volumes in percentages
B22: TOTAL VOLUME PRODUCED | D22: TYPE OF FACILITY | H22: VOLUMES PRODUCED | J22: CAPTURE | L22: CONTAINMENT | N22: EMPTYING | P22: TRANSPORT | R22: TREATMENT | T22: DISPOSAL OR REUSE
B24: =Overview_SLUDGE!C6 -> 36825 | L24: ='FW Flows_SLUDGE'!G19 -> 900 | N24: ='FW Flows_SLUDGE'!K19 -> 900 | P24: ='FW Flows_SLUDGE'!O19 -> 0 | R24: ='FS_Treatment volumes'!G104 -> 0 | T24: =R24 -> 0 | V24: =X105 -> 5700
R26: ='FS_Treatment volumes'!H104 -> 0 | T26: 0
P28: ='FW Flows_SLUDGE'!O32 -> 900
D30: WC connected to sewer | H30: ='FW Flows_SLUDGE'!$C$13 -> 3575 | J30: ='FW Flows_SLUDGE'!$C$13 -> 3575 | L30: ='FW Flows_SLUDGE'!G19 -> 900 | N30: ='FW Flows_SLUDGE'!K19 -> 900 | P30: ='FW Flows_SLUDGE'!O19 -> 0 | R30: ='FS_Treatment volumes'!G104 -> 0 | T30: =R30 -> 0
R32: ='FS_Treatment volumes'!H104 -> 0 | T32: 0
P34: =N30-P30 -> 900
L36: ='FW Flows_SLUDGE'!G13 -> 2675 | N36: =N6 -> 570 | P36: =P6 -> 530 | R36: =R6 -> 530 | T36: =R36 -> 530
R38: =R13 -> 0 | T38: 0
P40: =N36-P36 -> 40
N42: =L36-N36 -> 2105
N44: ='FW Flows_SLUDGE'!K20 -> 0 | P44: ='FW Flows_SLUDGE'!K20 -> 0 | R44: 0 | T44: 0
R46: 0 | T46: 0
P48: ='FW Flows_SLUDGE'!O33 -> 0
D50: WC connected to communal septic tank | H50: ='FW Flows_SLUDGE'!$C$14 -> 0 | J50: ='FW Flows_SLUDGE'!$C$14 -> 0 | L50: ='FW Flows_SLUDGE'!$G$14 -> 0 | N50: =N7 -> 0 | P50: =P7 -> 0 | R50: =R7 -> 0 | T50: =R50 -> 0
R52: =R14 -> 0 | T52: 0
P54: =P14 -> 0
N56: =N14 -> 0
N58: =L44-N44-N50-N56 -> 0
L60: ='FW Flows_SLUDGE'!G24 -> 0
N62: ='FW Flows_SLUDGE'!K21 -> 0 | P62: ='FW Flows_SLUDGE'!O21 -> 0 | R62: 0 | T62: 0
R64: 0 | T64: 0
D66: Onsite facilities | F66: Septic tank | H66: ='FW Flows_SLUDGE'!$C$15 -> 9525 | J66: ='FW Flows_SLUDGE'!$C$15 -> 9525 | L66: ='FW Flows_SLUDGE'!$G$15 -> 7850 | N66: =N8 -> 1670 | P66: =P8 -> 1550 | R66: =R8 -> 1550 | T66: =R66 -> 1550
R68: =R15 -> 0 | T68: 0
P70: =N66-P66 -> 120
N72: =N15 -> 0
N74: =L66-N62-N66-N72 -> 6180
L76: ='FW Flows_SLUDGE'!G25 -> 1675
F78: Pit latrines | H78: ='FW Flows_SLUDGE'!$C$16 -> 23600 | J78: ='FW Flows_SLUDGE'!$C$16 -> 23600 | L78: ='FW Flows_SLUDGE'!$G$16 -> 18350 | N78: =N9 -> 3910 | P78: =P9 -> 3620 | R78: =R9 -> 3620 | T78: =R78 -> 3620
R80: =R16 -> 0 | T80: =R80 -> 0
P82: =N78-P78 -> 290
N84: =N16 -> 0
N86: =L78-N78-N84 -> 14440
L88: ='FW Flows_SLUDGE'!G26 -> 5250
D90: Open defecation | H90: ='FW Flows_SLUDGE'!C24 -> 125 | J90: ='FW Flows_SLUDGE'!C24 -> 125
J92: =X107 -> 31125
H95: Volumes produced | J95: Capture | L95: Containment | N95: Emptying | P95: Transport | R95: Treatment | T95: Disposal or reuse | X95: TOTALS
J97: =J30+J50+J66+J78 -> 36700 | L97: =L30+L36+L50+L66+L78 -> 29775 | N97: =N30+N36+N50+N66+N78 -> 7050 | P97: =P30+P36+P50+P66+P78 -> 5700 | R97: =R30+R36+R50+R66+R78 -> 5700 | T97: =T30+T36+T50+T66+T78 -> 5700
J98: =J90 -> 125 | L98: =L60+L76+L88 -> 6925 | N98: =N42+N56+N58+N72+N74+N84+N86 -> 22725 | P98: =P34+P40+P54+P70+P82 -> 1350 | R98: =R32+R38+R52+R68+R80 -> 0 | T98: =T32+T38+T52+T68+T80 -> 0
B100: =SUM(B24:B90) -> 36825 | H100: =H30+H50+H66+H78+H90 -> 36825 | J100: =SUM(J97:J98) -> 36825 | L100: =SUM(L97:L98) -> 36700 | N100: =SUM(N97:N98) -> 29775 | P100: =SUM(P97:P98) -> 7050 | R100: =SUM(R97:R98) -> 5700 | T100: =SUM(T97:T98) -> 5700
H101: =H100-B100 -> 0 | J101: =J100-H100 -> 0 | L101: =L100-J97 -> 0 | N101: =N100-L97 -> 0 | P101: =P100-N97 -> 0 | R101: =R100-P97 -> 0 | T101: =T100-R97 -> 0
H102: =IF(H101=0,"OK","Not OK") -> OK | J102: =IF(J101=0,"OK","Not OK") -> OK | L102: =IF(L101=0,"OK","Not OK") -> OK | N102: =IF(N101=0,"OK","Not OK") -> OK | P102: =IF(P101=0,"OK","Not OK") -> OK | R102: =IF(R101=0,"OK","Not OK") -> OK | T102: =IF(T101=0,"OK","Not OK") -> OK
B105: Totals per sanitation service chain element | SAFE | H105: =H100 -> 36825 | J105: =J97 -> 36700 | L105: =L97 -> 29775 | N105: =N97 -> 7050 | P105: =P97 -> 5700 | R105: =R97 -> 5700 | T105: =T97 -> 5700 | X105: =T105 -> 5700
B107: Totals per sanitation service chain element | UNSAFE | J107: =J98 -> 125 | L107: =L98 -> 6925 | N107: =N98 -> 22725 | P107: =P98 -> 1350 | R107: =R98 -> 0 | T107: =T98 -> 0 | X107: =SUM(J107:T107) -> 31125
X109: =SUM(X105:X107) -> 36825 | Y109: =IF(X109=H105,"OK","Not OK") -> OK
B111: IN PERCENTAGES
B114: TOTAL VOLUME PRODUCED | D114: TYPE OF FACILITY | H114: VOLUMES PRODUCED | J114: CAPTURE | L114: CONTAINMENT | N114: EMPTYING | P114: TRANSPORT | R114: TREATMENT | T114: DISPOSAL OR REUSE
B116: =IF(B24=0,0,B24/B24) -> 1 | L116: =IF($B$24=0,0,L24/$B$24) -> 0.02443991853 | N116: =IF(B24=0,0,N24/$B$24) -> 0.02443991853 | P116: =IF(B24=0,0,P24/$B$24) -> 0 | R116: =IF(B24=0,0,R24/$B$24) -> 0 | T116: =IF($B$24=0,0,T24/$B$24) -> 0 | V116: =X183 -> 0.155
R118: =IF(B24=0,0,R26/$B$24) -> 0 | T118: =IF(B24=0,0,T26/$B$24) -> 0
P120: =IF(B24=0,0,P28/$B$24) -> 0.02443991853
D122: WC connected to sewer | H122: =IF($B$24=0,0,$H$30/$B$24) -> 0.09708078751 | J122: =IF(B24=0,0,J30/$B$24) -> 0.09708078751 | L122: =IF($B$24=0,0,(L30+L36)/$B$24) -> 0.09708078751 | N122: =IF(B24=0,0,(N30+N36)/$B$24) -> 0.0399185336 | P122: =IF(B24=0,0,(P30+P36)/$B$24) -> 0.01439239647 | R122: =IF($B$24=0,0,(R30+R36)/$B$24) -> 0.01439239647 | T122: =IF($B$24=0,0,(T30+T36)/$B$24) -> 0.01439239647
R124: =IF($B$24=0,0,(R32+R38)/$B$24) -> 0 | T124: =IF($B$24=0,0,(T32+T38)/$B$24) -> 0
P126: =IF(B24=0,0,(P34+P40)/$B$24) -> 0.02552613714
N128: =IF(B24=0,0,N42/$B$24) -> 0.0571622539
N130: =IF(B24=0,0,N44/$B$24) -> 0 | P130: =IF(B24=0,0,P44/$B$24) -> 0 | R130: =IF(B24=0,0,R44/$B$24) -> 0 | T130: =IF(B24=0,0,T44/$B$24) -> 0
R132: =IF(B24=0,0,R46/$B$24) -> 0 | T132: =IF(B24=0,0,T46/$B$24) -> 0
P134: =IF(B24=0,0,P48/$B$24) -> 0
D136: WC connected to communal septic tank | H136: =IF($B$24=0,0,H50/$B$24) -> 0 | J136: =IF($B$24=0,0,J50/$B$24) -> 0 | L136: =IF($B$24=0,0,L50/$B$24) -> 0 | N136: =IF(B24=0,0,N50/$B$24) -> 0 | P136: =IF(B24=0,0,P50/$B$24) -> 0 | R136: =IF(B24=0,0,R50/$B$24) -> 0 | T136: =IF(B24=0,0,T50/$B$24) -> 0
R138: =IF(B24=0,0,R52/$B$24) -> 0 | T138: =IF(B24=0,0,T52/$B$24) -> 0
P140: =IF(B24=0,0,P54/$B$24) -> 0
N142: =IF(B24=0,0,N56/B24) -> 0
N144: =IF(B24=0,0,N58/B24) -> 0
L146: ='FW Flows_ALL'!G93 -> 0
N148: =IF(B24=0,0,N62/B24) -> 0 | P148: =IF(B24=0,0,P62/$B$24) -> 0 | R148: =IF(B24=0,0,R62/$B$24) -> 0 | T148: =IF(B24=0,0,T62/$B$24) -> 0
R150: =IF(B24=0,0,R64/$B$24) -> 0 | T150: =IF(B24=0,0,T64/$B$24) -> 0
D152: Onsite facilities | F152: Septic tank | H152: =IF($B$24=0,0,H66/$B$24) -> 0.2586558045 | J152: =IF($B$24=0,0,J66/$B$24) -> 0.2586558045 | L152: =IF($B$24=0,0,L66/$B$24) -> 0.2131704005 | N152: =IF(B24=0,0,N66/$B$24) -> 0.04534962661 | P152: =IF(B24=0,0,P66/$B$24) -> 0.04209097081 | R152: =IF(B24=0,0,R66/$B$24) -> 0.04209097081 | T152: =IF(B24=0,0,T66/$B$24) -> 0.04209097081
R154: =IF(B24=0,0,R68/$B$24) -> 0 | T154: =IF(B24=0,0,T68/$B$24) -> 0
P156: =IF(B24=0,0,P70/$B$24) -> 0.003258655804
N158: =IF(B24=0,0,N72/$B$24) -> 0
N160: =IF(B24=0,0,N74/$B$24) -> 0.1678207739
L162: =IF(B24=0,0,L76/B24) -> 0.04548540394
F164: Pit latrines | H164: =IF(B24=0,0,H78/$B$24) -> 0.6408689749 | J164: =IF(B24=0,0,J78/$B$24) -> 0.6408689749 | L164: =IF(B24=0,0,L78/$B$24) -> 0.4983027834 | N164: =IF(B24=0,0,N78/$B$24) -> 0.1061778683 | P164: =IF(B24=0,0,P78/$B$24) -> 0.09830278344 | R164: =IF(B24=0,0,R78/$B$24) -> 0.09830278344 | T164: =IF(B24=0,0,T78/$B$24) -> 0.09830278344
R166: =IF(B24=0,0,R80/$B$24) -> 0 | T166: =IF(B24=0,0,T80/$B$24) -> 0
P168: =IF(B24=0,0,P82/$B$24) -> 0.007875084861
N170: =IF(B24=0,0,N84/$B$24) -> 0
N172: =IF(B24=0,0,N86/$B$24) -> 0.3921249151
L174: =IF(B24=0,0,L88/B24) -> 0.1425661914
D176: Open defecation | H176: =IF(B24=0,0,H90/$B$24) -> 0.00339443313 | J176: =IF(B24=0,0,J90/$B$24) -> 0.00339443313
J178: =X185 -> 0.845
H181: Volumes produced | J181: Capture | L181: Containment | N181: Emptying | P181: Transport | R181: Treatment | T181: Disposal or reuse | X181: TOTALS
B183: Totals per sanitation service chain element | SAFE | H183: =H122+H136+H152+H164+H176 -> 1 | J183: =ROUND((J122+J136+J152+J164)/0.001,0)*0.001 -> 0.997 | L183: =ROUND((L122+L136+L152+L164)/0.001,0)*0.001 -> 0.809 | N183: =ROUND((N122+N136+N152+N164)/0.001,0)*0.001 -> 0.191 | P183: =ROUND((P122+P136+P152+P164)/0.001,0)*0.001 -> 0.155 | R183: =ROUND((R122+R136+R152+R164)/0.001,0)*0.001 -> 0.155 | T183: =ROUND((T122+T136+T152+T164)/0.001,0)*0.001 -> 0.155 | X183: =T183 -> 0.155
B185: Totals per sanitation service chain element | UNSAFE | J185: =ROUND((J176)/0.001,0)*0.001 -> 0.003 | L185: =J183-L183 -> 0.188 | N185: =L183-N183 -> 0.618 | P185: =N183-P183 -> 0.036 | R185: =P183-R183 -> 0 | T185: =R183-T183 -> 0 | X185: =SUM(J185:R185) -> 0.845
X187: =X185+X183 -> 1 | Y187: =IF(X187=1,"OK","Not OK") -> OK
J190: Capture | L190: Containment | N190: Emptying | P190: Transport | R190: Treatment | T190: Disposal or reuse
B191: Select reasons why faecal sludge is disappearing along the chain that explains the above red percentages >> | J191: Open defecation | L191: Seepage and discharge to environment | N191: Not emptied pits or tanks | P191: Informal dumping on farmland
H205: Options
J206: Open defecation | L206: Seepage | N206: Spillage during emptying | P206: Spillage during transport | R206: No treatment | T206: No treatment
L207: Discharge to environment | N207: Not emptied pits or tanks | P207: Ilegal dumping | R207: Ineffective treatment | T207: Ineffective treatment
L208: Seepage and discharge to environment | N208: Spillage and not emptied pits or tanks | P208: Spillage and illegal dumping | R208: No treatment and or ineffective treatment | T208: No treatment and or ineffective treatment
P209: Informal dumping on farmland

Sheet Scorecard Overview
B1: =Overview_SLUDGE!#REF! -> 
B2: =Overview_SLUDGE!B1 -> Just a city in a victious place, Southeast Asia
B4: OVERVIEW OF SCORE CARDS
D6: Note: The information captured in the blue headings is shown in the summary reports {Overview ALL} and {Overview SLUDGE}
D8: Overall | F8: Capture | H8: Containment | J8: Emptying | L8: Transport | N8: Treatment | P8: Disposal | R8: Reuse
B10: Planning | D10: =AVERAGE(D11:D12) -> 0
B11: u National | D11: ='Government & city wide SC'!H18 -> 0
B12: u City | D12: ='Government & city wide SC'!H33 -> 0
B14: Budgets | D14: =D48 -> 0.07142857143 | F14: =F48 -> NA | J14: =J48 -> NA | L14: =L48 -> NA | N14: =N48 -> NA | P14: =P48 -> NA | R14: =R48 -> NA
B15: u Sanitation infrastructure budget | D15: ='Government & city wide SC'!H60 -> 0
B16: u WASH operational budget | D16: ='Government & city wide SC'!H78 -> 0.1428571429
B17: u Infrastructure budget | F17: ='Capture Containment SC'!H50 ->  | J17: ='Emptying SC'!H86 ->  | L17: ='Transport SC'!H68 ->  | N17: ='Treatment SC'!H69 ->  | P17: ='Disposal SC'!H79 ->  | R17: ='Disposal SC'!H115 -> 
B18: u Operational budget | F18: ='Capture Containment SC'!H68 ->  | J18: ='Emptying SC'!H104 ->  | L18: ='Transport SC'!H86 ->  | N18: ='Treatment SC'!H87 ->  | P18: ='Disposal SC'!H97 ->  | R18: ='Disposal SC'!H133 -> 
B20: Standards and regulations | F20: =AVERAGE(F21:F29) -> 0.4444444444 | J20: =AVERAGE(J21:J26) -> 0 | L20: =AVERAGE(L21:L26) -> 0 | N20: =N58 -> 0.4 | P20: =AVERAGE(P21:P26) -> 0 | R20: =AVERAGE(R21:R26) -> 0
B21: u Building regulations | F21: ='Capture Containment SC'!H18 -> 0 | J21: ='Emptying SC'!H86 -> 
B22: u Safety standards | J22: ='Emptying SC'!H18 -> 0 | L22: ='Transport SC'!H18 -> 0
B23: u Sewage treatment effluent standards | N23: ='Treatment SC'!H19 -> 0.4
B24: u Communal septic tank effluent standards | N24: ='Treatment SC'!H36 -> 
B25: u Disposal standards | P25: ='Disposal SC'!H18 -> 0 | R25: ='Disposal SC'!H18 -> 0
B26: u Reuse standards | R26: ='Disposal SC'!H33 -> 0
B28: Permits | F28: =F29 -> 0.6666666667 | J28: =J30 -> 0 | L28: =L30 -> 0.6666666667 | N28: =N29 -> 0 | P28: =P29 -> 0 | R28: =R29 -> 0
B29: u Permits and permissions | F29: ='Capture Containment SC'!H32 -> 0.6666666667 | J29: ='Emptying SC'!H104 ->  | N29: ='Treatment SC'!H50 -> 0 | P29: ='Disposal SC'!H47 -> 0 | R29: ='Disposal SC'!H61 -> 0
B30: u Business licences and permissions | J30: ='Emptying SC'!H68 -> 0 | L30: ='Transport SC'!H50 -> 0.6666666667
B32: Safety | J32: =AVERAGE(J34:J35) -> 0.1428571429 | L32: =AVERAGE(L34:L35) -> 0.2857142857
B33: u Safety practices manual providers | J33: ='Emptying SC'!H36 -> 
B34: u Safety practices mechanical providers | J34: ='Emptying SC'!H54 -> 0.1428571429 | L34: ='Transport SC'!H36 -> 0.2857142857
B48: Budgets | D48: =IF(AND(D54="N/A",D55="N/A"),"N/A",IF(AND(D54="N/A",D55>=0),D55,IF(AND(D54>0,D55="N/A"),D54,AVERAGE(D54:D55)))) -> 0.07142857143 | F48: =IF(AND(F54="N/A",F55="N/A"),"NA",IF(AND(F54="N/A",F55>=0),F55,IF(AND(F54>0,F55="N/A"),F54,AVERAGE(F54:F55)))) -> NA | J48: =IF(AND(J54="N/A",J55="N/A"),"NA",IF(AND(J54="N/A",J55>=0),J55,IF(AND(J54>0,J55="N/A"),J54,AVERAGE(J54:J55)))) -> NA | L48: =IF(AND(L54="N/A",L55="N/A"),"NA",IF(AND(L54="N/A",L55>=0),L55,IF(AND(L54>0,L55="N/A"),L54,AVERAGE(L54:L55)))) -> NA | N48: =IF(AND(N54="N/A",N55="N/A"),"NA",IF(AND(N54="N/A",N55>=0),N55,IF(AND(N54>0,N55="N/A"),N54,AVERAGE(N54:N55)))) -> NA | P48: =IF(AND(P54="N/A",P55="N/A"),"NA",IF(AND(P54="N/A",P55>=0),P55,IF(AND(P54>0,P55="N/A"),P54,AVERAGE(P54:P55)))) -> NA | R48: =IF(AND(R54="N/A",R55="N/A"),"NA",IF(AND(R54="N/A",R55>=0),R55,IF(AND(R54>0,R55="N/A"),R54,AVERAGE(R54:R55)))) -> NA
B49: u Sanitation infrastructure budget | D49: =D15 -> 0
B50: u WASH operational budget | D50: =D16 -> 0.1428571429
B51: u Infrastructure budget | F51: =F17 ->  | J51: =J17 ->  | L51: =L17 ->  | N51: =N17 ->  | P51: =P17 ->  | R51: =R17 -> 
B52: u Operational budget | F52: =F18 ->  | J52: =J18 ->  | L52: =L18 ->  | N52: =N18 ->  | P52: =P18 ->  | R52: =R18 -> 
B54: u Infrastructure budget | D54: =IF(D49="","N/A",D49) -> 0 | F54: =IF(F51="","N/A",F51) -> N/A | J54: =IF(J51="","N/A",J51) -> N/A | L54: =IF(L51="","N/A",L51) -> N/A | N54: =IF(N51="","N/A",N51) -> N/A | P54: =IF(P51="","N/A",P51) -> N/A | R54: =IF(R51="","N/A",R51) -> N/A
B55: u Operational budget | D55: =IF(D50="","N/A",D50) -> 0.1428571429 | F55: =IF(F52="","N/A",F52) -> N/A | J55: =IF(J52="","N/A",J52) -> N/A | L55: =IF(L52="","N/A",L52) -> N/A | N55: =IF(N52="","N/A",N52) -> N/A | P55: =IF(P52="","N/A",P52) -> N/A | R55: =IF(R52="","N/A",R52) -> N/A
B58: Standards and regulations | N58: =IF(AND(N63="N/A",N64="N/A"),"N/A",IF(AND(N63="N/A",N64>=0),N64,IF(AND(N63>0,N64="N/A"),N63,AVERAGE(N63:N64)))) -> 0.4
B59: u Building regulations
B60: u Sewage treatment effluent standards | N60: =N23 -> 0.4
B61: u Communal septic tank effluent standards | N61: =N24 -> 
B63: u Sewage treatment effluent standards | N63: =IF(N60="","N/A",N60) -> 0.4
B64: u Communal septic tank effluent standards | N64: =IF(N61="","N/A",N61) -> N/A
B67: Safety | J67: =IF(AND(J72="N/A",J71="N/A"),"NA",IF(AND(J72="N/A",J71>=0),J72,IF(AND(J71>0,J75="N/A"),J71,AVERAGE(J72:J73)))) -> 0.1428571429 | L67: =IF(AND(L72="N/A",L71="N/A"),"NA",IF(AND(L72="N/A",L71>=0),L72,IF(AND(L71>0,L75="N/A"),L71,AVERAGE(L72:L73)))) -> 0.2857142857
B68: u Safety practices manual providers | J68: =J33 ->  | L68: =L33 -> 0
B69: u Safety practices mechanical providers | J69: =J34 -> 0.1428571429 | L69: =L34 -> 0.2857142857
B71: u Safety practices manual providers | J71: =IF(J68="","N/A",J68) -> N/A | L71: =IF(L68="","N/A",L68) -> 0
B72: u Safety practices mechanical providers | J72: =IF(J69="","N/A",J69) -> 0.1428571429 | L72: =IF(L69="","N/A",L69) -> 0.2857142857

Sheet Facilities
B1: =Overview_SLUDGE!#REF! -> 
B2: =Overview_SLUDGE!B1 -> Just a city in a victious place, Southeast Asia
B4: EXISTING SANITATION FACILITIES & VOLUMES PRODUCED Residents and temporary residents
F7: Volumes produced in cubic metres
B9: Residents | F9: Per year | K9: Per day
B11: Types of sanitation facilities | C11: # of HH | D11: In % | F11: Sludge | G11: Blackwater | H11: Totals | I11: In % | K11: In m3 per day
B12:  WC to sewer | C12: ='Containment volumes'!B98 -> 740 | D12: =IF($C$17=0,0,C12/$C$17) -> 0.02871641791 | F12: ='FS_Containment volumes'!B36 -> 675 | G12: ='Containment volumes'!B36-F12 -> 172950 | H12: =SUM(F12:G12) -> 173625 | I12: =H12/$H$32 -> 0.02299257749 | K12: =H12/365 -> 475.6849315
B13:  WC to communal septic tank | C13: ='Containment volumes'!B99 -> 0 | D13: 0 | F13: ='FS_Containment volumes'!B46 -> 0 | G13: ='Containment volumes'!B46-F13 -> 0 | H13: =SUM(F13:G13) -> 0 | I13: 0 | K13: =H13/365 -> 0
B14:  WC to onsite septic tanks or pit | C14: ='Containment volumes'!B100+'Containment volumes'!B101 -> 24770 | D14: 0.9612238806 | F14: ='FS_Containment volumes'!B49+'FS_Containment volumes'!B66 -> 23500 | G14: ='Containment volumes'!B49+'Containment volumes'!B66-F14 -> 4184975 | H14: =SUM(F14:G14) -> 4208475 | I14: 0.5573142551 | K14: =H14/365 -> 11530.06849
B15:  Communal toilet | C15: ='Containment volumes'!B102+'Containment volumes'!B103+'Containment volumes'!B104 -> 0 | D15: 0 | F15: ='FS_Containment volumes'!B52+'FS_Containment volumes'!B70 -> 0 | G15: ='Containment volumes'!B52+'Containment volumes'!B70-F15 -> 0 | H15: =SUM(F15:G15) -> 0 | I15: 0 | K15: =H15/365 -> 0
B16:  No toilet (Open defecation) | C16: ='Containment volumes'!B107 -> 259.2307692 | D16: 0.01005970149 | F16: ='Capture volumes'!E139 -> 125 | G16: 0 | H16: =SUM(F16:G16) -> 125 | I16: 1.655333152e-05 | K16: =H16/365 -> 0.3424657534
B17: Totals | C17: =SUM(C12:C16) -> 25769.23077 | D17: 1 | F17: =SUM(F12:F16) -> 24300 | G17: =SUM(G12:G16) -> 4357925 | H17: =SUM(H12:H16) -> 4382225 | I17: 0.5803233859 | K17: =SUM(K12:K16) -> 12006.09589
F20: Volumes produced in cubic metres per year
B22: Temporary Residents | F22: Per year | K22: Per day
B24: Types of sanitation facilities | F24: Sludge | G24: Blackwater | H24: Totals | I24: In % | K24: In m3 per day
B25:  WC to sewer | C25: =Y25&Z25&AA25&AB25 -> 18700 tourists and 56800 temporary residents (workers, students and others) per day | F25: ='FS_Containment volumes'!B167 -> 2900 | G25: ='Containment volumes'!B167-F25 -> 1237200 | H25: =SUM(F25:G25) -> 1240100 | I25: =H25/$H$32 -> 0.1642222914 | K25: =H25/365 -> 3397.534247 | Y25: ='Capture volumes'!G156 -> 18700 | Z25: tourists and | AA25: ='Capture volumes'!G157 -> 56800 | AB25: temporary residents (workers, students and others) per day
B26:  WC to communal septic tank | F26: ='FS_Containment volumes'!B177 -> 0 | G26: ='Containment volumes'!B177-F26 -> 0 | H26: =SUM(F26:G26) -> 0 | I26: 0 | K26: =H26/365 -> 0
B27:  WC to onsite septic tanks or pit | F27: ='FS_Containment volumes'!B180+'FS_Containment volumes'!B197 -> 9625 | G27: ='Containment volumes'!B180+'Containment volumes'!B197-F27 -> 1919400 | H27: =SUM(F27:G27) -> 1929025 | I27: 0.2554543227 | K27: =H27/365 -> 5285
B28:  Communal toilet | F28: ='FS_Containment volumes'!B183+'FS_Containment volumes'!B201 -> 0 | G28: ='Containment volumes'!B183+'Containment volumes'!B201-Facilities!F28 -> 0 | H28: =SUM(F28:G28) -> 0 | I28: 0 | K28: =H28/365 -> 0
B29:  No toilet (Open defecation) | F29: ='Capture volumes'!E267 -> 0 | G29: 0 | H29: =SUM(F29:G29) -> 0 | I29: 0 | K29: =H29/365 -> 0
B30: Totals | F30: =SUM(F25:F29) -> 12525 | G30: =SUM(G25:G29) -> 3156600 | H30: =SUM(H25:H29) -> 3169125 | I30: 0.4196766141 | K30: =SUM(K25:K29) -> 8682.534247
B32: Grand Totals | F32: =F17+F30 -> 36825 | G32: =G17+G30 -> 7514525 | H32: =H17+H30 -> 7551350 | I32: =H32/$H$32 -> 1 | K32: =K17+K30 -> 20688.63014
F34: ='SUM for FWF Diagram_SLUDGE'!B100 -> 36825 | H34: ='SUM for FWF Diagram_ALL'!B94 -> 7551350
F35: =F32-F34 -> 0 | H35: =H32-H34 -> 0

Sheet Faecal waste flow summary
B1: =Overview_SLUDGE!#REF! -> 
B2: =Overview_SLUDGE!B1 -> Just a city in a victious place, Southeast Asia
B4: FAECAL WASTE FLOW SUMMARY
B7: TOTAL FAECAL WASTE FLOWS (sludge + blackwater) | H7: Proportion safely…
B9: Types of sanitation facilities | C9: Residents | D9: Temporary residents | E9: Totals | G9: Contained | H9: Contained | I9: Emptied | J9: Emptied | K9: Transported | L9: Transported | M9: Treated | N9: Treated | P9: SAFE
B10:  WC to sewer | C10: ='Containment volumes'!B81 -> 173625 | D10: ='Containment volumes'!B212 -> 1240100 | E10: =SUM(C10:D10) -> 1413725 | G10: ='SUM for FWF Diagram_ALL'!L24+'SUM for FWF Diagram_ALL'!L30 -> 1413725 | H10: =IF($E10=0,0,G10/$E10) -> 1 | I10: ='SUM for FWF Diagram_ALL'!N24+'SUM for FWF Diagram_ALL'!N30 -> 1410720 | J10: =IF($E10=0,0,I10/$E10) -> 0.9978744098 | K10: ='SUM for FWF Diagram_ALL'!P24+'SUM for FWF Diagram_ALL'!P30 -> 530 | L10: =IF($E10=0,0,K10/$E10) -> 0.0003748961078 | M10: ='SUM for FWF Diagram_ALL'!R24+'SUM for FWF Diagram_ALL'!R30 -> 530 | N10: =IF($E10=0,0,M10/$E10) -> 0.0003748961078 | P10: =M10/$E$14 -> 7.018612566e-05
B11:  WC to communal septic tank | C11: ='Containment volumes'!B82 -> 0 | D11: ='Containment volumes'!B213 -> 0 | E11: =SUM(C11:D11) -> 0 | G11: ='SUM for FWF Diagram_ALL'!L38 -> 0 | H11: =IF($E11=0,0,G11/$E11) -> 0 | I11: ='SUM for FWF Diagram_ALL'!N38+'SUM for FWF Diagram_ALL'!N44 -> 0 | J11: 0 | K11: ='SUM for FWF Diagram_ALL'!P38+'SUM for FWF Diagram_ALL'!P44 -> 0 | L11: =IF($E11=0,0,K11/$E11) -> 0 | M11: ='SUM for FWF Diagram_ALL'!R38+'SUM for FWF Diagram_ALL'!R44 -> 0 | N11: =IF($E11=0,0,M11/$E11) -> 0 | P11: =M11/$E$14 -> 0
B12:  WC to onsite septic tanks or pit | C12: ='Containment volumes'!B83+'Containment volumes'!B84 -> 4208475 | D12: ='Containment volumes'!B214+'Containment volumes'!B215 -> 1929025 | E12: =SUM(C12:D12) -> 6137500 | G12: ='SUM for FWF Diagram_ALL'!L56+'SUM for FWF Diagram_ALL'!L72 -> 3071000 | H12: 0.5003665988 | I12: ='SUM for FWF Diagram_ALL'!N56+'SUM for FWF Diagram_ALL'!N60+'SUM for FWF Diagram_ALL'!N72 -> 1374230 | J12: 0.2239071283 | K12: ='SUM for FWF Diagram_ALL'!P56+'SUM for FWF Diagram_ALL'!P60+'SUM for FWF Diagram_ALL'!P72 -> 1373820 | L12: =IF($E12=0,0,K12/$E12) -> 0.2238403259 | M12: ='SUM for FWF Diagram_ALL'!R56+'SUM for FWF Diagram_ALL'!R60+'SUM for FWF Diagram_ALL'!R72 -> 689495 | N12: =IF($E12=0,0,M12/$E12) -> 0.1123413442 | P12: =M12/$E$14 -> 0.09130751455
B13:  No toilet (Open defecation) | C13: =Facilities!H16 -> 125 | D13: =Facilities!H29 -> 0 | E13: =SUM(C13:D13) -> 125 | G13: 0 | H13: 0 | I13: 0 | J13: 0 | K13: 0 | L13: =IF($E13=0,0,K13/$E13) -> 0 | M13: 0 | N13: =IF($E13=0,0,M13/$E13) -> 0 | P13: =M13/$E$14 -> 0
B14: Totals | C14: =SUM(C10:C13) -> 4382225 | D14: =SUM(D10:D13) -> 3169125 | E14: =SUM(E10:E13) -> 7551350 | G14: =SUM(G10:G13) -> 4484725 | H14: 0.5938971177 | I14: =SUM(I10:I13) -> 2784950 | J14: 0.368801605 | K14: =SUM(K10:K13) -> 1374350 | L14: =IF($E14=0,0,K14/$E14) -> 0.1820005694 | M14: =SUM(M10:M13) -> 690025 | N14: =IF($E14=0,0,M14/$E14) -> 0.09137770068 | P14: =SUM(P10:P13) -> 0.09137770068
B16: UNSAFE | E16: =E13/E14 -> 1.655333152e-05 | H16: =1-H14 -> 0.4061028823 | J16: =1-J14 -> 0.631198395 | L16: =1-L14 -> 0.8179994306 | N16: =1-N14 -> 0.9086222993
B20: FAECAL SLUDGE FLOWS | H20: Proportion safely…
B22: Types of sanitation facilities | C22: Residents | D22: Temporary residents | E22: Totals | G22: Contained | H22: Contained | I22: Emptied | J22: Emptied | K22: Transported | L22: Transported | M22: Treated | N22: Treated | P22: SAFE
B23:  WC to sewer | C23: =Facilities!F12 -> 675 | D23: =Facilities!F25 -> 2900 | E23: =SUM(C23:D23) -> 3575 | G23: ='SUM for FWF Diagram_SLUDGE'!L30+'SUM for FWF Diagram_SLUDGE'!L36 -> 3575 | H23: =IF($E23=0,0,G23/$E23) -> 1 | I23: ='SUM for FWF Diagram_SLUDGE'!N30+'SUM for FWF Diagram_SLUDGE'!N36 -> 1470 | J23: =IF($E23=0,0,I23/$E23) -> 0.4111888112 | K23: ='SUM for FWF Diagram_SLUDGE'!P30+'SUM for FWF Diagram_SLUDGE'!R36 -> 530 | L23: =IF($E23=0,0,K23/$E23) -> 0.1482517483 | M23: ='SUM for FWF Diagram_SLUDGE'!R30+'SUM for FWF Diagram_SLUDGE'!T36 -> 530 | N23: =IF($E23=0,0,M23/$E23) -> 0.1482517483 | P23: =M23/$E$27 -> 0.01439239647
B24:  WC to communal septic tank | C24: =Facilities!F13 -> 0 | D24: =Facilities!F26 -> 0 | E24: =SUM(C24:D24) -> 0 | G24: ='SUM for FWF Diagram_SLUDGE'!L50 -> 0 | H24: =IF($E24=0,0,G24/$E24) -> 0 | I24: ='SUM for FWF Diagram_SLUDGE'!N50 -> 0 | J24: =IF($E24=0,0,I24/$E24) -> 0 | K24: ='SUM for FWF Diagram_SLUDGE'!P50 -> 0 | L24: =IF($E24=0,0,K24/$E24) -> 0 | M24: ='SUM for FWF Diagram_SLUDGE'!R50 -> 0 | N24: =IF($E24=0,0,M24/$E24) -> 0 | P24: =M24/$E$27 -> 0
B25:  WC to onsite septic tanks or pit | C25: =Facilities!F14+Facilities!F15 -> 23500 | D25: =Facilities!F27+Facilities!F28 -> 9625 | E25: =SUM(C25:D25) -> 33125 | G25: ='SUM for FWF Diagram_SLUDGE'!L66+'SUM for FWF Diagram_SLUDGE'!L78 -> 26200 | H25: =IF($E25=0,0,G25/$E25) -> 0.7909433962 | I25: ='SUM for FWF Diagram_SLUDGE'!N66+'SUM for FWF Diagram_SLUDGE'!N78 -> 5580 | J25: =IF($E25=0,0,I25/$E25) -> 0.1684528302 | K25: ='SUM for FWF Diagram_SLUDGE'!P66+'SUM for FWF Diagram_SLUDGE'!P78 -> 5170 | L25: =IF($E25=0,0,K25/$E25) -> 0.1560754717 | M25: ='SUM for FWF Diagram_SLUDGE'!R66+'SUM for FWF Diagram_SLUDGE'!R78 -> 5170 | N25: =IF($E25=0,0,M25/$E25) -> 0.1560754717 | P25: =M25/$E$27 -> 0.1403937542
B26:  No toilet (Open defecation) | C26: =Facilities!F16 -> 125 | D26: =Facilities!F29 -> 0 | E26: =SUM(C26:D26) -> 125 | G26: 0 | H26: =IF($E26=0,0,G26/$E26) -> 0 | I26: 0 | J26: =IF($E26=0,0,I26/$E26) -> 0 | K26: 0 | L26: =IF($E26=0,0,K26/$E26) -> 0 | M26: 0 | N26: =IF($E26=0,0,M26/$E26) -> 0 | P26: =M26/$E$27 -> 0
B27: Totals | C27: =SUM(C23:C26) -> 24300 | D27: =SUM(D23:D26) -> 12525 | E27: =SUM(E23:E26) -> 36825 | G27: =SUM(G23:G26) -> 29775 | H27: =IF($E27=0,0,G27/$E27) -> 0.8085539715 | I27: =SUM(I23:I26) -> 7050 | J27: =IF($E27=0,0,I27/$E27) -> 0.1914460285 | K27: =SUM(K23:K26) -> 5700 | L27: =IF($E27=0,0,K27/$E27) -> 0.1547861507 | M27: =SUM(M23:M26) -> 5700 | N27: =IF($E27=0,0,M27/$E27) -> 0.1547861507 | P27: =SUM(P23:P26) -> 0.1547861507
B29: UNSAFE | E29: =E26/E27 -> 0.00339443313 | H29: =1-H27 -> 0.1914460285 | J29: =1-J27 -> 0.8085539715 | L29: =1-L27 -> 0.8452138493 | N29: =1-N27 -> 0.8452138493

Sheet Input menu
R14: Important note regarding the data input cells
R16: White | S16: All white cells require data inputs. This data is required for either the volume calculations or for calculating the scores for the scorecards!
R22: Pink | S22: Try to complete all the pink cells as these provide additional information which you may require for reporting purposes. If for whatsoever reason this information is not available at the time of the assessment, this will not negatively affect the volume calculations or scorecards!

Sheet User interface_RES
B2: =Overview_SLUDGE!#REF! -> 
B3: =AJ11 -> Just a city in a victious place, Southeast Asia
B5: CAPTURE AND CONTAINMENT: RESIDENTS
B8: Date | C8: 2016-09-17 | D8: < e.g. 1/1/2015
B10: Name of city | C10: Just a city
B11: Location (Province or other) | C11: a victious place | AH11: in | AI11: , | AJ11: =C10&AH11&C11&AI11&C12 -> Just a city in a victious place, Southeast Asia
B12: Country | C12: Southeast Asia
B15: POPULATION FIGURES | C15: Total present population | D15: Date of data | F15: Planning horizon in # of years | G15: Average annual growth rate
B16: Residents | C16: 131360 | D16: 2015-12-31 | E16: < e.g. 1/1/2015 | F16: 20 | G16: 0.03
B17: Source of data | C17: Prov. Department of Planning
B19: Average household size | C19: 5.2
B30: PRESENT SITUATION
B31: TYPES OF SANITATION FACILITIES AND TYPES OF INTERFACES | C31: Sanitation coverage | E31: Proportion of types of user interfaces | K31: Type of onsite pits
C32: Total percentages | D32: Proportion of septic tanks or pit latrines (sum = 100%) | E32: Flush toilet | F32: Pour-flush toilet | G32: Direct drop (without water for flushing) | H32: Total proportion (100%) | K32: Toilet connected to holding tank prior to sewer | L32: Toilet with direct connection to the environment | M32: Pits with non-sealed (open) bottoms | N32: Pits with sealed (closed) bottoms | O32: Total proportion (100%)
B33: 1) Networked sewerage systems | C33: 0.0284 | E33: 1 | F33: 0.01 | H33: =SUM(E33:G33) -> 1.01 | I33: =IF(AND(C33=0,H33=0),"",IF(H33=1,"OK","Not OK")) -> Not OK | K33: 0.97
B34: 2) Communal septic tanks (e.g. DEWATS) | H34: =SUM(E34:G34) -> 0 | I34: =IF(AND(C34=0,H34=0),"",IF(H34=1,"OK","Not OK")) -> 
B35: 3) On-site sanitation facilities | C35: 0.9614 | D35: =IF(AND(C35=0,SUM(D36:D37)=0),"OK",IF(AND(C35>0,SUM(D36:D37)=1),"OK","Not OK")) -> OK
B36: 3.1 Septic tanks | D36: 0.2 | E36: 0.5 | F36: 0.5 | H36: =SUM(E36:G36) -> 1 | I36: =IF(AND(D36=0,H36=0),"",IF(AND(D36>0,H36=1),"OK","Not OK")) -> OK | L36: 0.25 | N36: 0.75 | O36: =SUM(L36:N36) -> 1 | P36: =IF(AND(D36=0,O36>0),"Not OK",IF(AND(D36=0,O36=0),"",IF(O36=1,"OK","Not OK"))) -> OK | Q36: X | R36: =D36*C35 -> 0.19228
B37: 3.2 Pit latrines or holding tanks | D37: 0.8 | E37: 0.25 | F37: 0.75 | H37: =SUM(E37:G37) -> 1 | I37: =IF(AND(D37=0,H37=0),"",IF(AND(D37>0,H37=1),"OK","Not OK")) -> OK | L37: 0.25 | M37: 0.5 | N37: 0.25 | O37: =SUM(L37:N37) -> 1 | P37: =IF(AND(D37=0,O37>0),"Not OK",IF(AND(D37=0,O37=0),"",IF(O37=1,"OK","Not OK"))) -> OK | R37: =D37*C35 -> 0.76912
B38: 4) Communal toilets | D38: =IF(AND(C38=0,SUM(D39:D41)=0),"OK",IF(AND(C38>0,SUM(D39:D41)=1),"OK","Not OK")) -> OK
B39: 4.1 Connected to sewer | H39: =SUM(E39:G39) -> 0 | I39: =IF(AND(D39=0,H39=0),"",IF(AND(D39>0,H39=1),"OK","Not OK")) ->  | R39: =D39*C38 -> 0
B40: 4.2 Septic tanks | H40: =SUM(E40:G40) -> 0 | I40: =IF(AND(D40=0,H40=0),"",IF(AND(D40>0,H40=1),"OK","Not OK")) ->  | O40: =SUM(L40:N40) -> 0 | P40: =IF(AND(D40=0,O40>0),"Not OK",IF(AND(D40=0,O40=0),"",IF(O40=1,"OK","Not OK"))) -> 
B41: 4.3 Pit latrines | H41: =SUM(E41:G41) -> 0 | I41: =IF(AND(D41=0,H41=0),"",IF(AND(D41>0,H41=1),"OK","Not OK")) ->  | O41: =SUM(L41:N41) -> 0 | P41: =IF(AND(D41=0,O41>0),"Not OK",IF(AND(D41=0,O41=0),"",IF(O41=1,"OK","Not OK"))) ->  | R41: =D41*C38 -> 0
B42: 5) Do not use toilet (Open Defecation) | C42: 0.0102
C43: =SUM(C33:C42) -> 1 | D43: =(D36*C35)+(D39*C38) -> 0.19228 | E43: << Proportion of septic tanks
C44: =IF(C43=0,"",IF(C43=1,"OK","Not OK")) -> OK | D44: =(D37*C35)+(D41*C38) -> 0.76912 | E44: << Proportion of pit latrines
B46: HH using toilet of others (shared) | C46: 0 | D46: Provide percentage of households without a toilet that use toilet of others
B47: 4.1 Septic tanks | C47: =C46*D36 -> 0 | D47: These HH have been added proportionally to 3) On-site sanitation facilities
B48: 4.2 Pit latrines | C48: =C46*D37 -> 0
C49: =SUM(C47:C48) -> 0
B52: FUTURE EXPECTED SITUATION
B53: TYPES OF SANITATION FACILITIES AND TYPES OF INTERFACES | C53: Sanitation coverage | E53: Proportion of types of user interfaces | K53: Type of onsite pits
C54: Total percentages | D54: Proportion of septic tanks or pit latrines (sum = 100%) | E54: Flush toilet | F54: Pour-flush toilet | G54: Direct drop (without water for flushing) | H54: Total proportion (100%) | K54: Toilet connected to holding tank prior to sewer | L54: Toilet with direct connection to environment | M54: Pits with non-sealed (open) bottoms | N54: Pits with sealed (closed) bottoms | O54: Total proportion (100%)
B55: 1) Networked sewerage systems | C55: 0.05 | E55: 1 | H55: =SUM(E55:G55) -> 1 | I55: =IF(AND(C55=0,H55=0),"",IF(H55=1,"OK","Not OK")) -> OK | K55: 0.9
B56: 2) Communal septic tanks (e.g. DEWATS) | H56: =SUM(E56:G56) -> 0 | I56: =IF(AND(C56=0,H56=0),"",IF(H56=1,"OK","Not OK")) -> 
B57: 3) On-site sanitation facilities (septic tanks, pit latrines) | C57: 0.95 | D57: =IF(AND(C57=0,SUM(D58:D59)=0),"OK",IF(AND(C57>0,SUM(D58:D59)=1),"OK","Not OK")) -> OK
B58: 3.1 Septic tanks | D58: 0.25 | E58: 1 | H58: =SUM(E58:G58) -> 1 | I58: =IF(AND(D58=0,H58=0),"",IF(AND(D58>0,H58=1),"OK","Not OK")) -> OK | L58: 0.25 | N58: 0.75 | O58: =SUM(L58:N58) -> 1 | P58: =IF(AND(D58=0,O58>0),"Not OK",IF(AND(D58=0,O58=0),"",IF(O58=1,"OK","Not OK"))) -> OK | R58: =D58*C57 -> 0.2375
B59: 3.2 Pit latrines | D59: 0.75 | E59: 0.25 | F59: 0.75 | H59: =SUM(E59:G59) -> 1 | I59: =IF(AND(D59=0,H59=0),"",IF(AND(D59>0,H59=1),"OK","Not OK")) -> OK | L59: 0.5 | M59: 0.25 | N59: 0.25 | O59: =SUM(L59:N59) -> 1 | P59: =IF(AND(D59=0,O59>0),"Not OK",IF(AND(D59=0,O59=0),"",IF(O59=1,"OK","Not OK"))) -> OK | R59: =D59*C57 -> 0.7125
B60: 4) Communal toilets | D60: =IF(AND(C60=0,SUM(D61:D63)=0),"OK",IF(AND(C60>0,SUM(D61:D63)=1),"OK","Not OK")) -> OK
B61: 4.1 Connected to sewer | H61: =SUM(E61:G61) -> 0 | I61: =IF(AND(D61=0,H61=0),"",IF(AND(D61>0,H61=1),"OK","Not OK")) -> 
B62: 4.2 Septic tanks | H62: =SUM(E62:G62) -> 0 | I62: =IF(AND(D62=0,H62=0),"",IF(AND(D62>0,H62=1),"OK","Not OK")) ->  | O62: =SUM(L62:N62) -> 0 | P62: =IF(AND(D62=0,O62>0),"Not OK",IF(AND(D62=0,O62=0),"",IF(O62=1,"OK","Not OK"))) ->  | R62: =D62*C60 -> 0
B63: 4.3 Pit latrines | H63: =SUM(E63:G63) -> 0 | I63: =IF(AND(D63=0,H63=0),"",IF(AND(D63>0,H63=1),"OK","Not OK")) ->  | O63: =SUM(L63:N63) -> 0 | P63: =IF(AND(D63=0,O63>0),"Not OK",IF(AND(D63=0,O63=0),"",IF(O63=1,"OK","Not OK"))) ->  | R63: =D63*C60 -> 0
B64: 5) Do not use toilet (Open Defecation)
C65: =SUM(C55:C64) -> 1 | D65: =(D58*C57)+(D62*C60) -> 0.2375 | E65: << Proportion of septic tanks
C66: =IF(C65=0,"",IF(C65=1,"OK","Not OK")) -> OK | D66: =(D59*C57)+(D63*C60) -> 0.7125 | E66: << Proportion of pit latrines
B69: LOCAL STANDARDS FOR VOLUMES PRODUCED | C69: Estimations of litres per day per person | L69: Faecal sludge requiring emptying | N69: No emptying | O69: Emptying FS only
C70: Dry part (solids) | D70: Wet part | G70: Total volumes | H70: Note; Use wherever possilbe national (or local) standards. In the absence of standards you are advised to use realistic sassumptions. | L70: Faecal sludge (faeces multiplied by two to add same amount of water to allow emptying) | M70: In % of total | N70: In % of total | O70: In % of total
D71: Blackwater | F71: Grey water
C72: Amount of faeces produced by one person per day | D72: Average amount of water required for flushing the toilet one time (where relevant include water required for anal cleansing) | E72: Average number of times one person uses the toilet in one day (for urinating and defecating) | F72: If grey water ends up in the toilet, then indicate the amount of grey water (bathing) produced per person per day | H72: If you are not sure whether grey water ends up in the toilet, it is best to keep the grey water cells empty!
B73: 1) Networked sewerage systems
B74: 1.1 Flush toilet | C74: 0.25 | D74: 5 | E74: 6 | F74: 94.75 | G74: =C74+(D74*E74)+F74 -> 125 | L74: =C74*2 -> 0.5 | M74: =IF(G74=0,0,L74/G74) -> 0.004 | N74: =IF(G74=0,0,IF((G74-L74)/G74<0,0,(G74-L74)/G74)) -> 0.996 | O74: 1 | W74: =30/365 -> 0.08219178082
B75: 1.2 Pour-flush toilet | G75: =C75+(D75*E75)+F75 -> 0 | L75: =C75*2 -> 0 | M75: =IF(G75=0,0,L75/G75) -> 0 | N75: =IF(G75=0,0,IF((G75-L75)/G75<0,0,(G75-L75)/G75)) -> 0 | O75: 1
B76: 2) Communal septic tanks
B77: 2.1 Flush toilet | G77: =C77+(D77*E77)+F77 -> 0 | L77: =C77*2 -> 0 | M77: =IF(G77=0,0,L77/G77) -> 0 | N77: =IF(G77=0,0,IF((G77-L77)/G77<0,0,(G77-L77)/G77)) -> 0 | O77: 1
B78: 2.2 Pour-flush toilet | G78: =C78+(D78*E78)+F78 -> 0 | L78: =C78*2 -> 0 | M78: =IF(G78=0,0,L78/G78) -> 0 | N78: =IF(G78=0,0,IF((G78-L78)/G78<0,0,(G78-L78)/G78)) -> 0 | O78: 1
B79: 3) On-site sanitation facilities
B80: 3.1 Flush toilet | C80: 0.25 | D80: 5 | E80: 6 | F80: 69.75 | G80: =C80+(D80*E80)+F80 -> 100 | L80: =C80*2 -> 0.5 | M80: =IF(G80=0,0,L80/G80) -> 0.005 | N80: =IF(G80=0,0,IF((G80-L80)/G80<0,0,(G80-L80)/G80)) -> 0.995 | O80: 1
B81: 3.2 Pour-flush toilet | C81: 0.25 | D81: 2.5 | E81: 6 | F81: 69.75 | G81: =C81+(D81*E81)+F81 -> 85 | L81: =C81*2 -> 0.5 | M81: =IF(G81=0,0,L81/G81) -> 0.005882352941 | N81: =IF(G81=0,0,IF((G81-L81)/G81<0,0,(G81-L81)/G81)) -> 0.9941176471 | O81: 1
B82: 3.3 Direct drop (no water for flushing) | G82: =C82+(D82*E82)+F82 -> 0 | L82: =C82*2 -> 0 | M82: =IF(G82=0,0,L82/G82) -> 0 | N82: =IF(G82=0,0,IF((G82-L82)/G82<0,0,(G82-L82)/G82)) -> 0 | O82: 1
B83: 4) Communal toilets
B84: 4.1 Flush toilet | G84: =C84+(D84*E84)+F84 -> 0 | L84: =C84*2 -> 0 | M84: =IF(G84=0,0,L84/G84) -> 0 | N84: =IF(G84=0,0,IF((G84-L84)/G84<0,0,(G84-L84)/G84)) -> 0 | O84: 1
B85: 4.2 Pour-flush toilet | G85: =C85+(D85*E85)+F85 -> 0 | L85: =C85*2 -> 0 | M85: =IF(G85=0,0,L85/G85) -> 0 | N85: =IF(G85=0,0,IF((G85-L85)/G85<0,0,(G85-L85)/G85)) -> 0 | O85: 1
B86: 4.3 Direct drop (no water for flushing) | G86: =C86+(D86*E86)+F86 -> 0 | L86: =C86*2 -> 0 | M86: =IF(G86=0,0,L86/G86) -> 0 | N86: =IF(G86=0,0,IF((G86-L86)/G86<0,0,(G86-L86)/G86)) -> 0 | O86: 1
B87: 5) Do not use toilet (Open Defecation) | C87: 0.25 | G87: =C87+(D87*E87)+F87 -> 0.25 | L87: =C87 -> 0.25
B89: Average # of households per communal toilet seat

Sheet User interface_Non-RES
B2: =Overview_SLUDGE!#REF! -> 
B3: =Overview_SLUDGE!B1 -> Just a city in a victious place, Southeast Asia
B5: CAPTURE AND CONTAINMENT: TEMPORARY RESIDENTS
B8: Date | C8: 2016-09-17 | D8: < e.g. 1/1/2015
B10: Name of city | C10: ='User interface_RES'!C10 -> Just a city
B11: Location | C11: ='User interface_RES'!C11 -> a victious place | AC11: in | AD11: , | AE11: =C10&AC11&C11&AD11&C12 -> Just a city in a victious place, Southeast Asia
B12: Country | C12: ='User interface_RES'!C12 -> Southeast Asia | F12: Average annual growth rate for RESIDENTS >> | G12: ='User interface_RES'!G16 -> 0.03
B14: POPULATION FIGURES | C14: Date of data | D14: 2015-12-31 | E14: Source of data | F14: Provincial Department of Tourism Siem Reap
B16: POPULATION FIGURES | C16: Number of people | D16: Expected annual growth rate
B18: Temporary residents
B20: A: Tourists and other visitors staying overnight
B21: Visitor numbers | C21: 3341350.25 | E21: Note: Include annual growth rates but only if different from the above average growth rate for residents!
B22: Number of visitor nights | C22: 6682700.5
B23: B: Temporary residents | C23: =SUM(C24:C27) -> 55598
B24: Workers (informal and formal) | C24: 55598 | E24: Note: Include annual growth rates but only if different from the above average growth rate for residents!
B25: Students from outside
B26: Hospital patients (in-patients)
B27: Others, specify:
B30: PRESENT SITUATION
B31: TYPES OF SANITATION FACILITIES AND TYPES OF INTERFACES | C31: Sanitation coverage | E31: Proportion of types of user interfaces | K31: Type of onsite pits
C32: Total percentages | D32: Proportion of septic tanks or pit latrines (sum = 100%) | E32: Flush toilet | F32: Pour-flush toilet | G32: Direct drop (without water for flushing) | H32: Total proportion (100%) | K32: Toilet connected to holding tank prior to sewer | L32: Toilet with direct connection to environment | M32: Pits with non-sealed (open) bottoms | N32: Pits with sealed (closed) bottoms | O32: Total proportion (100%)
B33: 1) Networked sewerage systems | C33: 0.3 | E33: 1 | H33: =SUM(E33:G33) -> 1 | I33: =IF(AND(C33=0,H33=0),"",IF(H33=1,"OK","Not OK")) -> OK | K33: 0.7
B34: 2) Communal septic tanks (e.g. DEWATS) | H34: =SUM(E34:G34) -> 0 | I34: =IF(AND(C34=0,H34=0),"",IF(H34=1,"OK","Not OK")) -> 
B35: 3) On-site sanitation facilities (septic tanks, pit latrines) | C35: 0.7 | D35: =IF(AND(C35=0,SUM(D36:D37)=0),"OK",IF(AND(C35>0,SUM(D36:D37)=1),"OK","Not OK")) -> OK
B36: 3.1 Septic tanks | D36: 0.5 | E36: 1 | H36: =SUM(E36:G36) -> 1 | I36: =IF(AND(D36=0,H36=0),"",IF(AND(D36>0,H36=1),"OK","Not OK")) -> OK | L36: 0.25 | N36: 0.75 | O36: =SUM(L36:N36) -> 1 | P36: =IF(AND(D36=0,O36>0),"Not OK",IF(AND(D36=0,O36=0),"",IF(O36=1,"OK","Not OK"))) -> OK
B37: 3.2 Pit latrines | D37: 0.5 | E37: 0.5 | F37: 0.5 | H37: =SUM(E37:G37) -> 1 | I37: =IF(AND(D37=0,H37=0),"",IF(AND(D37>0,H37=1),"OK","Not OK")) -> OK | L37: 0.25 | M37: 0.5 | N37: 0.25 | O37: =SUM(L37:N37) -> 1 | P37: =IF(AND(D37=0,O37>0),"Not OK",IF(AND(D37=0,O37=0),"",IF(O37=1,"OK","Not OK"))) -> OK
B38: 4) Public toilets | D38: =IF(AND(C38=0,SUM(D39:D41)=0),"OK",IF(AND(C38>0,SUM(D39:D41)=1),"OK","Not OK")) -> OK
B39: 4.1 Connected to sewer | H39: =SUM(E39:G39) -> 0 | I39: =IF(AND(D39=0,H39=0),"",IF(AND(D39>0,H39=1),"OK","Not OK")) -> 
B40: 4.2 Septic tanks | H40: =SUM(E40:G40) -> 0 | I40: =IF(AND(D40=0,H40=0),"",IF(AND(D40>0,H40=1),"OK","Not OK")) ->  | O40: =SUM(L40:N40) -> 0 | P40: =IF(AND(D40=0,O40>0),"Not OK",IF(AND(D40=0,O40=0),"",IF(O40=1,"OK","Not OK"))) -> 
B41: 4.3 Pit latrines | H41: =SUM(E41:G41) -> 0 | I41: =IF(AND(D41=0,H41=0),"",IF(AND(D41>0,H41=1),"OK","Not OK")) ->  | O41: =SUM(L41:N41) -> 0 | P41: =IF(AND(D41=0,O41>0),"Not OK",IF(AND(D41=0,O41=0),"",IF(O41=1,"OK","Not OK"))) -> 
B42: 5) Do not use toilet (Open Defecation)
C43: =SUM(C33:C42) -> 1 | D43: =(D36*C35)+(D40*C38) -> 0.35 | E43: << Proportion of septic tanks
C44: =IF(C43=0,"",IF(C43=1,"OK","Not OK")) -> OK | D44: =(D37*C35)+(D41*C38) -> 0.35 | E44: << Proportion of pit latrines
B47: FUTURE EXPECTED SITUATION
B48: TYPES OF SANITATION FACILITIES AND TYPES OF INTERFACES | C48: Sanitation coverage | E48: Proportion of types of user interfaces | K48: Type of onsite pits
C49: Total percentages | D49: Proportion of septic tanks or pit latrines (sum = 100%) | E49: Flush toilet | F49: Pour-flush toilet | G49: Direct drop (without water for flushing) | H49: Total proportion (100%) | K49: Toilet connected to holding tank prior to sewer | L49: Toilet with direct connection to environment | M49: Pits with non-sealed (open) bottoms | N49: Pits with sealed (closed) bottoms | O49: Total proportion (100%)
B50: 1) Networked sewerage systems | C50: 0.5 | E50: 1 | H50: =SUM(E50:G50) -> 1 | I50: =IF(AND(C50=0,H50=0),"",IF(H50=1,"OK","Not OK")) -> OK | K50: 0.5
B51: 2) Communal septic tanks (e.g. DEWATS) | H51: =SUM(E51:G51) -> 0 | I51: =IF(AND(C51=0,H51=0),"",IF(H51=1,"OK","Not OK")) -> 
B52: 3) On-site sanitation facilities (septic tanks, pit latrines) | C52: 0.5 | D52: =IF(AND(C52=0,SUM(D53:D54)=0),"OK",IF(AND(C52>0,SUM(D53:D54)=1),"OK","Not OK")) -> OK
B53: 3.1 Septic tanks | D53: 0.5 | E53: 1 | H53: =SUM(E53:G53) -> 1 | I53: =IF(AND(D53=0,H53=0),"",IF(AND(D53>0,H53=1),"OK","Not OK")) -> OK | L53: 0.1 | N53: 0.9 | O53: =SUM(L53:N53) -> 1 | P53: =IF(AND(D53=0,O53>0),"Not OK",IF(AND(D53=0,O53=0),"",IF(O53=1,"OK","Not OK"))) -> OK
B54: 3.2 Pit latrines | D54: 0.5 | E54: 0.75 | F54: 0.25 | H54: =SUM(E54:G54) -> 1 | I54: =IF(AND(D54=0,H54=0),"",IF(AND(D54>0,H54=1),"OK","Not OK")) -> OK | L54: 0.1 | M54: 0.5 | N54: 0.4 | O54: =SUM(L54:N54) -> 1 | P54: =IF(AND(D54=0,O54>0),"Not OK",IF(AND(D54=0,O54=0),"",IF(O54=1,"OK","Not OK"))) -> OK
B55: 4) Public toilets | D55: =IF(AND(C55=0,SUM(D57:D58)=0),"OK",IF(AND(C55>0,SUM(D57:D58)=1),"OK","Not OK")) -> OK
B56: 4.1 Connected to sewer
B57: 4.2 Septic tanks | H57: =SUM(E57:G57) -> 0 | I57: =IF(AND(D57=0,H57=0),"",IF(AND(D57>0,H57=1),"OK","Not OK")) ->  | O57: =SUM(L57:N57) -> 0 | P57: =IF(AND(D57=0,O57>0),"Not OK",IF(AND(D57=0,O57=0),"",IF(O57=1,"OK","Not OK"))) -> 
B58: 4.3 Pit latrines | H58: =SUM(E58:G58) -> 0 | I58: =IF(AND(D58=0,H58=0),"",IF(AND(D58>0,H58=1),"OK","Not OK")) ->  | O58: =SUM(L58:N58) -> 0 | P58: =IF(AND(D58=0,O58>0),"Not OK",IF(AND(D58=0,O58=0),"",IF(O58=1,"OK","Not OK"))) -> 
B59: 5) Do not use toilet (Open Defecation)
C60: =SUM(C50:C59) -> 1 | D60: =(D53*C52)+(D57*C55) -> 0.25 | E60: << Proportion of septic tanks
C61: =IF(C60=0,"",IF(C60=1,"OK","Not OK")) -> OK | D61: =(D54*C52)+(D58*C55) -> 0.25 | E61: << Proportion of pit latrines
B64: LOCAL STANDARDS FOR VOLUMES PRODUCED
B65: TYPES OF SANITATION FACILITIES AND TYPES OF INTERFACES | C65: Estimations of litres per day per person | L65: Faecal sludge requiring emptying | N65: No emptying | O65: Emptying FS only
C66: Dry part (solids) | D66: Wet part | G66: Total volumes | H66: Note; Use wherever possilbe national (or local) standards. In the absence of standards you are advised to use realistic sassumptions. | L66: Faecal sludge (faeces multiplied by two to add same amount of water to allow emptying) | M66: In % of total | N66: In % of total | O66: In % of total
D67: Blackwater | F67: Grey water
C68: Amount of faeces produced by one person per day | D68: Average amount of water required for flushing the toilet one time (where relevant include water required for anal cleansing) | E68: Average number of times one person uses the toilet in one day (for urinating and defecating) | F68: If grey water ends up in the toilet, then indicate the amount of grey water (bathing) produced per person per day | H68: If you are not sure whether grey water ends up in the toilet, it is best to keep the grey water cells empty!
B69: 1) Networked sewerage systems
B70: 1.1 Flush toilet | C70: 0.25 | D70: 5 | E70: 6 | F70: 119.75 | G70: =C70+(D70*E70)+F70 -> 150 | L70: =C70*2 -> 0.5 | M70: =IF(G70=0,0,L70/G70) -> 0.003333333333 | N70: =IF(G70=0,0,IF((G70-L70)/G70<0,0,(G70-L70)/G70)) -> 0.9966666667 | O70: 1
B71: 1.2 Pour-flush toilet | G71: =C71+(D71*E71)+F71 -> 0 | L71: =C71*2 -> 0 | M71: =IF(G71=0,0,L71/G71) -> 0 | N71: =IF(G71=0,0,IF((G71-L71)/G71<0,0,(G71-L71)/G71)) -> 0 | O71: 1
B72: 2) Communal septic tanks
B73: 2.1 Flush toilet | G73: =C73+(D73*E73)+F73 -> 0 | L73: =C73*2 -> 0 | M73: =IF(G73=0,0,L73/G73) -> 0 | N73: =IF(G73=0,0,IF((G73-L73)/G73<0,0,(G73-L73)/G73)) -> 0 | O73: 1
B74: 2.2 Pour-flush toilet | G74: =C74+(D74*E74)+F74 -> 0 | L74: =C74*2 -> 0 | M74: =IF(G74=0,0,L74/G74) -> 0 | N74: =IF(G74=0,0,IF((G74-L74)/G74<0,0,(G74-L74)/G74)) -> 0 | O74: 1
B75: 3) On-site sanitation facilities
B76: 3.1 Flush toilet | C76: 0.25 | D76: 5 | E76: 6 | F76: 69.75 | G76: =C76+(D76*E76)+F76 -> 100 | L76: =C76*2 -> 0.5 | M76: =IF(G76=0,0,L76/G76) -> 0.005 | N76: =IF(G76=0,0,IF((G76-L76)/G76<0,0,(G76-L76)/G76)) -> 0.995 | O76: 1
B77: 3.2 Pour-flush toilet | C77: 0.25 | D77: 5 | E77: 6 | F77: 69.75 | G77: =C77+(D77*E77)+F77 -> 100 | L77: =C77*2 -> 0.5 | M77: =IF(G77=0,0,L77/G77) -> 0.005 | N77: =IF(G77=0,0,IF((G77-L77)/G77<0,0,(G77-L77)/G77)) -> 0.995 | O77: 1
B78: 3.3 Direct drop (no water for flushing) | G78: =C78+(D78*E78)+F78 -> 0 | L78: =C78*2 -> 0 | M78: =IF(G78=0,0,L78/G78) -> 0 | N78: =IF(G78=0,0,IF((G78-L78)/G78<0,0,(G78-L78)/G78)) -> 0 | O78: 1
B79: 4) Public toilets
B80: 4.1 Flush toilet | G80: =C80+(D80*E80)+F80 -> 0 | L80: =C80*2 -> 0 | M80: =IF(G80=0,0,L80/G80) -> 0 | N80: =IF(G80=0,0,IF((G80-L80)/G80<0,0,(G80-L80)/G80)) -> 0 | O80: 1
B81: 4.2 Pour-flush toilet | G81: =C81+(D81*E81)+F81 -> 0 | L81: =C81*2 -> 0 | M81: =IF(G81=0,0,L81/G81) -> 0 | N81: =IF(G81=0,0,IF((G81-L81)/G81<0,0,(G81-L81)/G81)) -> 0 | O81: 1
B82: 4.3 Direct drop (no water for flushing) | G82: =C82+(D82*E82)+F82 -> 0 | L82: =C82*2 -> 0 | M82: =IF(G82=0,0,L82/G82) -> 0 | N82: =IF(G82=0,0,IF((G82-L82)/G82<0,0,(G82-L82)/G82)) -> 0 | O82: 1
B83: 5) Do not use toilet (Open Defecation) | G83: =C83+(D83*E83)+F83 -> 0 | L83: =C83 -> 0

Sheet Interface_Emptying & Transport
B1: =Overview_SLUDGE!#REF! -> 
B2: ='User interface_RES'!AJ11 -> Just a city in a victious place, Southeast Asia
B4: EMPTYING and TRANSPORT questions
B7: Size of on site containment pits and tanks
B9: Average size (volumes) of on site toilet sub-structures | C9: (Septic) Tank | D9: Pit
B10: Average size of pits and tanks in litres | C10: 2500 | D10: 1000 | E10: Note: Even if the sludge in a pit/ tank is liquid enough to be adequately pumped, it will be impossible to remove 100% of the contents.
B11: Correction factor: proportion of tank or pit emptied | C11: 0.9 | D11: 0.9 | E11: This % then reflects a more realistic volume to empty.
B14: Emptiers and emptying methods | O14: For inputs about transportation methods go to column AA | Z14: Transportation Methods
B16: Please list the number of manual pit emptiers and the average number of pits emptied by this method
K17: Fees and business viability
C18: Manual pit emptying of onsite sanitation facilities | K18: Pit emptying charges | R18: Outreach area | AA18: Faecal sludge transportation details | AL18: Faecal sludge is transported by second transporter from sub-station
B19: MANUAL PIT EMPTIERS | C19: Emptying method | E19: Average number of units emptied per day per emptier | F19: Number of emptiers | G19: Safety factor for spillage during emptying | K19: Minimum costs charged in local currency | L19: Maximum costs charged in local currency | M19: Average costs charged in local currency | N19: Is transportation charged separately? | O19: Is this a profitable business opportunity? (YES/NO) | R19: Does this business cover the entire city? (YES/NO) | S19: If NO, why not? | Z19: TRANSPORTATION OF FEACAL SLUDGE FROM ONSITE SANITATION FACILITIES BY MANUAL EMPTIERS | AA19: Transported by emptier (YES/NO) | AB19: What proportion is transported by pit emptier in % | AC19: What proportion is transported by other in % | AD19: If NO, provide name of transporter | AE19: If NO, indicate Public or Private entity | AF19: Transporting method used | AH19: Destination of faecal sludge | AJ19: Dumping location is legal or illegal site | AL19: Provide name of second transporter | AM19: Public or private entity | AN19: Transporting method used by transporter | AP19: Destination of sludge | AR19: Dumping location is legal or illegal site
B20: Emptied by whom? | Z20: Emptied by whom?
B21:  Household | C21: Bucket and spade | G21: 1 | Z21:  Household | AA21: YES
Z22:  Household | AA22: NO | AC22: =1-AB21 -> 1
B23:  Professional manual pit emptier (sweeper) | C23: Bucket and spade | G23: 1 | Z23:  Professional manual pit emptier (bucket and space) | AA23: YES
Z24:  Professional manual pit emptier (bucket and space) | AA24: NO | AC24: =1-AB23 -> 1
B25:  Professional manual pit emptier (sweeper) | C25: Manually-operated mechanical device | G25: 1 | Z25:  Professional manual pit emptier (manually operated mechanical device) | AA25: YES
Z26:  Professional manual pit emptier (manually operated mechanical device) | AA26: NO | AC26: =1-AB25 -> 1
B27:  Others | G27: 1 | Z27:  Others | AA27: YES
Z28:  Others | AA28: NO | AC28: =1-AB27 -> 1
B31: Please list mechanical emptiers in the city, either individual or company, with their related information | K31: Fees and business viability
C32: Mechanical pit emptying of onsite sanitation facilities | K32: Pit emptying charges | O32: Profitability | Q32: Outreach area | W32: Others | AA32: Faecal sludge transportation details | AL32: Faecal sludge is transported by second transporter from sub-station
B33: MECHANICAL PIT EMPTYING of onsite sanitation facilities | C33: Emptying method | E33: Average number of emptied units per day | F33: Operator (public / private) | G33: Number of trucks owned by company | H33: (Average) Volume of trucks in cubic metres | I33: Safety factor for spillage during emptying | K33: Minimum costs charged in local currency | L33: Maximum costs charged in local currency | M33: Average costs charged in local currency | N33: Is transportation charged separately? (YES/NO) | O33: Is this a profitable business opportunity? (YES/NO) | Q33: Is it this business madate to cover the entire city? (YES/NO) | R33: Is the mandated area accessible by provider? (YES/NO) | S33: If NO, why not? | W33: Is the service provided on call or scheduled? | X33: Number of regular jobs | Z33: TRANSPORTATION OF FAECAL SLUDGE FROM ONSITE SANITATION FACILITIES BY MECHANICAL EMPTIERS | AA33: Transported by emptier (YES/NO) | AD33: If NO, provide name of transporter | AE33: If NO, indicate Public or Private entity | AF33: Transporting method used | AH33: Destination of faecal sludge | AJ33: Dumping location is legal or illegal site | AL33: Provide name of second transporter | AM33: Public or private entity | AN33: Transporting method used by transporter | AP33: Destination of sludge | AR33: Dumping location is legal or illegal site
B34: Emptied by whom? | Z34: Emptied by whom?
B35: Public provider [Name] | I35: 1 | Z35: =B35 -> Public provider [Name]
B36: Public provider [Name] | I36: 1 | Z36: Public provider [Name]
B37: Private provider 1 [Sokha Hotels] | C37: Vehicle-mounted vacuum pump | E37: 4 | F37: PRIVATE | G37: 4 | H37: 5.3 | I37: 1 | K37: This provider only serves the Angkor Wat area under a special contract with the Apsara Authority | Z37: Private provider 1 [Sokha Hotels] | AA37: YES | AH37: Final destination | AJ37: Legal
B38: Private provider 2 [Small private entrepreneurs] | C38: Vehicle-mounted vacuum pump | E38: 9 | F38: PRIVATE | G38: 7 | H38: 2.7 | I38: 1 | K38: US$20 | L38: US$30 | M38: US$25 | N38: NO | Q38: YES | R38: YES | S38: These operators use small trucks that can access most areas | Z38: Private provider 2 [Small private entrepreneurs] | AA38: YES | AH38: Final destination | AJ38: Legal
B39: Private provider 3 [New private entrepreneur] | C39: Vehicle-mounted vacuum pump | E39: 1 | F39: PRIVATE | G39: 1 | H39: 2.5 | I39: 1 | K39: US$20 | L39: US$30 | M39: US$25 | N39: NO | Q39: YES | R39: YES | S39: These operators use small trucks that can access most areas | Z39: Private provider 3 [New private entrepreneur] | AA39: YES | AH39: Final destination | AJ39: Illegal
B40: Private provider 4 [Name] | I40: 1 | Z40: Private provider 4 [Name]
B41: Private provider 5 [Name] | I41: 1 | Z41: Private provider 5 [Name]
B42: Private provider 6 [Name] | I42: 1 | Z42: Private provider 6 [Name]
B43: Totals | E43: =SUM(E35:E38) -> 13 | G43: =SUM(G35:G38) -> 11
B47: LEAKAGE OR SPILLAGE RATES | C47: NOW
B48: Bucket spillage rate | D48: make black if not required
B49: Manual operated mechanical device spillage rate
B50: Public provider: truck leakage rate
B51: Private provider: truck leakage rate | C51: 0
B53: Sewer and small bore leakage rates
B54: Sewer leakage rate | C54: 1 | D54: make black if not required
B55: Communal septic tanks (DEWATS) small bore leakage rate
B59: SCORE CARDS
B61: These scorecards measure the safety of pit emptying and transportation. Please put a 1 in the boxes corresponding to the safety practices described below which are adhered to.
B63: Faecal sludge emptying practices by MANUAL SERVICE PROVIDERS
B64: Questions / Indicators | C64: ü = 1 | E64: Standards and or additional information
B65: If not relevant provide a 1 | C65: 1 | E65: No manual pit emptying services available
B66: Emptying practices avoid entering the pit
B67: Workers wear minimum protective gear
B68: Cleaning materials and disinfectives are available
B69: Cleaning materials and disinfectives are used when there is a spill
B70: Workers do wash their hands with soap after the job is done
B71: Workers attended training on minimum safety standards
B74: Faecal sludge emptying practices by MECHANICAL SERVICE PROVIDERS
B75: Questions / Indicators | C75: ü = 1 | E75: Standards and or additional information
B76: If not relevant provide a 1 | E76: No mechanical pit emptying services available
B77: Emptying practices avoid entering the pit | C77: 1
B78: Workers wear minimum protective gear
B79: Cleaning materials and disinfectives are available
B80: Cleaning materials and disinfectives are used when there is a spill
B81: Workers do wash their hands with soap after empting
B82: Safety protocol in place
B83: Workers trained on safety aspects
B86: Faecal sludge transportation practices by MECHANICAL SERVICE PROVIDERS
B87: Questions / Indicators | C87: ü = 1 | E87: Standards and or additional information
B88: If not relevant provide a 1 | E88: No transportation services available
B89: Vehicle marked for recognition | C89: 1
B90: Inspection of transportation device prior to use | C90: 1
B91: Cleaning materials and disinfectives are available
B92: Cleaning materials and disinfectives are used when there is a spill
B93: Faecal sludge is discharged without spraying
B94: Protocol for any type of spillage is in place
B95: Workers trained on safety aspects

Sheet Interface_Treatment
B1: =Overview_SLUDGE!#REF! -> 
B2: ='User interface_RES'!AJ11 -> Just a city in a victious place, Southeast Asia
B4: TREATMENT, DISPOSAL and REUSE questions
B7: For accurate input into this tool it is important that each treatment plant is kept separate and distinct. To this end, a key has been created so that mistakes will be less likely.
B8: Please input the treatment plants into the table below, along with any distinguishing features so that the plants cannot be confused. In the rest of the inputs, the plants will be listed in the same order, so please ensure that data is entered under the correct plant.
B10: Volumes of faecal sludge from onsite sanitation facilities TREATED in treatment facility | K10: For inputs about disposal and reuse go to the right >> | U10: Volumes of faecal sludge from onsite sanitation facilities DISPOSED | AJ10: Volumes of faecal sludge from onsite sanitation facilities REUSED
U11: Total volumes to be DISPOSED (treated and untreated) | AB11: Volumes safely treated for DISPOSAL | AJ11: Total volumes to be REUSED (treated and untreated) | AQ11: Volumes safely treated for REUSE
B12: Treatment Plant | C12: Percentage of sludge and septage received per plant | D12: Total volumes of sludge and septage received in cubic metres per year | E12: Type(s) of treatment | G12: Plant Capacity in cubic metres per day | H12: Treatment purposes | J12: If D, is the effluent is treated to standard? | K12: If R, is the treated final product complying with reuse standards | M12: Additional information | U12: Proportion of disposal methods in % | AB12: Proportion of disposal methods in % | AJ12: Proportion of disposal methods in % | AQ12: Proportion of disposal methods in %
H13: Volume for disposal = D | I13: Volume for reuse = R | M13: Location | N13: How often are deliveries made? | O13: Are record logs kept? | P13: Distance of plant from city in KM | Q13: Owner of plant | R13: Dumping or discharging cost to transporters | S13: Description of the plant and any distinguishing features | U13: In water bodies | V13: To landfill | W13: Left in facility | X13: Others | Y13: Totals (Row totals must add up to 100%) | Z13: Check | AB13: Volumes safely treated for disposal | AC13: In water bodies | AD13: To landfill | AE13: Left in facility | AF13: Other | AG13: Totals | AH13: Check | AJ13: Soil conditioner | AK13: Fertiliser | AL13: Biofuel | AM13: Others | AN13: Totals (Row totals must add up to 100%) | AO13: Check | AQ13: Volumes safely treated for disposal | AR13: Soil conditioner | AS13: Fertiliser | AT13: Biofuel | AU13: Other | AV13: Totals | AW13: Check
BG14: Type of treatment plants
B15: Plant 1 [Owned by PDPWT] | C15: 1 | D15: =C15*$D$22 -> 5700 | E15: Waste stabilisation ponds | H15: =D15 -> 5700 | I15: =D15-H15 -> 0 | J15: YES | O15: None | P15: 10 | Q15: Dept of PWT | R15: $30 per month | W15: 1 | Y15: =SUM(U15:X15) -> 1 | Z15: =IF(AND(H15=0,Y15=0),"OK",IF(AND(H15>0,Y15=1),"OK","Not OK")) -> OK | AB15: ='Treatment volumes'!K27 -> 5700 | AC15: =IF($AB15>0,U15,0) -> 0 | AD15: =IF($AB15>0,V15,0) -> 0 | AE15: =IF($AB15>0,W15,0) -> 1 | AF15: =IF($AB15>0,X15,0) -> 0 | AG15: =SUM(AC15:AF15) -> 1 | AH15: =IF(AND(AB15=0,AG15=0),"OK",IF(AND(AB15>0,AG15=1),"OK","Not OK")) -> OK | AN15: =SUM(AJ15:AM15) -> 0 | AO15: =IF(AND(I15=0,AN15=0),"OK",IF(AND(I15>0,AN15=1),"OK","Not OK")) -> OK | AQ15: ='Treatment volumes'!N27 -> 0 | AR15: =IF($AQ15>0,AJ15,0) -> 0 | AS15: =IF($AQ15>0,AK15,0) -> 0 | AT15: 0 | AU15: 0 | AV15: =SUM(AR15:AU15) -> 0 | AW15: =IF(AND(AQ15=0,AV15=0),"OK",IF(AND(AQ15>0,AV15=1),"OK","Not OK")) -> OK | BG15: Waste stabilisation ponds
B16: Plant 2 [insert name] | D16: 0 | I16: 0 | Y16: 0 | Z16: =IF(AND(C16=0,Y16=0),"OK",IF(AND(C16>0,Y16=1),"OK","Not OK")) -> OK | AB16: ='Treatment volumes'!K28 -> 0 | AC16: 0 | AD16: 0 | AE16: 0 | AF16: 0 | AG16: 0 | AH16: OK | AN16: 0 | AO16: OK | AQ16: ='Treatment volumes'!N28 -> 0 | AR16: 0 | AS16: 0 | AT16: 0 | AU16: 0 | AV16: =SUM(AP16:AU16) -> 0 | AW16: OK | BG16: Drying beds
B17: Plant 3 [insert name] | D17: 0 | I17: 0 | Y17: 0 | Z17: =IF(AND(C17=0,Y17=0),"OK",IF(AND(C17>0,Y17=1),"OK","Not OK")) -> OK | AB17: ='Treatment volumes'!K29 -> 0 | AC17: 0 | AD17: 0 | AE17: 0 | AF17: 0 | AG17: 0 | AH17: OK | AN17: 0 | AO17: OK | AQ17: ='Treatment volumes'!N29 -> 0 | AR17: 0 | AS17: 0 | AT17: 0 | AU17: 0 | AV17: =SUM(AP17:AU17) -> 0 | AW17: OK | BG17: Waste stabilisation ponds and drying beds
B18: Plant 4 [insert name] | D18: 0 | I18: 0 | Y18: 0 | Z18: =IF(AND(C18=0,Y18=0),"OK",IF(AND(C18>0,Y18=1),"OK","Not OK")) -> OK | AB18: ='Treatment volumes'!K30 -> 0 | AC18: 0 | AD18: 0 | AE18: 0 | AF18: 0 | AG18: 0 | AH18: OK | AN18: 0 | AO18: OK | AQ18: ='Treatment volumes'!N30 -> 0 | AR18: 0 | AS18: 0 | AT18: 0 | AU18: 0 | AV18: =SUM(AP18:AU18) -> 0 | AW18: OK | BG18: Trickling filters
B19: Plant 5 [insert name] | D19: 0 | I19: 0 | Y19: 0 | Z19: =IF(AND(C19=0,Y19=0),"OK",IF(AND(C19>0,Y19=1),"OK","Not OK")) -> OK | AB19: ='Treatment volumes'!K31 -> 0 | AC19: 0 | AD19: 0 | AE19: 0 | AF19: 0 | AG19: 0 | AH19: OK | AN19: 0 | AO19: OK | AQ19: ='Treatment volumes'!N31 -> 0 | AR19: 0 | AS19: 0 | AT19: 0 | AU19: 0 | AV19: =SUM(AP19:AU19) -> 0 | AW19: OK | BG19: Aeration tanks
B20: Plant 6 [insert name] | D20: 0 | I20: 0 | Y20: 0 | Z20: =IF(AND(C20=0,Y20=0),"OK",IF(AND(C20>0,Y20=1),"OK","Not OK")) -> OK | AB20: ='Treatment volumes'!K32 -> 0 | AC20: 0 | AD20: 0 | AE20: 0 | AF20: 0 | AG20: 0 | AH20: OK | AN20: 0 | AO20: OK | AQ20: ='Treatment volumes'!N32 -> 0 | AR20: 0 | AS20: 0 | AT20: 0 | AU20: 0 | AV20: =SUM(AP20:AU20) -> 0 | AW20: OK | BG20: Composting
B21: Totals | C21: =SUM(C15:C20) -> 1 | D21: =SUM(D15:D20) -> 5700 | BG21: Anaerobic digestion
B22: Total volume transported to treatment plants | D22: ='Transport volumes'!B116 -> 5700
B23: Difference | C23: =IF(D22>0,1-C21,0) -> 0 | D23: =D21-D22 -> 0
C24: =IF(C23=0,"OK","Not OK") -> OK | D24: =IF(D23=0,"OK","Not OK") -> OK
B27: Volumes of septage from sewers TREATED in treatment facility | K27: For inputs about disposal and reuse go to the right >> | U27: Volumes of septage from sewers DISPOSED | AJ27: Volumes of septage from sewers REUSED
U28: Total volumes to be DISPOSED (treated and untreated) | AB28: Volumes safely treated for DISPOSAL | AJ28: Total volumes to be REUSED (treated and untreated) | AQ28: Volumes safely treated for REUSE
B29: Treatment Plant | C29: Percentage of sludge and septage received per plant | D29: Total volumes of sludge and septage received in cubic metres per year | E29: Type(s) of treatment | G29: Plant Capacity per day | H29: Treatment purposes | J29: If D, is the effluent is treated to standard? | K29: If R, is the treated final product complying with reuse standards | M29: Additional information | U29: Proportion of disposal methods in % | AB29: Proportion of disposal methods in % | AJ29: Proportion of disposal methods in % | AQ29: Proportion of disposal methods in %
H30: Volume for disposal = D | I30: Volume for reuse = R | M30: Location | N30: How often are deliveries made? | O30: Are record logs kept? | P30: Distance of plant from city | Q30: Owner of plant | R30: Dumping or discharging cost to transporters | S30: Description of the plant and any distinguishing features | U30: In water bodies | V30: To landfill | W30: Left in facility | X30: Others | Y30: Totals (Row totals must add up to 100%) | Z30: Check | AB30: Volumes safely treated for disposal | AC30: In water bodies | AD30: To landfill | AE30: Left in facility | AF30: Other | AG30: Totals | AH30: Check | AJ30: Soil conditioner | AK30: Fertiliser | AL30: Biofuel | AM30: Others | AN30: Totals (Row totals must add up to 100%) | AO30: Check | AQ30: Volumes safely treated for disposal | AR30: Soil conditioner | AS30: Fertiliser | AT30: Biofuel | AU30: Other | AV30: Totals | AW30: Check
B32: Plant 1 [insert name] | D32: =C32*$D$43 -> 0 | I32: =D32-H32 -> 0 | Y32: =SUM(U32:X32) -> 0 | Z32: =IF(AND(H32=0,Y32=0),"OK",IF(AND(H32>0,Y32=1),"OK","Not OK")) -> OK | AB32: ='Treatment volumes'!K45 -> 0 | AC32: =IF($AB32>0,U32,0) -> 0 | AD32: =IF($AB32>0,V32,0) -> 0 | AE32: =IF($AB32>0,W32,0) -> 0 | AF32: =IF($AB32>0,X32,0) -> 0 | AG32: =SUM(AC32:AF32) -> 0 | AH32: =IF(AND(AB32=0,AG32=0),"OK",IF(AND(AB32>0,AG32=1),"OK","Not OK")) -> OK | AN32: =SUM(AJ32:AM32) -> 0 | AO32: =IF(AND(I32=0,AN32=0),"OK",IF(AND(I32>0,AN32=1),"OK","Not OK")) -> OK | AQ32: ='Treatment volumes'!N45 -> 0 | AR32: =IF($AQ32>0,AJ32,0) -> 0 | AS32: =IF($AQ32>0,AK32,0) -> 0 | AT32: =IF($AQ32>0,AL32,0) -> 0 | AU32: =IF($AQ32>0,AM32,0) -> 0 | AV32: =SUM(AR32:AU32) -> 0 | AW32: =IF(AND(AQ32=0,AV32=0),"OK",IF(AND(AQ32>0,AV32=1),"OK","Not OK")) -> OK
B33: Plant 2 [insert name] | D33: =C33*$D$43 -> 0 | I33: 0 | Y33: =SUM(U33:X33) -> 0 | Z33: =IF(AND(H33=0,Y33=0),"OK",IF(AND(H33>0,Y33=1),"OK","Not OK")) -> OK | AB33: ='Treatment volumes'!K46 -> 0 | AC33: 0 | AD33: 0 | AE33: 0 | AF33: 0 | AG33: =SUM(AC33:AF33) -> 0 | AH33: =IF(AND(AB33=0,AG33=0),"OK",IF(AND(AB33>0,AG33=1),"OK","Not OK")) -> OK | AN33: =SUM(AJ33:AM33) -> 0 | AO33: =IF(AND(I33=0,AN33=0),"OK",IF(AND(I33>0,AN33=1),"OK","Not OK")) -> OK | AQ33: ='Treatment volumes'!N46 -> 0 | AR33: 0 | AS33: 0 | AT33: 0 | AU33: 0 | AV33: =SUM(AR33:AU33) -> 0 | AW33: =IF(AND(AQ33=0,AV33=0),"OK",IF(AND(AQ33>0,AV33=1),"OK","Not OK")) -> OK
B34: Plant 3 [insert name] | D34: 0 | I34: 0 | Y34: 0 | Z34: OK | AB34: ='Treatment volumes'!K47 -> 0 | AC34: 0 | AD34: 0 | AE34: 0 | AF34: 0 | AG34: 0 | AH34: OK | AN34: 0 | AO34: OK | AQ34: ='Treatment volumes'!N47 -> 0 | AR34: 0 | AS34: 0 | AT34: 0 | AU34: 0 | AV34: 0 | AW34: OK
B35: Plant 4 [insert name] | D35: 0 | I35: 0 | Y35: 0 | Z35: OK | AB35: ='Treatment volumes'!K48 -> 0 | AC35: 0 | AD35: 0 | AE35: 0 | AF35: 0 | AG35: 0 | AH35: OK | AN35: 0 | AO35: OK | AQ35: ='Treatment volumes'!N48 -> 0 | AR35: 0 | AS35: 0 | AT35: 0 | AU35: 0 | AV35: 0 | AW35: OK
B36: Plant 5 [insert name] | D36: 0 | I36: 0 | Y36: 0 | Z36: OK | AB36: ='Treatment volumes'!K49 -> 0 | AC36: 0 | AD36: 0 | AE36: 0 | AF36: 0 | AG36: 0 | AH36: OK | AN36: 0 | AO36: OK | AQ36: ='Treatment volumes'!N49 -> 0 | AR36: 0 | AS36: 0 | AT36: 0 | AU36: 0 | AV36: 0 | AW36: OK
B37: Plant 6 [insert name] | D37: 0 | I37: 0 | Y37: 0 | Z37: OK | AB37: ='Treatment volumes'!K50 -> 0 | AC37: 0 | AD37: 0 | AE37: 0 | AF37: 0 | AG37: 0 | AH37: OK | AN37: 0 | AO37: OK | AQ37: ='Treatment volumes'!N50 -> 0 | AR37: 0 | AS37: 0 | AT37: 0 | AU37: 0 | AV37: 0 | AW37: OK
B38: Plant 7 [insert name] | D38: 0 | I38: 0 | Y38: 0 | Z38: OK | AB38: ='Treatment volumes'!K51 -> 0 | AC38: 0 | AD38: 0 | AE38: 0 | AF38: 0 | AG38: 0 | AH38: OK | AN38: 0 | AO38: OK | AQ38: ='Treatment volumes'!N51 -> 0 | AR38: 0 | AS38: 0 | AT38: 0 | AU38: 0 | AV38: 0 | AW38: OK
B39: Plant 8 [insert name] | D39: 0 | I39: 0 | Y39: 0 | Z39: OK | AB39: ='Treatment volumes'!K52 -> 0 | AC39: 0 | AD39: 0 | AE39: 0 | AF39: 0 | AG39: 0 | AH39: OK | AN39: 0 | AO39: OK | AQ39: ='Treatment volumes'!N52 -> 0 | AR39: 0 | AS39: 0 | AT39: 0 | AU39: 0 | AV39: 0 | AW39: OK
B40: Plant 9 [insert name] | D40: 0 | I40: 0 | Y40: 0 | Z40: OK | AB40: ='Treatment volumes'!K53 -> 0 | AC40: 0 | AD40: 0 | AE40: 0 | AF40: 0 | AG40: 0 | AH40: OK | AN40: 0 | AO40: OK | AQ40: ='Treatment volumes'!N53 -> 0 | AR40: 0 | AS40: 0 | AT40: 0 | AU40: 0 | AV40: 0 | AW40: OK
B41: Plant 10 [insert name] | D41: 0 | I41: 0 | Y41: 0 | Z41: OK | AB41: ='Treatment volumes'!K54 -> 0 | AC41: 0 | AD41: 0 | AE41: 0 | AF41: 0 | AG41: 0 | AH41: OK | AN41: 0 | AO41: OK | AQ41: ='Treatment volumes'!N54 -> 0 | AR41: 0 | AS41: 0 | AT41: 0 | AU41: 0 | AV41: 0 | AW41: OK
B42: Totals | C42: =SUM(C32:C41) -> 0 | D42: =SUM(D32:D41) -> 0 | G42: =SUM(G32:G41) -> 0
B43: Total volume of sewerage safely passed on to treatment plants | D43: ='Transport volumes'!B119 -> 0 | G43: =G42*365 -> 0 | H43: =IF(C43=0,0,G43/C43) -> 0
B44: Difference | C44: =IF(D43>0,1-C42,0) -> 0 | D44: =D42-D43 -> 0 | G44: =G43*0.7 -> 0
C45: =IF(C44=0,"OK","Not OK") -> OK | D45: =IF(D44=0,"OK","Not OK") -> OK | G45: =(F45/1000)*365 -> 0
B48: Volumes of septage from communal septic tanks TREATED | K48: For inputs about disposal and reuse go to the right >> | U48: Volumes of septage from communal septic tanks DISPOSED | AJ48: Volumes of septage from communal septic tanks REUSED
U49: Total volumes to be DISPOSED (treated and untreated) | AB49: Volumes safely treated for DISPOSAL | AJ49: Total volumes to be REUSED (treated and untreated) | AQ49: Volumes safely treated for REUSE
B50: Communal septic tank or DEWATS location | C50: Percentage of sludge and septage received per plant | D50: Total volumes of sludge and septage received in cubic metres per year | E50: Type(s) of treatment | G50: Plant Capacity | H50: Treatment purposes | J50: If D, is the effluent is treated to standard? | K50: If R, is the treated final product complying with reuse standards | U50: Proportion of disposal methods in % | AB50: Proportion of disposal methods in % | AJ50: Proportion of disposal methods in % | AQ50: Proportion of disposal methods in %
H51: Volume for disposal = D | I51: Volume for reuse = R | U51: In water bodies | V51: To landfill | W51: Left in facility | X51: Others | Y51: Totals (Row totals must add up to 100%) | Z51: Check | AB51: Volumes safely treated for disposal | AC51: In water bodies | AD51: To landfill | AE51: Left in facility | AF51: Other | AG51: Totals | AH51: Check | AJ51: Soil conditioner | AK51: Fertiliser | AL51: Biofuel | AM51: Others | AN51: Totals (Row totals must add up to 100%) | AO51: Check | AQ51: Volumes safely treated for disposal | AR51: Soil conditioner | AS51: Fertiliser | AT51: Biofuel | AU51: Other | AV51: Totals | AW51: Check
B53: Location 1 [insert name] | D53: =C53*$D$60 -> 0 | I53: =D53-H53 -> 0 | Y53: =SUM(U53:X53) -> 0 | Z53: =IF(AND(H53=0,Y53=0),"OK",IF(AND(H53>0,Y53=1),"OK","Not OK")) -> OK | AB53: ='Treatment volumes'!K67 -> 0 | AC53: =IF($AB53>0,U53,0) -> 0 | AD53: =IF($AB53>0,V53,0) -> 0 | AE53: =IF($AB53>0,W53,0) -> 0 | AF53: =IF($AB53>0,X53,0) -> 0 | AG53: =SUM(AC53:AF53) -> 0 | AH53: =IF(AND(AB53=0,AG53=0),"OK",IF(AND(AB53>0,AG53=1),"OK","Not OK")) -> OK | AN53: =SUM(AJ53:AM53) -> 0 | AO53: =IF(AND(I53=0,AN53=0),"OK",IF(AND(I53>0,AN53=1),"OK","Not OK")) -> OK | AQ53: ='Treatment volumes'!N67 -> 0 | AR53: =IF($AQ53>0,AJ53,0) -> 0 | AS53: =IF($AQ53>0,AK53,0) -> 0 | AT53: =IF($AQ53>0,AL53,0) -> 0 | AU53: =IF($AQ53>0,AM53,0) -> 0 | AV53: =SUM(AR53:AU53) -> 0 | AW53: =IF(AND(AQ53=0,AV53=0),"OK",IF(AND(AQ53>0,AV53=1),"OK","Not OK")) -> OK
B54: Location 2 [insert name] | D54: 0 | I54: 0 | Y54: 0 | Z54: =IF(AND(C54=0,Y54=0),"OK",IF(AND(C54>0,Y54=1),"OK","Not OK")) -> OK | AB54: ='Treatment volumes'!K68 -> 0 | AC54: 0 | AD54: 0 | AE54: 0 | AF54: 0 | AG54: 0 | AH54: OK | AN54: 0 | AO54: OK | AQ54: ='Treatment volumes'!N68 -> 0 | AR54: 0 | AS54: 0 | AT54: 0 | AU54: 0 | AV54: =SUM(AP54:AU54) -> 0 | AW54: OK
B55: Location 3 [insert name] | D55: 0 | I55: 0 | Y55: 0 | Z55: =IF(AND(C55=0,Y55=0),"OK",IF(AND(C55>0,Y55=1),"OK","Not OK")) -> OK | AB55: ='Treatment volumes'!K69 -> 0 | AC55: 0 | AD55: 0 | AE55: 0 | AF55: 0 | AG55: 0 | AH55: OK | AN55: 0 | AO55: OK | AQ55: ='Treatment volumes'!N69 -> 0 | AR55: 0 | AS55: 0 | AT55: 0 | AU55: 0 | AV55: =SUM(AP55:AU55) -> 0 | AW55: OK
B56: Location 4 [insert name] | D56: 0 | I56: 0 | Y56: 0 | Z56: =IF(AND(C56=0,Y56=0),"OK",IF(AND(C56>0,Y56=1),"OK","Not OK")) -> OK | AB56: ='Treatment volumes'!K70 -> 0 | AC56: 0 | AD56: 0 | AE56: 0 | AF56: 0 | AG56: 0 | AH56: OK | AN56: 0 | AO56: OK | AQ56: ='Treatment volumes'!N70 -> 0 | AR56: 0 | AS56: 0 | AT56: 0 | AU56: 0 | AV56: =SUM(AP56:AU56) -> 0 | AW56: OK
B57: Location 5 [insert name] | D57: 0 | I57: 0 | Y57: 0 | Z57: =IF(AND(C57=0,Y57=0),"OK",IF(AND(C57>0,Y57=1),"OK","Not OK")) -> OK | AB57: ='Treatment volumes'!K71 -> 0 | AC57: 0 | AD57: 0 | AE57: 0 | AF57: 0 | AG57: 0 | AH57: OK | AN57: 0 | AO57: OK | AQ57: ='Treatment volumes'!N71 -> 0 | AR57: 0 | AS57: 0 | AT57: 0 | AU57: 0 | AV57: =SUM(AP57:AU57) -> 0 | AW57: OK
B58: Location 6 [insert name] | D58: 0 | I58: 0 | Y58: 0 | Z58: =IF(AND(C58=0,Y58=0),"OK",IF(AND(C58>0,Y58=1),"OK","Not OK")) -> OK | AB58: ='Treatment volumes'!K72 -> 0 | AC58: 0 | AD58: 0 | AE58: 0 | AF58: 0 | AG58: 0 | AH58: OK | AN58: 0 | AO58: OK | AQ58: ='Treatment volumes'!N72 -> 0 | AR58: 0 | AS58: 0 | AT58: 0 | AU58: 0 | AV58: =SUM(AP58:AU58) -> 0 | AW58: OK
B59: Totals | C59: =SUM(C53:C58) -> 0 | D59: =SUM(D49:D58) -> 0
B60: Total volume of sewerage safely passed on to treatment plants | D60: ='Transport volumes'!B136 -> 0
B61: Difference | C61: =IF(D60>0,1-C59,0) -> 0 | D61: =D59-D60 -> 0
C62: =IF(C61=0,"OK","Not OK") -> OK | D62: =IF(D61=0,"OK","Not OK") -> OK
B65: Volumes of septage from onsite septic tanks TREATED | K65: For inputs about disposal and reuse go to the right >> | U65: Volumes of septage from onsite septic tanks DISPOSED | AJ65: Volumes of septage from onsite septic tanks REUSED
U66: Total volumes to be DISPOSED (treated and untreated) | AB66: Volumes safely treated for DISPOSAL | AJ66: Total volumes to be REUSED (treated and untreated) | AQ66: Volumes safely treated for REUSE
B67: Types on onsite treatment options | C67: Percentage of sludge and septage received per plant | D67: Total volumes of sludge and septage received in cubic metres per year | E67: Type(s) of treatment | G67: Capacity | H67: Treatment purposes | J67: If D, is the effluent is treated to standard? | K67: If R, is the treated final product complying with reuse standards | U67: Proportion of disposal methods in % | AB67: Proportion of disposal methods in % | AJ67: Proportion of disposal methods in % | AQ67: Proportion of disposal methods in %
H68: Volume for disposal = D | I68: Volume for reuse = R | U68: In water bodies | V68: To landfill | W68: Left in facility | X68: Others | Y68: Totals (Row totals must add up to 100%) | Z68: Check | AB68: Volumes safely treated for disposal | AC68: In water bodies | AD68: To landfill | AE68: Left in facility | AF68: Other | AG68: Totals | AH68: Check | AJ68: Soil conditioner | AK68: Fertiliser | AL68: Biofuel | AM68: Others | AN68: Totals (Row totals must add up to 100%) | AO68: Check | AQ68: Volumes safely treated for disposal | AR68: Soil conditioner | AS68: Fertiliser | AT68: Biofuel | AU68: Other | AV68: Totals | AW68: Check
BG69: Type of treatment plants
B70: Onsite septic tanks | Businesses / Hotels | C70: 0.3 | D70: =C70*$D$77 -> 410595 | H70: =D70 -> 410595 | I70: =D70-H70 -> 0 | J70: YES | U70: 1 | Y70: =SUM(U70:X70) -> 1 | Z70: =IF(AND(H70=0,Y70=0),"OK",IF(AND(H70>0,Y70=1),"OK","Not OK")) -> OK | AB70: ='Treatment volumes'!K85 -> 410595 | AC70: =IF($AB70>0,U70,0) -> 1 | AD70: =IF($AB70>0,V70,0) -> 0 | AE70: 0 | AF70: 0 | AG70: =SUM(AC70:AF70) -> 1 | AH70: =IF(AND(AB70=0,AG70=0),"OK",IF(AND(AB70>0,AG70=1),"OK","Not OK")) -> OK | AN70: =SUM(AJ70:AM70) -> 0 | AO70: =IF(AND(I70=0,AN70=0),"OK",IF(AND(I70>0,AN70=1),"OK","Not OK")) -> OK | AQ70: ='Treatment volumes'!N85 -> 0 | AR70: =IF($AQ70>0,AJ70,0) -> 0 | AS70: =IF($AQ70>0,AK70,0) -> 0 | AT70: =IF($AQ70>0,AL70,0) -> 0 | AU70: =IF($AQ70>0,AM70,0) -> 0 | AV70: =SUM(AR70:AU70) -> 0 | AW70: =IF(AND(AQ70=0,AV70=0),"OK",IF(AND(AQ70>0,AV70=1),"OK","Not OK")) -> OK | BG70: Primary treatment in septic tank
B71: Onsite septic tanks | Businesses / Hotels | C71: 0.3 | D71: 410595 | H71: =D71 -> 410595 | I71: 0 | J71: NO | U71: 1 | Y71: 1 | Z71: =IF(AND(C71=0,Y71=0),"OK",IF(AND(C71>0,Y71=1),"OK","Not OK")) -> OK | AB71: ='Treatment volumes'!K86 -> 0 | AC71: 0 | AD71: 0 | AE71: 0 | AF71: 0 | AG71: 0 | AH71: OK | AN71: 0 | AO71: OK | AQ71: ='Treatment volumes'!N86 -> 0 | AR71: 0 | AS71: 0 | AT71: 0 | AU71: 0 | AV71: =SUM(AP71:AU71) -> 0 | AW71: OK | BG71: Primary treatment plus secondary treatment
B72: Onsite septic tanks | Individual | C72: 0.2 | D72: 273730 | H72: 273730 | I72: 0 | J72: YES | U72: 1 | Y72: 1 | Z72: =IF(AND(C72=0,Y72=0),"OK",IF(AND(C72>0,Y72=1),"OK","Not OK")) -> OK | AB72: ='Treatment volumes'!K87 -> 273730 | AC72: 1 | AD72: 0 | AE72: 0 | AF72: 0 | AG72: 1 | AH72: OK | AN72: 0 | AO72: OK | AQ72: ='Treatment volumes'!N87 -> 0 | AR72: 0 | AS72: 0 | AT72: 0 | AU72: 0 | AV72: =SUM(AP72:AU72) -> 0 | AW72: OK | BG72: No treatment taking place (septage passing through)
B73: Onsite septic tanks | Individual | C73: 0.2 | D73: 273730 | H73: 273730 | I73: 0 | J73: NO | U73: 1 | Y73: 1 | Z73: =IF(AND(C73=0,Y73=0),"OK",IF(AND(C73>0,Y73=1),"OK","Not OK")) -> OK | AB73: ='Treatment volumes'!K88 -> 0 | AC73: 0 | AD73: 0 | AE73: 0 | AF73: 0 | AG73: 0 | AH73: OK | AN73: 0 | AO73: OK | AQ73: ='Treatment volumes'!N88 -> 0 | AR73: 0 | AS73: 0 | AT73: 0 | AU73: 0 | AV73: =SUM(AP73:AU73) -> 0 | AW73: OK
D74: 0 | I74: 0 | Y74: 0 | Z74: =IF(AND(C74=0,Y74=0),"OK",IF(AND(C74>0,Y74=1),"OK","Not OK")) -> OK | AB74: ='Treatment volumes'!K89 -> 0 | AC74: 0 | AD74: 0 | AE74: 0 | AF74: 0 | AG74: 0 | AH74: OK | AN74: 0 | AO74: OK | AQ74: ='Treatment volumes'!N89 -> 0 | AR74: 0 | AS74: 0 | AT74: 0 | AU74: 0 | AV74: =SUM(AP74:AU74) -> 0 | AW74: OK
D75: 0 | I75: 0 | Y75: 0 | Z75: =IF(AND(C75=0,Y75=0),"OK",IF(AND(C75>0,Y75=1),"OK","Not OK")) -> OK | AB75: ='Treatment volumes'!K90 -> 0 | AC75: 0 | AD75: 0 | AE75: 0 | AF75: 0 | AG75: 0 | AH75: OK | AN75: 0 | AO75: OK | AQ75: ='Treatment volumes'!N90 -> 0 | AR75: 0 | AS75: 0 | AT75: 0 | AU75: 0 | AV75: =SUM(AP75:AU75) -> 0 | AW75: OK
B76: Totals | C76: =SUM(C70:C75) -> 1 | D76: =SUM(D70:D75) -> 1368650
B77: Total volume of septage from onsite septic tanks safely passed on | D77: ='Transport volumes'!B121 -> 1368650
B78: Difference | C78: =IF(D77>0,1-C76,0) -> 0 | D78: =D76-D77 -> 0
C79: =IF(C78=0,"OK","Not OK") -> OK | D79: =IF(D78=0,"OK","Not OK") -> OK

Sheet Interface_Treatment Sludge
B1: =Overview_SLUDGE!#REF! -> 
B2: ='User interface_RES'!AJ11 -> Just a city in a victious place, Southeast Asia
B4: TREATMENT, DISPOSAL and REUSE questions
B7: For accurate input into this tool it is important that each treatment plant is kept separate and distinct. To this end, a key has been created so that mistakes will be less likely.
B8: Please input the treatment plants into the table below, along with any distinguishing features so that the plants cannot be confused. In the rest of the inputs, the plants will be listed in the same order, so please ensure that data is entered under the correct plant.
B10: Volumes of faecal sludge from onsite sanitation facilities TREATED in treatment facility | J10: For inputs about disposal and resue go to column T >> | T10: Volumes of faecal sludge from onsite sanitation facilities DISPOSED | AI10: Volumes of faecal sludge from onsite sanitation facilities REUSED
T11: Total volumes to be DISPOSED (treated and untreated) | AA11: Volumes safely treated for DISPOSAL | AI11: Total volumes to be REUSED (treated and untreated) | AP11: Volumes safely treated for REUSE
B12: Treatment Plant | C12: Total volumes of sludge and septage received in cubic metres | D12: Type(s) of treatment | F12: Plant Capacity | G12: Treatment purposes | I12: If D, is the effluent is treated to standard? | J12: If R, is the treated final product complying with reuse standards | L12: Additional information | T12: Proportion of disposal methods in % | AA12: Proportion of disposal methods in % | AI12: Proportion of disposal methods in % | AP12: Proportion of disposal methods in %
G13: Volume for disposal = D | H13: Volume for reuse = R | L13: Location | M13: How often are deliveries made? | N13: Are record logs kept? | O13: Distance of plant from city in KM | P13: Owner of plant | Q13: Dumping or discharging cost to transporters | R13: Description of the plant and any distinguishing features | T13: In water bodies | U13: To landfill | V13: Left in facility | W13: Others | X13: Totals | Y13: Check | AA13: Volumes safely treated for disposal | AB13: In water bodies | AC13: To landfill | AD13: Left in facility | AE13: Other | AF13: Totals | AG13: Check | AI13: Soil conditioner | AJ13: Fertiliser | AK13: Biofuel | AL13: Others | AM13: Totals | AN13: Check | AP13: Volumes safely treated for disposal | AQ13: Soil conditioner | AR13: Fertiliser | AS13: Biofuel | AT13: Other | AU13: Totals | AV13: Check
BF14: Type of treatment plants
B15: =Interface_Treatment!B15 -> Plant 1 [Owned by PDPWT] | C15: =IF($C$22=0,0,Interface_Treatment!C15*'Interface_Treatment Sludge'!$C$22) -> 5700 | D15: =Interface_Treatment!E15 -> Waste stabilisation ponds | F15: =Interface_Treatment!G15 -> 0 | G15: =IF(Interface_Treatment!D15=0,0,(Interface_Treatment!H15/Interface_Treatment!D15)*'Interface_Treatment Sludge'!C15) -> 5700 | H15: =C15-G15 -> 0 | I15: =Interface_Treatment!J15 -> YES | J15: =Interface_Treatment!K15 -> 0 | T15: =Interface_Treatment!U15 -> 0 | U15: =Interface_Treatment!V15 -> 0 | V15: =Interface_Treatment!W15 -> 1 | W15: =Interface_Treatment!X15 -> 0 | X15: =SUM(T15:W15) -> 1 | Y15: =IF(AND(G15=0,X15=0),"OK",IF(AND(G15>0,X15=1),"OK","Not OK")) -> OK | AA15: ='FS_Treatment volumes'!K27 -> 5700 | AB15: =Interface_Treatment!AC15 -> 0 | AC15: =Interface_Treatment!AD15 -> 0 | AD15: =Interface_Treatment!AE15 -> 1 | AE15: =Interface_Treatment!AF15 -> 0 | AF15: =SUM(AB15:AE15) -> 1 | AG15: =IF(AND(AA15=0,AF15=0),"OK",IF(AND(AA15>0,AF15=1),"OK","Not OK")) -> OK | AI15: =Interface_Treatment!AJ15 -> 0 | AJ15: =Interface_Treatment!AK15 -> 0 | AK15: =Interface_Treatment!AL15 -> 0 | AL15: =Interface_Treatment!AM15 -> 0 | AM15: =SUM(AI15:AL15) -> 0 | AN15: =IF(AND(H15=0,AM15=0),"OK",IF(AND(H15>0,AM15=1),"OK","Not OK")) -> OK | AP15: ='FS_Treatment volumes'!N27 -> 0 | AQ15: =Interface_Treatment!AR15 -> 0 | AR15: =Interface_Treatment!AS15 -> 0 | AS15: =Interface_Treatment!AT15 -> 0 | AT15: =Interface_Treatment!AU15 -> 0 | AU15: =SUM(AQ15:AT15) -> 0 | AV15: =IF(AND(AP15=0,AU15=0),"OK",IF(AND(AP15>0,AU15=1),"OK","Not OK")) -> OK | BF15: Waste stabilisation ponds
B16: =Interface_Treatment!B16 -> Plant 2 [insert name] | C16: =IF($C$22=0,0,Interface_Treatment!C16*'Interface_Treatment Sludge'!$C$22) -> 0 | D16: =Interface_Treatment!E16 -> 0 | F16: =Interface_Treatment!G16 -> 0 | G16: =IF(Interface_Treatment!D16=0,0,(Interface_Treatment!H16/Interface_Treatment!D16)*'Interface_Treatment Sludge'!C16) -> 0 | H16: 0 | I16: =Interface_Treatment!J16 -> 0 | J16: =Interface_Treatment!K16 -> 0 | T16: =Interface_Treatment!U16 -> 0 | U16: =Interface_Treatment!V16 -> 0 | V16: =Interface_Treatment!W16 -> 0 | W16: =Interface_Treatment!X16 -> 0 | X16: 0 | Y16: =IF(AND(C16=0,X16=0),"OK",IF(AND(C16>0,X16=1),"OK","Not OK")) -> OK | AA16: ='FS_Treatment volumes'!K28 -> 0 | AB16: =Interface_Treatment!AC16 -> 0 | AC16: =Interface_Treatment!AD16 -> 0 | AD16: =Interface_Treatment!AE16 -> 0 | AE16: =Interface_Treatment!AF16 -> 0 | AF16: 0 | AG16: OK | AI16: =Interface_Treatment!AJ16 -> 0 | AJ16: =Interface_Treatment!AK16 -> 0 | AK16: =Interface_Treatment!AL16 -> 0 | AL16: =Interface_Treatment!AM16 -> 0 | AM16: 0 | AN16: OK | AP16: ='FS_Treatment volumes'!N28 -> 0 | AQ16: =Interface_Treatment!AR16 -> 0 | AR16: =Interface_Treatment!AS16 -> 0 | AS16: =Interface_Treatment!AT16 -> 0 | AT16: =Interface_Treatment!AU16 -> 0 | AU16: =SUM(AO16:AT16) -> 0 | AV16: OK | BF16: Drying beds
B17: =Interface_Treatment!B17 -> Plant 3 [insert name] | C17: =IF($C$22=0,0,Interface_Treatment!C17*'Interface_Treatment Sludge'!$C$22) -> 0 | D17: =Interface_Treatment!E17 -> 0 | F17: =Interface_Treatment!G17 -> 0 | G17: =IF(Interface_Treatment!D17=0,0,(Interface_Treatment!H17/Interface_Treatment!D17)*'Interface_Treatment Sludge'!C17) -> 0 | H17: 0 | I17: =Interface_Treatment!J17 -> 0 | J17: =Interface_Treatment!K17 -> 0 | T17: =Interface_Treatment!U17 -> 0 | U17: =Interface_Treatment!V17 -> 0 | V17: =Interface_Treatment!W17 -> 0 | W17: =Interface_Treatment!X17 -> 0 | X17: 0 | Y17: =IF(AND(C17=0,X17=0),"OK",IF(AND(C17>0,X17=1),"OK","Not OK")) -> OK | AA17: ='FS_Treatment volumes'!K29 -> 0 | AB17: =Interface_Treatment!AC17 -> 0 | AC17: =Interface_Treatment!AD17 -> 0 | AD17: =Interface_Treatment!AE17 -> 0 | AE17: =Interface_Treatment!AF17 -> 0 | AF17: 0 | AG17: OK | AI17: =Interface_Treatment!AJ17 -> 0 | AJ17: =Interface_Treatment!AK17 -> 0 | AK17: =Interface_Treatment!AL17 -> 0 | AL17: =Interface_Treatment!AM17 -> 0 | AM17: 0 | AN17: OK | AP17: ='FS_Treatment volumes'!N29 -> 0 | AQ17: =Interface_Treatment!AR17 -> 0 | AR17: =Interface_Treatment!AS17 -> 0 | AS17: =Interface_Treatment!AT17 -> 0 | AT17: =Interface_Treatment!AU17 -> 0 | AU17: =SUM(AO17:AT17) -> 0 | AV17: OK | BF17: Waste stabilisation ponds and drying beds
B18: =Interface_Treatment!B18 -> Plant 4 [insert name] | C18: =IF($C$22=0,0,Interface_Treatment!C18*'Interface_Treatment Sludge'!$C$22) -> 0 | D18: =Interface_Treatment!E18 -> 0 | F18: =Interface_Treatment!G18 -> 0 | G18: =IF(Interface_Treatment!D18=0,0,(Interface_Treatment!H18/Interface_Treatment!D18)*'Interface_Treatment Sludge'!C18) -> 0 | H18: 0 | I18: =Interface_Treatment!J18 -> 0 | J18: =Interface_Treatment!K18 -> 0 | T18: =Interface_Treatment!U18 -> 0 | U18: =Interface_Treatment!V18 -> 0 | V18: =Interface_Treatment!W18 -> 0 | W18: =Interface_Treatment!X18 -> 0 | X18: 0 | Y18: =IF(AND(C18=0,X18=0),"OK",IF(AND(C18>0,X18=1),"OK","Not OK")) -> OK | AA18: ='FS_Treatment volumes'!K30 -> 0 | AB18: =Interface_Treatment!AC18 -> 0 | AC18: =Interface_Treatment!AD18 -> 0 | AD18: =Interface_Treatment!AE18 -> 0 | AE18: =Interface_Treatment!AF18 -> 0 | AF18: 0 | AG18: OK | AI18: =Interface_Treatment!AJ18 -> 0 | AJ18: =Interface_Treatment!AK18 -> 0 | AK18: =Interface_Treatment!AL18 -> 0 | AL18: =Interface_Treatment!AM18 -> 0 | AM18: 0 | AN18: OK | AP18: ='FS_Treatment volumes'!N30 -> 0 | AQ18: =Interface_Treatment!AR18 -> 0 | AR18: =Interface_Treatment!AS18 -> 0 | AS18: =Interface_Treatment!AT18 -> 0 | AT18: =Interface_Treatment!AU18 -> 0 | AU18: =SUM(AO18:AT18) -> 0 | AV18: OK | BF18: Trickling filters
B19: =Interface_Treatment!B19 -> Plant 5 [insert name] | C19: =IF($C$22=0,0,Interface_Treatment!C19*'Interface_Treatment Sludge'!$C$22) -> 0 | D19: =Interface_Treatment!E19 -> 0 | F19: =Interface_Treatment!G19 -> 0 | G19: =IF(Interface_Treatment!D19=0,0,(Interface_Treatment!H19/Interface_Treatment!D19)*'Interface_Treatment Sludge'!C19) -> 0 | H19: 0 | I19: =Interface_Treatment!J19 -> 0 | J19: =Interface_Treatment!K19 -> 0 | T19: =Interface_Treatment!U19 -> 0 | U19: =Interface_Treatment!V19 -> 0 | V19: =Interface_Treatment!W19 -> 0 | W19: =Interface_Treatment!X19 -> 0 | X19: 0 | Y19: =IF(AND(C19=0,X19=0),"OK",IF(AND(C19>0,X19=1),"OK","Not OK")) -> OK | AA19: ='FS_Treatment volumes'!K31 -> 0 | AB19: =Interface_Treatment!AC19 -> 0 | AC19: =Interface_Treatment!AD19 -> 0 | AD19: =Interface_Treatment!AE19 -> 0 | AE19: =Interface_Treatment!AF19 -> 0 | AF19: 0 | AG19: OK | AI19: =Interface_Treatment!AJ19 -> 0 | AJ19: =Interface_Treatment!AK19 -> 0 | AK19: =Interface_Treatment!AL19 -> 0 | AL19: =Interface_Treatment!AM19 -> 0 | AM19: 0 | AN19: OK | AP19: ='FS_Treatment volumes'!N31 -> 0 | AQ19: =Interface_Treatment!AR19 -> 0 | AR19: =Interface_Treatment!AS19 -> 0 | AS19: =Interface_Treatment!AT19 -> 0 | AT19: =Interface_Treatment!AU19 -> 0 | AU19: =SUM(AO19:AT19) -> 0 | AV19: OK | BF19: Aeration tanks
B20: =Interface_Treatment!B20 -> Plant 6 [insert name] | C20: =IF($C$22=0,0,Interface_Treatment!C20*'Interface_Treatment Sludge'!$C$22) -> 0 | D20: =Interface_Treatment!E20 -> 0 | F20: =Interface_Treatment!G20 -> 0 | G20: =IF(Interface_Treatment!D20=0,0,(Interface_Treatment!H20/Interface_Treatment!D20)*'Interface_Treatment Sludge'!C20) -> 0 | H20: 0 | I20: =Interface_Treatment!J20 -> 0 | J20: =Interface_Treatment!K20 -> 0 | T20: =Interface_Treatment!U20 -> 0 | U20: =Interface_Treatment!V20 -> 0 | V20: =Interface_Treatment!W20 -> 0 | W20: =Interface_Treatment!X20 -> 0 | X20: 0 | Y20: =IF(AND(C20=0,X20=0),"OK",IF(AND(C20>0,X20=1),"OK","Not OK")) -> OK | AA20: ='FS_Treatment volumes'!K32 -> 0 | AB20: =Interface_Treatment!AC20 -> 0 | AC20: =Interface_Treatment!AD20 -> 0 | AD20: =Interface_Treatment!AE20 -> 0 | AE20: =Interface_Treatment!AF20 -> 0 | AF20: 0 | AG20: OK | AI20: =Interface_Treatment!AJ20 -> 0 | AJ20: =Interface_Treatment!AK20 -> 0 | AK20: =Interface_Treatment!AL20 -> 0 | AL20: =Interface_Treatment!AM20 -> 0 | AM20: 0 | AN20: OK | AP20: ='FS_Treatment volumes'!N32 -> 0 | AQ20: =Interface_Treatment!AR20 -> 0 | AR20: =Interface_Treatment!AS20 -> 0 | AS20: =Interface_Treatment!AT20 -> 0 | AT20: =Interface_Treatment!AU20 -> 0 | AU20: =SUM(AO20:AT20) -> 0 | AV20: OK | BF20: Composting
B21: Totals | C21: =SUM(C15:C20) -> 5700 | BF21: Anaerobic digestion
B22: Total volume transported to treatment plants | C22: ='Transport volumes'!B116 -> 5700
B23: Difference | C23: =C21-C22 -> 0
C24: =IF(C23=0,"OK","Not OK") -> OK
B27: Volumes of septage from sewers TREATED in treatment facility | J27: For inputs about disposal and resue go to column T >> | T27: Volumes of septage from sewers DISPOSED | AI27: Volumes of septage from sewers REUSED
T28: Total volumes to be DISPOSED (treated and untreated) | AA28: Volumes safely treated for DISPOSAL | AI28: Total volumes to be REUSED (treated and untreated) | AP28: Volumes safely treated for REUSE
B29: Treatment Plant | C29: Total volumes of sludge and septage received in cubic metres per year | D29: Type(s) of treatment | F29: Plant Capacity per day | G29: Treatment purposes | I29: If D, is the effluent is treated to standard? | J29: If R, is the treated final product complying with reuse standards | L29: Additional information | T29: Proportion of disposal methods in % | AA29: Proportion of disposal methods in % | AI29: Proportion of disposal methods in % | AP29: Proportion of disposal methods in %
G30: Volume for disposal = D | H30: Volume for reuse = R | L30: Location | M30: How often are deliveries made? | N30: Are record logs kept? | O30: Distance of plant from city | P30: Owner of plant | Q30: Dumping or discharging cost to transporters | R30: Description of the plant and any distinguishing features | T30: In water bodies | U30: To landfill | V30: Left in facility | W30: Others | X30: Totals | Y30: Check | AA30: Volumes safely treated for disposal | AB30: In water bodies | AC30: To landfill | AD30: Left in facility | AE30: Other | AF30: Totals | AG30: Check | AI30: Soil conditioner | AJ30: Fertiliser | AK30: Biofuel | AL30: Others | AM30: Totals | AN30: Check | AP30: Volumes safely treated for disposal | AQ30: Soil conditioner | AR30: Fertiliser | AS30: Biofuel | AT30: Other | AU30: Totals | AV30: Check
B32: =Interface_Treatment!B32 -> Plant 1 [insert name] | C32: =IF($C$43=0,0,Interface_Treatment!C32*'Interface_Treatment Sludge'!$C$43) -> 0 | D32: =Interface_Treatment!E32 -> 0 | F32: =Interface_Treatment!G32 -> 0 | G32: =IF(Interface_Treatment!D32=0,0,(Interface_Treatment!H32/Interface_Treatment!D32)*'Interface_Treatment Sludge'!C32) -> 0 | H32: =C32-G32 -> 0 | I32: =Interface_Treatment!J32 -> 0 | J32: =Interface_Treatment!K32 -> 0 | T32: =Interface_Treatment!U32 -> 0 | U32: =Interface_Treatment!V32 -> 0 | V32: =Interface_Treatment!W32 -> 0 | W32: =Interface_Treatment!X32 -> 0 | X32: =SUM(T32:W32) -> 0 | Y32: =IF(AND(G32=0,X32=0),"OK",IF(AND(G32>0,X32=1),"OK","Not OK")) -> OK | AA32: ='FS_Treatment volumes'!K45 -> 0 | AB32: =Interface_Treatment!AC32 -> 0 | AC32: =Interface_Treatment!AD32 -> 0 | AD32: =Interface_Treatment!AE32 -> 0 | AE32: =Interface_Treatment!AF32 -> 0 | AF32: =SUM(AB32:AE32) -> 0 | AG32: =IF(AND(AA32=0,AF32=0),"OK",IF(AND(AA32>0,AF32=1),"OK","Not OK")) -> OK | AI32: =Interface_Treatment!AJ32 -> 0 | AJ32: =Interface_Treatment!AK32 -> 0 | AK32: =Interface_Treatment!AL32 -> 0 | AL32: =Interface_Treatment!AM32 -> 0 | AM32: =SUM(AI32:AL32) -> 0 | AN32: =IF(AND(H32=0,AM32=0),"OK",IF(AND(H32>0,AM32=1),"OK","Not OK")) -> OK | AP32: ='FS_Treatment volumes'!N45 -> 0 | AQ32: =Interface_Treatment!AR32 -> 0 | AR32: =Interface_Treatment!AS32 -> 0 | AS32: =Interface_Treatment!AT32 -> 0 | AT32: =Interface_Treatment!AU32 -> 0 | AU32: =SUM(AQ32:AT32) -> 0 | AV32: =IF(AND(AP32=0,AU32=0),"OK",IF(AND(AP32>0,AU32=1),"OK","Not OK")) -> OK
B33: =Interface_Treatment!B33 -> Plant 2 [insert name] | C33: =IF($C$43=0,0,Interface_Treatment!C33*'Interface_Treatment Sludge'!$C$43) -> 0 | D33: =Interface_Treatment!E33 -> 0 | F33: =Interface_Treatment!G33 -> 0 | G33: =IF(Interface_Treatment!D33=0,0,(Interface_Treatment!H33/Interface_Treatment!D33)*'Interface_Treatment Sludge'!C33) -> 0 | H33: 0 | I33: =Interface_Treatment!J33 -> 0 | J33: =Interface_Treatment!K33 -> 0 | T33: =Interface_Treatment!U33 -> 0 | U33: =Interface_Treatment!V33 -> 0 | V33: =Interface_Treatment!W33 -> 0 | W33: =Interface_Treatment!X33 -> 0 | X33: =SUM(T33:W33) -> 0 | Y33: =IF(AND(G33=0,X33=0),"OK",IF(AND(G33>0,X33=1),"OK","Not OK")) -> OK | AA33: ='FS_Treatment volumes'!K46 -> 0 | AB33: =Interface_Treatment!AC33 -> 0 | AC33: =Interface_Treatment!AD33 -> 0 | AD33: =Interface_Treatment!AE33 -> 0 | AE33: =Interface_Treatment!AF33 -> 0 | AF33: =SUM(AB33:AE33) -> 0 | AG33: =IF(AND(AA33=0,AF33=0),"OK",IF(AND(AA33>0,AF33=1),"OK","Not OK")) -> OK | AI33: =Interface_Treatment!AJ33 -> 0 | AJ33: =Interface_Treatment!AK33 -> 0 | AK33: =Interface_Treatment!AL33 -> 0 | AL33: =Interface_Treatment!AM33 -> 0 | AM33: =SUM(AI33:AL33) -> 0 | AN33: OK | AP33: ='FS_Treatment volumes'!N46 -> 0 | AQ33: =Interface_Treatment!AR33 -> 0 | AR33: =Interface_Treatment!AS33 -> 0 | AS33: =Interface_Treatment!AT33 -> 0 | AT33: =Interface_Treatment!AU33 -> 0 | AU33: =SUM(AQ33:AT33) -> 0 | AV33: =IF(AND(AP33=0,AU33=0),"OK",IF(AND(AP33>0,AU33=1),"OK","Not OK")) -> OK
B34: =Interface_Treatment!B34 -> Plant 3 [insert name] | C34: =IF($C$43=0,0,Interface_Treatment!C34*'Interface_Treatment Sludge'!$C$43) -> 0 | D34: =Interface_Treatment!E34 -> 0 | F34: =Interface_Treatment!G34 -> 0 | G34: =IF(Interface_Treatment!D34=0,0,(Interface_Treatment!H34/Interface_Treatment!D34)*'Interface_Treatment Sludge'!C34) -> 0 | H34: 0 | I34: =Interface_Treatment!J34 -> 0 | J34: =Interface_Treatment!K34 -> 0 | T34: =Interface_Treatment!U34 -> 0 | U34: =Interface_Treatment!V34 -> 0 | V34: =Interface_Treatment!W34 -> 0 | W34: =Interface_Treatment!X34 -> 0 | X34: 0 | Y34: OK | AA34: ='FS_Treatment volumes'!K47 -> 0 | AB34: =Interface_Treatment!AC34 -> 0 | AC34: =Interface_Treatment!AD34 -> 0 | AD34: =Interface_Treatment!AE34 -> 0 | AE34: =Interface_Treatment!AF34 -> 0 | AF34: 0 | AG34: OK | AI34: =Interface_Treatment!AJ34 -> 0 | AJ34: =Interface_Treatment!AK34 -> 0 | AK34: =Interface_Treatment!AL34 -> 0 | AL34: =Interface_Treatment!AM34 -> 0 | AM34: 0 | AN34: OK | AP34: ='FS_Treatment volumes'!N47 -> 0 | AQ34: =Interface_Treatment!AR34 -> 0 | AR34: =Interface_Treatment!AS34 -> 0 | AS34: =Interface_Treatment!AT34 -> 0 | AT34: =Interface_Treatment!AU34 -> 0 | AU34: 0 | AV34: OK
B35: =Interface_Treatment!B35 -> Plant 4 [insert name] | C35: =IF($C$43=0,0,Interface_Treatment!C35*'Interface_Treatment Sludge'!$C$43) -> 0 | D35: =Interface_Treatment!E35 -> 0 | F35: =Interface_Treatment!G35 -> 0 | G35: =IF(Interface_Treatment!D35=0,0,(Interface_Treatment!H35/Interface_Treatment!D35)*'Interface_Treatment Sludge'!C35) -> 0 | H35: 0 | I35: =Interface_Treatment!J35 -> 0 | J35: =Interface_Treatment!K35 -> 0 | T35: =Interface_Treatment!U35 -> 0 | U35: =Interface_Treatment!V35 -> 0 | V35: =Interface_Treatment!W35 -> 0 | W35: =Interface_Treatment!X35 -> 0 | X35: 0 | Y35: OK | AA35: ='FS_Treatment volumes'!K48 -> 0 | AB35: =Interface_Treatment!AC35 -> 0 | AC35: =Interface_Treatment!AD35 -> 0 | AD35: =Interface_Treatment!AE35 -> 0 | AE35: =Interface_Treatment!AF35 -> 0 | AF35: 0 | AG35: OK | AI35: =Interface_Treatment!AJ35 -> 0 | AJ35: =Interface_Treatment!AK35 -> 0 | AK35: =Interface_Treatment!AL35 -> 0 | AL35: =Interface_Treatment!AM35 -> 0 | AM35: 0 | AN35: OK | AP35: ='FS_Treatment volumes'!N48 -> 0 | AQ35: =Interface_Treatment!AR35 -> 0 | AR35: =Interface_Treatment!AS35 -> 0 | AS35: =Interface_Treatment!AT35 -> 0 | AT35: =Interface_Treatment!AU35 -> 0 | AU35: 0 | AV35: OK
B36: =Interface_Treatment!B36 -> Plant 5 [insert name] | C36: =IF($C$43=0,0,Interface_Treatment!C36*'Interface_Treatment Sludge'!$C$43) -> 0 | D36: =Interface_Treatment!E36 -> 0 | F36: =Interface_Treatment!G36 -> 0 | G36: =IF(Interface_Treatment!D36=0,0,(Interface_Treatment!H36/Interface_Treatment!D36)*'Interface_Treatment Sludge'!C36) -> 0 | H36: 0 | I36: =Interface_Treatment!J36 -> 0 | J36: =Interface_Treatment!K36 -> 0 | T36: =Interface_Treatment!U36 -> 0 | U36: =Interface_Treatment!V36 -> 0 | V36: =Interface_Treatment!W36 -> 0 | W36: =Interface_Treatment!X36 -> 0 | X36: 0 | Y36: OK | AA36: ='FS_Treatment volumes'!K49 -> 0 | AB36: =Interface_Treatment!AC36 -> 0 | AC36: =Interface_Treatment!AD36 -> 0 | AD36: =Interface_Treatment!AE36 -> 0 | AE36: =Interface_Treatment!AF36 -> 0 | AF36: 0 | AG36: OK | AI36: =Interface_Treatment!AJ36 -> 0 | AJ36: =Interface_Treatment!AK36 -> 0 | AK36: =Interface_Treatment!AL36 -> 0 | AL36: =Interface_Treatment!AM36 -> 0 | AM36: 0 | AN36: OK | AP36: ='FS_Treatment volumes'!N49 -> 0 | AQ36: =Interface_Treatment!AR36 -> 0 | AR36: =Interface_Treatment!AS36 -> 0 | AS36: =Interface_Treatment!AT36 -> 0 | AT36: =Interface_Treatment!AU36 -> 0 | AU36: 0 | AV36: OK
B37: =Interface_Treatment!B37 -> Plant 6 [insert name] | C37: =IF($C$43=0,0,Interface_Treatment!C37*'Interface_Treatment Sludge'!$C$43) -> 0 | D37: =Interface_Treatment!E37 -> 0 | F37: =Interface_Treatment!G37 -> 0 | G37: =IF(Interface_Treatment!D37=0,0,(Interface_Treatment!H37/Interface_Treatment!D37)*'Interface_Treatment Sludge'!C37) -> 0 | H37: 0 | I37: =Interface_Treatment!J37 -> 0 | J37: =Interface_Treatment!K37 -> 0 | T37: =Interface_Treatment!U37 -> 0 | U37: =Interface_Treatment!V37 -> 0 | V37: =Interface_Treatment!W37 -> 0 | W37: =Interface_Treatment!X37 -> 0 | X37: 0 | Y37: OK | AA37: ='FS_Treatment volumes'!K50 -> 0 | AB37: =Interface_Treatment!AC37 -> 0 | AC37: =Interface_Treatment!AD37 -> 0 | AD37: =Interface_Treatment!AE37 -> 0 | AE37: =Interface_Treatment!AF37 -> 0 | AF37: 0 | AG37: OK | AI37: =Interface_Treatment!AJ37 -> 0 | AJ37: =Interface_Treatment!AK37 -> 0 | AK37: =Interface_Treatment!AL37 -> 0 | AL37: =Interface_Treatment!AM37 -> 0 | AM37: 0 | AN37: OK | AP37: ='FS_Treatment volumes'!N50 -> 0 | AQ37: =Interface_Treatment!AR37 -> 0 | AR37: =Interface_Treatment!AS37 -> 0 | AS37: =Interface_Treatment!AT37 -> 0 | AT37: =Interface_Treatment!AU37 -> 0 | AU37: 0 | AV37: OK
B38: =Interface_Treatment!B38 -> Plant 7 [insert name] | C38: =IF($C$43=0,0,Interface_Treatment!C38*'Interface_Treatment Sludge'!$C$43) -> 0 | D38: =Interface_Treatment!E38 -> 0 | F38: =Interface_Treatment!G38 -> 0 | G38: =IF(Interface_Treatment!D38=0,0,(Interface_Treatment!H38/Interface_Treatment!D38)*'Interface_Treatment Sludge'!C38) -> 0 | H38: 0 | I38: =Interface_Treatment!J38 -> 0 | J38: =Interface_Treatment!K38 -> 0 | T38: =Interface_Treatment!U38 -> 0 | U38: =Interface_Treatment!V38 -> 0 | V38: =Interface_Treatment!W38 -> 0 | W38: =Interface_Treatment!X38 -> 0 | X38: 0 | Y38: OK | AA38: ='FS_Treatment volumes'!K51 -> 0 | AB38: =Interface_Treatment!AC38 -> 0 | AC38: =Interface_Treatment!AD38 -> 0 | AD38: =Interface_Treatment!AE38 -> 0 | AE38: =Interface_Treatment!AF38 -> 0 | AF38: 0 | AG38: OK | AI38: =Interface_Treatment!AJ38 -> 0 | AJ38: =Interface_Treatment!AK38 -> 0 | AK38: =Interface_Treatment!AL38 -> 0 | AL38: =Interface_Treatment!AM38 -> 0 | AM38: 0 | AN38: OK | AP38: ='FS_Treatment volumes'!N51 -> 0 | AQ38: =Interface_Treatment!AR38 -> 0 | AR38: =Interface_Treatment!AS38 -> 0 | AS38: =Interface_Treatment!AT38 -> 0 | AT38: =Interface_Treatment!AU38 -> 0 | AU38: 0 | AV38: OK
B39: =Interface_Treatment!B39 -> Plant 8 [insert name] | C39: =IF($C$43=0,0,Interface_Treatment!C39*'Interface_Treatment Sludge'!$C$43) -> 0 | D39: =Interface_Treatment!E39 -> 0 | F39: =Interface_Treatment!G39 -> 0 | G39: =IF(Interface_Treatment!D39=0,0,(Interface_Treatment!H39/Interface_Treatment!D39)*'Interface_Treatment Sludge'!C39) -> 0 | H39: 0 | I39: =Interface_Treatment!J39 -> 0 | J39: =Interface_Treatment!K39 -> 0 | T39: =Interface_Treatment!U39 -> 0 | U39: =Interface_Treatment!V39 -> 0 | V39: =Interface_Treatment!W39 -> 0 | W39: =Interface_Treatment!X39 -> 0 | X39: 0 | Y39: OK | AA39: ='FS_Treatment volumes'!K52 -> 0 | AB39: =Interface_Treatment!AC39 -> 0 | AC39: =Interface_Treatment!AD39 -> 0 | AD39: =Interface_Treatment!AE39 -> 0 | AE39: =Interface_Treatment!AF39 -> 0 | AF39: 0 | AG39: OK | AI39: =Interface_Treatment!AJ39 -> 0 | AJ39: =Interface_Treatment!AK39 -> 0 | AK39: =Interface_Treatment!AL39 -> 0 | AL39: =Interface_Treatment!AM39 -> 0 | AM39: 0 | AN39: OK | AP39: ='FS_Treatment volumes'!N52 -> 0 | AQ39: =Interface_Treatment!AR39 -> 0 | AR39: =Interface_Treatment!AS39 -> 0 | AS39: =Interface_Treatment!AT39 -> 0 | AT39: =Interface_Treatment!AU39 -> 0 | AU39: 0 | AV39: OK
B40: =Interface_Treatment!B40 -> Plant 9 [insert name] | C40: =IF($C$43=0,0,Interface_Treatment!C40*'Interface_Treatment Sludge'!$C$43) -> 0 | D40: =Interface_Treatment!E40 -> 0 | F40: =Interface_Treatment!G40 -> 0 | G40: =IF(Interface_Treatment!D40=0,0,(Interface_Treatment!H40/Interface_Treatment!D40)*'Interface_Treatment Sludge'!C40) -> 0 | H40: 0 | I40: =Interface_Treatment!J40 -> 0 | J40: =Interface_Treatment!K40 -> 0 | T40: =Interface_Treatment!U40 -> 0 | U40: =Interface_Treatment!V40 -> 0 | V40: =Interface_Treatment!W40 -> 0 | W40: =Interface_Treatment!X40 -> 0 | X40: 0 | Y40: OK | AA40: ='FS_Treatment volumes'!K53 -> 0 | AB40: =Interface_Treatment!AC40 -> 0 | AC40: =Interface_Treatment!AD40 -> 0 | AD40: =Interface_Treatment!AE40 -> 0 | AE40: =Interface_Treatment!AF40 -> 0 | AF40: 0 | AG40: OK | AI40: =Interface_Treatment!AJ40 -> 0 | AJ40: =Interface_Treatment!AK40 -> 0 | AK40: =Interface_Treatment!AL40 -> 0 | AL40: =Interface_Treatment!AM40 -> 0 | AM40: 0 | AN40: OK | AP40: ='FS_Treatment volumes'!N53 -> 0 | AQ40: =Interface_Treatment!AR40 -> 0 | AR40: =Interface_Treatment!AS40 -> 0 | AS40: =Interface_Treatment!AT40 -> 0 | AT40: =Interface_Treatment!AU40 -> 0 | AU40: 0 | AV40: OK
B41: =Interface_Treatment!B41 -> Plant 10 [insert name] | C41: =IF($C$43=0,0,Interface_Treatment!C41*'Interface_Treatment Sludge'!$C$43) -> 0 | D41: =Interface_Treatment!E41 -> 0 | F41: =Interface_Treatment!G41 -> 0 | G41: =IF(Interface_Treatment!D41=0,0,(Interface_Treatment!H41/Interface_Treatment!D41)*'Interface_Treatment Sludge'!C41) -> 0 | H41: 0 | I41: =Interface_Treatment!J41 -> 0 | J41: =Interface_Treatment!K41 -> 0 | T41: =Interface_Treatment!U41 -> 0 | U41: =Interface_Treatment!V41 -> 0 | V41: =Interface_Treatment!W41 -> 0 | W41: =Interface_Treatment!X41 -> 0 | X41: 0 | Y41: OK | AA41: ='FS_Treatment volumes'!K54 -> 0 | AB41: =Interface_Treatment!AC41 -> 0 | AC41: =Interface_Treatment!AD41 -> 0 | AD41: =Interface_Treatment!AE41 -> 0 | AE41: =Interface_Treatment!AF41 -> 0 | AF41: 0 | AG41: OK | AI41: =Interface_Treatment!AJ41 -> 0 | AJ41: =Interface_Treatment!AK41 -> 0 | AK41: =Interface_Treatment!AL41 -> 0 | AL41: =Interface_Treatment!AM41 -> 0 | AM41: 0 | AN41: OK | AP41: ='FS_Treatment volumes'!N54 -> 0 | AQ41: =Interface_Treatment!AR41 -> 0 | AR41: =Interface_Treatment!AS41 -> 0 | AS41: =Interface_Treatment!AT41 -> 0 | AT41: =Interface_Treatment!AU41 -> 0 | AU41: 0 | AV41: OK
B42: Totals | C42: =SUM(C32:C41) -> 0
B43: Total volume of sewerage safely passed on to treatment plants | C43: ='FS_Transport volumes'!B119 -> 0
B44: Difference | C44: =C42-C43 -> 0
C45: =IF(C44=0,"OK","Not OK") -> OK | F45: =(E45/1000)*365 -> 0
B48: Volumes of septage from communal septic tanks TREATED | J48: For inputs about disposal and resue go to column T >> | T48: Volumes of septage from communal septic tanks DISPOSED | AI48: Volumes of septage from communal septic tanks REUSED
T49: Total volumes to be DISPOSED (treated and untreated) | AA49: Volumes safely treated for DISPOSAL | AI49: Total volumes to be REUSED (treated and untreated) | AP49: Volumes safely treated for REUSE
B50: Communal septic tank or DEWATS location | C50: Total volumes of sludge and septage received in cubic metres | D50: Type(s) of treatment | F50: Plant Capacity | G50: Treatment purposes | I50: If D, is the effluent is treated to standard? | J50: If R, is the treated final product complying with reuse standards | T50: Proportion of disposal methods in % | AA50: Proportion of disposal methods in % | AI50: Proportion of disposal methods in % | AP50: Proportion of disposal methods in %
G51: Volume for disposal = D | H51: Volume for reuse = R | T51: In water bodies | U51: To landfill | V51: Left in facility | W51: Others | X51: Totals | Y51: Check | AA51: Volumes safely treated for disposal | AB51: In water bodies | AC51: To landfill | AD51: Left in facility | AE51: Other | AF51: Totals | AG51: Check | AI51: Soil conditioner | AJ51: Fertiliser | AK51: Biofuel | AL51: Others | AM51: Totals | AN51: Check | AP51: Volumes safely treated for disposal | AQ51: Soil conditioner | AR51: Fertiliser | AS51: Biofuel | AT51: Other | AU51: Totals | AV51: Check
B53: =Interface_Treatment!B53 -> Location 1 [insert name] | C53: =IF($C$60=0,0,Interface_Treatment!C53*'Interface_Treatment Sludge'!$C$60) -> 0 | D53: =Interface_Treatment!E53 -> 0 | F53: =Interface_Treatment!G53 -> 0 | G53: =IF(Interface_Treatment!D53=0,0,(Interface_Treatment!H53/Interface_Treatment!D53)*'Interface_Treatment Sludge'!C53) -> 0 | H53: =C53-G53 -> 0 | I53: =Interface_Treatment!J53 -> 0 | J53: =Interface_Treatment!K53 -> 0 | T53: =Interface_Treatment!U53 -> 0 | U53: =Interface_Treatment!V53 -> 0 | V53: =Interface_Treatment!W53 -> 0 | W53: =Interface_Treatment!X53 -> 0 | X53: =SUM(T53:W53) -> 0 | Y53: =IF(AND(G53=0,X53=0),"OK",IF(AND(G53>0,X53=1),"OK","Not OK")) -> OK | AA53: ='FS_Treatment volumes'!K103 -> 0 | AB53: =Interface_Treatment!AC53 -> 0 | AC53: =Interface_Treatment!AD53 -> 0 | AD53: =Interface_Treatment!AE53 -> 0 | AE53: =Interface_Treatment!AF53 -> 0 | AF53: =SUM(AB53:AE53) -> 0 | AG53: =IF(AND(AA53=0,AF53=0),"OK",IF(AND(AA53>0,AF53=1),"OK","Not OK")) -> OK | AI53: =Interface_Treatment!AJ53 -> 0 | AJ53: =Interface_Treatment!AK53 -> 0 | AK53: =Interface_Treatment!AL53 -> 0 | AL53: =Interface_Treatment!AM53 -> 0 | AM53: =SUM(AI53:AL53) -> 0 | AN53: =IF(AND(H53=0,AM53=0),"OK",IF(AND(H53>0,AM53=1),"OK","Not OK")) -> OK | AP53: ='FS_Treatment volumes'!N103 -> 0 | AQ53: =Interface_Treatment!AR53 -> 0 | AR53: =Interface_Treatment!AS53 -> 0 | AS53: =Interface_Treatment!AT53 -> 0 | AT53: =Interface_Treatment!AU53 -> 0 | AU53: =SUM(AQ53:AT53) -> 0 | AV53: =IF(AND(AP53=0,AU53=0),"OK",IF(AND(AP53>0,AU53=1),"OK","Not OK")) -> OK
B54: =Interface_Treatment!B54 -> Location 2 [insert name] | C54: =IF($C$60=0,0,Interface_Treatment!C54*'Interface_Treatment Sludge'!$C$60) -> 0 | D54: =Interface_Treatment!E54 -> 0 | F54: =Interface_Treatment!G54 -> 0 | G54: =IF(Interface_Treatment!D54=0,0,(Interface_Treatment!H54/Interface_Treatment!D54)*'Interface_Treatment Sludge'!C54) -> 0 | H54: 0 | I54: =Interface_Treatment!J54 -> 0 | J54: =Interface_Treatment!K54 -> 0 | T54: =Interface_Treatment!U54 -> 0 | U54: =Interface_Treatment!V54 -> 0 | V54: =Interface_Treatment!W54 -> 0 | W54: =Interface_Treatment!X54 -> 0 | X54: 0 | Y54: =IF(AND(C54=0,X54=0),"OK",IF(AND(C54>0,X54=1),"OK","Not OK")) -> OK | AA54: ='FS_Treatment volumes'!K104 -> 0 | AB54: =Interface_Treatment!AC54 -> 0 | AC54: =Interface_Treatment!AD54 -> 0 | AD54: =Interface_Treatment!AE54 -> 0 | AE54: =Interface_Treatment!AF54 -> 0 | AF54: 0 | AG54: OK | AI54: =Interface_Treatment!AJ54 -> 0 | AJ54: =Interface_Treatment!AK54 -> 0 | AK54: =Interface_Treatment!AL54 -> 0 | AL54: =Interface_Treatment!AM54 -> 0 | AM54: 0 | AN54: OK | AP54: ='FS_Treatment volumes'!N104 -> 0 | AQ54: =Interface_Treatment!AR54 -> 0 | AR54: =Interface_Treatment!AS54 -> 0 | AS54: =Interface_Treatment!AT54 -> 0 | AT54: =Interface_Treatment!AU54 -> 0 | AU54: =SUM(AO54:AT54) -> 0 | AV54: OK
B55: =Interface_Treatment!B55 -> Location 3 [insert name] | C55: =IF($C$60=0,0,Interface_Treatment!C55*'Interface_Treatment Sludge'!$C$60) -> 0 | D55: =Interface_Treatment!E55 -> 0 | F55: =Interface_Treatment!G55 -> 0 | G55: =IF(Interface_Treatment!D55=0,0,(Interface_Treatment!H55/Interface_Treatment!D55)*'Interface_Treatment Sludge'!C55) -> 0 | H55: 0 | I55: =Interface_Treatment!J55 -> 0 | J55: =Interface_Treatment!K55 -> 0 | T55: =Interface_Treatment!U55 -> 0 | U55: =Interface_Treatment!V55 -> 0 | V55: =Interface_Treatment!W55 -> 0 | W55: =Interface_Treatment!X55 -> 0 | X55: 0 | Y55: =IF(AND(C55=0,X55=0),"OK",IF(AND(C55>0,X55=1),"OK","Not OK")) -> OK | AA55: ='FS_Treatment volumes'!K107 -> 0 | AB55: =Interface_Treatment!AC55 -> 0 | AC55: =Interface_Treatment!AD55 -> 0 | AD55: =Interface_Treatment!AE55 -> 0 | AE55: =Interface_Treatment!AF55 -> 0 | AF55: 0 | AG55: OK | AI55: =Interface_Treatment!AJ55 -> 0 | AJ55: =Interface_Treatment!AK55 -> 0 | AK55: =Interface_Treatment!AL55 -> 0 | AL55: =Interface_Treatment!AM55 -> 0 | AM55: 0 | AN55: OK | AP55: ='FS_Treatment volumes'!N107 -> 0 | AQ55: =Interface_Treatment!AR55 -> 0 | AR55: =Interface_Treatment!AS55 -> 0 | AS55: =Interface_Treatment!AT55 -> 0 | AT55: =Interface_Treatment!AU55 -> 0 | AU55: =SUM(AO55:AT55) -> 0 | AV55: OK
B56: =Interface_Treatment!B56 -> Location 4 [insert name] | C56: =IF($C$60=0,0,Interface_Treatment!C56*'Interface_Treatment Sludge'!$C$60) -> 0 | D56: =Interface_Treatment!E56 -> 0 | F56: =Interface_Treatment!G56 -> 0 | G56: =IF(Interface_Treatment!D56=0,0,(Interface_Treatment!H56/Interface_Treatment!D56)*'Interface_Treatment Sludge'!C56) -> 0 | H56: 0 | I56: =Interface_Treatment!J56 -> 0 | J56: =Interface_Treatment!K56 -> 0 | T56: =Interface_Treatment!U56 -> 0 | U56: =Interface_Treatment!V56 -> 0 | V56: =Interface_Treatment!W56 -> 0 | W56: =Interface_Treatment!X56 -> 0 | X56: 0 | Y56: =IF(AND(C56=0,X56=0),"OK",IF(AND(C56>0,X56=1),"OK","Not OK")) -> OK | AA56: ='FS_Treatment volumes'!K108 -> 0 | AB56: =Interface_Treatment!AC56 -> 0 | AC56: =Interface_Treatment!AD56 -> 0 | AD56: =Interface_Treatment!AE56 -> 0 | AE56: =Interface_Treatment!AF56 -> 0 | AF56: 0 | AG56: OK | AI56: =Interface_Treatment!AJ56 -> 0 | AJ56: =Interface_Treatment!AK56 -> 0 | AK56: =Interface_Treatment!AL56 -> 0 | AL56: =Interface_Treatment!AM56 -> 0 | AM56: 0 | AN56: OK | AP56: ='FS_Treatment volumes'!N108 -> 0 | AQ56: =Interface_Treatment!AR56 -> 0 | AR56: =Interface_Treatment!AS56 -> 0 | AS56: =Interface_Treatment!AT56 -> 0 | AT56: =Interface_Treatment!AU56 -> 0 | AU56: =SUM(AO56:AT56) -> 0 | AV56: OK
B57: =Interface_Treatment!B57 -> Location 5 [insert name] | C57: =IF($C$60=0,0,Interface_Treatment!C57*'Interface_Treatment Sludge'!$C$60) -> 0 | D57: =Interface_Treatment!E57 -> 0 | F57: =Interface_Treatment!G57 -> 0 | G57: =IF(Interface_Treatment!D57=0,0,(Interface_Treatment!H57/Interface_Treatment!D57)*'Interface_Treatment Sludge'!C57) -> 0 | H57: 0 | I57: =Interface_Treatment!J57 -> 0 | J57: =Interface_Treatment!K57 -> 0 | T57: =Interface_Treatment!U57 -> 0 | U57: =Interface_Treatment!V57 -> 0 | V57: =Interface_Treatment!W57 -> 0 | W57: =Interface_Treatment!X57 -> 0 | X57: 0 | Y57: =IF(AND(C57=0,X57=0),"OK",IF(AND(C57>0,X57=1),"OK","Not OK")) -> OK | AA57: ='FS_Treatment volumes'!K109 -> 0 | AB57: =Interface_Treatment!AC57 -> 0 | AC57: =Interface_Treatment!AD57 -> 0 | AD57: =Interface_Treatment!AE57 -> 0 | AE57: =Interface_Treatment!AF57 -> 0 | AF57: 0 | AG57: OK | AI57: =Interface_Treatment!AJ57 -> 0 | AJ57: =Interface_Treatment!AK57 -> 0 | AK57: =Interface_Treatment!AL57 -> 0 | AL57: =Interface_Treatment!AM57 -> 0 | AM57: 0 | AN57: OK | AP57: ='FS_Treatment volumes'!N109 -> 0 | AQ57: =Interface_Treatment!AR57 -> 0 | AR57: =Interface_Treatment!AS57 -> 0 | AS57: =Interface_Treatment!AT57 -> 0 | AT57: =Interface_Treatment!AU57 -> 0 | AU57: =SUM(AO57:AT57) -> 0 | AV57: OK
B58: =Interface_Treatment!B58 -> Location 6 [insert name] | C58: =IF($C$60=0,0,Interface_Treatment!C58*'Interface_Treatment Sludge'!$C$60) -> 0 | D58: =Interface_Treatment!E58 -> 0 | F58: =Interface_Treatment!G58 -> 0 | G58: =IF(Interface_Treatment!D58=0,0,(Interface_Treatment!H58/Interface_Treatment!D58)*'Interface_Treatment Sludge'!C58) -> 0 | H58: 0 | I58: =Interface_Treatment!J58 -> 0 | J58: =Interface_Treatment!K58 -> 0 | T58: =Interface_Treatment!U58 -> 0 | U58: =Interface_Treatment!V58 -> 0 | V58: =Interface_Treatment!W58 -> 0 | W58: =Interface_Treatment!X58 -> 0 | X58: 0 | Y58: =IF(AND(C58=0,X58=0),"OK",IF(AND(C58>0,X58=1),"OK","Not OK")) -> OK | AA58: ='FS_Treatment volumes'!K110 -> 0 | AB58: =Interface_Treatment!AC58 -> 0 | AC58: =Interface_Treatment!AD58 -> 0 | AD58: =Interface_Treatment!AE58 -> 0 | AE58: =Interface_Treatment!AF58 -> 0 | AF58: 0 | AG58: OK | AI58: =Interface_Treatment!AJ58 -> 0 | AJ58: =Interface_Treatment!AK58 -> 0 | AK58: =Interface_Treatment!AL58 -> 0 | AL58: =Interface_Treatment!AM58 -> 0 | AM58: 0 | AN58: OK | AP58: ='FS_Treatment volumes'!N110 -> 0 | AQ58: =Interface_Treatment!AR58 -> 0 | AR58: =Interface_Treatment!AS58 -> 0 | AS58: =Interface_Treatment!AT58 -> 0 | AT58: =Interface_Treatment!AU58 -> 0 | AU58: =SUM(AO58:AT58) -> 0 | AV58: OK
B59: Totals | C59: =SUM(C53:C58) -> 0
B60: Total volume of septage from DEWATS safely passed on | C60: ='Transport volumes'!B120 -> 0
B61: Difference | C61: =C59-C60 -> 0
C62: =IF(C61=0,"OK","Not OK") -> OK
B65: Volumes of septage from onsite septic tanks TREATED | J65: For inputs about disposal and resue go to column T >> | T65: Volumes of septage from onsite septic tanks DISPOSED | AI65: Volumes of septage from onsite septic tanks REUSED
T66: Total volumes to be DISPOSED (treated and untreated) | AA66: Volumes safely treated for DISPOSAL | AI66: Total volumes to be REUSED (treated and untreated) | AP66: Volumes safely treated for REUSE
B67: Types on onsite treatment options | C67: Total volumes of sludge and septage received in cubic metres | D67: Type(s) of treatment | F67: Capacity | G67: Treatment purposes | I67: If D, is the effluent is treated to standard? | J67: If R, is the treated final product complying with reuse standards | T67: Proportion of disposal methods in % | AA67: Proportion of disposal methods in % | AI67: Proportion of disposal methods in % | AP67: Proportion of disposal methods in %
G68: Volume for disposal = D | H68: Volume for reuse = R | T68: In water bodies | U68: To landfill | V68: Left in facility | W68: Others | X68: Totals | Y68: Check | AA68: Volumes safely treated for disposal | AB68: In water bodies | AC68: To landfill | AD68: Left in facility | AE68: Other | AF68: Totals | AG68: Check | AI68: Soil conditioner | AJ68: Fertiliser | AK68: Biofuel | AL68: Others | AM68: Totals | AN68: Check | AP68: Volumes safely treated for disposal | AQ68: Soil conditioner | AR68: Fertiliser | AS68: Biofuel | AT68: Other | AU68: Totals | AV68: Check
BF69: Type of treatment plants
B70: =Interface_Treatment!B70 -> Onsite septic tanks | Businesses / Hotels | C70: =IF($C$77=0,0,Interface_Treatment!C70*'Interface_Treatment Sludge'!$C$77) -> 0 | D70: =Interface_Treatment!E70 -> 0 | F70: =Interface_Treatment!G70 -> 0 | G70: =IF(Interface_Treatment!D70=0,0,(Interface_Treatment!H70/Interface_Treatment!D70)*'Interface_Treatment Sludge'!C70) -> 0 | H70: =C70-G70 -> 0 | I70: =Interface_Treatment!J70 -> YES | J70: =Interface_Treatment!K70 -> 0 | T70: =Interface_Treatment!U70 -> 1 | U70: =Interface_Treatment!V70 -> 0 | V70: =Interface_Treatment!W70 -> 0 | W70: =Interface_Treatment!X70 -> 0 | X70: =SUM(T70:W70) -> 1 | Y70: =IF(AND(G70=0,X70=0),"OK",IF(AND(G70>0,X70=1),"OK","Not OK")) -> Not OK | AA70: ='FS_Treatment volumes'!K123 -> 0 | AB70: =Interface_Treatment!AC70 -> 1 | AC70: =Interface_Treatment!AD70 -> 0 | AD70: =Interface_Treatment!AE70 -> 0 | AE70: =Interface_Treatment!AE70 -> 0 | AF70: =SUM(AB70:AE70) -> 1 | AG70: =IF(AND(AA70=0,AF70=0),"OK",IF(AND(AA70>0,AF70=1),"OK","Not OK")) -> Not OK | AI70: =Interface_Treatment!AI70 -> 0 | AJ70: =Interface_Treatment!AJ70 -> 0 | AK70: =Interface_Treatment!AK70 -> 0 | AL70: =Interface_Treatment!AL70 -> 0 | AM70: =SUM(AI70:AL70) -> 0 | AN70: =IF(AND(H70=0,AM70=0),"OK",IF(AND(H70>0,AM70=1),"OK","Not OK")) -> OK | AP70: ='FS_Treatment volumes'!N123 -> 0 | AQ70: =Interface_Treatment!AQ70 -> 0 | AR70: =Interface_Treatment!AR70 -> 0 | AS70: =Interface_Treatment!AS70 -> 0 | AT70: =Interface_Treatment!AT70 -> 0 | AU70: =SUM(AQ70:AT70) -> 0 | AV70: =IF(AND(AP70=0,AU70=0),"OK",IF(AND(AP70>0,AU70=1),"OK","Not OK")) -> OK | BF70: Primary treatment in septic tank
B71: =Interface_Treatment!B71 -> Onsite septic tanks | Businesses / Hotels | C71: =IF($C$77=0,0,Interface_Treatment!C71*'Interface_Treatment Sludge'!$C$77) -> 0 | D71: =Interface_Treatment!E71 -> 0 | F71: =Interface_Treatment!G71 -> 0 | G71: =IF(Interface_Treatment!D71=0,0,(Interface_Treatment!H71/Interface_Treatment!D71)*'Interface_Treatment Sludge'!C71) -> 0 | H71: 0 | I71: =Interface_Treatment!J71 -> NO | J71: =Interface_Treatment!K71 -> 0 | T71: =Interface_Treatment!U71 -> 1 | U71: =Interface_Treatment!V71 -> 0 | V71: =Interface_Treatment!W71 -> 0 | W71: =Interface_Treatment!X71 -> 0 | X71: 1 | Y71: =IF(AND(C71=0,X71=0),"OK",IF(AND(C71>0,X71=1),"OK","Not OK")) -> Not OK | AA71: ='FS_Treatment volumes'!K124 -> 0 | AB71: =Interface_Treatment!AC71 -> 0 | AC71: =Interface_Treatment!AD71 -> 0 | AD71: =Interface_Treatment!AE71 -> 0 | AE71: =Interface_Treatment!AE71 -> 0 | AF71: 0 | AG71: OK | AI71: =Interface_Treatment!AI71 -> 0 | AJ71: =Interface_Treatment!AJ71 -> 0 | AK71: =Interface_Treatment!AK71 -> 0 | AL71: =Interface_Treatment!AL71 -> 0 | AM71: 0 | AN71: OK | AP71: ='FS_Treatment volumes'!N124 -> 0 | AQ71: =Interface_Treatment!AQ71 -> 0 | AR71: =Interface_Treatment!AR71 -> 0 | AS71: =Interface_Treatment!AS71 -> 0 | AT71: =Interface_Treatment!AT71 -> 0 | AU71: =SUM(AO71:AT71) -> 0 | AV71: OK | BF71: Primary treatment plus secondary treatment
B72: =Interface_Treatment!B72 -> Onsite septic tanks | Individual | C72: =IF($C$77=0,0,Interface_Treatment!C72*'Interface_Treatment Sludge'!$C$77) -> 0 | D72: =Interface_Treatment!E72 -> 0 | F72: =Interface_Treatment!G72 -> 0 | G72: =IF(Interface_Treatment!D72=0,0,(Interface_Treatment!H72/Interface_Treatment!D72)*'Interface_Treatment Sludge'!C72) -> 0 | H72: 0 | I72: =Interface_Treatment!J72 -> YES | J72: =Interface_Treatment!K72 -> 0 | T72: =Interface_Treatment!U72 -> 1 | U72: =Interface_Treatment!V72 -> 0 | V72: =Interface_Treatment!W72 -> 0 | W72: =Interface_Treatment!X72 -> 0 | X72: 1 | Y72: =IF(AND(C72=0,X72=0),"OK",IF(AND(C72>0,X72=1),"OK","Not OK")) -> Not OK | AA72: ='FS_Treatment volumes'!K125 -> 0 | AB72: =Interface_Treatment!AC72 -> 1 | AC72: =Interface_Treatment!AD72 -> 0 | AD72: =Interface_Treatment!AE72 -> 0 | AE72: =Interface_Treatment!AE72 -> 0 | AF72: 1 | AG72: Not OK | AI72: =Interface_Treatment!AI72 -> 0 | AJ72: =Interface_Treatment!AJ72 -> 0 | AK72: =Interface_Treatment!AK72 -> 0 | AL72: =Interface_Treatment!AL72 -> 0 | AM72: 0 | AN72: OK | AP72: ='FS_Treatment volumes'!N125 -> 0 | AQ72: =Interface_Treatment!AQ72 -> 0 | AR72: =Interface_Treatment!AR72 -> 0 | AS72: =Interface_Treatment!AS72 -> 0 | AT72: =Interface_Treatment!AT72 -> 0 | AU72: =SUM(AO72:AT72) -> 0 | AV72: OK | BF72: No treatment taking place (septage passing through)
B73: =Interface_Treatment!B73 -> Onsite septic tanks | Individual | C73: =IF($C$77=0,0,Interface_Treatment!C73*'Interface_Treatment Sludge'!$C$77) -> 0 | D73: =Interface_Treatment!E73 -> 0 | F73: =Interface_Treatment!G73 -> 0 | G73: =IF(Interface_Treatment!D73=0,0,(Interface_Treatment!H73/Interface_Treatment!D73)*'Interface_Treatment Sludge'!C73) -> 0 | H73: 0 | I73: =Interface_Treatment!J73 -> NO | J73: =Interface_Treatment!K73 -> 0 | T73: =Interface_Treatment!U73 -> 1 | U73: =Interface_Treatment!V73 -> 0 | V73: =Interface_Treatment!W73 -> 0 | W73: =Interface_Treatment!X73 -> 0 | X73: 1 | Y73: =IF(AND(C73=0,X73=0),"OK",IF(AND(C73>0,X73=1),"OK","Not OK")) -> Not OK | AA73: ='FS_Treatment volumes'!K126 -> 0 | AB73: =Interface_Treatment!AC73 -> 0 | AC73: =Interface_Treatment!AD73 -> 0 | AD73: =Interface_Treatment!AE73 -> 0 | AE73: =Interface_Treatment!AE73 -> 0 | AF73: 0 | AG73: OK | AI73: =Interface_Treatment!AI73 -> 0 | AJ73: =Interface_Treatment!AJ73 -> 0 | AK73: =Interface_Treatment!AK73 -> 0 | AL73: =Interface_Treatment!AL73 -> 0 | AM73: 0 | AN73: OK | AP73: ='FS_Treatment volumes'!N126 -> 0 | AQ73: =Interface_Treatment!AQ73 -> 0 | AR73: =Interface_Treatment!AR73 -> 0 | AS73: =Interface_Treatment!AS73 -> 0 | AT73: =Interface_Treatment!AT73 -> 0 | AU73: =SUM(AO73:AT73) -> 0 | AV73: OK
B74: =Interface_Treatment!B74 -> 0 | C74: =IF($C$77=0,0,Interface_Treatment!C74*'Interface_Treatment Sludge'!$C$77) -> 0 | D74: =Interface_Treatment!E74 -> 0 | F74: =Interface_Treatment!G74 -> 0 | G74: =IF(Interface_Treatment!D74=0,0,(Interface_Treatment!H74/Interface_Treatment!D74)*'Interface_Treatment Sludge'!C74) -> 0 | H74: 0 | I74: =Interface_Treatment!J74 -> 0 | J74: =Interface_Treatment!K74 -> 0 | T74: =Interface_Treatment!U74 -> 0 | U74: =Interface_Treatment!V74 -> 0 | V74: =Interface_Treatment!W74 -> 0 | W74: =Interface_Treatment!X74 -> 0 | X74: 0 | Y74: =IF(AND(C74=0,X74=0),"OK",IF(AND(C74>0,X74=1),"OK","Not OK")) -> OK | AA74: ='FS_Treatment volumes'!K127 -> 0 | AB74: =Interface_Treatment!AC74 -> 0 | AC74: =Interface_Treatment!AD74 -> 0 | AD74: =Interface_Treatment!AE74 -> 0 | AE74: =Interface_Treatment!AE74 -> 0 | AF74: 0 | AG74: OK | AI74: =Interface_Treatment!AI74 -> 0 | AJ74: =Interface_Treatment!AJ74 -> 0 | AK74: =Interface_Treatment!AK74 -> 0 | AL74: =Interface_Treatment!AL74 -> 0 | AM74: 0 | AN74: OK | AP74: ='FS_Treatment volumes'!N127 -> 0 | AQ74: =Interface_Treatment!AQ74 -> 0 | AR74: =Interface_Treatment!AR74 -> 0 | AS74: =Interface_Treatment!AS74 -> 0 | AT74: =Interface_Treatment!AT74 -> 0 | AU74: =SUM(AO74:AT74) -> 0 | AV74: OK
B75: =Interface_Treatment!B75 -> 0 | C75: =IF($C$77=0,0,Interface_Treatment!C75*'Interface_Treatment Sludge'!$C$77) -> 0 | D75: =Interface_Treatment!E75 -> 0 | F75: =Interface_Treatment!G75 -> 0 | G75: =IF(Interface_Treatment!D75=0,0,(Interface_Treatment!H75/Interface_Treatment!D75)*'Interface_Treatment Sludge'!C75) -> 0 | H75: 0 | I75: =Interface_Treatment!J75 -> 0 | J75: =Interface_Treatment!K75 -> 0 | T75: =Interface_Treatment!U75 -> 0 | U75: =Interface_Treatment!V75 -> 0 | V75: =Interface_Treatment!W75 -> 0 | W75: =Interface_Treatment!X75 -> 0 | X75: 0 | Y75: =IF(AND(C75=0,X75=0),"OK",IF(AND(C75>0,X75=1),"OK","Not OK")) -> OK | AA75: ='FS_Treatment volumes'!K128 -> 0 | AB75: =Interface_Treatment!AC75 -> 0 | AC75: =Interface_Treatment!AD75 -> 0 | AD75: =Interface_Treatment!AE75 -> 0 | AE75: =Interface_Treatment!AE75 -> 0 | AF75: 0 | AG75: OK | AI75: =Interface_Treatment!AI75 -> 0 | AJ75: =Interface_Treatment!AJ75 -> 0 | AK75: =Interface_Treatment!AK75 -> 0 | AL75: =Interface_Treatment!AL75 -> 0 | AM75: 0 | AN75: OK | AP75: ='FS_Treatment volumes'!N128 -> 0 | AQ75: =Interface_Treatment!AQ75 -> 0 | AR75: =Interface_Treatment!AR75 -> 0 | AS75: =Interface_Treatment!AS75 -> 0 | AT75: =Interface_Treatment!AT75 -> 0 | AU75: =SUM(AO75:AT75) -> 0 | AV75: OK
B76: Totals | C76: =SUM(C70:C75) -> 0
B77: Total volume of septage from onsite septic tanks safely passed on | C77: ='FS_Transport volumes'!B121 -> 0
B78: Difference | C78: =C76-C77 -> 0
C79: =IF(C78=0,"OK","Not OK") -> OK

Sheet Interface_City issues
B1: =Overview_SLUDGE!#REF! -> 
B2: ='User interface_RES'!AJ11 -> Just a city in a victious place, Southeast Asia
B4: CITY-WIDE SCORE CARD questions
B7: Planning at National level (Central government) | E7: Additional information
B8: Questions / Conditions | C8: ü = 1 | E8: Location / author | F8: Policy number | G8: Target/Budget | H8: Date created | I8: Other information
B9: Does the government have a national sanitation plan? | E9: Urban sewerage strategy is being developed by MoPWT | F9: Nothing for urban sanitation | AA9: IRC
B10: Are there some FSM targets present in the plan? | AA10: IRC
B11: Are the FSM targets comprehensive? | AA11: IRC
B12: Is there a dedicated department responsible for undertaking the plan? | AA12: IRC
B13: Is there a budget allocated to the plan? | AA13: IRC
B16: Planning at city level (Municipality) | E16: Additional information
B17: Questions / Conditions | C17: ü = 1 | E17: Location / author | F17: Policy number | G17: Target/Budget | H17: Date created | I17: Other information
B18: Does the city have a sanitation plan? | E18: No municipality as Siem Reap city falls under Siem Reap district | AA18: IRC
B19: Are there some FSM targets present in the plan? | AA19: IRC
B20: Are the FSM targets comprehensive? | AA20: IRC
B21: Is there a dedicated department responsible for undertaking the plan? | AA21: IRC
B22: Is there a budget allocated to the plan? | AA22: IRC
B25: City department responsible for sanitation
B26: Questions / Conditions | C26: ü = 1 | E26: Additional information
B27: Does the department take note of the national plan? | E27: There is no city department… Nobody responsible for urban sanitation | AA27: IRC
B28: Does the municipality receive external support? | E28: Provincial Department of Public Works and Transport is only responsible for city drainage and sewerage system | AA28: IRC
B29: Is there sufficient budget given to the department? | AA29: IRC
B30: Does the department efficiently collect municipal fees and taxes? | AA30: IRC
B31: Does the department have clear roles and responsibilities for employees? | AA31: IRC
B34: Stakeholders
B35: Stakeholders present in the city | E35: Main interests | F35: Strengths | G35: Weaknesses | H35: Opportunities | I35: Threats | J35: Relationships | K35: Impacts | L35: Involvement needs | M35: Responsibility
AA36: IRC
AA37: IRC
AA38: IRC
AA39: IRC
AA40: IRC
B43: INFLUENCING CITY-WIDE ISSUES
B45: Storm water management | E45: Additional information
B46: Questions / Conditions | C46: ü = 1 | E46: Department | F46: System | G46: Other information
B47: Does part or all of the city flood regularly? | AA47: IRC
B48: Is there a department in charge of storm water management? | E48: Dept of PWT is responsible for drainage | AA48: IRC
B49: Does the department develop storm water management systems? | AA49: IRC
B50: Has sufficient budget been allocated for this? | AA50: IRC
B51: Is the system maintained? | AA51: IRC
B54: Solid waste management | E54: Additional information
B55: Questions / Conditions | C55: ü = 1 | E55: Department | F55: System | G55: Other information
B56: Is there a department in charge of solid waste management? | AA56: IRC
B57: Does the department carry out solid waste management? | AA57: IRC
B58: Is the service regular? | AA58: IRC
B59: Has sufficient budget been allocated for this? | AA59: IRC
B60: Is solid waste management (seen as) a problem in the city? | AA60: IRC

Sheet Interface_Budgets
B1: =Overview_SLUDGE!#REF! -> 
B2: ='User interface_RES'!AJ11 -> Just a city in a victious place, Southeast Asia
B4: BUDGET SCORE CARD questions
B6: OVERALL
B8: Investment budget for sanitation | H8: Budget and expenditure amounts
B9: Questions / Conditions | C9: ü = 1 | E9: Additional information | G9: Indicate budget sources >> | K9: Totals | L9: Currency
B10: If not available provide a 1 | C10: 1
B11: Is there a sanitation infrastructure budget? | K11: =SUM(H11:J11) -> 0 | M11: << If YES, provide name of budget holder (department/entity) | AA11: IRC
B12: Is funding allocation in line with the budget? | K12: =SUM(H12:J12) -> 0 | AA12: IRC
B13: Is the funding allocation given in time to be used? | H13: =IF(H11=0,0,H12/H11) -> 0 | I13: =IF(I11=0,0,I12/I11) -> 0 | J13: =IF(J11=0,0,J12/J11) -> 0 | K13: =IF(K11=0,0,K12/K11) -> 0 | AA13: IRC
B14: Is enough funding given to cover the requirements? | AA14: IRC
B15: Is the funding used for its intended purpose? | AA15: IRC
B16: Is all the funding used? | AA16: IRC
B17: Is the funding allocation and spending transparent? | AA17: IRC
B20: Operational budget for sanitation (recurring costs)
B21: Questions / Conditions | C21: ü = 1 | E21: Additional information | H21: Amounts | I21: Currency
B22: If not available provide a 1
B23: Is there a recurring municipal budget? | C23: 1 | J23: << If YES, provide name of budget holder (department/entity) | AA23: IRC
B24: Is funding allocation in line with the budget? | AA24: IRC
B25: Is the funding allocated given in time to be used? | AA25: IRC
B26: Is enough funding given to cover the requirements? | AA26: IRC
B27: Is the funding used for its intended purpose? | AA27: IRC
B28: Is all the funding used? | AA28: IRC
B29: Is the funding allocation and spending transparent? | AA29: IRC
B32: CAPTURE AND CONTAINMENT
B34: Infrastructure investment budget for CAPTURE and CONTAINMENT
B35: Questions / Conditions | C35: ü = 1 | E35: Additional information | H35: Amounts | I35: Currency
B36: If not available provide a 1 | C36: 1
B37: Is there a municipal budget? | E37: Dept of PWT is responsible for maintaining drainage and sewerage system | J37: << If YES, provide name of budget holder (department/entity) | AA37: IRC
B38: Is funding allocation in line with the budget? | E38: There is no budget. Own income generated from monthly tariffs and registration of pit emptying services | AA38: IRC
B39: Is the funding allocated given in time to be used? | E39: Ministry of PWT pays for staff of treatment plant (+50) plus electricity bill | AA39: IRC
B40: Is enough funding given to cover the requirements? | AA40: IRC
B41: Is the funding used for its intended purpose? | AA41: IRC
B42: Is all the funding used? | AA42: IRC
B43: Is the funding allocation and spending transparent? | AA43: IRC
B46: Operational budget for CAPTURE and CONTAINMENT (recurring costs)
B47: Questions / Conditions | C47: ü = 1 | E47: Additional information | H47: Amounts | I47: Currency
B48: If not available provide a 1 | C48: 1
B49: Is there a municipal budget? | J49: << If YES, provide name of budget holder (department/entity) | AA49: IRC
B50: Is funding allocation in line with the budget? | AA50: IRC
B51: Is the funding allocated given in time to be used? | AA51: IRC
B52: Is enough funding given to cover the requirements? | AA52: IRC
B53: Is the funding used for its intended purpose? | AA53: IRC
B54: Is all the funding used? | AA54: IRC
B55: Is the funding allocation and spending transparent? | AA55: IRC
B58: EMPTYING
B60: Infrastructure investment budget for EMPTYING
B61: Questions / Conditions | C61: ü = 1 | E61: Additional information | H61: Amounts | I61: Currency
B62: If not available provide a 1 | C62: 1
B63: Is there a municipal budget? | J63: << If YES, provide name of budget holder (department/entity) | AA63: IRC
B64: Is funding allocation in line with the budget? | AA64: IRC
B65: Is the funding allocated given in time to be used? | AA65: IRC
B66: Is enough funding given to cover the requirements? | AA66: IRC
B67: Is the funding used for its intended purpose? | AA67: IRC
B68: Is all the funding used? | AA68: IRC
B69: Is the funding allocation and spending transparent? | AA69: IRC
B72: Operational budget for EMPTYING (recurring costs)
B73: Questions / Conditions | C73: ü = 1 | E73: Additional information | H73: Amounts | I73: Currency
B74: If not available provide a 1 | C74: 1
B75: Is there a municipal budget? | J75: << If YES, provide name of budget holder (department/entity) | AA75: IRC
B76: Is funding allocation in line with the budget? | AA76: IRC
B77: Is the funding allocated given in time to be used? | AA77: IRC
B78: Is enough funding given to cover the requirements? | AA78: IRC
B79: Is the funding used for its intended purpose? | AA79: IRC
B80: Is all the funding used? | AA80: IRC
B81: Is the funding allocation and spending transparent? | AA81: IRC
B84: TRANSPORT
B86: Infrastructure investment budget for TRANSPORT
B87: Questions / Conditions | C87: ü = 1 | E87: Additional information | H87: Amounts | I87: Currency
B88: If not available provide a 1 | C88: 1
B89: Is there a municipal budget? | J89: << If YES, provide name of budget holder (department/entity) | AA89: IRC
B90: Is funding allocation in line with the budget? | AA90: IRC
B91: Is the funding allocated given in time to be used? | AA91: IRC
B92: Is enough funding given to cover the requirements? | AA92: IRC
B93: Is the funding used for its intended purpose? | AA93: IRC
B94: Is all the funding used? | AA94: IRC
B95: Is the funding allocation and spending transparent? | AA95: IRC
B97: Operational budget for TRANSPORT (recurring costs)
B98: Questions / Conditions | C98: ü = 1 | E98: Additional information | H98: Amounts | I98: Currency
B99: If not available provide a 1 | C99: 1
B100: Is there a municipal budget? | J100: << If YES, provide name of budget holder (department/entity) | AA100: IRC
B101: Is funding allocation in line with the budget? | AA101: IRC
B102: Is the funding allocated given in time to be used? | AA102: IRC
B103: Is enough funding given to cover the requirements? | AA103: IRC
B104: Is the funding used for its intended purpose? | AA104: IRC
B105: Is all the funding used? | AA105: IRC
B106: Is the funding allocation and spending transparent? | AA106: IRC
B109: TREATMENT
B111: Infrastructure investment budget for TREATMENT
B112: Questions / Conditions | C112: ü = 1 | E112: Additional information | H112: Amounts | I112: Currency
B113: If not available provide a 1 | C113: 1
B114: Is there a municipal budget? | J114: << If YES, provide name of budget holder (department/entity) | AA114: IRC
B115: Is funding allocation in line with the budget? | AA115: IRC
B116: Is the funding allocated given in time to be used? | AA116: IRC
B117: Is enough funding given to cover the requirements? | AA117: IRC
B118: Is the funding used for its intended purpose? | AA118: IRC
B119: Is all the funding used? | AA119: IRC
B120: Is the funding allocation and spending transparent? | AA120: IRC
B123: Operational budget for TREATMENT (recurring costs)
B124: Questions / Conditions | C124: ü = 1 | E124: Additional information | H124: Amounts | I124: Currency
B125: If not available provide a 1 | C125: 1
B126: Is there a municipal budget? | J126: << If YES, provide name of budget holder (department/entity) | AA126: IRC
B127: Is funding allocation in line with the budget? | AA127: IRC
B128: Is the funding allocated given in time to be used? | AA128: IRC
B129: Is enough funding given to cover the requirements? | AA129: IRC
B130: Is the funding used for its intended purpose? | AA130: IRC
B131: Is all the funding used? | AA131: IRC
B132: Is the funding allocation and spending transparent? | AA132: IRC
B135: DISPOSAL AND OR REUSE
B137: Infrastructure investment budget for DISPOSAL
B138: Questions / Conditions | C138: ü = 1 | E138: Additional information | H138: Amounts | I138: Currency
B139: If not available provide a 1 | C139: 1
B140: Is there a municipal budget? | J140: << If YES, provide name of budget holder (department/entity) | AA140: IRC
B141: Is funding allocation in line with the budget? | AA141: IRC
B142: Is the funding allocated given in time to be used? | AA142: IRC
B143: Is enough funding given to cover the requirements? | AA143: IRC
B144: Is the funding used for its intended purpose? | AA144: IRC
B145: Is all the funding used? | AA145: IRC
B146: Is the funding allocation and spending transparent? | AA146: IRC
B149: Operational budget for DISPOSAL (recurring costs)
B150: Questions / Conditions | C150: ü = 1 | E150: Additional information | H150: Amounts | I150: Currency
B151: If not available provide a 1 | C151: 1
B152: Is there a municipal budget? | J152: << If YES, provide name of budget holder (department/entity) | AA152: IRC
B153: Is funding allocation in line with the budget? | AA153: IRC
B154: Is the funding allocated given in time to be used? | AA154: IRC
B155: Is enough funding given to cover the requirements? | AA155: IRC
B156: Is the funding used for its intended purpose? | AA156: IRC
B157: Is all the funding used? | AA157: IRC
B158: Is the funding allocation and spending transparent? | AA158: IRC
B161: Infrastructure investment budget for REUSE
B162: Questions / Conditions | C162: ü = 1 | E162: Additional information | H162: Amounts | I162: Currency
B163: If not available provide a 1 | C163: 1
B164: Is there a municipal budget? | J164: << If YES, provide name of budget holder (department/entity) | AA164: IRC
B165: Is funding allocation in line with the budget? | AA165: IRC
B166: Is the funding allocated given in time to be used? | AA166: IRC
B167: Is enough funding given to cover the requirements? | AA167: IRC
B168: Is the funding used for its intended purpose? | AA168: IRC
B169: Is all the funding used? | AA169: IRC
B170: Is the funding allocation and spending transparent? | AA170: IRC
B173: Operational budget for REUSE (recurring costs)
B174: Questions / Conditions | C174: ü = 1 | E174: Additional information | H174: Amounts | I174: Currency
B175: If not available provide a 1 | C175: 1
B176: Is there a municipal budget? | J176: << If YES, provide name of budget holder (department/entity) | AA176: IRC
B177: Is funding allocation in line with the budget? | AA177: IRC
B178: Is the funding allocated given in time to be used? | AA178: IRC
B179: Is enough funding given to cover the requirements? | AA179: IRC
B180: Is the funding used for its intended purpose? | AA180: IRC
B181: Is all the funding used? | AA181: IRC
B182: Is the funding allocation and spending transparent? | AA182: IRC

Sheet Interface_Permits & standards
B1: =Overview_SLUDGE!#REF! -> 
B2: ='User interface_RES'!AJ11 -> Just a city in a victious place, Southeast Asia
B4: PERMITS and STANDARDS SCORE CARD questions
B7: CAPTURE AND CONTAINMENT
B9: Building regulations for sanitation | E9: Additional information
B10: Questions / Conditions | C10: ü = 1 | E10: Location/ author | F10: Policy/ Legislation/ Standard number | G10: Other information
B11: No standards | C11: 1 | E11: No standards were present but houseowners need to have the design of onsite septic tanks included in the building permit request | G11: License is provided by Department of Construction and Urban Planning but Dept of PWT and Dept of Environment provide additional advice | AA11: IRC
B12: Some construction standards present | AA12: IRC
B13: Complete construction standards | AA13: IRC
B14: Municipal department responsible for standard compliance and enforcement | C14: 1 | E14: Department of Land Management and Urban Planning | G14: Department of Environment is responsible for inspecting onsite septic tanks | AA14: IRC
B15: Standards enforced | E15: Doubtful as this is the responsibility of the Department of Environment for onsite septic tanks | F15: Properties usually do not get inspected when completed as they never get completed. | G15: House owners need to pay housing construction tax at the start and end of construction | AA15: IRC
B18: Building permits and permissions | E18: Additional information
B19: Questions / Conditions | C19: ü = 1 | E19: Standard author | F19: Policy/ Legislation/ Standard number | G19: Other information
B20: No permit reqùired | AA20: IRC
B21: Permit required | C21: 1 | AA21: IRC
B22: Department responsible for permits | C22: 1 | E22: Department of Land Management and Urban Planning | AA22: IRC
B23: Permit enforcement / checked | E23: Building inspection yes by Dept of LMUP but that does not include inspection of onsite septic tanks | AA23: IRC
B26: EMPTYING
B28: Pit emptying safety standards | E28: Additional information
B29: Questions / Conditions | C29: ü = 1 | E29: Location/ author | F29: Policy/ Legislation/ Standard number | G29: Other information
B30: No standards | C30: 1 | AA30: IRC
B31: Some safety standards present | AA31: IRC
B32: Complete safety standards | AA32: IRC
B33: Department responsible for policy compliance and enforcement | AA33: IRC
B34: Standards enforced | AA34: IRC
B37: Pit emptying business licences and permissions | E37: Additional information
B38: Questions / Conditions | C38: ü = 1 | E38: Standard author | F38: Policy/ Legislation/ Standard number | G38: Other information
B39: No licence required | C39: 1 | E39: No specific licenses or permits required for pit emptying business | AA39: IRC
B40: Licences required | AA40: IRC
B41: Department responsible for licenses | AA41: IRC
B42: Licence enforcement / checked | AA42: IRC
B46: TRANSPORT
B48: Faecal sludge transportation regulations on safety standards | E48: Additional information
B49: Questions / Conditions | C49: ü = 1 | E49: Location/ author | F49: Policy/ Legislation/ Standard number | G49: Other information
B50: No standards | C50: 1 | AA50: IRC
B51: Some safety standards present | AA51: IRC
B52: Complete safety standards | AA52: IRC
B53: Department responsible for policy compliance and enforcement | AA53: IRC
B54: Standards enforced | AA54: IRC
B57: Faecal sludge transportation business licences and permissions | E57: Additional information
B58: Questions / Conditions | C58: ü = 1 | E58: Standard author | F58: Policy/ Legislation/ Standard number | G58: Other information
B59: No licence required | AA59: IRC
B60: Licences required | C60: 1 | E60: Providers need to be registered at Dept of PWT to be able to dump sludge at treatment plant | AA60: IRC
B61: Department responsible for licenses | C61: 1 | E61: Wastewater treatment plant | AA61: IRC
B62: Licence enforcement / checked | E62: No registration of dumps | AA62: IRC
B65: TREATMENT
B67: Sewage treatment effluent standards | E67: Additional information
B68: Questions / Conditions | C68: ü = 1 | E68: Location/ author | F68: Policy/ Legislation/ Standard number | G68: Other information
B69: If not relevant provide a 1 | E69: Note: 1 means that there is no sewer system in place
B70: No effluent standards | AA70: IRC
B71: Some effluent standards present | AA71: IRC
B72: Complete standards which protect the environment and human health in reuse | C72: 1 | E72: Ministry of Environment | F72: 1999 Sub-degree | AA72: IRC
B73: Department responsible for ensuring standard compliance | E73: Treatment plant has own lab where samples are tested | G73: Dept of Environment sents samples to Ministry every month. Since 2013 no test results received. | AA73: IRC
B74: Standards enforced | E74: ??? | G74: No evidence found from Dept of Environment | AA74: IRC
B77: Communal septic tanks effluent standards | E77: Additional information
B78: Questions / Conditions | C78: ü = 1 | E78: Location/ author | F78: Policy/ Legislation/ Standard number | G78: Other information
B79: If not relevant provide a 1 | C79: 1 | E79: Note: 1 means that there are no communal septic tanks in place
B80: No disposal/reuse standards | AA80: IRC
B81: Some disposal/reuse standards present | AA81: IRC
B82: Complete standards which protect the environment and human health in reuse | AA82: IRC
B83: Department responsible for ensuring standard compliance | AA83: IRC
B84: Standards enforced | AA84: IRC
B87: Treatment permits and permissions | E87: Additional information
B88: Questions / Conditions | C88: ü = 1 | E88: Standard author | F88: Policy/ standard number | G88: Other information
B89: No permit required | C89: 1 | E89: Government owned | AA89: IRC
B90: Permit required | AA90: IRC
B91: Department responsible for permits | AA91: IRC
B92: Permit enforcement / checked | AA92: IRC
B95: DISPOSAL AND REUSE
B97: Standards for DISPOSAL | E97: Additional information
B98: Questions / Conditions | C98: ü = 1 | E98: Location/ author | F98: Policy/ Legislation/ Standard number | G98: Other information
B99: No disposal standards | C99: 1 | H99: ??? | AA99: IRC
B100: Some disposal standards present | AA100: IRC
B101: Complete standards which protect the environment and human health in disposal | AA101: IRC
B102: Department responsible for ensuring standard compliance | AA102: IRC
B103: Standards enforced | AA103: IRC
B106: Standards for REUSE | E106: Additional information
B107: Questions / Conditions | C107: ü = 1 | E107: Location/ author | F107: Policy/ Legislation/ Standard number | G107: Other information | H107: Reuse options
B108: No reuse standards | C108: 1 | AA108: IRC
B109: Some reuse standards present | AA109: IRC
B110: Complete standards which protect the environment and human health in reuse | AA110: IRC
B111: Department responsible for ensuring standard compliance | AA111: IRC
B112: Standards enforced | AA112: IRC
B115: Permits and permissions for DISPOSAL | E115: Additional information
B116: Questions / Conditions | C116: ü = 1 | E116: Standard author | F116: Policy/ standard number | G116: Other information
B117: No permit required | E117: Dried sludge is left in the wastewater treatment plant | AA117: IRC
B118: Permit required | AA118: IRC
B119: Department responsible for permits | AA119: IRC
B120: Permit enforcement / checked | AA120: IRC
B123: Permits and permissions for REUSE | E123: Additional information
B124: Questions / Conditions | C124: ü = 1 | E124: Standard author | F124: Policy/ standard number | G124: Other information
B125: No permit required | AA125: IRC
B126: Permit required | AA126: IRC
B127: Department responsible for permits | AA127: IRC
B128: Permit enforcement / checked | AA128: IRC

Sheet Interface_Environment
B1: =Overview_SLUDGE!#REF! -> 
B2: ='User interface_RES'!AJ11 -> Just a city in a victious place, Southeast Asia
B4: NATIONAL STANDARDS for effluent and disposal and reuse
B7: National effluent treatment standards
C8: Standards for effluent | D8: Performance on standards
B10: BOD
B11: COD
B12: TN
B13: P
B14: pH
B15: Helminths
B16: E-coli
B17: Total coliforms
B18: TSS
B20: National disposal and reuse standards
C21: Standards for disposal | D21: Standards for reuse | E21: Performance on standards
B23: BOD
B24: COD
B25: TN
B26: P
B27: pH
B28: Helminths
B29: E-coli
B30: Total coliforms

Sheet Government & city wide SC
A1: =Overview_SLUDGE!A1 -> 0
A3: GOVERNMENT AND CITY-WIDE ISSUES | SCORE CARDS
A6: Planning at National level (Central government) | J6: Additional information
A7: Level | B7: Questions / Conditions | C7: ü = 1 | D7: Weight | E7: WS | F7: Weight best-case | G7: WS | H7: Weighted score | J7: Location / author | K7: Policy number | L7: Target/Budget | M7: Date created
A8: 0 | B8: Does the government have a national sanitation plan? | C8: ='Interface_City issues'!C9 -> 0 | D8: 1 | E8: =IF(C8=1,(C8*D8)*0,"") ->  | F8: 1 | G8: =IF(C8=1,(C8*F8)*0,"") ->  | H8: =G8 ->  | J8: ='Interface_City issues'!E9 -> Urban sewerage strategy is being developed by MoPWT | K8: ='Interface_City issues'!F9 -> Nothing for urban sanitation | L8: ='Interface_City issues'!G9 -> 0 | M8: ='Interface_City issues'!H9 -> 0 | AA8: IRC
A9: 1 | B9: Are there some FSM targets present in the plan? | C9: ='Interface_City issues'!C10 -> 0 | D9: 0.5 | E9: =IF(C9=1,(C9*D9)*1,"") ->  | F9: 0.5 | G9: =IF(C9=1,(C9*F9)*1,"") ->  | H9: =G9 ->  | J9: ='Interface_City issues'!E10 -> 0 | K9: ='Interface_City issues'!F10 -> 0 | L9: ='Interface_City issues'!G10 -> 0 | M9: ='Interface_City issues'!H10 -> 0 | AA9: IRC
A10: 2 | B10: Are the FSM targets comprehensive? | C10: ='Interface_City issues'!C11 -> 0 | D10: 0.5 | E10: =IF(C10=1,(C10*D10)*1,"") ->  | F10: 0.5 | G10: =IF(C10=1,(C10*F10)*1,"") ->  | H10: =G10 ->  | J10: ='Interface_City issues'!E11 -> 0 | K10: ='Interface_City issues'!F11 -> 0 | L10: ='Interface_City issues'!G11 -> 0 | M10: ='Interface_City issues'!H11 -> 0 | AA10: IRC
A11: 3 | B11: Is there a dedicated department responsible for undertaking the plan? | C11: ='Interface_City issues'!C12 -> 0 | D11: 1 | E11: =IF(C11=1,(C11*D11)*1,"") ->  | F11: 1 | G11: =IF(C11=1,(C11*F11)*1,"") ->  | H11: =G11 ->  | J11: ='Interface_City issues'!E12 -> 0 | K11: ='Interface_City issues'!F12 -> 0 | L11: ='Interface_City issues'!G12 -> 0 | M11: ='Interface_City issues'!H12 -> 0 | AA11: IRC
A12: 4 | B12: Is there a budget allocated to the plan? | C12: ='Interface_City issues'!C13 -> 0 | D12: 1 | E12: =IF(C12=1,(C12*D12)*1,"") ->  | F12: 1 | G12: =IF(C12=1,(C12*F12)*1,"") ->  | H12: =IF(C8=0,E12,G12) ->  | J12: ='Interface_City issues'!E13 -> 0 | K12: ='Interface_City issues'!F13 -> 0 | L12: ='Interface_City issues'!G13 -> 0 | M12: ='Interface_City issues'!H13 -> 0 | AA12: IRC
B14: Total score | E14: =SUM(E8:E12) -> 0 | G14: =SUM(G8:G12) -> 0 | H14: =SUM(H8:H12) -> 0
B16: Maximum score | H16: =SUM(F8:F12) -> 4
B18: Average score | C18: =SUM(C8:C12) -> 0 | H18: =IF(C8=1,H14/H16,0) -> 0
A21: Planning at city level (Municipality) | J21: Additional information
A22: Level | B22: Questions / Conditions | C22: ü = 1 | D22: Weight | E22: WS | F22: Weight best-case | G22: WS | H22: Weighted score | J22: Location / author | K22: Policy number | L22: Target/Budget | M22: Date created | N22: Additional information
A23: 0 | B23: Does the city have a sanitation plan? | C23: ='Interface_City issues'!C18 -> 0 | D23: 1 | E23: =IF(C23=1,(C23*D23)*0,"") ->  | F23: 1 | G23: =IF(C23=1,(C23*F23)*0,"") ->  | H23: =G23 ->  | J23: ='Interface_City issues'!E18 -> No municipality as Siem Reap city falls under Siem Reap district | K23: ='Interface_City issues'!F18 -> 0 | L23: ='Interface_City issues'!G18 -> 0 | M23: ='Interface_City issues'!H18 -> 0 | N23: ='Interface_City issues'!I9 -> 0 | AA23: IRC
A24: 1 | B24: Are there some FSM targets present in the plan? | C24: ='Interface_City issues'!C19 -> 0 | D24: 0.5 | E24: =IF(C24=1,(C24*D24)*1,"") ->  | F24: 0.5 | G24: =IF(C24=1,(C24*F24)*1,"") ->  | H24: =G24 ->  | J24: ='Interface_City issues'!E19 -> 0 | K24: ='Interface_City issues'!F19 -> 0 | L24: ='Interface_City issues'!G19 -> 0 | M24: ='Interface_City issues'!H19 -> 0 | N24: ='Interface_City issues'!I10 -> 0 | AA24: IRC
A25: 2 | B25: Are the FSM targets comprehensive? | C25: ='Interface_City issues'!C20 -> 0 | D25: 0.5 | E25: =IF(C25=1,(C25*D25)*1,"") ->  | F25: 0.5 | G25: =IF(C25=1,(C25*F25)*1,"") ->  | H25: =G25 ->  | J25: ='Interface_City issues'!E20 -> 0 | K25: ='Interface_City issues'!F20 -> 0 | L25: ='Interface_City issues'!G20 -> 0 | M25: ='Interface_City issues'!H20 -> 0 | N25: ='Interface_City issues'!I11 -> 0 | AA25: IRC
A26: 3 | B26: Is there a dedicated department responsible for undertaking the plan? | C26: ='Interface_City issues'!C21 -> 0 | D26: 1 | E26: =IF(C26=1,(C26*D26)*1,"") ->  | F26: 1 | G26: =IF(C26=1,(C26*F26)*1,"") ->  | H26: =G26 ->  | J26: ='Interface_City issues'!E21 -> 0 | K26: ='Interface_City issues'!F21 -> 0 | L26: ='Interface_City issues'!G21 -> 0 | M26: ='Interface_City issues'!H21 -> 0 | N26: ='Interface_City issues'!I12 -> 0 | AA26: IRC
A27: 4 | B27: Is there a budget allocated to the plan? | C27: ='Interface_City issues'!C22 -> 0 | D27: 1 | E27: =IF(C27=1,(C27*D27)*1,"") ->  | F27: 1 | G27: =IF(C27=1,(C27*F27)*1,"") ->  | H27: =IF(C23=0,E27,G27) ->  | J27: ='Interface_City issues'!E22 -> 0 | K27: ='Interface_City issues'!F22 -> 0 | L27: ='Interface_City issues'!G22 -> 0 | M27: ='Interface_City issues'!H22 -> 0 | N27: ='Interface_City issues'!I13 -> 0 | AA27: IRC
B29: Total score | E29: =SUM(E23:E27) -> 0 | G29: =SUM(G23:G27) -> 0 | H29: =SUM(H23:H27) -> 0
B31: Maximum score | H31: =SUM(F23:F27) -> 4
B33: Average score | C33: =SUM(C23:C27) -> 0 | H33: =IF(C23=1,H29/H31,0) -> 0
A36: City department responsible for sanitation
A37: Level | B37: Questions / Conditions | C37: ü = 1 | J37: Additional information
A38: 0 | B38: Does the department take note of the national plan? | C38: ='Interface_City issues'!C27 -> 0 | J38: ='Interface_City issues'!E27 -> There is no city department… Nobody responsible for urban sanitation | AA38: IRC
A39: 1 | B39: Does the municipality receive external support? | C39: ='Interface_City issues'!C28 -> 0 | J39: ='Interface_City issues'!E28 -> Provincial Department of Public Works and Transport is only responsible for city drainage and sewerage system | AA39: IRC
A40: 2 | B40: Is there sufficient budget given to the department? | C40: ='Interface_City issues'!C29 -> 0 | J40: ='Interface_City issues'!E29 -> 0 | AA40: IRC
A41: 3 | B41: Does the department efficiently collect municipal fees and taxes? | C41: ='Interface_City issues'!C30 -> 0 | J41: ='Interface_City issues'!E30 -> 0 | AA41: IRC
A42: 4 | B42: Does the department have clear roles and responsibilities for employees? | C42: ='Interface_City issues'!C31 -> 0 | J42: ='Interface_City issues'!E31 -> 0 | AA42: IRC
A45: Sanitation Infrastructure budget
A46: Level | B46: Questions / Conditions | C46: ü = 1 | D46: Weight | E46: WS | F46: Weight best-case | G46: WS | H46: Weighted score | J46: Additional information
B47: Not available or not relevant | C47: =Interface_Budgets!C10 -> 1 | J47: =Interface_Budgets!E10 -> 0
A48: 0 | B48: Is there a sanitation infrastructure budget? | C48: =Interface_Budgets!C11 -> 0 | D48: 1 | E48: =IF(C48=1,(C48*D48)*1,"") ->  | F48: 1 | G48: =IF(C48=1,(C48*F48),"") ->  | H48: =G48 ->  | J48: =Interface_Budgets!E11 -> 0 | AA48: IRC
A49: 1 | B49: Is funding allocation in line with the budget? | C49: =Interface_Budgets!C12 -> 0 | D49: 1 | F49: 1 | G49: =IF(C49=1,(C49*F49)*1,"") ->  | J49: =Interface_Budgets!E12 -> 0 | AA49: IRC
A50: 2 | B50: Is the funding allocated given in time to be used? | C50: =Interface_Budgets!C13 -> 0 | D50: 1 | F50: 1 | J50: =Interface_Budgets!E13 -> 0 | AA50: IRC
A51: 3 | B51: Is enough funding given to cover the requirements? | C51: =Interface_Budgets!C14 -> 0 | D51: 1 | F51: 1 | J51: =Interface_Budgets!E14 -> 0 | AA51: IRC
A52: 4 | B52: Is the funding used for its intended purpose? | C52: =Interface_Budgets!C15 -> 0 | D52: 1 | F52: 1 | J52: =Interface_Budgets!E15 -> 0 | AA52: IRC
A53: 5 | B53: Is all the funding used? | C53: =Interface_Budgets!C16 -> 0 | D53: 1 | F53: 1 | J53: =Interface_Budgets!E16 -> 0 | AA53: IRC
A54: 6 | B54: Is the funding allocation and spending transparent? | C54: =Interface_Budgets!C17 -> 0 | D54: 1 | F54: 1 | H54: =IF(C48=0,E54,G54) ->  | J54: =Interface_Budgets!E17 -> 0 | AA54: IRC
B56: Total score | E56: =SUM(E48:E54) -> 0 | G56: =SUM(G48:G54) -> 0 | H56: =SUM(H48:H54) -> 0
B58: Maximum score | H58: =SUM(F48:F54) -> 7
B60: Average score | C60: =SUM(C48:C54) -> 0 | H60: =IF(C48=1,H56/H58,0) -> 0
A63: WASH operational budget
A64: Level | B64: Questions / Conditions | C64: ü = 1 | D64: Weight | E64: WS | F64: Weight best-case | G64: WS | H64: Weighted score | J64: Additional information
B65: Not available or not relevant | C65: =Interface_Budgets!C22 -> 0 | J65: =Interface_Budgets!E22 -> 0
A66: 0 | B66: Is there a recurring municipal budget? | C66: =Interface_Budgets!C23 -> 1 | D66: 1 | E66: =IF(C66=1,(C66*D66)*1,"") -> 1 | F66: 1 | G66: =IF(C66=1,(C66*F66),"") -> 1 | H66: =G66 -> 1 | J66: =Interface_Budgets!E23 -> 0 | AA66: IRC
A67: 1 | B67: Is funding allocation in line with the budget? | C67: =Interface_Budgets!C24 -> 0 | D67: 1 | F67: 1 | G67: =IF(C67=1,(C67*F67)*1,"") ->  | J67: =Interface_Budgets!E24 -> 0 | AA67: IRC
A68: 2 | B68: Is the funding allocated given in time to be used? | C68: =Interface_Budgets!C25 -> 0 | D68: 1 | F68: 1 | J68: =Interface_Budgets!E25 -> 0 | AA68: IRC
A69: 3 | B69: Is enough funding given to cover the requirements? | C69: =Interface_Budgets!C26 -> 0 | D69: 1 | F69: 1 | J69: =Interface_Budgets!E26 -> 0 | AA69: IRC
A70: 4 | B70: Is the funding used for its intended purpose? | C70: =Interface_Budgets!C27 -> 0 | D70: 1 | F70: 1 | J70: =Interface_Budgets!E27 -> 0 | AA70: IRC
A71: 5 | B71: Is all the funding used? | C71: =Interface_Budgets!C28 -> 0 | D71: 1 | F71: 1 | J71: =Interface_Budgets!E28 -> 0 | AA71: IRC
A72: 6 | B72: Is the funding allocation and spending transparent? | C72: =Interface_Budgets!C29 -> 0 | D72: 1 | F72: 1 | H72: =IF(C67=1,E72,G72) ->  | J72: =Interface_Budgets!E29 -> 0 | AA72: IRC
B74: Total score | E74: =SUM(E66:E72) -> 1 | G74: =SUM(G66:G72) -> 1 | H74: =SUM(H66:H72) -> 1
B76: Maximum score | H76: =SUM(F66:F72) -> 7
B78: Average score | C78: =SUM(C66:C72) -> 1 | H78: =IF(C66=1,H74/H76,0) -> 0.1428571429
A81: Stakeholders
A82: Stakeholders present in the city | J82: Main interests | K82: Strengths | L82: Weaknesses | M82: Opportunities | N82: Threats | O82: Relationships | P82: Impacts | Q82: Involvement needs | R82: Responsibility
A83: ='Interface_City issues'!B36 -> 0 | J83: ='Interface_City issues'!E36 -> 0 | K83: ='Interface_City issues'!F36 -> 0 | L83: ='Interface_City issues'!G36 -> 0 | M83: ='Interface_City issues'!H36 -> 0 | N83: ='Interface_City issues'!I36 -> 0 | O83: ='Interface_City issues'!J36 -> 0 | P83: ='Interface_City issues'!K36 -> 0 | Q83: ='Interface_City issues'!L36 -> 0 | R83: ='Interface_City issues'!M36 -> 0 | AA83: IRC
A84: ='Interface_City issues'!B37 -> 0 | J84: ='Interface_City issues'!E37 -> 0 | K84: ='Interface_City issues'!F37 -> 0 | L84: ='Interface_City issues'!G37 -> 0 | M84: ='Interface_City issues'!H37 -> 0 | N84: ='Interface_City issues'!I37 -> 0 | O84: ='Interface_City issues'!J37 -> 0 | P84: ='Interface_City issues'!K37 -> 0 | Q84: ='Interface_City issues'!L37 -> 0 | R84: ='Interface_City issues'!M37 -> 0 | AA84: IRC
A85: ='Interface_City issues'!B38 -> 0 | J85: ='Interface_City issues'!E38 -> 0 | K85: ='Interface_City issues'!F38 -> 0 | L85: ='Interface_City issues'!G38 -> 0 | M85: ='Interface_City issues'!H38 -> 0 | N85: ='Interface_City issues'!I38 -> 0 | O85: ='Interface_City issues'!J38 -> 0 | P85: ='Interface_City issues'!K38 -> 0 | Q85: ='Interface_City issues'!L38 -> 0 | R85: ='Interface_City issues'!M38 -> 0 | AA85: IRC
A86: ='Interface_City issues'!B39 -> 0 | J86: ='Interface_City issues'!E39 -> 0 | K86: ='Interface_City issues'!F39 -> 0 | L86: ='Interface_City issues'!G39 -> 0 | M86: ='Interface_City issues'!H39 -> 0 | N86: ='Interface_City issues'!I39 -> 0 | O86: ='Interface_City issues'!J39 -> 0 | P86: ='Interface_City issues'!K39 -> 0 | Q86: ='Interface_City issues'!L39 -> 0 | R86: ='Interface_City issues'!M39 -> 0 | AA86: IRC
A87: ='Interface_City issues'!B40 -> 0 | J87: ='Interface_City issues'!E40 -> 0 | K87: ='Interface_City issues'!F40 -> 0 | L87: ='Interface_City issues'!G40 -> 0 | M87: ='Interface_City issues'!H40 -> 0 | N87: ='Interface_City issues'!I40 -> 0 | O87: ='Interface_City issues'!J40 -> 0 | P87: ='Interface_City issues'!K40 -> 0 | Q87: ='Interface_City issues'!L40 -> 0 | R87: ='Interface_City issues'!M40 -> 0 | AA87: IRC
A90: Influencing city-wide issues
A92: Storm water management | J92: Additional information
A93: Level | B93: Questions / Conditions | C93: ü = 1 | J93: Department | K93: System | L93: Budget
A94: 0 | B94: Does part or all of the city flood regularly? | C94: ='Interface_City issues'!C47 -> 0 | J94: ='Interface_City issues'!E47 -> 0 | K94: ='Interface_City issues'!F47 -> 0 | L94: ='Interface_City issues'!G47 -> 0 | AA94: IRC
A95: 1 | B95: Is there a department in charge of storm water management? | C95: ='Interface_City issues'!C48 -> 0 | J95: ='Interface_City issues'!E48 -> Dept of PWT is responsible for drainage | K95: ='Interface_City issues'!F48 -> 0 | L95: ='Interface_City issues'!G48 -> 0 | AA95: IRC
A96: 2 | B96: Does the department develop storm water management systems? | C96: ='Interface_City issues'!C49 -> 0 | J96: ='Interface_City issues'!E49 -> 0 | K96: ='Interface_City issues'!F49 -> 0 | L96: ='Interface_City issues'!G49 -> 0 | AA96: IRC
A97: 3 | B97: Has a sufficient budget been allocated for this? | C97: ='Interface_City issues'!C50 -> 0 | J97: ='Interface_City issues'!E50 -> 0 | K97: ='Interface_City issues'!F50 -> 0 | L97: ='Interface_City issues'!G50 -> 0 | AA97: IRC
A98: 4 | B98: Is the system maintained? | C98: ='Interface_City issues'!C51 -> 0 | J98: ='Interface_City issues'!E51 -> 0 | K98: ='Interface_City issues'!F51 -> 0 | L98: ='Interface_City issues'!G51 -> 0 | AA98: IRC
A101: Solid waste management | J101: Additional information
A102: Level | B102: Questions / Conditions | C102: ü = 1 | J102: Department | K102: System | L102: Budget
A103: 0 | B103: Is there a department in charge of solid waste management? | C103: ='Interface_City issues'!C56 -> 0 | J103: ='Interface_City issues'!E56 -> 0 | K103: ='Interface_City issues'!F56 -> 0 | L103: ='Interface_City issues'!G56 -> 0 | AA103: IRC
A104: 1 | B104: Does the department carry out solid waste management? | C104: ='Interface_City issues'!C57 -> 0 | J104: ='Interface_City issues'!E57 -> 0 | K104: ='Interface_City issues'!F57 -> 0 | L104: ='Interface_City issues'!G57 -> 0 | AA104: IRC
A105: 2 | B105: Is the service regular? | C105: ='Interface_City issues'!C58 -> 0 | J105: ='Interface_City issues'!E58 -> 0 | K105: ='Interface_City issues'!F58 -> 0 | L105: ='Interface_City issues'!G58 -> 0 | AA105: IRC
A106: 3 | B106: Has a sufficient budget been allocated for this? | C106: ='Interface_City issues'!C59 -> 0 | J106: ='Interface_City issues'!E59 -> 0 | K106: ='Interface_City issues'!F59 -> 0 | L106: ='Interface_City issues'!G59 -> 0 | AA106: IRC
A107: 4 | B107: Is solid waste management (seen as) a problem in the city? | C107: ='Interface_City issues'!C60 -> 0 | J107: ='Interface_City issues'!E60 -> 0 | K107: ='Interface_City issues'!F60 -> 0 | L107: ='Interface_City issues'!G60 -> 0 | AA107: IRC

Sheet Capture Containment SC
A1: ='User interface_RES'!AJ11 -> Just a city in a victious place, Southeast Asia
A3: CAPTURE AND CONTAINMENT ELEMENTS | SCORE CARDS
A6: Building regulations for sanitation | J6: Additional information
A7: Level | B7: Questions / Indicators | C7: ü = 1 | D7: Weight | E7: WS | F7: Weight best-case | G7: WS | H7: Weighted score | J7: Location/ author | K7: Policy/ Legislation/ Standard number
A8: 0 | B8: No standards | C8: ='Interface_Permits & standards'!C11 -> 1 | D8: 1 | E8: =IF(C8=1,(C8*D8)*1,"") -> 1 | F8: 1 | G8: =IF(C8=1,(C8*F8),"") -> 1 | H8: =G8 -> 1 | J8: ='Interface_Permits & standards'!E11 -> No standards were present but houseowners need to have the design of onsite septic tanks included in the building permit request | K8: ='Interface_Permits & standards'!F11 -> 0 | L8: ='Interface_Permits & standards'!G11 -> License is provided by Department of Construction and Urban Planning but Dept of PWT and Dept of Environment provide additional advice | AA8: IRC
A9: 1 | B9: Some construction standards present | C9: ='Interface_Permits & standards'!C12 -> 0 | D9: 0.25 | E9: =IF(C9=1,(C9*D9)*1,"") ->  | F9: 0.25 | G9: =IF(C9=1,(C9*F9),"") ->  | H9: =G9 ->  | J9: ='Interface_Permits & standards'!E12 -> 0 | K9: ='Interface_Permits & standards'!F12 -> 0 | L9: ='Interface_Permits & standards'!G12 -> 0 | AA9: IRC
A10: 2 | B10: Complete construction standards | C10: ='Interface_Permits & standards'!C13 -> 0 | D10: 1 | E10: =IF(C10=1,(C10*D10)*1,"") ->  | F10: 1 | G10: =IF(C10=1,(C10*F10),"") ->  | H10: =G10 ->  | J10: ='Interface_Permits & standards'!E13 -> 0 | K10: ='Interface_Permits & standards'!F13 -> 0 | L10: ='Interface_Permits & standards'!G13 -> 0 | AA10: IRC
A11: 3 | B11: Municipal department responsible for policy compliance and enforcement | C11: ='Interface_Permits & standards'!C14 -> 1 | D11: 0.5 | E11: =IF(C11=1,(C11*D11)*1,"") -> 0.5 | F11: 0.5 | G11: =IF(C11=1,(C11*F11),"") -> 0.5 | H11: =G11 -> 0.5 | J11: ='Interface_Permits & standards'!E14 -> Department of Land Management and Urban Planning | K11: ='Interface_Permits & standards'!F14 -> 0 | L11: ='Interface_Permits & standards'!G14 -> Department of Environment is responsible for inspecting onsite septic tanks | AA11: IRC
A12: 4 | B12: Standards enforced | C12: ='Interface_Permits & standards'!C15 -> 0 | D12: 0.25 | E12: =IF(C12=1,(C12*D12)*1,"") ->  | F12: 1 | G12: =IF(C12=1,(C12*F12),"") ->  | H12: =IF(C9=1,E12,G12) ->  | J12: ='Interface_Permits & standards'!E15 -> Doubtful as this is the responsibility of the Department of Environment for onsite septic tanks | K12: ='Interface_Permits & standards'!F15 -> Properties usually do not get inspected when completed as they never get completed. | L12: ='Interface_Permits & standards'!G15 -> House owners need to pay housing construction tax at the start and end of construction | AA12: IRC
B14: Total score | E14: =SUM(E8:E12) -> 1.5 | G14: =SUM(G8:G12) -> 1.5 | H14: =SUM(H8:H12) -> 1.5
B16: Maximum score | H16: =SUM(F10:F12) -> 2.5
B18: Average score | C18: =SUM(C8:C12) -> 2 | H18: =IF(C8=1,0,H14/H16) -> 0
A21: Permits and permissions | J21: Additional information
A22: Level | B22: Questions / Indicators | C22: ü = 1 | F22: Weight best-case | G22: WS | H22: Weighted score | J22: Standard author | K22: Policy/ standard number
A23: 0 | B23: No permit required | C23: ='Interface_Permits & standards'!C20 -> 0 | D23: 1 | E23: =IF(C23=1,(C23*D23)*1,"") ->  | F23: 1 | G23: =IF(C23=1,(C23*F23),"") ->  | H23: =G23 ->  | AA23: IRC
A24: 1 | B24: Permit required | C24: ='Interface_Permits & standards'!C21 -> 1 | D24: 1 | E24: =IF(C24=1,(C24*D24)*1,"") -> 1 | F24: 1 | G24: =IF(C24=1,(C24*F24),"") -> 1 | H24: =G24 -> 1 | J24: ='Interface_Permits & standards'!E21 -> 0 | K24: ='Interface_Permits & standards'!F21 -> 0 | L24: ='Interface_Permits & standards'!G21 -> 0 | AA24: IRC
A25: 2 | B25: Department responsible for permits | C25: ='Interface_Permits & standards'!C22 -> 1 | D25: 1 | E25: =IF(C25=1,(C25*D25)*1,"") -> 1 | F25: 1 | G25: =IF(C25=1,(C25*F25),"") -> 1 | H25: =G25 -> 1 | J25: ='Interface_Permits & standards'!E22 -> Department of Land Management and Urban Planning | K25: ='Interface_Permits & standards'!F22 -> 0 | L25: ='Interface_Permits & standards'!G22 -> 0 | AA25: IRC
A26: 3 | B26: Permit enforcement / checked | C26: ='Interface_Permits & standards'!C23 -> 0 | D26: 1 | E26: =IF(C26=1,(C26*D26)*1,"") ->  | F26: 1 | G26: =IF(C26=1,(C26*F26),"") ->  | H26: =G26 ->  | J26: ='Interface_Permits & standards'!E23 -> Building inspection yes by Dept of LMUP but that does not include inspection of onsite septic tanks | K26: ='Interface_Permits & standards'!F23 -> 0 | L26: ='Interface_Permits & standards'!G23 -> 0 | AA26: IRC
B28: Total score | G28: =SUM(G24:G26) -> 2 | H28: =SUM(H24:H26) -> 2
B30: Maximum score | H30: =SUM(F24:F26) -> 3
B32: Average score | C32: =SUM(C24:C26) -> 2 | H32: =IF(C23=1,0,H28/H30) -> 0.6666666667
A35: Infrastructure investment budget
A36: Level | B36: Questions / Indicators | C36: ü = 1 | D36: Weight | E36: WS | F36: Weight best-case | G36: WS | H36: Weighted score | J36: Additional information | M36: Amounts | N36: Currency
B37: Not available or not relevant | C37: =Interface_Budgets!C36 -> 1 | J37: =Interface_Budgets!E37 -> Dept of PWT is responsible for maintaining drainage and sewerage system | M37: =Interface_Budgets!H37 -> 0 | N37: =Interface_Budgets!I37 -> 0 | AA37: IRC
A38: 0 | B38: Is there a municipal budget? | C38: =Interface_Budgets!C37 -> 0 | D38: 1 | E38: =IF(C38=1,(C38*D38)*1,"") ->  | F38: 1 | G38: =IF(C38=1,(C38*F38),"") ->  | H38: =G38 ->  | J38: =Interface_Budgets!E38 -> There is no budget. Own income generated from monthly tariffs and registration of pit emptying services | M38: =Interface_Budgets!H38 -> 0 | N38: =Interface_Budgets!I38 -> 0 | AA38: IRC
A39: 1 | B39: Is funding allocation in line with the budget? | C39: =Interface_Budgets!C38 -> 0 | D39: 1 | F39: 1 | G39: =IF(C39=1,(C39*F39)*1,"") ->  | J39: =Interface_Budgets!E39 -> Ministry of PWT pays for staff of treatment plant (+50) plus electricity bill | M39: =Interface_Budgets!H39 -> 0 | N39: =Interface_Budgets!I39 -> 0 | AA39: IRC
A40: 2 | B40: Is the funding allocated given in time to be used? | C40: =Interface_Budgets!C39 -> 0 | D40: 1 | F40: 1 | J40: =Interface_Budgets!E40 -> 0 | M40: =Interface_Budgets!H40 -> 0 | N40: =Interface_Budgets!I40 -> 0 | AA40: IRC
A41: 3 | B41: Is enough funding given to cover the requirements? | C41: =Interface_Budgets!C40 -> 0 | D41: 1 | F41: 1 | J41: =Interface_Budgets!E41 -> 0 | M41: =Interface_Budgets!H41 -> 0 | N41: =Interface_Budgets!I41 -> 0 | AA41: IRC
A42: 4 | B42: Is the funding used for its intended purpose? | C42: =Interface_Budgets!C41 -> 0 | D42: 1 | F42: 1 | J42: =Interface_Budgets!E42 -> 0 | M42: =Interface_Budgets!H42 -> 0 | N42: =Interface_Budgets!I42 -> 0 | AA42: IRC
A43: 5 | B43: Is all the funding used? | C43: =Interface_Budgets!C42 -> 0 | D43: 1 | F43: 1 | J43: =Interface_Budgets!E43 -> 0 | M43: =Interface_Budgets!H43 -> 0 | N43: =Interface_Budgets!I43 -> 0 | AA43: IRC
A44: 6 | B44: Is the funding allocation and spending transparent? | C44: =Interface_Budgets!C43 -> 0 | D44: 1 | F44: 1 | H44: =IF(C39=1,E44,G44) ->  | J44: =Interface_Budgets!E44 -> 0 | M44: =Interface_Budgets!H44 -> 0 | N44: =Interface_Budgets!I44 -> 0 | AA44: IRC
B46: Total score | E46: =SUM(E38:E44) -> 0 | G46: =SUM(G38:G44) -> 0 | H46: =SUM(H38:H44) -> 0
B48: Maximum score | H48: =SUM(F38:F44) -> 7
B50: Average score | C50: =SUM(C38:C44) -> 0 | H50: =IF(C37=1,"",(H46/H48)) -> 
A53: Operational recurring budget
A54: Level | B54: Questions / Indicators | C54: ü = 1 | D54: Weight | E54: WS | F54: Weight best-case | G54: WS | H54: Weighted score | J54: Additional information | M54: Amounts | N54: Currency
B55: Not available or not relevant | C55: =Interface_Budgets!C48 -> 1 | J55: =Interface_Budgets!E49 -> 0 | M55: =Interface_Budgets!H49 -> 0 | N55: =Interface_Budgets!I49 -> 0 | AA55: IRC
A56: 0 | B56: Is there a municipal budget? | C56: =Interface_Budgets!C49 -> 0 | D56: 1 | E56: =IF(C56=1,(C56*D56)*1,"") ->  | F56: 1 | G56: =IF(C56=1,(C56*F56),"") ->  | H56: =G56 ->  | J56: =Interface_Budgets!E50 -> 0 | M56: =Interface_Budgets!H50 -> 0 | N56: =Interface_Budgets!I50 -> 0 | AA56: IRC
A57: 1 | B57: Is funding allocation in line with the budget? | C57: =Interface_Budgets!C50 -> 0 | D57: 1 | F57: 1 | G57: =IF(C57=1,(C57*F57)*1,"") ->  | J57: =Interface_Budgets!E51 -> 0 | M57: =Interface_Budgets!H51 -> 0 | N57: =Interface_Budgets!I51 -> 0 | AA57: IRC
A58: 2 | B58: Is the funding allocated given in time to be used? | C58: =Interface_Budgets!C51 -> 0 | D58: 1 | F58: 1 | J58: =Interface_Budgets!E52 -> 0 | M58: =Interface_Budgets!H52 -> 0 | N58: =Interface_Budgets!I52 -> 0 | AA58: IRC
A59: 3 | B59: Is enough funding given to cover the requirements? | C59: =Interface_Budgets!C52 -> 0 | D59: 1 | F59: 1 | J59: =Interface_Budgets!E53 -> 0 | M59: =Interface_Budgets!H53 -> 0 | N59: =Interface_Budgets!I53 -> 0 | AA59: IRC
A60: 4 | B60: Is the funding used for its intended purpose? | C60: =Interface_Budgets!C53 -> 0 | D60: 1 | F60: 1 | J60: =Interface_Budgets!E54 -> 0 | M60: =Interface_Budgets!H54 -> 0 | N60: =Interface_Budgets!I54 -> 0 | AA60: IRC
A61: 5 | B61: Is all the funding used? | C61: =Interface_Budgets!C54 -> 0 | D61: 1 | F61: 1 | J61: =Interface_Budgets!E55 -> 0 | M61: =Interface_Budgets!H55 -> 0 | N61: =Interface_Budgets!I55 -> 0 | AA61: IRC
A62: 6 | B62: Is the funding allocation and spending transparent? | C62: =Interface_Budgets!C55 -> 0 | D62: 1 | F62: 1 | H62: =IF(C57=1,E62,G62) ->  | J62: =Interface_Budgets!E56 -> 0 | M62: =Interface_Budgets!H56 -> 0 | N62: =Interface_Budgets!I56 -> 0 | AA62: IRC
B64: Total score | E64: =SUM(E56:E62) -> 0 | G64: =SUM(G56:G62) -> 0 | H64: =SUM(H56:H62) -> 0
B66: Maximum score | H66: =SUM(F56:F62) -> 7
B68: Average score | C68: =SUM(C56:C62) -> 0 | H68: =IF(C55=1,"",(H64/H66)) -> 

Sheet Emptying SC
A1: ='User interface_RES'!AJ11 -> Just a city in a victious place, Southeast Asia
A3: EMPTYING ELEMENT | SCORE CARDS
A6: Safety standards | J6: Additional information
A7: Level | B7: Questions / Indicators | C7: ü = 1 | D7: Weight | E7: WS | F7: Weight best-case | G7: WS | H7: Weighted score | J7: Location/ author | K7: Policy/ Legislation/ Standard number | L7: Other information
A8: 0 | B8: No standards | C8: ='Interface_Permits & standards'!C30 -> 1 | D8: 1 | E8: =IF(C8=1,(C8*D8)*0,"") -> 0 | F8: 1 | G8: =IF(C8=1,(C8*F8)*0,"") -> 0 | H8: =G8 -> 0 | J8: ='Interface_Permits & standards'!E30 -> 0 | K8: ='Interface_Permits & standards'!F30 -> 0 | L8: ='Interface_Permits & standards'!G30 -> 0 | AA8: IRC
A9: 1 | B9: Some safety standards present | C9: ='Interface_Permits & standards'!C31 -> 0 | D9: 0.25 | E9: =IF(C9=1,(C9*D9)*1,"") ->  | F9: 0.25 | G9: =IF(C9=1,(C9*F9)*1,"") ->  | H9: =G9 ->  | J9: ='Interface_Permits & standards'!E31 -> 0 | K9: ='Interface_Permits & standards'!F31 -> 0 | L9: ='Interface_Permits & standards'!G31 -> 0 | AA9: IRC
A10: 2 | B10: Complete safety standards | C10: ='Interface_Permits & standards'!C32 -> 0 | D10: 1 | E10: =IF(C10=1,(C10*D10)*1,"") ->  | F10: 1 | G10: =IF(C10=1,(C10*F10)*1,"") ->  | H10: =G10 ->  | J10: ='Interface_Permits & standards'!E32 -> 0 | K10: ='Interface_Permits & standards'!F32 -> 0 | L10: ='Interface_Permits & standards'!G32 -> 0 | AA10: IRC
A11: 3 | B11: Department responsible for policy compliance and enforcement | C11: ='Interface_Permits & standards'!C33 -> 0 | D11: 0.5 | E11: =IF(C11=1,(C11*D11)*1,"") ->  | F11: 0.5 | G11: =IF(C11=1,(C11*F11)*1,"") ->  | H11: =G11 ->  | J11: ='Interface_Permits & standards'!E33 -> 0 | K11: ='Interface_Permits & standards'!F33 -> 0 | L11: ='Interface_Permits & standards'!G33 -> 0 | AA11: IRC
A12: 4 | B12: Standards enforced | C12: ='Interface_Permits & standards'!C34 -> 0 | D12: 0.25 | E12: =IF(C12=1,(C12*D12)*1,"") ->  | F12: 1 | G12: =IF(C12=1,(C12*F12)*1,"") ->  | H12: =IF(C9=1,E12,G12) ->  | J12: ='Interface_Permits & standards'!E34 -> 0 | K12: ='Interface_Permits & standards'!F34 -> 0 | L12: ='Interface_Permits & standards'!G34 -> 0 | AA12: IRC
B14: Total score | E14: =SUM(E8:E12) -> 0 | G14: =SUM(G8:G12) -> 0 | H14: =SUM(H8:H12) -> 0
B16: Maximum score | H16: =SUM(F10:F12) -> 2.5
B18: Average score | C18: =SUM(C8:C12) -> 1 | H18: =IF(C8=1,0,H14/H16) -> 0
A22: Safe faecal sludge emptying practices by MANUAL SERVICE PROVIDERS
A23: Level | B23: Questions / Indicators | C23: ü = 1 | D23: Weight | E23: WS | F23: Weight best-case | G23: WS | H23: Weighted score | J23: Additional information
B24: Not relevant | C24: ='Interface_Emptying & Transport'!C65 -> 1 | J24: This means that there are no mechanical pit emptying services available | AA24: IRC
A25: 1 | B25: Emptying practices avoid entering the pit or tank | C25: ='Interface_Emptying & Transport'!C66 -> 0 | D25: 1 | E25: =IF(C25=1,(C25*D25)*1,"") ->  | F25: 1 | G25: =IF(C25=1,(C25*F25)*1,"") ->  | H25: =G25 ->  | J25: ='Interface_Emptying & Transport'!E66 -> 0 | AA25: IRC
A26: 2 | B26: Workers wear minimum protective gear | C26: ='Interface_Emptying & Transport'!C67 -> 0 | D26: 1 | F26: 1 | H26: =G26 ->  | J26: ='Interface_Emptying & Transport'!E67 -> 0 | AA26: IRC
A27: 3 | B27: Cleaning materials and disinfectives are available | C27: ='Interface_Emptying & Transport'!C68 -> 0 | D27: 1 | F27: 1 | H27: =G27 ->  | J27: ='Interface_Emptying & Transport'!E68 -> 0 | AA27: IRC
A28: 4 | B28: Cleaning materials and disinfectives are used when there is a spill | C28: ='Interface_Emptying & Transport'!C69 -> 0 | D28: 1 | F28: 1 | H28: =G28 ->  | J28: ='Interface_Emptying & Transport'!E69 -> 0 | AA28: IRC
A29: 5 | B29: Workers do wash their hands with soap after the job is done | C29: ='Interface_Emptying & Transport'!C70 -> 0 | D29: 1 | F29: 1 | H29: =G29 ->  | J29: ='Interface_Emptying & Transport'!E70 -> 0 | AA29: IRC
A30: 6 | B30: Workers attended training on minimum safety standards | C30: ='Interface_Emptying & Transport'!C71 -> 0 | D30: 1 | F30: 1 | H30: =IF(C26=1,E30,G30) ->  | J30: ='Interface_Emptying & Transport'!E71 -> 0 | AA30: IRC
B32: Total score | E32: =SUM(E25:E30) -> 0 | G32: =SUM(G25:G30) -> 0 | H32: =SUM(H25:H30) -> 0
B34: Maximum score | H34: =SUM(F25:F30) -> 6
B36: Average score | C36: =SUM(C25:C30) -> 0 | H36: =IF(C24=1,"",H32/H34) -> 
A39: Safe faecal sludge emptying practices by MECHANICAL SERVICE PROVIDERS
A40: Level | B40: Questions / Indicators | C40: ü = 1 | D40: Weight | E40: WS | F40: Weight best-case | G40: WS | H40: Weighted score | J40: Additional information
B41: Not relevant | C41: ='Interface_Emptying & Transport'!C76 -> 0 | J41: This means that there are no mechanical pit emptying services available | AA41: IRC
A42: 0 | B42: Emptying practices avoid entering the pit or tank | C42: ='Interface_Emptying & Transport'!C77 -> 1 | D42: 1 | E42: =IF(C42=1,(C42*D42)*1,"") -> 1 | F42: 1 | G42: =IF(C42=1,(C42*F42)*1,"") -> 1 | H42: =G42 -> 1 | J42: ='Interface_Emptying & Transport'!E77 -> 0 | AA42: IRC
A43: 1 | B43: Workers wear minimum protective gear | C43: ='Interface_Emptying & Transport'!C78 -> 0 | D43: 1 | F43: 1 | J43: ='Interface_Emptying & Transport'!E78 -> 0 | AA43: IRC
A44: 2 | B44: Cleaning materials and disinfectives are available | C44: ='Interface_Emptying & Transport'!C79 -> 0 | D44: 1 | F44: 1 | J44: ='Interface_Emptying & Transport'!E79 -> 0 | AA44: IRC
A45: 3 | B45: Cleaning materials and disinfectives are used when there is a spill | C45: ='Interface_Emptying & Transport'!C80 -> 0 | D45: 1 | F45: 1 | J45: ='Interface_Emptying & Transport'!E80 -> 0 | AA45: IRC
A46: 4 | B46: Workers do wash their hands with soap after empting | C46: ='Interface_Emptying & Transport'!C81 -> 0 | D46: 1 | F46: 1 | J46: ='Interface_Emptying & Transport'!E81 -> 0 | AA46: IRC
A47: 5 | B47: Safety protocol in place | C47: ='Interface_Emptying & Transport'!C82 -> 0 | D47: 1 | F47: 1 | J47: ='Interface_Emptying & Transport'!E82 -> 0 | AA47: IRC
A48: 6 | B48: Workers trained on safety aspects | C48: ='Interface_Emptying & Transport'!C83 -> 0 | D48: 1 | F48: 1 | J48: ='Interface_Emptying & Transport'!E83 -> 0 | AA48: IRC
B50: Total score | E50: =SUM(E42:E48) -> 1 | G50: =SUM(G42:G48) -> 1 | H50: =SUM(H42:H48) -> 1
B52: Maximum score | H52: =SUM(F42:F48) -> 7
B54: Average score | C54: =SUM(C42:C48) -> 1 | H54: =IF(C41=1,"",H50/H52) -> 0.1428571429
A57: Business licences and permissions | J57: Additional information
A58: Level | B58: Questions / Indicators | C58: ü = 1 | F58: Weight best-case | G58: WS | H58: Weighted score | J58: Standard author | K58: Policy/ standard number | L58: Other information
A59: 0 | B59: No licence required | C59: ='Interface_Permits & standards'!C39 -> 1 | J59: ='Interface_Permits & standards'!E39 -> No specific licenses or permits required for pit emptying business | K59: ='Interface_Permits & standards'!F39 -> 0 | L59: ='Interface_Permits & standards'!G39 -> 0 | AA59: IRC
A60: 1 | B60: Licences required | C60: ='Interface_Permits & standards'!C40 -> 0 | F60: 1 | G60: =IF(C60=1,(C60*F60)*1,"") ->  | H60: =G60 ->  | J60: ='Interface_Permits & standards'!E40 -> 0 | K60: ='Interface_Permits & standards'!F40 -> 0 | L60: ='Interface_Permits & standards'!G40 -> 0 | AA60: IRC
A61: 2 | B61: Department responsible for licenses | C61: ='Interface_Permits & standards'!C41 -> 0 | F61: 1 | G61: =IF(C61=1,(C61*F61)*1,"") ->  | H61: =G61 ->  | J61: ='Interface_Permits & standards'!E41 -> 0 | K61: ='Interface_Permits & standards'!F41 -> 0 | L61: ='Interface_Permits & standards'!G41 -> 0 | AA61: IRC
A62: 3 | B62: Licence enforcement / checked | C62: ='Interface_Permits & standards'!C42 -> 0 | F62: 1 | G62: =IF(C62=1,(C62*F62)*1,"") ->  | H62: =G62 ->  | J62: ='Interface_Permits & standards'!E42 -> 0 | K62: ='Interface_Permits & standards'!F42 -> 0 | L62: ='Interface_Permits & standards'!G42 -> 0 | AA62: IRC
B64: Total score | G64: =SUM(G60:G62) -> 0 | H64: =SUM(H60:H62) -> 0
B66: Maximum score | H66: =SUM(F60:F62) -> 3
B68: Average score | C68: =SUM(C60:C62) -> 0 | H68: =IF(A59=1,0,H64/H66) -> 0
A71: Infrastructure investment budget
A72: Level | B72: Questions / Indicators | C72: ü = 1 | D72: Weight | E72: WS | F72: Weight best-case | G72: WS | H72: Weighted score | J72: Additional information | M72: Amounts | N72: Currency
B73: Not available or not relevant | C73: =Interface_Budgets!C62 -> 1 | J73: =Interface_Budgets!E62 -> 0 | M73: =Interface_Budgets!H62 -> 0 | N73: =Interface_Budgets!I62 -> 0 | AA73: IRC
A74: 0 | B74: Is there a municipal budget? | C74: =Interface_Budgets!C63 -> 0 | D74: 1 | E74: =IF(C74=1,(C74*D74)*1,"") ->  | F74: 1 | G74: =IF(C74=1,(C74*F74),"") ->  | H74: =G74 ->  | J74: =Interface_Budgets!E63 -> 0 | M74: =Interface_Budgets!H63 -> 0 | N74: =Interface_Budgets!I63 -> 0 | AA74: IRC
A75: 1 | B75: Is funding allocation in line with the budget? | C75: =Interface_Budgets!C64 -> 0 | D75: 1 | F75: 1 | G75: =IF(C75=1,(C75*F75)*1,"") ->  | J75: =Interface_Budgets!E64 -> 0 | M75: =Interface_Budgets!H64 -> 0 | N75: =Interface_Budgets!I64 -> 0 | AA75: IRC
A76: 2 | B76: Is the funding allocated given in time to be used? | C76: =Interface_Budgets!C65 -> 0 | D76: 1 | F76: 1 | J76: =Interface_Budgets!E65 -> 0 | M76: =Interface_Budgets!H65 -> 0 | N76: =Interface_Budgets!I65 -> 0 | AA76: IRC
A77: 3 | B77: Is enough funding given to cover the requirements? | C77: =Interface_Budgets!C66 -> 0 | D77: 1 | F77: 1 | J77: =Interface_Budgets!E66 -> 0 | M77: =Interface_Budgets!H66 -> 0 | N77: =Interface_Budgets!I66 -> 0 | AA77: IRC
A78: 4 | B78: Is the funding used for its intended purpose? | C78: =Interface_Budgets!C67 -> 0 | D78: 1 | F78: 1 | J78: =Interface_Budgets!E67 -> 0 | M78: =Interface_Budgets!H67 -> 0 | N78: =Interface_Budgets!I67 -> 0 | AA78: IRC
A79: 5 | B79: Is all the funding used? | C79: =Interface_Budgets!C68 -> 0 | D79: 1 | F79: 1 | J79: =Interface_Budgets!E68 -> 0 | M79: =Interface_Budgets!H68 -> 0 | N79: =Interface_Budgets!I68 -> 0 | AA79: IRC
A80: 6 | B80: Is the funding allocation and spending transparent? | C80: =Interface_Budgets!C69 -> 0 | D80: 1 | F80: 1 | J80: =Interface_Budgets!E69 -> 0 | M80: =Interface_Budgets!H69 -> 0 | N80: =Interface_Budgets!I69 -> 0 | AA80: IRC
B82: Total score | E82: =SUM(E74:E80) -> 0 | G82: =SUM(G74:G80) -> 0 | H82: =SUM(H74:H80) -> 0
B84: Maximum score | H84: =SUM(F74:F80) -> 7
B86: Average score | C86: =SUM(C74:C80) -> 0 | H86: =IF(C73=1,"",(H82/H84)) -> 
A89: Operational recurring budget
A90: Level | B90: Questions / Indicators | C90: ü = 1 | D90: Weight | E90: WS | F90: Weight best-case | G90: WS | H90: Weighted score | J90: Additional information | M90: Amounts | N90: Currency
B91: Not available or not relevant | C91: =Interface_Budgets!C74 -> 1 | J91: =Interface_Budgets!E74 -> 0 | M91: =Interface_Budgets!H74 -> 0 | N91: =Interface_Budgets!I74 -> 0 | AA91: IRC
A92: 0 | B92: Is there a municipal budget? | C92: =Interface_Budgets!C75 -> 0 | D92: 1 | E92: =IF(C92=1,(C92*D92)*1,"") ->  | F92: 1 | G92: =IF(C92=1,(C92*F92),"") ->  | H92: =G92 ->  | J92: =Interface_Budgets!E75 -> 0 | M92: =Interface_Budgets!H75 -> 0 | N92: =Interface_Budgets!I75 -> 0 | AA92: IRC
A93: 1 | B93: Is funding allocation in line with the budget? | C93: =Interface_Budgets!C76 -> 0 | D93: 1 | F93: 1 | G93: =IF(C93=1,(C93*F93)*1,"") ->  | J93: =Interface_Budgets!E76 -> 0 | M93: =Interface_Budgets!H76 -> 0 | N93: =Interface_Budgets!I76 -> 0 | AA93: IRC
A94: 2 | B94: Is the funding allocated given in time to be used? | C94: =Interface_Budgets!C77 -> 0 | D94: 1 | F94: 1 | J94: =Interface_Budgets!E77 -> 0 | M94: =Interface_Budgets!H77 -> 0 | N94: =Interface_Budgets!I77 -> 0 | AA94: IRC
A95: 3 | B95: Is enough funding given to cover the requirements? | C95: =Interface_Budgets!C78 -> 0 | D95: 1 | F95: 1 | J95: =Interface_Budgets!E78 -> 0 | M95: =Interface_Budgets!H78 -> 0 | N95: =Interface_Budgets!I78 -> 0 | AA95: IRC
A96: 4 | B96: Is the funding used for its intended purpose? | C96: =Interface_Budgets!C79 -> 0 | D96: 1 | F96: 1 | J96: =Interface_Budgets!E79 -> 0 | M96: =Interface_Budgets!H79 -> 0 | N96: =Interface_Budgets!I79 -> 0 | AA96: IRC
A97: 5 | B97: Is all the funding used? | C97: =Interface_Budgets!C80 -> 0 | D97: 1 | F97: 1 | J97: =Interface_Budgets!E80 -> 0 | M97: =Interface_Budgets!H80 -> 0 | N97: =Interface_Budgets!I80 -> 0 | AA97: IRC
A98: 6 | B98: Is the funding allocation and spending transparent? | C98: =Interface_Budgets!C81 -> 0 | D98: 1 | F98: 1 | J98: =Interface_Budgets!E81 -> 0 | M98: =Interface_Budgets!H81 -> 0 | N98: =Interface_Budgets!I81 -> 0 | AA98: IRC
B100: Total score | E100: =SUM(E92:E98) -> 0 | G100: =SUM(G92:G98) -> 0 | H100: =SUM(H92:H98) -> 0
B102: Maximum score | H102: =SUM(F92:F98) -> 7
B104: Average score | C104: =SUM(C92:C98) -> 0 | H104: =IF(C91=1,"",(H100/H102)) -> 

Sheet Transport SC
A1: ='User interface_RES'!AJ11 -> Just a city in a victious place, Southeast Asia
A3: TRANSPORT ELEMENT | SCORE CARDS
A6: Regulations regarding safety standards | J6: Additional information
A7: Level | B7: Questions / Indicators | C7: ü = 1 | D7: Weight | E7: WS | F7: Weight best-case | G7: WS | H7: Weighted score | J7: Location/ author | K7: Policy/ Legislation/ Standard number | L7: Other information
A8: 0 | B8: No standards | C8: ='Interface_Permits & standards'!C50 -> 1 | D8: 1 | E8: =IF(C8=1,(C8*D8)*0,"") -> 0 | F8: 1 | G8: =IF(C8=1,(C8*F8)*0,"") -> 0 | H8: =G8 -> 0 | J8: ='Interface_Permits & standards'!E50 -> 0 | K8: ='Interface_Permits & standards'!F50 -> 0 | L8: ='Interface_Permits & standards'!G50 -> 0 | AA8: IRC
A9: 1 | B9: Some safety standards present | C9: ='Interface_Permits & standards'!C51 -> 0 | D9: 0.25 | E9: =IF(C9=1,(C9*D9)*1,"") ->  | F9: 0.25 | G9: =IF(C9=1,(C9*F9)*1,"") ->  | H9: =G9 ->  | J9: ='Interface_Permits & standards'!E51 -> 0 | K9: ='Interface_Permits & standards'!F51 -> 0 | L9: ='Interface_Permits & standards'!G51 -> 0 | AA9: IRC
A10: 2 | B10: Complete safety standards | C10: ='Interface_Permits & standards'!C52 -> 0 | D10: 1 | E10: =IF(C10=1,(C10*D10)*1,"") ->  | F10: 1 | G10: =IF(C10=1,(C10*F10)*1,"") ->  | H10: =G10 ->  | J10: ='Interface_Permits & standards'!E52 -> 0 | K10: ='Interface_Permits & standards'!F52 -> 0 | L10: ='Interface_Permits & standards'!G52 -> 0 | AA10: IRC
A11: 3 | B11: Department responsible for policy compliance and enforcement | C11: ='Interface_Permits & standards'!C53 -> 0 | D11: 0.5 | E11: =IF(C11=1,(C11*D11)*1,"") ->  | F11: 0.5 | G11: =IF(C11=1,(C11*F11)*1,"") ->  | H11: =G11 ->  | J11: ='Interface_Permits & standards'!E53 -> 0 | K11: ='Interface_Permits & standards'!F53 -> 0 | L11: ='Interface_Permits & standards'!G53 -> 0 | AA11: IRC
A12: 4 | B12: Standards enforced | C12: ='Interface_Permits & standards'!C54 -> 0 | D12: 0.25 | E12: =IF(C12=1,(C12*D12)*1,"") ->  | F12: 1 | G12: =IF(C12=1,(C12*F12)*1,"") ->  | H12: =IF(C9=1,E12,G12) ->  | J12: ='Interface_Permits & standards'!E54 -> 0 | K12: ='Interface_Permits & standards'!F54 -> 0 | L12: ='Interface_Permits & standards'!G54 -> 0 | AA12: IRC
B14: Total score | E14: =SUM(E8:E12) -> 0 | G14: =SUM(G8:G12) -> 0 | H14: =SUM(H8:H12) -> 0
B16: Maximum score | H16: =SUM(F10:F12) -> 2.5
B18: Average score | C18: =SUM(C8:C12) -> 1 | H18: =IF(C8=1,0,H14/H16) -> 0
A21: Faecal sludge transportation practices by MECHINICAL SERVICE PROVIDERS | J21: Additional information
A22: Level | B22: Questions / Indicators | C22: ü = 1 | F22: Weight best-case | G22: WS | H22: Weighted score | J22: Standards
B23: Not relevant | C23: ='Interface_Emptying & Transport'!C88 -> 0 | J23: This means that there are no transportation services available | AA23: IRC
A24: 0 | B24: Vehicle marked for recognition | C24: ='Interface_Emptying & Transport'!C89 -> 1 | F24: 1 | G24: =IF(C24=1,(C24*F24)*1,"") -> 1 | H24: =G24 -> 1 | J24: ='Interface_Emptying & Transport'!E89 -> 0 | AA24: IRC
A25: 1 | B25: Inspection of transportation device prior to use | C25: ='Interface_Emptying & Transport'!C90 -> 1 | F25: 1 | G25: 1 | H25: 1 | J25: ='Interface_Emptying & Transport'!E90 -> 0 | AA25: IRC
A26: 2 | B26: Cleaning materials and disinfectives are available | C26: ='Interface_Emptying & Transport'!C91 -> 0 | F26: 1 | J26: ='Interface_Emptying & Transport'!E91 -> 0 | AA26: IRC
A27: 3 | B27: Cleaning materials and disinfectives are used when there is a spill | C27: ='Interface_Emptying & Transport'!C92 -> 0 | F27: 1 | J27: ='Interface_Emptying & Transport'!E92 -> 0 | AA27: IRC
A28: 4 | B28: Faecal sludge is discharged without spraying | C28: ='Interface_Emptying & Transport'!C93 -> 0 | F28: 1 | J28: ='Interface_Emptying & Transport'!E93 -> 0 | AA28: IRC
A29: 5 | B29: Protocol for any type of spillage is in place | C29: ='Interface_Emptying & Transport'!C94 -> 0 | F29: 1 | J29: ='Interface_Emptying & Transport'!E94 -> 0 | AA29: IRC
A30: 6 | B30: Workers trained on safety aspects | C30: ='Interface_Emptying & Transport'!C95 -> 0 | F30: 1 | H30: =G30 ->  | J30: ='Interface_Emptying & Transport'!E95 -> 0 | AA30: IRC
B32: Total score | G32: =SUM(G24:G30) -> 2 | H32: =SUM(H24:H30) -> 2
B34: Maximum score | H34: =SUM(F24:F30) -> 7
B36: Average score | C36: =SUM(C24:C30) -> 2 | H36: =IF(C23=1,"",H32/H34) -> 0.2857142857
A39: Business licences and permissions | J39: Additional information
A40: Level | B40: Questions / Indicators | C40: ü = 1 | F40: Weight best-case | G40: WS | H40: Weighted score | J40: Standard author | K40: Policy/ standard number | L40: Other information
A41: 0 | B41: No licences required | C41: ='Interface_Permits & standards'!C59 -> 0 | J41: ='Interface_Permits & standards'!E59 -> 0 | K41: ='Interface_Permits & standards'!F59 -> 0 | L41: ='Interface_Permits & standards'!G59 -> 0 | AA41: IRC
A42: 1 | B42: Licences required | C42: ='Interface_Permits & standards'!C60 -> 1 | F42: 1 | G42: =IF(C42=1,(C42*F42)*1,"") -> 1 | H42: =G42 -> 1 | J42: ='Interface_Permits & standards'!E60 -> Providers need to be registered at Dept of PWT to be able to dump sludge at treatment plant | K42: ='Interface_Permits & standards'!F60 -> 0 | L42: ='Interface_Permits & standards'!G60 -> 0 | AA42: IRC
A43: 2 | B43: Department responsible for licenses | C43: ='Interface_Permits & standards'!C61 -> 1 | F43: 1 | G43: =IF(C43=1,(C43*F43)*1,"") -> 1 | H43: =G43 -> 1 | J43: ='Interface_Permits & standards'!E61 -> Wastewater treatment plant | K43: ='Interface_Permits & standards'!F61 -> 0 | L43: ='Interface_Permits & standards'!G61 -> 0 | AA43: IRC
A44: 3 | B44: Licence enforcement / checked | C44: ='Interface_Permits & standards'!C62 -> 0 | F44: 1 | G44: =IF(C44=1,(C44*F44)*1,"") ->  | H44: =G44 ->  | J44: ='Interface_Permits & standards'!E62 -> No registration of dumps | K44: ='Interface_Permits & standards'!F62 -> 0 | L44: ='Interface_Permits & standards'!G62 -> 0 | AA44: IRC
B46: Total score | G46: =SUM(G42:G44) -> 2 | H46: =SUM(H42:H44) -> 2
B48: Maximum score | H48: =SUM(F42:F44) -> 3
B50: Average score | C50: =SUM(C42:C44) -> 2 | H50: =IF(A41=1,0,H46/H48) -> 0.6666666667
A53: Infrastructure investment budget related to transportation
A54: Level | B54: Questions / Indicators | C54: ü = 1 | D54: Weight | E54: WS | F54: Weight best-case | G54: WS | H54: Weighted score | J54: Additional information | M54: Amounts | N54: Currency
B55: Not available or not relevant | C55: =Interface_Budgets!C88 -> 1 | J55: =Interface_Budgets!E88 -> 0 | M55: =Interface_Budgets!H88 -> 0 | N55: =Interface_Budgets!I88 -> 0 | AA55: IRC
A56: 0 | B56: Is there a municipal budget? | C56: =Interface_Budgets!C89 -> 0 | D56: 1 | E56: =IF(C56=1,(C56*D56)*1,"") ->  | F56: 1 | G56: =IF(C56=1,(C56*F56),"") ->  | H56: =G56 ->  | J56: =Interface_Budgets!E89 -> 0 | M56: =Interface_Budgets!H89 -> 0 | N56: =Interface_Budgets!I89 -> 0 | AA56: IRC
A57: 1 | B57: Is funding allocation in line with the budget? | C57: =Interface_Budgets!C90 -> 0 | D57: 1 | F57: 1 | G57: =IF(C57=1,(C57*F57)*1,"") ->  | J57: =Interface_Budgets!E90 -> 0 | M57: =Interface_Budgets!H90 -> 0 | N57: =Interface_Budgets!I90 -> 0 | AA57: IRC
A58: 2 | B58: Is the funding allocated given in time to be used? | C58: =Interface_Budgets!C91 -> 0 | D58: 1 | F58: 1 | J58: =Interface_Budgets!E91 -> 0 | M58: =Interface_Budgets!H91 -> 0 | N58: =Interface_Budgets!I91 -> 0 | AA58: IRC
A59: 3 | B59: Is enough funding given to cover the requirements? | C59: =Interface_Budgets!C92 -> 0 | D59: 1 | F59: 1 | J59: =Interface_Budgets!E92 -> 0 | M59: =Interface_Budgets!H92 -> 0 | N59: =Interface_Budgets!I92 -> 0 | AA59: IRC
A60: 4 | B60: Is the funding used for its intended purpose? | C60: =Interface_Budgets!C93 -> 0 | D60: 1 | F60: 1 | J60: =Interface_Budgets!E93 -> 0 | M60: =Interface_Budgets!H93 -> 0 | N60: =Interface_Budgets!I93 -> 0 | AA60: IRC
A61: 5 | B61: Is all the funding used? | C61: =Interface_Budgets!C94 -> 0 | D61: 1 | F61: 1 | J61: =Interface_Budgets!E94 -> 0 | M61: =Interface_Budgets!H94 -> 0 | N61: =Interface_Budgets!I94 -> 0 | AA61: IRC
A62: 6 | B62: Is the funding allocation and spending transparent? | C62: =Interface_Budgets!C95 -> 0 | D62: 1 | F62: 1 | J62: =Interface_Budgets!E95 -> 0 | M62: =Interface_Budgets!H95 -> 0 | N62: =Interface_Budgets!I95 -> 0 | AA62: IRC
B64: Total score | E64: =SUM(E56:E62) -> 0 | G64: =SUM(G56:G62) -> 0 | H64: =SUM(H56:H62) -> 0
B66: Maximum score | H66: =SUM(F56:F62) -> 7
B68: Average score | C68: =SUM(C56:C62) -> 0 | H68: =IF(C55=1,"",(H64/H66)) -> 
A71: Operational recurring budget related to transportation
A72: Level | B72: Questions / Indicators | C72: ü = 1 | D72: Weight | E72: WS | F72: Weight best-case | G72: WS | H72: Weighted score | J72: Additional information | M72: Amounts | N72: Currency
B73: Not available or not relevant | C73: =Interface_Budgets!C99 -> 1 | J73: =Interface_Budgets!E99 -> 0 | M73: =Interface_Budgets!H99 -> 0 | N73: =Interface_Budgets!I99 -> 0 | AA73: IRC
A74: 0 | B74: Is there a municipal budget? | C74: =Interface_Budgets!C100 -> 0 | D74: 1 | E74: =IF(C74=1,(C74*D74)*1,"") ->  | F74: 1 | G74: =IF(C74=1,(C74*F74),"") ->  | H74: =G74 ->  | J74: =Interface_Budgets!E100 -> 0 | M74: =Interface_Budgets!H100 -> 0 | N74: =Interface_Budgets!I100 -> 0 | AA74: IRC
A75: 1 | B75: Is funding allocation in line with the budget? | C75: =Interface_Budgets!C101 -> 0 | D75: 1 | F75: 1 | G75: =IF(C75=1,(C75*F75)*1,"") ->  | J75: =Interface_Budgets!E101 -> 0 | M75: =Interface_Budgets!H101 -> 0 | N75: =Interface_Budgets!I101 -> 0 | AA75: IRC
A76: 2 | B76: Is the funding allocated given in time to be used? | C76: =Interface_Budgets!C102 -> 0 | D76: 1 | F76: 1 | J76: =Interface_Budgets!E102 -> 0 | M76: =Interface_Budgets!H102 -> 0 | N76: =Interface_Budgets!I102 -> 0 | AA76: IRC
A77: 3 | B77: Is enough funding given to cover the requirements? | C77: =Interface_Budgets!C103 -> 0 | D77: 1 | F77: 1 | J77: =Interface_Budgets!E103 -> 0 | M77: =Interface_Budgets!H103 -> 0 | N77: =Interface_Budgets!I103 -> 0 | AA77: IRC
A78: 4 | B78: Is the funding used for its intended purpose? | C78: =Interface_Budgets!C104 -> 0 | D78: 1 | F78: 1 | J78: =Interface_Budgets!E104 -> 0 | M78: =Interface_Budgets!H104 -> 0 | N78: =Interface_Budgets!I104 -> 0 | AA78: IRC
A79: 5 | B79: Is all the funding used? | C79: =Interface_Budgets!C105 -> 0 | D79: 1 | F79: 1 | J79: =Interface_Budgets!E105 -> 0 | M79: =Interface_Budgets!H105 -> 0 | N79: =Interface_Budgets!I105 -> 0 | AA79: IRC
A80: 6 | B80: Is the funding allocation and spending transparent? | C80: =Interface_Budgets!C106 -> 0 | D80: 1 | F80: 1 | J80: =Interface_Budgets!E106 -> 0 | M80: =Interface_Budgets!H106 -> 0 | N80: =Interface_Budgets!I106 -> 0 | AA80: IRC
B82: Total score | E82: =SUM(E74:E80) -> 0 | G82: =SUM(G74:G80) -> 0 | H82: =SUM(H74:H80) -> 0
B84: Maximum score | H84: =SUM(F74:F80) -> 7
B86: Average score | C86: =SUM(C74:C80) -> 0 | H86: =IF(C73=1,"",(H82/H84)) -> 

Sheet Treatment SC
A1: ='User interface_RES'!AJ11 -> Just a city in a victious place, Southeast Asia
A3: TREATMENT ELEMENT | SCORE CARDS
A6: Sewerage treatment effluent standards | J6: Additional information
A7: Level | B7: Questions / Indicators | C7: ü = 1 | D7: Weight | E7: WS | F7: Weight best-case | G7: WS | H7: Weighted score | J7: Location/ author | K7: Policy/ Legislation/ Standard number | L7: Other information
B8: Not relevant | C8: ='Interface_Permits & standards'!C69 -> 0 | J8: Note: 1 means that there is no sewer system in place | AA8: IRC
A9: 0 | B9: No effluent standards | C9: ='Interface_Permits & standards'!C70 -> 0 | D9: 1 | E9: =IF(C9=1,(C9*D9)*0,"") ->  | F9: 1 | G9: =IF(C9=1,(C9*F9)*0,"") ->  | H9: =G9 ->  | J9: ='Interface_Permits & standards'!E70 -> 0 | K9: ='Interface_Permits & standards'!F70 -> 0 | L9: ='Interface_Permits & standards'!G70 -> 0 | AA9: IRC
A10: 1 | B10: Some effluent standards present | C10: ='Interface_Permits & standards'!C71 -> 0 | D10: 0.25 | E10: =IF(C10=1,(C10*D10)*1,"") ->  | F10: 0.25 | G10: =IF(C10=1,(C10*F10)*1,"") ->  | H10: =G10 ->  | J10: ='Interface_Permits & standards'!E71 -> 0 | K10: ='Interface_Permits & standards'!F71 -> 0 | L10: ='Interface_Permits & standards'!G71 -> 0 | AA10: IRC
A11: 2 | B11: Complete standards which protect the environment and human health in reuse | C11: ='Interface_Permits & standards'!C72 -> 1 | D11: 1 | E11: =IF(C11=1,(C11*D11)*1,"") -> 1 | F11: 1 | G11: =IF(C11=1,(C11*F11)*1,"") -> 1 | H11: =G11 -> 1 | J11: ='Interface_Permits & standards'!E72 -> Ministry of Environment | K11: ='Interface_Permits & standards'!F72 -> 1999 Sub-degree | L11: ='Interface_Permits & standards'!G72 -> 0 | AA11: IRC
A12: 3 | B12: Department responsible for ensuring standard compliance | C12: ='Interface_Permits & standards'!C73 -> 0 | D12: 0.5 | E12: =IF(C12=1,(C12*D12)*1,"") ->  | F12: 0.5 | G12: =IF(C12=1,(C12*F12)*1,"") ->  | H12: =G12 ->  | J12: ='Interface_Permits & standards'!E73 -> Treatment plant has own lab where samples are tested | K12: ='Interface_Permits & standards'!F73 -> 0 | L12: ='Interface_Permits & standards'!G73 -> Dept of Environment sents samples to Ministry every month. Since 2013 no test results received. | AA12: IRC
A13: 4 | B13: Standards enforced | C13: ='Interface_Permits & standards'!C74 -> 0 | D13: 0.25 | E13: =IF(C13=1,(C13*D13)*1,"") ->  | F13: 1 | G13: =IF(C13=1,(C13*F13)*1,"") ->  | H13: =IF(C10=1,E13,G13) ->  | J13: ='Interface_Permits & standards'!E74 -> ??? | K13: ='Interface_Permits & standards'!F74 -> 0 | L13: ='Interface_Permits & standards'!G74 -> No evidence found from Dept of Environment | AA13: IRC
B15: Total score | E15: =SUM(E9:E13) -> 1 | G15: =SUM(G9:G13) -> 1 | H15: =SUM(H9:H13) -> 1
B17: Maximum score | H17: =SUM(F11:F13) -> 2.5
B19: Average score | C19: =SUM(C9:C13) -> 1 | H19: =IF(C8=1,"",IF(C9=1,0,H15/H17)) -> 0.4
A23: Communal septic tank effluent standards | J23: Additional information
A24: Level | B24: Questions / Indicators | C24: ü = 1 | D24: Weight | E24: WS | F24: Weight best-case | G24: WS | H24: Weighted score | J24: Location/ author | K24: Policy/ Legislation/ Standard number | L24: Other information
B25: Not relevant | C25: ='Interface_Permits & standards'!C79 -> 1 | J25: Note: 1 means that there are no communal septic tanks in place | AA25: IRC
A26: 0 | B26: No reuse standards | C26: ='Interface_Permits & standards'!C80 -> 0 | D26: 1 | E26: =IF(C26=1,(C26*D26)*0,"") ->  | F26: 1 | G26: =IF(C26=1,(C26*F26)*0,"") ->  | H26: =G26 ->  | J26: ='Interface_Permits & standards'!E80 -> 0 | K26: ='Interface_Permits & standards'!F80 -> 0 | L26: ='Interface_Permits & standards'!G80 -> 0 | AA26: IRC
A27: 1 | B27: Some reuse standards present | C27: ='Interface_Permits & standards'!C81 -> 0 | D27: 0.25 | E27: =IF(C27=1,(C27*D27)*1,"") ->  | F27: 0.25 | G27: =IF(C27=1,(C27*F27)*1,"") ->  | H27: =G27 ->  | J27: ='Interface_Permits & standards'!E81 -> 0 | K27: ='Interface_Permits & standards'!F81 -> 0 | L27: ='Interface_Permits & standards'!G81 -> 0 | AA27: IRC
A28: 2 | B28: Complete standards which protect the environment and human health in reuse | C28: ='Interface_Permits & standards'!C82 -> 0 | D28: 1 | E28: =IF(C28=1,(C28*D28)*1,"") ->  | F28: 1 | G28: =IF(C28=1,(C28*F28)*1,"") ->  | H28: =G28 ->  | J28: ='Interface_Permits & standards'!E82 -> 0 | K28: ='Interface_Permits & standards'!F82 -> 0 | L28: ='Interface_Permits & standards'!G82 -> 0 | AA28: IRC
A29: 3 | B29: Department responsible for ensuring standard compliance | C29: ='Interface_Permits & standards'!C83 -> 0 | D29: 0.5 | E29: =IF(C29=1,(C29*D29)*1,"") ->  | F29: 0.5 | G29: =IF(C29=1,(C29*F29)*1,"") ->  | H29: =G29 ->  | J29: ='Interface_Permits & standards'!E83 -> 0 | K29: ='Interface_Permits & standards'!F83 -> 0 | L29: ='Interface_Permits & standards'!G83 -> 0 | AA29: IRC
A30: 4 | B30: Standards enforced | C30: ='Interface_Permits & standards'!C84 -> 0 | D30: 0.25 | E30: =IF(C30=1,(C30*D30)*1,"") ->  | F30: 1 | G30: =IF(C30=1,(C30*F30)*1,"") ->  | H30: =IF(C27=1,E30,G30) ->  | J30: ='Interface_Permits & standards'!E84 -> 0 | K30: ='Interface_Permits & standards'!F84 -> 0 | L30: ='Interface_Permits & standards'!G84 -> 0 | AA30: IRC
B32: Total score | E32: =SUM(E26:E30) -> 0 | G32: =SUM(G26:G30) -> 0 | H32: =SUM(H26:H30) -> 0
B34: Maximum score | H34: =SUM(F28:F30) -> 2.5
B36: Average score | C36: =SUM(C26:C30) -> 0 | H36: =IF(C25=1,"",IF(C26=1,0,H32/H34)) -> 
A39: Permits and permissions | J39: Additional information
A40: Level | B40: Questions / Indicators | C40: ü = 1 | F40: Weight best-case | G40: WS | H40: Weighted score | J40: Standard author | K40: Policy/ standard number | L40: Other information
A41: 0 | B41: No permit required | C41: ='Interface_Permits & standards'!C89 -> 1 | J41: ='Interface_Permits & standards'!E89 -> Government owned | K41: ='Interface_Permits & standards'!F89 -> 0 | L41: ='Interface_Permits & standards'!G89 -> 0 | AA41: IRC
A42: 1 | B42: Permit required | C42: ='Interface_Permits & standards'!C90 -> 0 | F42: 1 | G42: =IF(C42=1,(C42*F42)*1,"") ->  | H42: =G42 ->  | J42: ='Interface_Permits & standards'!E90 -> 0 | K42: ='Interface_Permits & standards'!F90 -> 0 | L42: ='Interface_Permits & standards'!G90 -> 0 | AA42: IRC
A43: 2 | B43: Department responsible for permits | C43: ='Interface_Permits & standards'!C91 -> 0 | F43: 1 | G43: =IF(C43=1,(C43*F43)*1,"") ->  | H43: =G43 ->  | J43: ='Interface_Permits & standards'!E91 -> 0 | K43: ='Interface_Permits & standards'!F91 -> 0 | L43: ='Interface_Permits & standards'!G91 -> 0 | AA43: IRC
A44: 3 | B44: Permit enforcement / checked | C44: ='Interface_Permits & standards'!C92 -> 0 | F44: 1 | G44: =IF(C44=1,(C44*F44)*1,"") ->  | H44: =G44 ->  | J44: ='Interface_Permits & standards'!E92 -> 0 | K44: ='Interface_Permits & standards'!F92 -> 0 | L44: ='Interface_Permits & standards'!G92 -> 0 | AA44: IRC
B46: Total score | G46: =SUM(G42:G44) -> 0 | H46: =SUM(H42:H44) -> 0
B48: Maximum score | H48: =SUM(F42:F44) -> 3
B50: Average score | C50: =SUM(C42:C44) -> 0 | H50: =IF(A41=1,0,H46/H48) -> 0
A54: Infrastructure investment budget related treatment
A55: Level | B55: Questions / Indicators | C55: ü = 1 | D55: Weight | E55: WS | F55: Weight best-case | G55: WS | H55: Weighted score | J55: Additional information | M55: Amounts | N55: Currency
B56: Not available or not relevant | C56: =Interface_Budgets!C113 -> 1 | J56: =Interface_Budgets!E113 -> 0 | M56: =Interface_Budgets!H113 -> 0 | N56: =Interface_Budgets!I113 -> 0 | AA56: IRC
A57: 0 | B57: Is there a municipal budget? | C57: =Interface_Budgets!C114 -> 0 | D57: 1 | E57: =IF(C57=1,(C57*D57)*1,"") ->  | F57: 1 | G57: =IF(C57=1,(C57*F57),"") ->  | H57: =G57 ->  | J57: =Interface_Budgets!E114 -> 0 | M57: =Interface_Budgets!H114 -> 0 | N57: =Interface_Budgets!I114 -> 0 | AA57: IRC
A58: 1 | B58: Is funding allocation in line with the budget? | C58: =Interface_Budgets!C115 -> 0 | D58: 1 | F58: 1 | G58: =IF(C58=1,(C58*F58)*1,"") ->  | J58: =Interface_Budgets!E115 -> 0 | M58: =Interface_Budgets!H115 -> 0 | N58: =Interface_Budgets!I115 -> 0 | AA58: IRC
A59: 2 | B59: Is the funding allocated given in time to be used? | C59: =Interface_Budgets!C116 -> 0 | D59: 1 | F59: 1 | J59: =Interface_Budgets!E116 -> 0 | M59: =Interface_Budgets!H116 -> 0 | N59: =Interface_Budgets!I116 -> 0 | AA59: IRC
A60: 3 | B60: Is enough funding given to cover the requirements? | C60: =Interface_Budgets!C117 -> 0 | D60: 1 | F60: 1 | J60: =Interface_Budgets!E117 -> 0 | M60: =Interface_Budgets!H117 -> 0 | N60: =Interface_Budgets!I117 -> 0 | AA60: IRC
A61: 4 | B61: Is the funding used for its intended purpose? | C61: =Interface_Budgets!C118 -> 0 | D61: 1 | F61: 1 | J61: =Interface_Budgets!E118 -> 0 | M61: =Interface_Budgets!H118 -> 0 | N61: =Interface_Budgets!I118 -> 0 | AA61: IRC
A62: 5 | B62: Is all the funding used? | C62: =Interface_Budgets!C119 -> 0 | D62: 1 | F62: 1 | J62: =Interface_Budgets!E119 -> 0 | M62: =Interface_Budgets!H119 -> 0 | N62: =Interface_Budgets!I119 -> 0 | AA62: IRC
A63: 6 | B63: Is the funding allocation and spending transparent? | C63: =Interface_Budgets!C120 -> 0 | D63: 1 | F63: 1 | J63: =Interface_Budgets!E120 -> 0 | M63: =Interface_Budgets!H120 -> 0 | N63: =Interface_Budgets!I120 -> 0 | AA63: IRC
B65: Total score | E65: =SUM(E57:E63) -> 0 | G65: =SUM(G57:G63) -> 0 | H65: =SUM(H57:H63) -> 0
B67: Maximum score | H67: =SUM(F57:F63) -> 7
B69: Average score | C69: =SUM(C57:C63) -> 0 | H69: =IF(C56=1,"",(H65/H67)) -> 
A72: Operational recurring budget related to treatment
A73: Level | B73: Questions / Indicators | C73: ü = 1 | D73: Weight | E73: WS | F73: Weight best-case | G73: WS | H73: Weighted score | J73: Additional information | M73: Amounts | N73: Currency
B74: Not available or not relevant | C74: =Interface_Budgets!C125 -> 1 | J74: =Interface_Budgets!E125 -> 0 | M74: =Interface_Budgets!H125 -> 0 | N74: =Interface_Budgets!I125 -> 0 | AA74: IRC
A75: 0 | B75: Is there a municipal budget? | C75: =Interface_Budgets!C126 -> 0 | D75: 1 | E75: =IF(C75=1,(C75*D75)*1,"") ->  | F75: 1 | G75: =IF(C75=1,(C75*F75),"") ->  | H75: =G75 ->  | J75: =Interface_Budgets!E126 -> 0 | M75: =Interface_Budgets!H126 -> 0 | N75: =Interface_Budgets!I126 -> 0 | AA75: IRC
A76: 1 | B76: Is funding allocation in line with the budget? | C76: =Interface_Budgets!C127 -> 0 | D76: 1 | F76: 1 | G76: =IF(C76=1,(C76*F76)*1,"") ->  | J76: =Interface_Budgets!E127 -> 0 | M76: =Interface_Budgets!H127 -> 0 | N76: =Interface_Budgets!I127 -> 0 | AA76: IRC
A77: 2 | B77: Is the funding allocated given in time to be used? | C77: =Interface_Budgets!C128 -> 0 | D77: 1 | F77: 1 | J77: =Interface_Budgets!E128 -> 0 | M77: =Interface_Budgets!H128 -> 0 | N77: =Interface_Budgets!I128 -> 0 | AA77: IRC
A78: 3 | B78: Is enough funding given to cover the requirements? | C78: =Interface_Budgets!C129 -> 0 | D78: 1 | F78: 1 | J78: =Interface_Budgets!E129 -> 0 | M78: =Interface_Budgets!H129 -> 0 | N78: =Interface_Budgets!I129 -> 0 | AA78: IRC
A79: 4 | B79: Is the funding used for its intended purpose? | C79: =Interface_Budgets!C130 -> 0 | D79: 1 | F79: 1 | J79: =Interface_Budgets!E130 -> 0 | M79: =Interface_Budgets!H130 -> 0 | N79: =Interface_Budgets!I130 -> 0 | AA79: IRC
A80: 5 | B80: Is all the funding used? | C80: =Interface_Budgets!C131 -> 0 | D80: 1 | F80: 1 | J80: =Interface_Budgets!E131 -> 0 | M80: =Interface_Budgets!H131 -> 0 | N80: =Interface_Budgets!I131 -> 0 | AA80: IRC
A81: 6 | B81: Is the funding allocation and spending transparent? | C81: =Interface_Budgets!C132 -> 0 | D81: 1 | F81: 1 | J81: =Interface_Budgets!E132 -> 0 | M81: =Interface_Budgets!H132 -> 0 | N81: =Interface_Budgets!I132 -> 0 | AA81: IRC
B83: Total score | E83: =SUM(E75:E81) -> 0 | G83: =SUM(G75:G81) -> 0 | H83: =SUM(H75:H81) -> 0
B85: Maximum score | H85: =SUM(F75:F81) -> 7
B87: Average score | C87: =SUM(C75:C81) -> 0 | H87: =IF(C74=1,"",(H83/H85)) -> 

Sheet Disposal SC
A1: ='User interface_RES'!AJ11 -> Just a city in a victious place, Southeast Asia
A3: DISPOSAL AND REUSE ELEMENTS | SCORE CARDS
A6: Standards for DISPOSAL | J6: Additional information
A7: Level | B7: Questions / Conditions | C7: ü = 1 | D7: Weight | E7: WS | F7: Weight best-case | G7: WS | H7: Weighted score | J7: Location/ author | K7: Policy/ Legislation/ Standard number | L7: Other information
A8: 0 | B8: No disposal standards | C8: ='Interface_Permits & standards'!C99 -> 1 | D8: 1 | E8: =IF(C8=1,(C8*D8)*0,"") -> 0 | F8: 1 | G8: =IF(C8=1,(C8*F8)*0,"") -> 0 | H8: =G8 -> 0 | J8: ='Interface_Permits & standards'!E99 -> 0 | K8: ='Interface_Permits & standards'!F99 -> 0 | L8: ='Interface_Permits & standards'!G99 -> 0
A9: 1 | B9: Some disposal standards present | C9: ='Interface_Permits & standards'!C100 -> 0 | D9: 0.25 | E9: =IF(C9=1,(C9*D9)*1,"") ->  | F9: 0.25 | G9: =IF(C9=1,(C9*F9)*1,"") ->  | H9: =G9 ->  | J9: ='Interface_Permits & standards'!E100 -> 0 | K9: ='Interface_Permits & standards'!F100 -> 0 | L9: ='Interface_Permits & standards'!G100 -> 0
A10: 2 | B10: Complete standards which protect the environment and human health in disposal | C10: ='Interface_Permits & standards'!C101 -> 0 | D10: 1 | E10: =IF(C10=1,(C10*D10)*1,"") ->  | F10: 1 | G10: =IF(C10=1,(C10*F10)*1,"") ->  | H10: =G10 ->  | J10: ='Interface_Permits & standards'!E101 -> 0 | K10: ='Interface_Permits & standards'!F101 -> 0 | L10: ='Interface_Permits & standards'!G101 -> 0
A11: 3 | B11: Department responsible for ensuring standard compliance | C11: ='Interface_Permits & standards'!C102 -> 0 | D11: 0.5 | E11: =IF(C11=1,(C11*D11)*1,"") ->  | F11: 0.5 | G11: =IF(C11=1,(C11*F11)*1,"") ->  | H11: =G11 ->  | J11: ='Interface_Permits & standards'!E102 -> 0 | K11: ='Interface_Permits & standards'!F102 -> 0 | L11: ='Interface_Permits & standards'!G102 -> 0
A12: 4 | B12: Standards enforced | C12: ='Interface_Permits & standards'!C103 -> 0 | D12: 0.25 | E12: =IF(C12=1,(C12*D12)*1,"") ->  | F12: 1 | G12: =IF(C12=1,(C12*F12)*1,"") ->  | H12: =IF(C9=1,E12,G12) ->  | J12: ='Interface_Permits & standards'!E103 -> 0 | K12: ='Interface_Permits & standards'!F103 -> 0 | L12: ='Interface_Permits & standards'!G103 -> 0
B14: Total score | E14: =SUM(E8:E12) -> 0 | G14: =SUM(G8:G12) -> 0 | H14: =SUM(H8:H12) -> 0
B16: Maximum score | H16: =SUM(F10:F12) -> 2.5
B18: Average score | C18: =SUM(C8:C12) -> 1 | H18: =IF(C8=1,0,H14/H16) -> 0
A21: Standards for REUSE | J21: Additional information
A22: Level | B22: Questions / Conditions | C22: ü = 1 | D22: Weight | E22: WS | F22: Weight best-case | G22: WS | H22: Weighted score | J22: Location/ author | K22: Policy/ Legislation/ Standard number | L22: Other information | M22: Reuse purposes
A23: 0 | B23: No reuse standards | C23: ='Interface_Permits & standards'!C108 -> 1 | D23: 1 | E23: =IF(C23=1,(C23*D23)*0,"") -> 0 | F23: 1 | G23: =IF(C23=1,(C23*F23)*0,"") -> 0 | H23: =G23 -> 0 | J23: ='Interface_Permits & standards'!E108 -> 0 | K23: ='Interface_Permits & standards'!F108 -> 0 | L23: ='Interface_Permits & standards'!G108 -> 0 | M23: ='Interface_Permits & standards'!H108 -> 0
A24: 1 | B24: Some reuse standards present | C24: ='Interface_Permits & standards'!C109 -> 0 | D24: 0.25 | E24: =IF(C24=1,(C24*D24)*1,"") ->  | F24: 0.25 | G24: =IF(C24=1,(C24*F24)*1,"") ->  | H24: =G24 ->  | J24: ='Interface_Permits & standards'!E109 -> 0 | K24: ='Interface_Permits & standards'!F109 -> 0 | L24: ='Interface_Permits & standards'!G109 -> 0 | M24: ='Interface_Permits & standards'!H109 -> 0
A25: 2 | B25: Complete standards which protect the environment and human health in reuse | C25: ='Interface_Permits & standards'!C110 -> 0 | D25: 1 | E25: =IF(C25=1,(C25*D25)*1,"") ->  | F25: 1 | G25: =IF(C25=1,(C25*F25)*1,"") ->  | H25: =G25 ->  | J25: ='Interface_Permits & standards'!E110 -> 0 | K25: ='Interface_Permits & standards'!F110 -> 0 | L25: ='Interface_Permits & standards'!G110 -> 0 | M25: ='Interface_Permits & standards'!H110 -> 0
A26: 3 | B26: Department responsible for ensuring standard compliance | C26: ='Interface_Permits & standards'!C111 -> 0 | D26: 0.5 | E26: =IF(C26=1,(C26*D26)*1,"") ->  | F26: 0.5 | G26: =IF(C26=1,(C26*F26)*1,"") ->  | H26: =G26 ->  | J26: ='Interface_Permits & standards'!E111 -> 0 | K26: ='Interface_Permits & standards'!F111 -> 0 | L26: ='Interface_Permits & standards'!G111 -> 0 | M26: ='Interface_Permits & standards'!H111 -> 0
A27: 4 | B27: Standards enforced | C27: ='Interface_Permits & standards'!C112 -> 0 | D27: 0.25 | E27: =IF(C27=1,(C27*D27)*1,"") ->  | F27: 1 | G27: =IF(C27=1,(C27*F27)*1,"") ->  | H27: =IF(C24=1,E27,G27) ->  | J27: ='Interface_Permits & standards'!E112 -> 0 | K27: ='Interface_Permits & standards'!F112 -> 0 | L27: ='Interface_Permits & standards'!G112 -> 0 | M27: ='Interface_Permits & standards'!H112 -> 0
B29: Total score | E29: =SUM(E23:E27) -> 0 | G29: =SUM(G23:G27) -> 0 | H29: =SUM(H23:H27) -> 0
B31: Maximum score | H31: =SUM(F25:F27) -> 2.5
B33: Average score | C33: =SUM(C23:C27) -> 1 | H33: =IF(C23=1,0,H29/H31) -> 0
A36: Permits and permissions for DISPOSAL | J36: Additional information
A37: Level | B37: Questions / Conditions | C37: ü = 1 | F37: Weight best-case | G37: WS | H37: Weighted score | J37: Standard author | K37: Policy/ standard number | L37: Other information
A38: 0 | B38: No permit required | C38: ='Interface_Permits & standards'!C117 -> 0 | J38: ='Interface_Permits & standards'!E117 -> Dried sludge is left in the wastewater treatment plant | K38: ='Interface_Permits & standards'!F117 -> 0 | L38: ='Interface_Permits & standards'!G117 -> 0
A39: 1 | B39: Permit required | C39: ='Interface_Permits & standards'!C118 -> 0 | F39: 1 | G39: =IF(C39=1,(C39*F39)*1,"") ->  | H39: =G39 ->  | J39: ='Interface_Permits & standards'!E118 -> 0 | K39: ='Interface_Permits & standards'!F118 -> 0 | L39: ='Interface_Permits & standards'!G118 -> 0
A40: 2 | B40: Department responsible for permits | C40: ='Interface_Permits & standards'!C119 -> 0 | F40: 1 | G40: =IF(C40=1,(C40*F40)*1,"") ->  | H40: =G40 ->  | J40: ='Interface_Permits & standards'!E119 -> 0 | K40: ='Interface_Permits & standards'!F119 -> 0 | L40: ='Interface_Permits & standards'!G119 -> 0
A41: 3 | B41: Permit enforcement / checked | C41: ='Interface_Permits & standards'!C120 -> 0 | F41: 1 | G41: =IF(C41=1,(C41*F41)*1,"") ->  | H41: =G41 ->  | J41: ='Interface_Permits & standards'!E120 -> 0 | K41: ='Interface_Permits & standards'!F120 -> 0 | L41: ='Interface_Permits & standards'!G120 -> 0
B43: Total score | G43: =SUM(G39:G41) -> 0 | H43: =SUM(H39:H41) -> 0
B45: Maximum score | H45: =SUM(F39:F41) -> 3
B47: Average score | C47: =SUM(C39:C41) -> 0 | H47: =IF(A38=1,0,H43/H45) -> 0
A50: Permits and permissions for REUSE | J50: Additional information
A51: Level | B51: Questions / Conditions | C51: ü = 1 | F51: Weight best-case | G51: WS | H51: Weighted score | J51: Standard author | K51: Policy/ standard number | L51: Other information
A52: 0 | B52: No permit required | C52: ='Interface_Permits & standards'!C125 -> 0 | J52: ='Interface_Permits & standards'!E125 -> 0 | K52: ='Interface_Permits & standards'!F125 -> 0 | L52: ='Interface_Permits & standards'!G125 -> 0
A53: 1 | B53: Permit required | C53: ='Interface_Permits & standards'!C126 -> 0 | F53: 1 | G53: =IF(C53=1,(C53*F53)*1,"") ->  | H53: =G53 ->  | J53: ='Interface_Permits & standards'!E126 -> 0 | K53: ='Interface_Permits & standards'!F126 -> 0 | L53: ='Interface_Permits & standards'!G126 -> 0
A54: 2 | B54: Department responsible for permits | C54: ='Interface_Permits & standards'!C127 -> 0 | F54: 1 | G54: =IF(C54=1,(C54*F54)*1,"") ->  | H54: =G54 ->  | J54: ='Interface_Permits & standards'!E127 -> 0 | K54: ='Interface_Permits & standards'!F127 -> 0 | L54: ='Interface_Permits & standards'!G127 -> 0
A55: 3 | B55: Permit enforcement / checked | C55: ='Interface_Permits & standards'!C128 -> 0 | F55: 1 | G55: =IF(C55=1,(C55*F55)*1,"") ->  | H55: =G55 ->  | J55: ='Interface_Permits & standards'!E128 -> 0 | K55: ='Interface_Permits & standards'!F128 -> 0 | L55: ='Interface_Permits & standards'!G128 -> 0
B57: Total score | G57: =SUM(G53:G55) -> 0 | H57: =SUM(H53:H55) -> 0
B59: Maximum score | H59: =SUM(F53:F55) -> 3
B61: Average score | C61: =SUM(C53:C55) -> 0 | H61: =IF(A52=1,0,H57/H59) -> 0
A64: Infrastructure investment budget related to DISPOSAL
A65: Level | B65: Questions / Conditions | C65: ü = 1 | D65: Weight | E65: WS | F65: Weight best-case | G65: WS | H65: Weighted score | J65: Additional information | M65: Amounts | N65: Currency
B66: Not available or not relevant | C66: =Interface_Budgets!C139 -> 1 | J66: =Interface_Budgets!E139 -> 0 | M66: =Interface_Budgets!H139 -> 0 | N66: =Interface_Budgets!I139 -> 0
A67: 0 | B67: Is there a municipal budget? | C67: =Interface_Budgets!C140 -> 0 | D67: 1 | E67: =IF(C67=1,(C67*D67)*1,"") ->  | F67: 1 | G67: =IF(C67=1,(C67*F67),"") ->  | H67: =G67 ->  | J67: =Interface_Budgets!E140 -> 0 | M67: =Interface_Budgets!H140 -> 0 | N67: =Interface_Budgets!I140 -> 0
A68: 1 | B68: Is funding allocation in line with the budget? | C68: =Interface_Budgets!C141 -> 0 | D68: 1 | F68: 1 | G68: =IF(C68=1,(C68*F68)*1,"") ->  | J68: =Interface_Budgets!E141 -> 0 | M68: =Interface_Budgets!H141 -> 0 | N68: =Interface_Budgets!I141 -> 0
A69: 2 | B69: Is the funding allocated given in time to be used? | C69: =Interface_Budgets!C142 -> 0 | D69: 1 | F69: 1 | J69: =Interface_Budgets!E142 -> 0 | M69: =Interface_Budgets!H142 -> 0 | N69: =Interface_Budgets!I142 -> 0
A70: 3 | B70: Is enough funding given to cover the requirements? | C70: =Interface_Budgets!C143 -> 0 | D70: 1 | F70: 1 | J70: =Interface_Budgets!E143 -> 0 | M70: =Interface_Budgets!H143 -> 0 | N70: =Interface_Budgets!I143 -> 0
A71: 4 | B71: Is the funding used for its intended purpose? | C71: =Interface_Budgets!C144 -> 0 | D71: 1 | F71: 1 | J71: =Interface_Budgets!E144 -> 0 | M71: =Interface_Budgets!H144 -> 0 | N71: =Interface_Budgets!I144 -> 0
A72: 5 | B72: Is all the funding used? | C72: =Interface_Budgets!C145 -> 0 | D72: 1 | F72: 1 | J72: =Interface_Budgets!E145 -> 0 | M72: =Interface_Budgets!H145 -> 0 | N72: =Interface_Budgets!I145 -> 0
A73: 6 | B73: Is the funding allocation and spending transparent? | C73: =Interface_Budgets!C146 -> 0 | D73: 1 | F73: 1 | J73: =Interface_Budgets!E146 -> 0 | M73: =Interface_Budgets!H146 -> 0 | N73: =Interface_Budgets!I146 -> 0
B75: Total score | E75: =SUM(E67:E73) -> 0 | G75: =SUM(G67:G73) -> 0 | H75: =SUM(H67:H73) -> 0
B77: Maximum score | H77: =SUM(F67:F73) -> 7
B79: Average score | C79: =SUM(C67:C73) -> 0 | H79: =IF(C66=1,"",(H75/H77)) -> 
A82: Operational recurring budget related to DISPOSAL
A83: Level | B83: Questions / Conditions | C83: ü = 1 | D83: Weight | E83: WS | F83: Weight best-case | G83: WS | H83: Weighted score | J83: Additional information | M83: Amounts | N83: Currency
B84: Not available or not relevant | C84: =Interface_Budgets!C151 -> 1 | J84: =Interface_Budgets!E151 -> 0 | M84: =Interface_Budgets!H151 -> 0 | N84: =Interface_Budgets!I151 -> 0
A85: 0 | B85: Is there a municipal budget? | C85: =Interface_Budgets!C152 -> 0 | D85: 1 | E85: =IF(C85=1,(C85*D85)*1,"") ->  | F85: 1 | G85: =IF(C85=1,(C85*F85),"") ->  | H85: =G85 ->  | J85: =Interface_Budgets!E152 -> 0 | M85: =Interface_Budgets!H152 -> 0 | N85: =Interface_Budgets!I152 -> 0
A86: 1 | B86: Is funding allocation in line with the budget? | C86: =Interface_Budgets!C153 -> 0 | D86: 1 | F86: 1 | G86: =IF(C86=1,(C86*F86)*1,"") ->  | J86: =Interface_Budgets!E153 -> 0 | M86: =Interface_Budgets!H153 -> 0 | N86: =Interface_Budgets!I153 -> 0
A87: 2 | B87: Is the funding allocated given in time to be used? | C87: =Interface_Budgets!C154 -> 0 | D87: 1 | F87: 1 | J87: =Interface_Budgets!E154 -> 0 | M87: =Interface_Budgets!H154 -> 0 | N87: =Interface_Budgets!I154 -> 0
A88: 3 | B88: Is enough funding given to cover the requirements? | C88: =Interface_Budgets!C155 -> 0 | D88: 1 | F88: 1 | J88: =Interface_Budgets!E155 -> 0 | M88: =Interface_Budgets!H155 -> 0 | N88: =Interface_Budgets!I155 -> 0
A89: 4 | B89: Is the funding used for its intended purpose? | C89: =Interface_Budgets!C156 -> 0 | D89: 1 | F89: 1 | J89: =Interface_Budgets!E156 -> 0 | M89: =Interface_Budgets!H156 -> 0 | N89: =Interface_Budgets!I156 -> 0
A90: 5 | B90: Is all the funding used? | C90: =Interface_Budgets!C157 -> 0 | D90: 1 | F90: 1 | J90: =Interface_Budgets!E157 -> 0 | M90: =Interface_Budgets!H157 -> 0 | N90: =Interface_Budgets!I157 -> 0
A91: 6 | B91: Is the funding allocation and spending transparent? | C91: =Interface_Budgets!C158 -> 0 | D91: 1 | F91: 1 | J91: =Interface_Budgets!E158 -> 0 | M91: =Interface_Budgets!H158 -> 0 | N91: =Interface_Budgets!I158 -> 0
B93: Total score | E93: =SUM(E85:E91) -> 0 | G93: =SUM(G85:G91) -> 0 | H93: =SUM(H85:H91) -> 0
B95: Maximum score | H95: =SUM(F85:F91) -> 7
B97: Average score | C97: =SUM(C85:C91) -> 0 | H97: =IF(C84=1,"",(H93/H95)) -> 
A100: Infrastructure investment budget related to REUSE
A101: Level | B101: Questions / Conditions | C101: ü = 1 | D101: Weight | E101: WS | F101: Weight best-case | G101: WS | H101: Weighted score | J101: Additional information | M101: Amounts | N101: Currency
B102: Not available or not relevant | C102: =Interface_Budgets!C163 -> 1 | J102: =Interface_Budgets!E163 -> 0 | M102: =Interface_Budgets!H163 -> 0 | N102: =Interface_Budgets!I163 -> 0
A103: 0 | B103: Is there a municipal budget? | C103: =Interface_Budgets!C164 -> 0 | D103: 1 | E103: =IF(C103=1,(C103*D103)*1,"") ->  | F103: 1 | G103: =IF(C103=1,(C103*F103),"") ->  | H103: =G103 ->  | J103: =Interface_Budgets!E164 -> 0 | M103: =Interface_Budgets!H164 -> 0 | N103: =Interface_Budgets!I164 -> 0
A104: 1 | B104: Is funding allocation in line with the budget? | C104: =Interface_Budgets!C165 -> 0 | D104: 1 | F104: 1 | G104: =IF(C104=1,(C104*F104)*1,"") ->  | J104: =Interface_Budgets!E165 -> 0 | M104: =Interface_Budgets!H165 -> 0 | N104: =Interface_Budgets!I165 -> 0
A105: 2 | B105: Is the funding allocated given in time to be used? | C105: =Interface_Budgets!C166 -> 0 | D105: 1 | F105: 1 | J105: =Interface_Budgets!E166 -> 0 | M105: =Interface_Budgets!H166 -> 0 | N105: =Interface_Budgets!I166 -> 0
A106: 3 | B106: Is enough funding given to cover the requirements? | C106: =Interface_Budgets!C167 -> 0 | D106: 1 | F106: 1 | J106: =Interface_Budgets!E167 -> 0 | M106: =Interface_Budgets!H167 -> 0 | N106: =Interface_Budgets!I167 -> 0
A107: 4 | B107: Is the funding used for its intended purpose? | C107: =Interface_Budgets!C168 -> 0 | D107: 1 | F107: 1 | J107: =Interface_Budgets!E168 -> 0 | M107: =Interface_Budgets!H168 -> 0 | N107: =Interface_Budgets!I168 -> 0
A108: 5 | B108: Is all the funding used? | C108: =Interface_Budgets!C169 -> 0 | D108: 1 | F108: 1 | J108: =Interface_Budgets!E169 -> 0 | M108: =Interface_Budgets!H169 -> 0 | N108: =Interface_Budgets!I169 -> 0
A109: 6 | B109: Is the funding allocation and spending transparent? | C109: =Interface_Budgets!C170 -> 0 | D109: 1 | F109: 1 | J109: =Interface_Budgets!E170 -> 0 | M109: =Interface_Budgets!H170 -> 0 | N109: =Interface_Budgets!I170 -> 0
B111: Total score | E111: =SUM(E103:E109) -> 0 | G111: =SUM(G103:G109) -> 0 | H111: =SUM(H103:H109) -> 0
B113: Maximum score | H113: =SUM(F103:F109) -> 7
B115: Average score | C115: =SUM(C103:C109) -> 0 | H115: =IF(C102=1,"",(H111/H113)) -> 
A118: Operational recurring budget related to REUSE
A119: Level | B119: Questions / Conditions | C119: ü = 1 | D119: Weight | E119: WS | F119: Weight best-case | G119: WS | H119: Weighted score | J119: Additional information | M119: Amounts | N119: Currency
B120: Not available or not relevant | C120: =Interface_Budgets!C175 -> 1 | J120: =Interface_Budgets!E175 -> 0 | M120: =Interface_Budgets!H175 -> 0 | N120: =Interface_Budgets!I175 -> 0
A121: 0 | B121: Is there a municipal budget? | C121: =Interface_Budgets!C176 -> 0 | D121: 1 | E121: =IF(C121=1,(C121*D121)*1,"") ->  | F121: 1 | G121: =IF(C121=1,(C121*F121),"") ->  | H121: =G121 ->  | J121: =Interface_Budgets!E176 -> 0 | M121: =Interface_Budgets!H176 -> 0 | N121: =Interface_Budgets!I176 -> 0
A122: 1 | B122: Is funding allocation in line with the budget? | C122: =Interface_Budgets!C177 -> 0 | D122: 1 | F122: 1 | G122: =IF(C122=1,(C122*F122)*1,"") ->  | J122: =Interface_Budgets!E177 -> 0 | M122: =Interface_Budgets!H177 -> 0 | N122: =Interface_Budgets!I177 -> 0
A123: 2 | B123: Is the funding allocated given in time to be used? | C123: =Interface_Budgets!C178 -> 0 | D123: 1 | F123: 1 | J123: =Interface_Budgets!E178 -> 0 | M123: =Interface_Budgets!H178 -> 0 | N123: =Interface_Budgets!I178 -> 0
A124: 3 | B124: Is enough funding given to cover the requirements? | C124: =Interface_Budgets!C179 -> 0 | D124: 1 | F124: 1 | J124: =Interface_Budgets!E179 -> 0 | M124: =Interface_Budgets!H179 -> 0 | N124: =Interface_Budgets!I179 -> 0
A125: 4 | B125: Is the funding used for its intended purpose? | C125: =Interface_Budgets!C180 -> 0 | D125: 1 | F125: 1 | J125: =Interface_Budgets!E180 -> 0 | M125: =Interface_Budgets!H180 -> 0 | N125: =Interface_Budgets!I180 -> 0
A126: 5 | B126: Is all the funding used? | C126: =Interface_Budgets!C181 -> 0 | D126: 1 | F126: 1 | J126: =Interface_Budgets!E181 -> 0 | M126: =Interface_Budgets!H181 -> 0 | N126: =Interface_Budgets!I181 -> 0
A127: 6 | B127: Is the funding allocation and spending transparent? | C127: =Interface_Budgets!C182 -> 0 | D127: 1 | F127: 1 | J127: =Interface_Budgets!E182 -> 0 | M127: =Interface_Budgets!H182 -> 0 | N127: =Interface_Budgets!I182 -> 0
B129: Total score | E129: =SUM(E121:E127) -> 0 | G129: =SUM(G121:G127) -> 0 | H129: =SUM(H121:H127) -> 0
B131: Maximum score | H131: =SUM(F121:F127) -> 7
B133: Average score | C133: =SUM(C121:C127) -> 0 | H133: =IF(C120=1,"",(H129/H131)) -> 

Sheet Capture volumes
A1: ='User interface_RES'!AJ11 -> Just a city in a victious place, Southeast Asia
A3: CAPTURE ELEMENT | CALCULATIONS
B6: NOW | C6: IN FUTURE
A8: SUMMARY OF VOLUMES PRODUCED | B8: =B10+B16 -> 7551350 | C8: =C10+C16 -> 14458700 | D8: Note: All figures are in cubic metres per year
A10: Volumes safely captured in WC | B10: =SUM(B11:B14) -> 7551225 | C10: =SUM(C11:C14) -> 14458700
A11:  Captured in WC to sewer | B11: =E133+E261 -> 1413725 | C11: 4286025 | E11: =B11/B10 -> 0.1872179679
A12:  Captured in WC to communal septic tanks | B12: 0 | C12: 0
A13:  Captured onsite in septic tanks | B13: 1834425 | C13: 3342500
A14:  Captured onsite in pit latrines | B14: 4303075 | C14: 6830175
A16: Volume not safely captured in WC | B16: =SUM(B17:B17) -> 125 | C16: =SUM(C17:C17) -> 0
A17:  Open defecation (OD) | B17: =E139+E267 -> 125 | C17: =F139+F267 -> 0
A19:  Captured in WC to sewer in cubic metres per day | B19: =B11/365 -> 3873.219178 | C19: =C11/365 -> 11742.53425
A23: CALCULATIONS FOR RESIDENTS
A25: POPULATION FIGURES | RESIDENTS | B25: NOW | C25: IN FUTURE
A27: Date now | B27: ='User interface_RES'!C8 -> 42630
A28: Date of data | B28: ='User interface_RES'!D16 -> 42369
A29: Days since data | B29: =B27-B28 -> 261
A30: Years since data | B30: =ROUND((B29/365)/0.25,0)*0.25 -> 0.75
A31: Current total population of residents | B31: =ROUND(('User interface_RES'!C16+('User interface_RES'!C16*'User interface_RES'!G16*'Capture volumes'!B30))/1000,0)*1000 -> 134000 | E31: Planning horizon in # of years | F31: Average annual growth rate
A33: Future residential population | C33: =ROUND((B31*(1+F33)^E33)/1000,0)*1000 -> 242000 | E33: ='User interface_RES'!F16 -> 20 | F33: ='User interface_RES'!G16 -> 0.03
A36: TYPE OF FACILITIES | RESIDENTS | B36: NOW | C36: IN FUTURE
B38: In % | C38: In %
A39: 1) Networked sewerage systems | B39: =SUM(B40:B41) -> 0.028684 | C39: =SUM(C40:C41) -> 0.05
A40: 1.1 Flush toilets | B40: ='User interface_RES'!C33*'User interface_RES'!E33 -> 0.0284 | C40: ='User interface_RES'!C55*'User interface_RES'!E55 -> 0.05
A41: 1.2 Pour-flush toilets | B41: ='User interface_RES'!C33*'User interface_RES'!F33 -> 0.000284 | C41: ='User interface_RES'!C55*'User interface_RES'!F55 -> 0
A42: 2) Communal septic tanks | B42: =SUM(B43:B44) -> 0 | C42: =SUM(C43:C44) -> 0
A43: 2.1 Flush toilets | B43: ='User interface_RES'!C34*'User interface_RES'!E34 -> 0 | C43: ='User interface_RES'!C56*'User interface_RES'!E56 -> 0 | E43: Corrected for shared toilets | F43: Modified to correct for HH using toilet of others (shared)
A44: 2.2 Pour-flush toilets | B44: ='User interface_RES'!C34*'User interface_RES'!F34 -> 0 | C44: ='User interface_RES'!C56*'User interface_RES'!F56 -> 0
A45: 3) On-site sanitation facilities | SEPTIC TANKS | B45: =SUM(B46:B47) -> 0.19228 | C45: =SUM(C46:C47) -> 0.2375 | E45: =B45-'User interface_RES'!C47 -> 0.19228 | F45: =B45-E45 -> 0 | G45: =ROUND(((F45*$B$31*'User interface_RES'!$G$81)*365/1000)/25,0)*25 -> 0
A46: 3.1 Flush toilets | B46: ='User interface_RES'!C35*'User interface_RES'!D36*'User interface_RES'!E36 -> 0.09614 | C46: ='User interface_RES'!C57*'User interface_RES'!D58*'User interface_RES'!E58 -> 0.2375
A47: 3.2 Pour-flush toilets | B47: ='User interface_RES'!C35*'User interface_RES'!D36*'User interface_RES'!F36 -> 0.09614 | C47: ='User interface_RES'!C57*'User interface_RES'!D58*'User interface_RES'!F58 -> 0
A48: 3) On-site sanitation facilities | PIT LATRINES | B48: =SUM(B49:B51) -> 0.76912 | C48: =SUM(C49:C51) -> 0.7125 | E48: =B48-'User interface_RES'!C48 -> 0.76912 | F48: =B48-E48 -> 0 | G48: =ROUND(((F48*$B$31*'User interface_RES'!$G$81)*365/1000)/25,0)*25 -> 0
A49: 3.1 Flush toilets | B49: ='User interface_RES'!C35*'User interface_RES'!D37*'User interface_RES'!E37 -> 0.19228 | C49: ='User interface_RES'!C57*'User interface_RES'!D59*'User interface_RES'!E59 -> 0.178125
A50: 3.2 Pour-flush toilets | B50: ='User interface_RES'!C35*'User interface_RES'!D37*'User interface_RES'!F37 -> 0.57684 | C50: ='User interface_RES'!C57*'User interface_RES'!D59*'User interface_RES'!F59 -> 0.534375 | F50: =F45+F48 -> 0 | G50: =G45+G48 -> 0
A51: 3.3 Direct drop (without water for flushing) | B51: ='User interface_RES'!C35*'User interface_RES'!D37*'User interface_RES'!G37 -> 0 | C51: ='User interface_RES'!C57*'User interface_RES'!D59*'User interface_RES'!G59 -> 0
A52: 4) Communal toilets | CONNECTED TO SEWER | B52: =SUM(B53:B54) -> 0 | C52: =SUM(C53:C54) -> 0
A53: 4.1 Flush toilets | B53: ='User interface_RES'!C38*'User interface_RES'!D39*'User interface_RES'!E39 -> 0 | C53: ='User interface_RES'!C60*'User interface_RES'!D61*'User interface_RES'!E61 -> 0
A54: 4.2 Pour-flush toilets | B54: ='User interface_RES'!C38*'User interface_RES'!D39*'User interface_RES'!F39 -> 0 | C54: ='User interface_RES'!C60*'User interface_RES'!D61*'User interface_RES'!F61 -> 0
A55: 4) Communal toilets | SEPTIC TANKS | B55: =SUM(B56:B57) -> 0 | C55: =SUM(C56:C57) -> 0
A56: 4.1 Flush toilets | B56: ='User interface_RES'!C38*'User interface_RES'!D40*'User interface_RES'!E40 -> 0 | C56: ='User interface_RES'!C60*'User interface_RES'!D62*'User interface_RES'!E62 -> 0
A57: 4.2 Pour-flush toilets | B57: ='User interface_RES'!C38*'User interface_RES'!D40*'User interface_RES'!F40 -> 0 | C57: ='User interface_RES'!C60*'User interface_RES'!D62*'User interface_RES'!F62 -> 0
A58: 4) Communal toilets | PIT LATRINES | B58: =SUM(B59:B61) -> 0 | C58: =SUM(C59:C61) -> 0
A59: 4.1 Flush toilets | B59: ='User interface_RES'!C38*'User interface_RES'!D41*'User interface_RES'!E41 -> 0 | C59: ='User interface_RES'!C60*'User interface_RES'!D63*'User interface_RES'!E63 -> 0
A60: 4.2 Pour-flush toilets | B60: ='User interface_RES'!C38*'User interface_RES'!D41*'User interface_RES'!F41 -> 0 | C60: ='User interface_RES'!C60*'User interface_RES'!D63*'User interface_RES'!F63 -> 0
A61: 4.3 Direct drop (without water for flushing) | B61: ='User interface_RES'!C38*'User interface_RES'!D41*'User interface_RES'!G41 -> 0 | C61: ='User interface_RES'!C60*'User interface_RES'!D63*'User interface_RES'!G63 -> 0
A62: 5) Do not use toilet (Open Defecation) | B62: ='User interface_RES'!C42 -> 0.0102 | C62: ='User interface_RES'!C64 -> 0
A63: Totals | B63: =B39+B42+B45+B48+B52+B55+B58+B62 -> 1.000284 | C63: =C39+C42+C45+C48+C52+C55+C58+C62 -> 1
A65: Type of interface used by residents | B65: In # | C65: In # | E65: In % | F65: In %
A66: 1) Flush toilets | B66: =(B40+B43+B46+B49+B53+B56+B59)*B31 -> 42453.88 | C66: =(C40+C43+C46+C49+C53+C56+C59)*C33 -> 112681.25 | E66: =B40+B43+B46+B49+B56+B59 -> 0.31682 | F66: =C40+C43+C46+C49+C56+C59 -> 0.465625
A67: 2) Pour-flush toilets | B67: =(B41+B44+B47+B50+B54+B57+B60)*B31 -> 90217.376 | C67: =(C41+C44+C47+C50+C54+C57+C60)*C33 -> 129318.75 | E67: =B41+B44+B47+B50+B57+B60 -> 0.673264 | F67: =C41+C44+C47+C50+C57+C60 -> 0.534375
A68: 3) Direct drop (without water for flushing) | B68: =(B51+B61)*B31 -> 0 | C68: =(C51+C61)*C33 -> 0 | E68: =B51+B61 -> 0 | F68: =C51+C61 -> 0
A69: 5) Do not use toilet (Open Defecation) | B69: =B62*B31 -> 1366.8 | C69: =C62*C33 -> 0 | E69: =B62 -> 0.0102 | F69: =C62 -> 0
A70: Totals | B70: =SUM(B66:B69) -> 134038.056 | C70: =SUM(C66:C69) -> 242000 | E70: =SUM(E66:E69) -> 1.000284 | F70: =SUM(F66:F69) -> 1
B71: =B31 -> 134000 | C71: =C33 -> 242000
B72: =IF(B70=B71,"OK","Not OK") -> Not OK | C72: =IF(C70=C71,"OK","Not OK") -> OK
A74: Residents using septic tanks | B74: In # | C74: In # | E74: In % | F74: In %
A75: 2) Communal septic tanks | B75: =B42*B31 -> 0 | C75: =C42*C33 -> 0 | E75: =IF($B$31=0,0,B75/$B$31) -> 0 | F75: =IF(C33=0,0,C75/$C$33) -> 0
A76: 3) On-site sanitation facilities | SEPTIC TANKS | B76: =B45*B31 -> 25765.52 | C76: =C45*C33 -> 57475 | E76: =IF($B$31=0,0,B76/$B$31) -> 0.19228 | F76: =IF(C34=0,0,C76/$C$33) -> 0
A77: 4) Communal toilets | SEPTIC TANKS | B77: =B55*B31 -> 0 | C77: =C55*C33 -> 0 | E77: =IF($B$31=0,0,B77/$B$31) -> 0 | F77: =IF(C35=0,0,C77/$C$33) -> 0
A78: Totals | B78: =SUM(B75:B77) -> 25765.52 | C78: =SUM(C75:C77) -> 57475 | E78: =SUM(E75:E77) -> 0.19228 | F78: =SUM(F75:F77) -> 0
A80: Residents using pit latrines | B80: In # | C80: In # | E80: In % | F80: In %
A81: 3) On-site sanitation facilities | PIT LATRINES | B81: =B48*B31 -> 103062.08 | C81: =C48*C33 -> 172425 | E81: =IF($B$31=0,0,B81/$B$31) -> 0.76912 | F81: =IF(C39=0,0,C81/$C$33) -> 0.7125
A82: 4) Communal toilets | PIT LATRINES | B82: =B58*B31 -> 0 | C82: =C58*C33 -> 0 | E82: =IF($B$31=0,0,B82/$B$31) -> 0 | F82: =IF(C40=0,0,C82/$C$33) -> 0
A83: Totals | B83: =SUM(B81:B82) -> 103062.08 | C83: =SUM(C81:C82) -> 172425 | E83: =SUM(E81:E82) -> 0.76912 | F83: =SUM(F81:F82) -> 0.7125
A86: VOLUMES PRODUCED | RESIDENTS | B86: NOW | C86: IN FUTURE | E86: NOW | F86: IN FUTURE
B88: In litres/day | C88: In litres/day | E88: In m3/year | F88: In m3/year
A89: 1) Networked sewerage systems | B89: =SUM(B90:B91) -> 475700 | C89: =SUM(C90:C91) -> 1512500 | E89: =SUM(E90:E91) -> 173625 | F89: =SUM(F90:F91) -> 552075
A90: 1.1 Flush toilets | B90: =ROUND(($B$31*B40*'User interface_RES'!G74)/25,0)*25 -> 475700 | C90: =ROUND(($C$33*C40*'User interface_RES'!G74)/25,0)*25 -> 1512500 | E90: =ROUND((B90*365/1000)/25,0)*25 -> 173625 | F90: =ROUND((C90*365/1000)/25,0)*25 -> 552075
A91: 1.2 Pour-flush toilets | B91: =ROUND(($B$31*B41*'User interface_RES'!G75)/25,0)*25 -> 0 | C91: =ROUND(($C$33*C41*'User interface_RES'!G75)/25,0)*25 -> 0 | E91: =ROUND((B91*365/1000)/25,0)*25 -> 0 | F91: =ROUND((C91*365/1000)/25,0)*25 -> 0
A92: 2) Communal septic tanks | B92: =SUM(B93:B94) -> 0 | C92: =SUM(C93:C94) -> 0 | E92: =SUM(E93:E94) -> 0 | F92: =SUM(F93:F94) -> 0
A93: 2.1 Flush toilets | B93: =ROUND(($B$31*B43*'User interface_RES'!G77)/25,0)*25 -> 0 | C93: =ROUND(($C$33*C43*'User interface_RES'!G77)/25,0)*25 -> 0 | E93: =ROUND((B93*365/1000)/25,0)*25 -> 0 | F93: =ROUND((C93*365/1000)/25,0)*25 -> 0
A94: 2.2 Pour-flush toilets | B94: =ROUND(($B$31*B44*'User interface_RES'!G78)/25,0)*25 -> 0 | C94: =ROUND(($C$33*C44*'User interface_RES'!G78)/25,0)*25 -> 0 | E94: =ROUND((B94*365/1000)/25,0)*25 -> 0 | F94: =ROUND((C94*365/1000)/25,0)*25 -> 0
A95: 3) On-site sanitation facilities | SEPTIC TANKS | B95: =SUM(B96:B97) -> 2383300 | C95: =SUM(C96:C97) -> 5747500 | E95: =SUM(E96:E97) -> 869900 | F95: =SUM(F96:F97) -> 2097850
A96: 3.1 Flush toilets | B96: =ROUND(($B$31*B46*'User interface_RES'!G80)/25,0)*25 -> 1288275 | C96: =ROUND(($C$33*C46*'User interface_RES'!G80)/25,0)*25 -> 5747500 | E96: =ROUND((B96*365/1000)/25,0)*25 -> 470225 | F96: =ROUND((C96*365/1000)/25,0)*25 -> 2097850
A97: 3.2 Pour-flush toilets | B97: =ROUND(($B$31*B47*'User interface_RES'!G81)/25,0)*25 -> 1095025 | C97: =ROUND(($C$33*C47*'User interface_RES'!G81)/25,0)*25 -> 0 | E97: =ROUND((B97*365/1000)/25,0)*25 -> 399675 | F97: =ROUND((C97*365/1000)/25,0)*25 -> 0
A98: 3) On-site sanitation facilities | PIT LATRINES | B98: =SUM(B99:B101) -> 9146750 | C98: =SUM(C99:C101) -> 15302725 | E98: =SUM(E99:E101) -> 3338575 | F98: =SUM(F99:F101) -> 5585500
A99: 3.1 Flush toilets | B99: =ROUND(($B$31*B49*'User interface_RES'!G80)/25,0)*25 -> 2576550 | C99: =ROUND(($C$33*C49*'User interface_RES'!G80)/25,0)*25 -> 4310625 | E99: =ROUND((B99*365/1000)/25,0)*25 -> 940450 | F99: 1573375
A100: 3.2 Pour-flush toilets | B100: =ROUND(($B$31*B50*'User interface_RES'!G81)/25,0)*25 -> 6570200 | C100: =ROUND(($C$33*C50*'User interface_RES'!G81)/25,0)*25 -> 10992100 | E100: 2398125 | F100: 4012125
A101: 3.3 Direct drop (without water for flushing) | B101: =ROUND(($B$31*B51*'User interface_RES'!G82)/25,0)*25 -> 0 | C101: =ROUND(($C$33*C51*'User interface_RES'!G82)/25,0)*25 -> 0 | E101: 0 | F101: 0
A102: 4) Communal toilets | CONNECTED TO SEWER | B102: =SUM(B103:B104) -> 0 | C102: =SUM(C103:C104) -> 0 | E102: =SUM(E103:E104) -> 0 | F102: =SUM(F103:F104) -> 0
A103: 4.1 Flush toilets | B103: =ROUND(($B$31*B53*'User interface_RES'!G84)/25,0)*25 -> 0 | C103: =ROUND(($B$31*C53*'User interface_RES'!G84)/25,0)*25 -> 0 | E103: =ROUND((B103*365/1000)/25,0)*25 -> 0 | F103: =ROUND((C103*365/1000)/25,0)*25 -> 0
A104: 4.2 Pour-flush toilets | B104: =ROUND(($B$31*B54*'User interface_RES'!G85)/25,0)*25 -> 0 | C104: =ROUND(($B$31*C54*'User interface_RES'!G85)/25,0)*25 -> 0 | E104: =ROUND((B104*365/1000)/25,0)*25 -> 0 | F104: =ROUND((C104*365/1000)/25,0)*25 -> 0
A105: 4) Communal toilets | SEPTIC TANKS | B105: =SUM(B106:B107) -> 0 | C105: =SUM(C106:C107) -> 0 | E105: =SUM(E106:E107) -> 0 | F105: =SUM(F106:F107) -> 0
A106: 4.1 Flush toilets | B106: =ROUND(($B$31*B56*'User interface_RES'!G84)/25,0)*25 -> 0 | C106: =ROUND(($C$33*C56*'User interface_RES'!G84)/25,0)*25 -> 0 | E106: =ROUND((B106*365/1000)/25,0)*25 -> 0 | F106: =ROUND((C106*365/1000)/25,0)*25 -> 0
A107: 4.2 Pour-flush toilets | B107: =ROUND(($B$31*B57*'User interface_RES'!G85)/25,0)*25 -> 0 | C107: =ROUND(($C$33*C57*'User interface_RES'!G85)/25,0)*25 -> 0 | E107: =ROUND((B107*365/1000)/25,0)*25 -> 0 | F107: =ROUND((C107*365/1000)/25,0)*25 -> 0
A108: 4) Communal toilets | PIT LATRINES | B108: =SUM(B109:B111) -> 0 | C108: =SUM(C109:C111) -> 0 | E108: =SUM(E109:E111) -> 0 | F108: =SUM(F109:F111) -> 0
A109: 4.1 Flush toilets | B109: =ROUND(($B$31*B59*'User interface_RES'!G84)/25,0)*25 -> 0 | C109: =ROUND(($C$33*C59*'User interface_RES'!G84)/25,0)*25 -> 0 | E109: =ROUND((B109*365/1000)/25,0)*25 -> 0 | F109: 0
A110: 4.2 Pour-flush toilets | B110: =ROUND(($B$31*B60*'User interface_RES'!G85)/25,0)*25 -> 0 | C110: =ROUND(($C$33*C60*'User interface_RES'!G85)/25,0)*25 -> 0 | E110: 0 | F110: 0
A111: 4.3 Direct drop (without water for flushing) | B111: =ROUND(($B$31*B61*'User interface_RES'!G86)/25,0)*25 -> 0 | C111: =ROUND(($C$33*C61*'User interface_RES'!G86)/25,0)*25 -> 0 | E111: 0 | F111: 0
A112: 5) Do not use toilet (Open Defecation) | B112: =ROUND(($B$31*B62*'User interface_RES'!G87)/25,0)*25 -> 350 | C112: =ROUND(($C$33*C62*'User interface_RES'!G87)/25,0)*25 -> 0 | E112: 125 | F112: 0
A113: Totals | B113: =B89+B92+B95+B98+B102+B105+B108+B112 -> 12006100 | C113: =C89+C92+C95+C98+C102+C105+C108+C112 -> 22562725 | E113: =E89+E92+E95+E98+E102+E105+E108+E112 -> 4382225 | F113: =F89+F92+F95+F98+F102+F105+F108+F112 -> 8235425
A116: Summary of volumes of human waste produced by residents | B116: In ltr/day | C116: In ltr/day | E116: In m3/year | F116: In m3/year
A117: 1) Networked sewerage systems | B117: =B89 -> 475700 | C117: =C89 -> 1512500 | E117: =E89 -> 173625 | F117: =F89 -> 552075
A118: 2) Communal septic tanks | B118: =B92 -> 0 | C118: =C92 -> 0 | E118: =E92 -> 0 | F118: =F92 -> 0
A119: 3) On-site sanitation facilities | SEPTIC TANKS | B119: =B95 -> 2383300 | C119: =C95 -> 5747500 | E119: =E95 -> 869900 | F119: =F95 -> 2097850
A120: 3) On-site sanitation facilities | PIT LATRINES | B120: =B98 -> 9146750 | C120: =C98 -> 15302725 | E120: =E98 -> 3338575 | F120: =F98 -> 5585500
A121: 4) Communal toilets | CONNECTED TO SEWER | B121: =B102 -> 0 | C121: =C102 -> 0 | E121: =E102 -> 0 | F121: =F102 -> 0
A122: 4) Communal toilets | SEPTIC TANKS | B122: =B105 -> 0 | C122: =C105 -> 0 | E122: =E105 -> 0 | F122: =F105 -> 0
A123: 4) Communal toilets | PIT LATRINES | B123: =B108 -> 0 | C123: =C108 -> 0 | E123: =E108 -> 0 | F123: =F108 -> 0
A124: 5) Do not use toilet (Open Defecation) | B124: =B112 -> 350 | C124: =C112 -> 0 | E124: =E112 -> 125 | F124: =F112 -> 0
A125: Totals of human waste in liters per day | B125: =SUM(B117:B124) -> 12006100 | C125: =SUM(C117:C124) -> 22562725 | E125: =SUM(E117:E124) -> 4382225 | F125: =SUM(F117:F124) -> 8235425
A128: SUMMARY OF VOLUMES PRODUCED | RESIDENTS | B128: NOW | C128: IN FUTURE | E128: NOW | F128: IN FUTURE | H128: NOW | I128: IN FUTURE
B130: In ltr/day | C130: In ltr/day | E130: In m3/year | F130: In m3/year | H130: In % | I130: In %
A132: Volumes safely captured in WC | B132: =SUM(B133:B136) -> 12005750 | C132: =SUM(C133:C136) -> 22562725 | E132: =SUM(E133:E136) -> 4382100 | F132: =SUM(F133:F136) -> 8235425 | H132: =IF($E$141=0,0,E132/$E$141) -> 0.9999714757 | I132: =IF($F$141=0,0,F132/$F$141) -> 1
A133:  Captured in WC to sewer | B133: =B117+B121 -> 475700 | C133: =C117+C121 -> 1512500 | E133: =E117+E121 -> 173625 | F133: =F117+F121 -> 552075 | H133: =IF($E$141=0,0,E133/$E$141) -> 0.03962028422 | I133: =IF($F$141=0,0,F133/$F$141) -> 0.06703661317
A134:  Captured in WC to communal septic tanks | B134: =B118 -> 0 | C134: =C118 -> 0 | E134: =E118 -> 0 | F134: =F118 -> 0 | H134: =IF($E$141=0,0,E134/$E$141) -> 0 | I134: =IF($F$141=0,0,F134/$F$141) -> 0
A135:  Captured onsite in septic tanks | B135: =(B119+B122) -> 2383300 | C135: =C119+C122 -> 5747500 | E135: =(E119+E122) -> 869900 | F135: =F119+F122 -> 2097850 | H135: =IF($E$141=0,0,E135/$E$141) -> 0.1985064665 | I135: =IF($F$141=0,0,F135/$F$141) -> 0.2547348801
A136:  Captured onsite in pit latrines | B136: =SUM(B99:B101)+SUM(B109:B111) -> 9146750 | C136: =SUM(C99:C101)+SUM(C109:C111) -> 15302725 | E136: =SUM(E99:E101)+SUM(E109:E111) -> 3338575 | F136: =SUM(F99:F101)+SUM(F109:F111) -> 5585500 | H136: =IF($E$141=0,0,E136/$E$141) -> 0.761844725 | I136: =IF($F$141=0,0,F136/$F$141) -> 0.6782285067
A138: Volume not safely captured in WC | B138: =SUM(B139:B139) -> 350 | C138: =SUM(C139:C139) -> 0 | E138: =SUM(E139:E139) -> 125 | F138: =SUM(F139:F139) -> 0 | H138: =IF($E$141=0,0,E138/$E$141) -> 2.852432269e-05 | I138: =IF($F$141=0,0,F138/$F$141) -> 0
A139:  Open defecation (OD) | B139: =B124 -> 350 | C139: =C124 -> 0 | E139: =E124 -> 125 | F139: =F124 -> 0 | H139: =IF($E$141=0,0,E139/$E$141) -> 2.852432269e-05 | I139: =IF($F$141=0,0,F139/$F$141) -> 0
A141: TOTAL VOLUMES PRODUCED | B141: =B132+B138 -> 12006100 | C141: =C132+C138 -> 22562725 | E141: =E132+E138 -> 4382225 | F141: =F132+F138 -> 8235425 | H141: =IF($E$141=0,0,E141/$E$141) -> 1 | I141: =IF($F$141=0,0,F141/$F$141) -> 1
B142: =B125 -> 12006100 | C142: =C125 -> 22562725 | E142: =E125 -> 4382225 | F142: =F125 -> 8235425
B143: =IF(B141=B142,"OK","Not OK") -> OK | C143: =IF(C141=C142,"OK","Not OK") -> OK | E143: =IF(E141=E142,"OK","Not OK") -> OK | F143: =IF(F141=F142,"OK","Not OK") -> OK
G147: NOW | H147: IN FUTURE
A148: CALCULATIONS FOR TEMPORARY RESIDENTS | E148: Expected annual growth rate | F148: Correction factor for temporary residents | G148: Corrected # of temporary residents per year | H148: Corrected # of temporary residents per year
A150: POPULATION FIGURES TEMPORARY RESIDENTS | B150: NOW | C150: IN FUTURE
A152: Temporary residents | B152: =B155+B157 -> 3473100 | C152: =C155+C157 -> 6272800 | G152: =G156+G157 -> 75500 | H152: =H156+H157 -> 136400
A154: A: Visitors that stay overnight | N154: Date now | O154: ='User interface_Non-RES'!C8 -> 42630
A155: Visitor numbers | B155: =ROUND(('User interface_Non-RES'!C21*(1+E155)^$O$157)/100,0)*100 -> 3416300 | C155: =ROUND((B155*(1+E155)^$E$33)/100,0)*100 -> 6170200 | E155: =IF('User interface_Non-RES'!D21>0,'User interface_Non-RES'!D21,'User interface_Non-RES'!$G$12) -> 0.03 | F155: 1 | N155: Date of data | O155: ='User interface_Non-RES'!D14 -> 42369
A156: Number of visitor nights | B156: =ROUND(('User interface_Non-RES'!C22*(1+E156)^$O$157)/100,0)*100 -> 6832500 | C156: =ROUND((B156*(1+E156)^$E$33)/100,0)*100 -> 12340300 | E156: =IF('User interface_Non-RES'!D22>0,'User interface_Non-RES'!D22,'User interface_Non-RES'!$G$12) -> 0.03 | F156: 1 | G156: =ROUND(((B156*F156)/365)/100,0)*100 -> 18700 | H156: =ROUND(((C156*F156)/365)/100,0)*100 -> 33800 | L156: =G156/$G$152 -> 0.2476821192 | N156: Days since data | O156: =O154-O155 -> 261
A157: B: Temporary residents | B157: =SUM(B158:B161) -> 56800 | C157: =SUM(C158:C161) -> 102600 | G157: =SUM(G158:G161) -> 56800 | H157: =SUM(H158:H161) -> 102600 | L157: =G157/$G$152 -> 0.7523178808 | N157: Years since data | O157: =ROUND((O156/365)/0.25,0)*0.25 -> 0.75
A158: Workers (informal and formal) | B158: =ROUND(('User interface_Non-RES'!C24*(1+E158)^$O$157)/100,0)*100 -> 56800 | C158: =ROUND((B158*(1+E158)^$E$33)/100,0)*100 -> 102600 | E158: =IF('User interface_Non-RES'!D24>0,'User interface_Non-RES'!D24,'User interface_Non-RES'!$G$12) -> 0.03 | F158: 1 | G158: =ROUND((B158*F158)/100,0)*100 -> 56800 | H158: =ROUND((C158*F158)/100,0)*100 -> 102600
A159: Students from outside | B159: =ROUND(('User interface_Non-RES'!C25*(1+E159)^$O$157)/100,0)*100 -> 0 | C159: =ROUND((B159*(1+E159)^$E$33)/100,0)*100 -> 0 | E159: =IF('User interface_Non-RES'!D25>0,'User interface_Non-RES'!D25,'User interface_Non-RES'!$G$12) -> 0.03 | F159: 1 | G159: =ROUND((B159*F159)/100,0)*100 -> 0 | H159: =ROUND((C159*F159)/100,0)*100 -> 0
A160: Hospitals (in-patients) | B160: =ROUND(('User interface_Non-RES'!C26*(1+E160)^$O$157)/100,0)*100 -> 0 | C160: =ROUND((B160*(1+E160)^$E$33)/100,0)*100 -> 0 | E160: =IF('User interface_Non-RES'!D26>0,'User interface_Non-RES'!D26,'User interface_Non-RES'!$G$12) -> 0.03 | F160: 1 | G160: =ROUND((B160*F160)/100,0)*100 -> 0 | H160: =ROUND((C160*F160)/100,0)*100 -> 0
